Workbook

Sheet Accueil
J7: 1. Select the File tab and choose Options.
J8: 2. Select Trust Center, and then choose Trust Center Settings.
J9: 3. In the Trust Center, select Macro Settings.
C15: KetaPK release 1.04. Georges Mion © 2026
C20: if macros are
C21: already enabled
D24: OR

Sheet HELP
O3: Zoom value: | Q3: 112 | S3: You can use this control to adjust the zoom
D5: KetaPK release 1.04. Georges Mion © 2026
P6: Enable macros!
P8: Use the correct decimal separator!
D9: Before starting KetaPK (Ketamine Pharmaco Kinetics) with Excel
B11: KetaPK simulates esketamine or racemic ketamine plasmatic concentrations after IV administration (bolus or infusion)
D13: KetaPK is ONLY for educational purpose
D14: and should NOT be used for therapeutic management
B17: BEWARE: KetaPK has been written with Microsoft Excel 2016.
B20: With another software, malfunction may affect macrocommands.
B21: You must ABSOLUTELY activate macros
B22: DECIMALS (e.g., 2.5 mg) must be entered with the CORRECT SEPARATOR (point or comma depending on your system).
B25: STEPS | C25: 1 | D25: First, enter patient weight, height and age
D26: You are in Excel environment: do not forget to press the "enter" key !
C27: 2 | D27: Check drug concentration !!
D28: You can convert mg, mL, mg/kg, mg/kg/h, µg/kg/min with the calculator
C30: 3 | D30: Choose your drug (Esketamine or racemate)
C32: 4 | D32: You may inject either IV boluses (mg), or infusions (mg/kg/h and µg/kg/min)
C34: 5 | D34: Time is displayed as minutes (0 - 300 min). The bigger your screen, the better!
C36: 6 | D36: To stop an infusion, you must enter a "zero" value at the time (min) it is stopped
D37: Infused volume is the incremental quantity of administered solution (depends on drug concentration)
F39: The control panel displays plasmatic drug concentrations (ng/mL)
F41: The color depends of the concentration effect (see "Models" panel)
C43: 7 | D43: You can display labels on the curves, with special colour codes (go to drugs for explanation)
C45: 8 | D45: You can save all the calculated concentrations and use them in another File
C47: 9 | D47: BEWARE: It is advised to erase all entered data between each simulation (New simulation) | P47: ENJOY !

Sheet KPTiva
C4: 5 | E4: mg/mL
B8: PATIENT
B10: Age | C10: 40 | E10: Years old
B12: Weight | C12: 70 | E12: Kg
B14: Height | C14: 170 | E14: cm
C16: BMI | E16: =10000*Poids/(C14*C14) -> 24.22145329 | G16: Kg/m2
D25: Zoom (%)
E26: 90
E29: Time | G29: min | I29: 0 | J29: 5 | K29: 10 | L29: 15 | M29: 20 | N29: 25 | O29: 30 | P29: 35 | Q29: 40 | R29: 45 | S29: 50 | T29: 55 | U29: 60 | V29: 65 | W29: 70 | X29: 75 | Y29: 80 | Z29: 85 | AA29: 90 | AB29: 95 | AC29: 100 | AD29: 105 | AE29: 110 | AF29: 115 | AG29: 120 | AH29: 125 | AI29: 130 | AJ29: 135 | AK29: 140 | AL29: 145 | AM29: 150 | AN29: 155 | AO29: 160 | AP29: 165 | AQ29: 170 | AR29: 175 | AS29: 180 | AT29: 185 | AU29: 190 | AV29: 195 | AW29: 200 | AX29: 205 | AY29: 210 | AZ29: 215 | BA29: 220 | BB29: 225 | BC29: 230 | BD29: 235 | BE29: 240 | BF29: 245 | BG29: 250 | BH29: 255 | BI29: 260 | BJ29: 265 | BK29: 270 | BL29: 275 | BM29: 280 | BN29: 285 | BO29: 290 | BP29: 295 | BQ29: 300
E31: Bolus | G31: mg
E32: Infusion | I32: Enter the boluses and infusion rate (mg/kg/h or µg/kg/min) | CF32: Mode
E33: mg/kg/h | H33: =G33 -> 0 | I33: =H33 -> 0 | J33: 0 | K33: 0 | L33: 0 | M33: 0 | N33: 0 | O33: 0 | P33: 0 | Q33: 0 | R33: 0 | S33: 0 | T33: 0 | U33: 0 | V33: 0 | W33: 0 | X33: 0 | Y33: 0 | Z33: 0 | AA33: 0 | AB33: 0 | AC33: 0 | AD33: 0 | AE33: 0 | AF33: 0 | AG33: 0 | AH33: 0 | AI33: 0 | AJ33: 0 | AK33: 0 | AL33: 0 | AM33: 0 | AN33: 0 | AO33: 0 | AP33: 0 | AQ33: 0 | AR33: 0 | AS33: 0 | AT33: 0 | AU33: 0 | AV33: 0 | AW33: 0 | AX33: 0 | AY33: 0 | AZ33: 0 | BA33: 0 | BB33: 0 | BC33: 0 | BD33: 0 | BE33: 0 | BF33: 0 | BG33: 0 | BH33: 0 | BI33: 0 | BJ33: 0 | BK33: 0 | BL33: 0 | BM33: 0 | BN33: 0 | BO33: 0 | BP33: 0 | BQ33: 0 | BV33: REGLES DE MISE EN FORME CONDITIONNELLE | CF33: Cellule TEST | CI33: 1000
E34: µg/kg/min | H34: =G34 -> 0 | I34: =H34 -> 0 | J34: 0 | K34: 0 | L34: 0 | M34: 0 | N34: 0 | O34: 0 | P34: 0 | Q34: 0 | R34: 0 | S34: 0 | T34: 0 | U34: 0 | V34: 0 | W34: 0 | X34: 0 | Y34: 0 | Z34: 0 | AA34: 0 | AB34: 0 | AC34: 0 | AD34: 0 | AE34: 0 | AF34: 0 | AG34: 0 | AH34: 0 | AI34: 0 | AJ34: 0 | AK34: 0 | AL34: 0 | AM34: 0 | AN34: 0 | AO34: 0 | AP34: 0 | AQ34: 0 | AR34: 0 | AS34: 0 | AT34: 0 | AU34: 0 | AV34: 0 | AW34: 0 | AX34: 0 | AY34: 0 | AZ34: 0 | BA34: 0 | BB34: 0 | BC34: 0 | BD34: 0 | BE34: 0 | BF34: 0 | BG34: 0 | BH34: 0 | BI34: 0 | BJ34: 0 | BK34: 0 | BL34: 0 | BM34: 0 | BN34: 0 | BO34: 0 | BP34: 0 | BQ34: 0 | BV34: Eskétamine
E36: Volume | G36: mL | I36: =(I31/Concentration_Ketamine) + ( (5*I33*Poids)/(60*Concentration_Ketamine) ) + ( (5*I34*Poids)/(1000*Concentration_Ketamine) ) -> 0 | J36: =I36 + (J31/Concentration_Ketamine) + ( (5*J33*Poids)/(60*Concentration_Ketamine) ) + ( (5*J34*Poids)/(1000*Concentration_Ketamine) ) -> 0 | K36: 0 | L36: 0 | M36: 0 | N36: 0 | O36: 0 | P36: 0 | Q36: 0 | R36: 0 | S36: 0 | T36: 0 | U36: 0 | V36: 0 | W36: 0 | X36: 0 | Y36: 0 | Z36: 0 | AA36: 0 | AB36: 0 | AC36: 0 | AD36: 0 | AE36: 0 | AF36: 0 | AG36: 0 | AH36: 0 | AI36: 0 | AJ36: 0 | AK36: 0 | AL36: 0 | AM36: 0 | AN36: 0 | AO36: =AN36 + (AO31/Concentration_Ketamine) + ( (5*AO33*Poids)/(60*Concentration_Ketamine) ) + ( (5*AO34*Poids)/(1000*Concentration_Ketamine) ) -> 0 | AP36: 0 | AQ36: 0 | AR36: 0 | AS36: 0 | AT36: 0 | AU36: 0 | AV36: 0 | AW36: 0 | AX36: 0 | AY36: 0 | AZ36: 0 | BA36: 0 | BB36: 0 | BC36: 0 | BD36: 0 | BE36: 0 | BF36: 0 | BG36: 0 | BH36: 0 | BI36: 0 | BJ36: 0 | BK36: 0 | BL36: 0 | BM36: 0 | BN36: 0 | BO36: 0 | BP36: 0 | BQ36: 0 | BW36: 0 | BX36: 10 | BY36: 10 | BZ36: 50 | CA36: 50 | CB36: 150 | CC36: 150 | CD36: 350 | CE36: 350 | CF36: 500 | CG36: 500 | CH36: 1000 | CI36: 1000
BV37: Kétamine
E38: PK MODELS | I38: Plasmatic Concentrations (ng/mL) | BW38: 0 | BX38: 20 | BY38: 20 | BZ38: 100 | CA38: 100 | CB38: 300 | CC38: 300 | CD38: 700 | CE38: 700 | CF38: 700 | CG38: 1000 | CH38: 2000 | CI38: 2000
B40: TRUE | C40: Labels | E40: DOMINO | H40: 0 | I40: ='Domino ABC'!J79 -> 0 | J40: ='Domino ABC'!K79 -> 0 | K40: ='Domino ABC'!L79 -> 0 | L40: ='Domino ABC'!M79 -> 0 | M40: ='Domino ABC'!N79 -> 0 | N40: ='Domino ABC'!O79 -> 0 | O40: ='Domino ABC'!P79 -> 0 | P40: ='Domino ABC'!Q79 -> 0 | Q40: ='Domino ABC'!R79 -> 0 | R40: ='Domino ABC'!S79 -> 0 | S40: ='Domino ABC'!T79 -> 0 | T40: ='Domino ABC'!U79 -> 0 | U40: ='Domino ABC'!V79 -> 0 | V40: ='Domino ABC'!W79 -> 0 | W40: ='Domino ABC'!X79 -> 0 | X40: ='Domino ABC'!Y79 -> 0 | Y40: ='Domino ABC'!Z79 -> 0 | Z40: ='Domino ABC'!AA79 -> 0 | AA40: ='Domino ABC'!AB79 -> 0 | AB40: ='Domino ABC'!AC79 -> 0 | AC40: ='Domino ABC'!AD79 -> 0 | AD40: ='Domino ABC'!AE79 -> 0 | AE40: ='Domino ABC'!AF79 -> 0 | AF40: ='Domino ABC'!AG79 -> 0 | AG40: ='Domino ABC'!AH79 -> 0 | AH40: ='Domino ABC'!AI79 -> 0 | AI40: ='Domino ABC'!AJ79 -> 0 | AJ40: ='Domino ABC'!AK79 -> 0 | AK40: ='Domino ABC'!AL79 -> 0 | AL40: ='Domino ABC'!AM79 -> 0 | AM40: ='Domino ABC'!AN79 -> 0 | AN40: ='Domino ABC'!AO79 -> 0 | AO40: ='Domino ABC'!AP79 -> 0 | AP40: ='Domino ABC'!AQ79 -> 0 | AQ40: ='Domino ABC'!AR79 -> 0 | AR40: ='Domino ABC'!AS79 -> 0 | AS40: ='Domino ABC'!AT79 -> 0 | AT40: ='Domino ABC'!AU79 -> 0 | AU40: ='Domino ABC'!AV79 -> 0 | AV40: ='Domino ABC'!AW79 -> 0 | AW40: ='Domino ABC'!AX79 -> 0 | AX40: ='Domino ABC'!AY79 -> 0 | AY40: ='Domino ABC'!AZ79 -> 0 | AZ40: ='Domino ABC'!BA79 -> 0 | BA40: ='Domino ABC'!BB79 -> 0 | BB40: ='Domino ABC'!BC79 -> 0 | BC40: ='Domino ABC'!BD79 -> 0 | BD40: ='Domino ABC'!BE79 -> 0 | BE40: ='Domino ABC'!BF79 -> 0 | BF40: ='Domino ABC'!BG79 -> 0 | BG40: ='Domino ABC'!BH79 -> 0 | BH40: ='Domino ABC'!BI79 -> 0 | BI40: ='Domino ABC'!BJ79 -> 0 | BJ40: ='Domino ABC'!BK79 -> 0 | BK40: ='Domino ABC'!BL79 -> 0 | BL40: ='Domino ABC'!BM79 -> 0 | BM40: ='Domino ABC'!BN79 -> 0 | BN40: ='Domino ABC'!BO79 -> 0 | BO40: ='Domino ABC'!BP79 -> 0 | BP40: ='Domino ABC'!BQ79 -> 0 | BQ40: ='Domino ABC'!BR79 -> 0
BV41: ZONE VARIABLE SELON MODE K OU ESK
B42: FALSE | C42: Labels | E42: CLEMENTS | H42: 0 | I42: =CLEMENTS!J79 -> 0 | J42: =CLEMENTS!K79 -> 0 | K42: =CLEMENTS!L79 -> 0 | L42: =CLEMENTS!M79 -> 0 | M42: =CLEMENTS!N79 -> 0 | N42: =CLEMENTS!O79 -> 0 | O42: =CLEMENTS!P79 -> 0 | P42: =CLEMENTS!Q79 -> 0 | Q42: =CLEMENTS!R79 -> 0 | R42: =CLEMENTS!S79 -> 0 | S42: =CLEMENTS!T79 -> 0 | T42: =CLEMENTS!U79 -> 0 | U42: =CLEMENTS!V79 -> 0 | V42: =CLEMENTS!W79 -> 0 | W42: =CLEMENTS!X79 -> 0 | X42: =CLEMENTS!Y79 -> 0 | Y42: =CLEMENTS!Z79 -> 0 | Z42: =CLEMENTS!AA79 -> 0 | AA42: =CLEMENTS!AB79 -> 0 | AB42: =CLEMENTS!AC79 -> 0 | AC42: =CLEMENTS!AD79 -> 0 | AD42: =CLEMENTS!AE79 -> 0 | AE42: =CLEMENTS!AF79 -> 0 | AF42: =CLEMENTS!AG79 -> 0 | AG42: =CLEMENTS!AH79 -> 0 | AH42: =CLEMENTS!AI79 -> 0 | AI42: =CLEMENTS!AJ79 -> 0 | AJ42: =CLEMENTS!AK79 -> 0 | AK42: =CLEMENTS!AL79 -> 0 | AL42: =CLEMENTS!AM79 -> 0 | AM42: =CLEMENTS!AN79 -> 0 | AN42: =CLEMENTS!AO79 -> 0 | AO42: =CLEMENTS!AP79 -> 0 | AP42: =CLEMENTS!AQ79 -> 0 | AQ42: =CLEMENTS!AR79 -> 0 | AR42: =CLEMENTS!AS79 -> 0 | AS42: =CLEMENTS!AT79 -> 0 | AT42: =CLEMENTS!AU79 -> 0 | AU42: =CLEMENTS!AV79 -> 0 | AV42: =CLEMENTS!AW79 -> 0 | AW42: =CLEMENTS!AX79 -> 0 | AX42: =CLEMENTS!AY79 -> 0 | AY42: =CLEMENTS!AZ79 -> 0 | AZ42: =CLEMENTS!BA79 -> 0 | BA42: =CLEMENTS!BB79 -> 0 | BB42: =CLEMENTS!BC79 -> 0 | BC42: =CLEMENTS!BD79 -> 0 | BD42: =CLEMENTS!BE79 -> 0 | BE42: =CLEMENTS!BF79 -> 0 | BF42: =CLEMENTS!BG79 -> 0 | BG42: =CLEMENTS!BH79 -> 0 | BH42: =CLEMENTS!BI79 -> 0 | BI42: =CLEMENTS!BJ79 -> 0 | BJ42: =CLEMENTS!BK79 -> 0 | BK42: =CLEMENTS!BL79 -> 0 | BL42: =CLEMENTS!BM79 -> 0 | BM42: =CLEMENTS!BN79 -> 0 | BN42: =CLEMENTS!BO79 -> 0 | BO42: =CLEMENTS!BP79 -> 0 | BP42: =CLEMENTS!BQ79 -> 0 | BQ42: =CLEMENTS!BR79 -> 0 | BW42: 0 | BX42: 10 | BY42: 10 | BZ42: 50 | CA42: 50 | CB42: 150 | CC42: 150 | CD42: 350 | CE42: 350 | CF42: 500 | CG42: 500 | CH42: 1000 | CI42: 1000
B44: FALSE | C44: Labels | E44: KAMP | H44: 0 | I44: =KAMP!J79 -> 0 | J44: =KAMP!K79 -> 0 | K44: =KAMP!L79 -> 0 | L44: =KAMP!M79 -> 0 | M44: =KAMP!N79 -> 0 | N44: =KAMP!O79 -> 0 | O44: =KAMP!P79 -> 0 | P44: =KAMP!Q79 -> 0 | Q44: =KAMP!R79 -> 0 | R44: =KAMP!S79 -> 0 | S44: =KAMP!T79 -> 0 | T44: =KAMP!U79 -> 0 | U44: =KAMP!V79 -> 0 | V44: =KAMP!W79 -> 0 | W44: =KAMP!X79 -> 0 | X44: =KAMP!Y79 -> 0 | Y44: =KAMP!Z79 -> 0 | Z44: =KAMP!AA79 -> 0 | AA44: =KAMP!AB79 -> 0 | AB44: =KAMP!AC79 -> 0 | AC44: =KAMP!AD79 -> 0 | AD44: =KAMP!AE79 -> 0 | AE44: =KAMP!AF79 -> 0 | AF44: =KAMP!AG79 -> 0 | AG44: =KAMP!AH79 -> 0 | AH44: =KAMP!AI79 -> 0 | AI44: =KAMP!AJ79 -> 0 | AJ44: =KAMP!AK79 -> 0 | AK44: =KAMP!AL79 -> 0 | AL44: =KAMP!AM79 -> 0 | AM44: =KAMP!AN79 -> 0 | AN44: =KAMP!AO79 -> 0 | AO44: =KAMP!AP79 -> 0 | AP44: =KAMP!AQ79 -> 0 | AQ44: =KAMP!AR79 -> 0 | AR44: =KAMP!AS79 -> 0 | AS44: =KAMP!AT79 -> 0 | AT44: =KAMP!AU79 -> 0 | AU44: =KAMP!AV79 -> 0 | AV44: =KAMP!AW79 -> 0 | AW44: =KAMP!AX79 -> 0 | AX44: =KAMP!AY79 -> 0 | AY44: =KAMP!AZ79 -> 0 | AZ44: =KAMP!BA79 -> 0 | BA44: =KAMP!BB79 -> 0 | BB44: =KAMP!BC79 -> 0 | BC44: =KAMP!BD79 -> 0 | BD44: =KAMP!BE79 -> 0 | BE44: =KAMP!BF79 -> 0 | BF44: =KAMP!BG79 -> 0 | BG44: =KAMP!BH79 -> 0 | BH44: =KAMP!BI79 -> 0 | BI44: =KAMP!BJ79 -> 0 | BJ44: =KAMP!BK79 -> 0 | BK44: =KAMP!BL79 -> 0 | BL44: =KAMP!BM79 -> 0 | BM44: =KAMP!BN79 -> 0 | BN44: =KAMP!BO79 -> 0 | BO44: =KAMP!BP79 -> 0 | BP44: =KAMP!BQ79 -> 0 | BQ44: =KAMP!BR79 -> 0
M73: =M60 -> 0
B4440: TRUE

Sheet Sauvegarde
A5: Time (Min) | B5: 0 | C5: 5 | D5: 10 | E5: 15 | F5: 20 | G5: 25 | H5: 30 | I5: 35 | J5: 40 | K5: 45 | L5: 50 | M5: 55 | N5: 60 | O5: 65 | P5: 70 | Q5: 75 | R5: 80 | S5: 85 | T5: 90 | U5: 95 | V5: 100 | W5: 105 | X5: 110 | Y5: 115 | Z5: 120 | AA5: 125 | AB5: 130 | AC5: 135 | AD5: 140 | AE5: 145 | AF5: 150 | AG5: 155 | AH5: 160 | AI5: 165 | AJ5: 170 | AK5: 175 | AL5: 180 | AM5: 185 | AN5: 190 | AO5: 195 | AP5: 200 | AQ5: 205 | AR5: 210 | AS5: 215 | AT5: 220 | AU5: 225 | AV5: 230 | AW5: 235 | AX5: 240 | AY5: 245 | AZ5: 250 | BA5: 255 | BB5: 260 | BC5: 265 | BD5: 270 | BE5: 275 | BF5: 280 | BG5: 285 | BH5: 290 | BI5: 295 | BJ5: 300
A7: Domino
A9: Clements
A11: Kamp

Sheet Calculator
I3: KetaPK CALCULATOR
E5: Enter data in yellow cells and read the equivalent values in the right appropriated colomn
E7: Weight = | G7: =Poids -> 70 | H7: Kg
L9: BOLUS
J10: mg/kg | K10: mg | M10: mg | N10: mg/kg
K11: =Poids*J11 -> 0 | N11: =M11/G7 -> 0
L13: INFUSION
G14: Speed | I14: Unit | J14: mg/kg/h | K14: µg/kg/min | L14: µg/min | M14: mg/min | N14: mg/h
I15: mg/kg/h | J15: . | K15: =(G15*1000)/60 -> 0 | L15: =(G15*Poids*1000)/60 -> 0 | M15: =L15/1000 -> 0 | N15: =M15*60 -> 0
I16: µg/kg/min | J16: =(G16*60)/(1000) -> 0 | K16: . | L16: =G7*G16 -> 0 | M16: =L16/1000 -> 0 | N16: =M16*60 -> 0
I21: Concentration | L21: 5
L22: Convert mg into mL
J24: mg | L24: =I24/L21 -> 0 | M24: mL
L25: Convert mL into mg
J27: mL | L27: =I27*L21 -> 0 | M27: mg

Sheet DRUGS
R2: MODELS
N5: Common therapeutic ranges (from light sedation to deep anesthesia) | AB5: PKPD Multi - Exponential models
C6: Esketamine: Cp / effect | I6: Racemic Cp / effect | AB6: A | AD6: B | AF6: C | AH6: Alpha | AJ6: Beta | AL6: Gamma | AN6: dose
P7: BOLUS | R7: INFUSION | U7: Cp | Z7: Model | AB7: U/mL | AH7: min-1 | AN7: mg/kg
D8: ng/mL | E8: Corresponding effect | J8: ng/mL | K8: Corresponding effect
C9: 5 | D9: 0-10 | E9: None | I9: 10 | J9: 0-20 | K9: None | O9: Esketamine | P9: 0.2-1 | Q9: mg/kg | R9: 0.15-0.6 | S9: mg/kg/h | U9: 20-1000 | V9: ng/mL | Z9: Domino | AB9: 14300 | AD9: 2340 | AF9: 197 | AH9: =81.1/60 -> 1.351666667 | AJ9: =5.71/60 -> 0.09516666667 | AL9: =0.227/60 -> 0.003783333333 | AN9: 2
C10: 10 | D10: 10-50 | E10: Anti-hyperalgesic | I10: 20 | J10: 20-100 | K10: Anti-hyperalgesic
C11: 50 | D11: 50-150 | E11: Analgesic | I11: 100 | J11: 100-300 | K11: Analgesic | O11: Racemic | P11: 0,25-2 | Q11: mg/kg | R11: 0,2-0,5 | S11: mg/kg/h | U11: 40-2000 | V11: µg/mL | Z11: Clements | AB11: 108 | AD11: 39 | AH11: 0.0394 | AJ11: 0.0038 | AN11: 0.25
C12: 150 | D12: 150-350 | E12: Psychedelic | I12: 300 | J12: 300-700 | K12: Psychedelic
C13: 350 | D13: 350-500 | E13: Emergence | I13: 700 | J13: 700-1000 | K13: Emergence | Z13: Kamp | AB13: 1332 | AC13: 155 | AD13: 155 | AF13: 69 | AH13: 0.2465831937 | AJ13: 0.03845244582 | AL13: 0.004093636111 | AN13: 0.5
C14: 500 | D14: > 500 | E14: Narcosis | I14: 1000 | J14: > 1000 | K14: Narcosis | P14: KetaPK uses the following models :
C15: 1000 | D15: > 1000 | E15: Excessive | I15: 2000 | J15: > 2000 | K15: Excessive
O16: Domino EF et al. Anesth Analg. 1982;61(2):87-92. | Z16: PKSolver : to calculate the parameters of a curve c = f(t)
Z17: Zhang Y et al. PKSolver. Comput Methods Programs Biomed. 2010;99:306-14.
O18: Clements JA, Nimmo WS. Br J Anaesth. 1981;53(1):27-30.
Z19: WebPlotDigitizer: to extract data from charts | AB19: l’indispensable WebPlotDigitizer
O20: Kamp J et al. Anesthesiology. 2020;133:1192-1213.
E22: Validation of KetaPK: We can see that the curve generated by KetaPK for each of the three models fits perfectly with the scatter plot of data provided by the respective publications.

Sheet Domino ABC (hidden)
B4: C(t) = q/OFA!Poids * [ (A*EXP(-alpha*(E$9-$F2)) + B*EXP(-bêta*(E$9-$F2)) + C*EXP(-gamma*(E$9-$F2 )) ]
B6: Pour ramener à 5 minutes | G6: Bolus | J6: =KPTiva!I31 -> 0 | K6: =KPTiva!J31 -> 0 | L6: =KPTiva!K31 -> 0 | M6: =KPTiva!L31 -> 0 | N6: =KPTiva!M31 -> 0 | O6: =KPTiva!N31 -> 0 | P6: =KPTiva!O31 -> 0 | Q6: =KPTiva!P31 -> 0 | R6: =KPTiva!Q31 -> 0 | S6: =KPTiva!R31 -> 0 | T6: =KPTiva!S31 -> 0 | U6: =KPTiva!T31 -> 0 | V6: =KPTiva!U31 -> 0 | W6: =KPTiva!V31 -> 0 | X6: =KPTiva!W31 -> 0 | Y6: =KPTiva!X31 -> 0 | Z6: =KPTiva!Y31 -> 0 | AA6: =KPTiva!Z31 -> 0 | AB6: =KPTiva!AA31 -> 0 | AC6: =KPTiva!AB31 -> 0 | AD6: =KPTiva!AC31 -> 0 | AE6: =KPTiva!AD31 -> 0 | AF6: =KPTiva!AE31 -> 0 | AG6: =KPTiva!AF31 -> 0 | AH6: =KPTiva!AG31 -> 0 | AI6: =KPTiva!AH31 -> 0 | AJ6: =KPTiva!AI31 -> 0 | AK6: =KPTiva!AJ31 -> 0 | AL6: =KPTiva!AK31 -> 0 | AM6: =KPTiva!AL31 -> 0 | AN6: =KPTiva!AM31 -> 0 | AO6: =KPTiva!AN31 -> 0 | AP6: =KPTiva!AO31 -> 0 | AQ6: =KPTiva!AP31 -> 0 | AR6: =KPTiva!AQ31 -> 0 | AS6: =KPTiva!AR31 -> 0 | AT6: =KPTiva!AS31 -> 0 | AU6: =KPTiva!AT31 -> 0 | AV6: =KPTiva!AU31 -> 0 | AW6: =KPTiva!AV31 -> 0 | AX6: =KPTiva!AW31 -> 0 | AY6: =KPTiva!AX31 -> 0 | AZ6: =KPTiva!AY31 -> 0 | BA6: =KPTiva!AZ31 -> 0 | BB6: =KPTiva!BA31 -> 0 | BC6: =KPTiva!BB31 -> 0 | BD6: =KPTiva!BC31 -> 0 | BE6: =KPTiva!BD31 -> 0 | BF6: =KPTiva!BE31 -> 0 | BG6: =KPTiva!BF31 -> 0 | BH6: =KPTiva!BG31 -> 0 | BI6: =KPTiva!BH31 -> 0 | BJ6: =KPTiva!BI31 -> 0 | BK6: =KPTiva!BJ31 -> 0 | BL6: =KPTiva!BK31 -> 0 | BM6: =KPTiva!BL31 -> 0 | BN6: =KPTiva!BM31 -> 0 | BO6: =KPTiva!BN31 -> 0 | BP6: =KPTiva!BO31 -> 0 | BQ6: =KPTiva!BP31 -> 0 | BR6: =KPTiva!BQ31 -> 0
B7: il faut X par le poids et diviser par 12 | G7: mg/kg/h | J7: =KPTiva!I33*Poids/12 -> 0 | K7: =KPTiva!J33*Poids/12 -> 0 | L7: =KPTiva!K33*Poids/12 -> 0 | M7: =KPTiva!L33*Poids/12 -> 0 | N7: =KPTiva!M33*Poids/12 -> 0 | O7: =KPTiva!N33*Poids/12 -> 0 | P7: =KPTiva!O33*Poids/12 -> 0 | Q7: =KPTiva!P33*Poids/12 -> 0 | R7: =KPTiva!Q33*Poids/12 -> 0 | S7: =KPTiva!R33*Poids/12 -> 0 | T7: =KPTiva!S33*Poids/12 -> 0 | U7: =KPTiva!T33*Poids/12 -> 0 | V7: =KPTiva!U33*Poids/12 -> 0 | W7: =KPTiva!V33*Poids/12 -> 0 | X7: =KPTiva!W33*Poids/12 -> 0 | Y7: =KPTiva!X33*Poids/12 -> 0 | Z7: =KPTiva!Y33*Poids/12 -> 0 | AA7: =KPTiva!Z33*Poids/12 -> 0 | AB7: =KPTiva!AA33*Poids/12 -> 0 | AC7: =KPTiva!AB33*Poids/12 -> 0 | AD7: =KPTiva!AC33*Poids/12 -> 0 | AE7: =KPTiva!AD33*Poids/12 -> 0 | AF7: =KPTiva!AE33*Poids/12 -> 0 | AG7: =KPTiva!AF33*Poids/12 -> 0 | AH7: =KPTiva!AG33*Poids/12 -> 0 | AI7: =KPTiva!AH33*Poids/12 -> 0 | AJ7: =KPTiva!AI33*Poids/12 -> 0 | AK7: =KPTiva!AJ33*Poids/12 -> 0 | AL7: =KPTiva!AK33*Poids/12 -> 0 | AM7: =KPTiva!AL33*Poids/12 -> 0 | AN7: =KPTiva!AM33*Poids/12 -> 0 | AO7: =KPTiva!AN33*Poids/12 -> 0 | AP7: =KPTiva!AO33*Poids/12 -> 0 | AQ7: =KPTiva!AP33*Poids/12 -> 0 | AR7: =KPTiva!AQ33*Poids/12 -> 0 | AS7: =KPTiva!AR33*Poids/12 -> 0 | AT7: =KPTiva!AS33*Poids/12 -> 0 | AU7: =KPTiva!AT33*Poids/12 -> 0 | AV7: =KPTiva!AU33*Poids/12 -> 0 | AW7: =KPTiva!AV33*Poids/12 -> 0 | AX7: =KPTiva!AW33*Poids/12 -> 0 | AY7: =KPTiva!AX33*Poids/12 -> 0 | AZ7: =KPTiva!AY33*Poids/12 -> 0 | BA7: =KPTiva!AZ33*Poids/12 -> 0 | BB7: =KPTiva!BA33*Poids/12 -> 0 | BC7: =KPTiva!BB33*Poids/12 -> 0 | BD7: =KPTiva!BC33*Poids/12 -> 0 | BE7: =KPTiva!BD33*Poids/12 -> 0 | BF7: =KPTiva!BE33*Poids/12 -> 0 | BG7: =KPTiva!BF33*Poids/12 -> 0 | BH7: =KPTiva!BG33*Poids/12 -> 0 | BI7: =KPTiva!BH33*Poids/12 -> 0 | BJ7: =KPTiva!BI33*Poids/12 -> 0 | BK7: =KPTiva!BJ33*Poids/12 -> 0 | BL7: =KPTiva!BK33*Poids/12 -> 0 | BM7: =KPTiva!BL33*Poids/12 -> 0 | BN7: =KPTiva!BM33*Poids/12 -> 0 | BO7: =KPTiva!BN33*Poids/12 -> 0 | BP7: =KPTiva!BO33*Poids/12 -> 0 | BQ7: =KPTiva!BP33*Poids/12 -> 0 | BR7: =KPTiva!BQ33*Poids/12 -> 0
B8: il faut diviser par 1000 et multiplier par 5 | G8: µg/kg/min | J8: =(KPTiva!I34*Poids)/200 -> 0 | K8: =(KPTiva!J34*Poids)/200 -> 0 | L8: =(KPTiva!K34*Poids)/200 -> 0 | M8: =(KPTiva!L34*Poids)/200 -> 0 | N8: =(KPTiva!M34*Poids)/200 -> 0 | O8: =(KPTiva!N34*Poids)/200 -> 0 | P8: =(KPTiva!O34*Poids)/200 -> 0 | Q8: =(KPTiva!P34*Poids)/200 -> 0 | R8: =(KPTiva!Q34*Poids)/200 -> 0 | S8: =(KPTiva!R34*Poids)/200 -> 0 | T8: =(KPTiva!S34*Poids)/200 -> 0 | U8: =(KPTiva!T34*Poids)/200 -> 0 | V8: =(KPTiva!U34*Poids)/200 -> 0 | W8: =(KPTiva!V34*Poids)/200 -> 0 | X8: =(KPTiva!W34*Poids)/200 -> 0 | Y8: =(KPTiva!X34*Poids)/200 -> 0 | Z8: =(KPTiva!Y34*Poids)/200 -> 0 | AA8: =(KPTiva!Z34*Poids)/200 -> 0 | AB8: =(KPTiva!AA34*Poids)/200 -> 0 | AC8: =(KPTiva!AB34*Poids)/200 -> 0 | AD8: =(KPTiva!AC34*Poids)/200 -> 0 | AE8: =(KPTiva!AD34*Poids)/200 -> 0 | AF8: =(KPTiva!AE34*Poids)/200 -> 0 | AG8: =(KPTiva!AF34*Poids)/200 -> 0 | AH8: =(KPTiva!AG34*Poids)/200 -> 0 | AI8: =(KPTiva!AH34*Poids)/200 -> 0 | AJ8: =(KPTiva!AI34*Poids)/200 -> 0 | AK8: =(KPTiva!AJ34*Poids)/200 -> 0 | AL8: =(KPTiva!AK34*Poids)/200 -> 0 | AM8: =(KPTiva!AL34*Poids)/200 -> 0 | AN8: =(KPTiva!AM34*Poids)/200 -> 0 | AO8: =(KPTiva!AN34*Poids)/200 -> 0 | AP8: =(KPTiva!AO34*Poids)/200 -> 0 | AQ8: =(KPTiva!AP34*Poids)/200 -> 0 | AR8: =(KPTiva!AQ34*Poids)/200 -> 0 | AS8: =(KPTiva!AR34*Poids)/200 -> 0 | AT8: =(KPTiva!AS34*Poids)/200 -> 0 | AU8: =(KPTiva!AT34*Poids)/200 -> 0 | AV8: =(KPTiva!AU34*Poids)/200 -> 0 | AW8: =(KPTiva!AV34*Poids)/200 -> 0 | AX8: =(KPTiva!AW34*Poids)/200 -> 0 | AY8: =(KPTiva!AX34*Poids)/200 -> 0 | AZ8: =(KPTiva!AY34*Poids)/200 -> 0 | BA8: =(KPTiva!AZ34*Poids)/200 -> 0 | BB8: =(KPTiva!BA34*Poids)/200 -> 0 | BC8: =(KPTiva!BB34*Poids)/200 -> 0 | BD8: =(KPTiva!BC34*Poids)/200 -> 0 | BE8: =(KPTiva!BD34*Poids)/200 -> 0 | BF8: =(KPTiva!BE34*Poids)/200 -> 0 | BG8: =(KPTiva!BF34*Poids)/200 -> 0 | BH8: =(KPTiva!BG34*Poids)/200 -> 0 | BI8: =(KPTiva!BH34*Poids)/200 -> 0 | BJ8: =(KPTiva!BI34*Poids)/200 -> 0 | BK8: =(KPTiva!BJ34*Poids)/200 -> 0 | BL8: =(KPTiva!BK34*Poids)/200 -> 0 | BM8: =(KPTiva!BL34*Poids)/200 -> 0 | BN8: =(KPTiva!BM34*Poids)/200 -> 0 | BO8: =(KPTiva!BN34*Poids)/200 -> 0 | BP8: =(KPTiva!BO34*Poids)/200 -> 0 | BQ8: =(KPTiva!BP34*Poids)/200 -> 0 | BR8: =(KPTiva!BQ34*Poids)/200 -> 0
G10: total mg | J10: =SUM(J6:J8) -> 0 | K10: =SUM(K6:K8) -> 0 | L10: 0 | M10: 0 | N10: 0 | O10: 0 | P10: 0 | Q10: 0 | R10: 0 | S10: 0 | T10: 0 | U10: 0 | V10: 0 | W10: 0 | X10: 0 | Y10: 0 | Z10: 0 | AA10: 0 | AB10: 0 | AC10: 0 | AD10: 0 | AE10: 0 | AF10: 0 | AG10: 0 | AH10: 0 | AI10: 0 | AJ10: 0 | AK10: 0 | AL10: 0 | AM10: 0 | AN10: 0 | AO10: 0 | AP10: =SUM(AP6:AP8) -> 0 | AQ10: 0 | AR10: 0 | AS10: 0 | AT10: 0 | AU10: 0 | AV10: 0 | AW10: 0 | AX10: 0 | AY10: 0 | AZ10: 0 | BA10: 0 | BB10: 0 | BC10: 0 | BD10: 0 | BE10: 0 | BF10: 0 | BG10: 0 | BH10: 0 | BI10: 0 | BJ10: 0 | BK10: 0 | BL10: 0 | BM10: 0 | BN10: 0 | BO10: =SUM(BO6:BO8) -> 0 | BP10: 0 | BQ10: 0 | BR10: 0
G14: q (t) | J14: =J$10 -> 0 | K14: 0 | L14: 0 | M14: 0 | N14: 0 | O14: 0 | P14: 0 | Q14: 0 | R14: 0 | S14: 0 | T14: 0 | U14: 0 | V14: 0 | W14: 0 | X14: 0 | Y14: 0 | Z14: 0 | AA14: 0 | AB14: 0 | AC14: 0 | AD14: 0 | AE14: 0 | AF14: 0 | AG14: 0 | AH14: 0 | AI14: 0 | AJ14: 0 | AK14: 0 | AL14: 0 | AM14: 0 | AN14: 0 | AO14: 0 | AP14: 0 | AQ14: 0 | AR14: 0 | AS14: 0 | AT14: 0 | AU14: 0 | AV14: 0 | AW14: 0 | AX14: 0 | AY14: 0 | AZ14: 0 | BA14: 0 | BB14: 0 | BC14: 0 | BD14: 0 | BE14: 0 | BF14: 0 | BG14: 0 | BH14: 0 | BI14: 0 | BJ14: 0 | BK14: 0 | BL14: 0 | BM14: 0 | BN14: 0 | BO14: 0 | BP14: 0 | BQ14: 0 | BR14: =BR$10 -> 0
G15: temps | J15: 0 | K15: 5 | L15: 10 | M15: 15 | N15: 20 | O15: 25 | P15: 30 | Q15: 35 | R15: 40 | S15: 45 | T15: 50 | U15: 55 | V15: 60 | W15: 65 | X15: 70 | Y15: 75 | Z15: 80 | AA15: 85 | AB15: 90 | AC15: 95 | AD15: 100 | AE15: 105 | AF15: 110 | AG15: 115 | AH15: 120 | AI15: 125 | AJ15: 130 | AK15: 135 | AL15: 140 | AM15: 145 | AN15: 150 | AO15: 155 | AP15: 160 | AQ15: 165 | AR15: 170 | AS15: 175 | AT15: 180 | AU15: 185 | AV15: 190 | AW15: 195 | AX15: 200 | AY15: 205 | AZ15: 210 | BA15: 215 | BB15: 220 | BC15: 225 | BD15: 230 | BE15: 235 | BF15: 240 | BG15: 245 | BH15: 250 | BI15: 255 | BJ15: 260 | BK15: 265 | BL15: 270 | BM15: 275 | BN15: 280 | BO15: 285 | BP15: 290 | BQ15: 295 | BR15: 300
G16: =J$10 -> 0 | H16: 0 | J16: =$G16/[0]!Poids * ( (A*EXP(-alpha*(J$15-$H16))) + (B*EXP(-bêta*(J$15-$H16))) + (_C*EXP(-gamma*(J$15-$H16 ))) ) -> 0 | K16: =$G16/[0]!Poids * ( (A*EXP(-alpha*(K$15-$H16))) + (B*EXP(-bêta*(K$15-$H16))) + (_C*EXP(-gamma*(K$15-$H16 ))) ) -> 0 | L16: =$G16/[0]!Poids * ( (A*EXP(-alpha*(L$15-$H16))) + (B*EXP(-bêta*(L$15-$H16))) + (_C*EXP(-gamma*(L$15-$H16 ))) ) -> 0 | M16: =$G16/[0]!Poids * ( (A*EXP(-alpha*(M$15-$H16))) + (B*EXP(-bêta*(M$15-$H16))) + (_C*EXP(-gamma*(M$15-$H16 ))) ) -> 0 | N16: =$G16/[0]!Poids * ( (A*EXP(-alpha*(N$15-$H16))) + (B*EXP(-bêta*(N$15-$H16))) + (_C*EXP(-gamma*(N$15-$H16 ))) ) -> 0 | O16: =$G16/[0]!Poids * ( (A*EXP(-alpha*(O$15-$H16))) + (B*EXP(-bêta*(O$15-$H16))) + (_C*EXP(-gamma*(O$15-$H16 ))) ) -> 0 | P16: =$G16/[0]!Poids * ( (A*EXP(-alpha*(P$15-$H16))) + (B*EXP(-bêta*(P$15-$H16))) + (_C*EXP(-gamma*(P$15-$H16 ))) ) -> 0 | Q16: =$G16/[0]!Poids * ( (A*EXP(-alpha*(Q$15-$H16))) + (B*EXP(-bêta*(Q$15-$H16))) + (_C*EXP(-gamma*(Q$15-$H16 ))) ) -> 0 | R16: =$G16/[0]!Poids * ( (A*EXP(-alpha*(R$15-$H16))) + (B*EXP(-bêta*(R$15-$H16))) + (_C*EXP(-gamma*(R$15-$H16 ))) ) -> 0 | S16: =$G16/[0]!Poids * ( (A*EXP(-alpha*(S$15-$H16))) + (B*EXP(-bêta*(S$15-$H16))) + (_C*EXP(-gamma*(S$15-$H16 ))) ) -> 0 | T16: =$G16/[0]!Poids * ( (A*EXP(-alpha*(T$15-$H16))) + (B*EXP(-bêta*(T$15-$H16))) + (_C*EXP(-gamma*(T$15-$H16 ))) ) -> 0 | U16: =$G16/[0]!Poids * ( (A*EXP(-alpha*(U$15-$H16))) + (B*EXP(-bêta*(U$15-$H16))) + (_C*EXP(-gamma*(U$15-$H16 ))) ) -> 0 | V16: =$G16/[0]!Poids * ( (A*EXP(-alpha*(V$15-$H16))) + (B*EXP(-bêta*(V$15-$H16))) + (_C*EXP(-gamma*(V$15-$H16 ))) ) -> 0 | W16: =$G16/[0]!Poids * ( (A*EXP(-alpha*(W$15-$H16))) + (B*EXP(-bêta*(W$15-$H16))) + (_C*EXP(-gamma*(W$15-$H16 ))) ) -> 0 | X16: =$G16/[0]!Poids * ( (A*EXP(-alpha*(X$15-$H16))) + (B*EXP(-bêta*(X$15-$H16))) + (_C*EXP(-gamma*(X$15-$H16 ))) ) -> 0 | Y16: =$G16/[0]!Poids * ( (A*EXP(-alpha*(Y$15-$H16))) + (B*EXP(-bêta*(Y$15-$H16))) + (_C*EXP(-gamma*(Y$15-$H16 ))) ) -> 0 | Z16: =$G16/[0]!Poids * ( (A*EXP(-alpha*(Z$15-$H16))) + (B*EXP(-bêta*(Z$15-$H16))) + (_C*EXP(-gamma*(Z$15-$H16 ))) ) -> 0 | AA16: =$G16/[0]!Poids * ( (A*EXP(-alpha*(AA$15-$H16))) + (B*EXP(-bêta*(AA$15-$H16))) + (_C*EXP(-gamma*(AA$15-$H16 ))) ) -> 0 | AB16: =$G16/[0]!Poids * ( (A*EXP(-alpha*(AB$15-$H16))) + (B*EXP(-bêta*(AB$15-$H16))) + (_C*EXP(-gamma*(AB$15-$H16 ))) ) -> 0 | AC16: =$G16/[0]!Poids * ( (A*EXP(-alpha*(AC$15-$H16))) + (B*EXP(-bêta*(AC$15-$H16))) + (_C*EXP(-gamma*(AC$15-$H16 ))) ) -> 0 | AD16: =$G16/[0]!Poids * ( (A*EXP(-alpha*(AD$15-$H16))) + (B*EXP(-bêta*(AD$15-$H16))) + (_C*EXP(-gamma*(AD$15-$H16 ))) ) -> 0 | AE16: =$G16/[0]!Poids * ( (A*EXP(-alpha*(AE$15-$H16))) + (B*EXP(-bêta*(AE$15-$H16))) + (_C*EXP(-gamma*(AE$15-$H16 ))) ) -> 0 | AF16: =$G16/[0]!Poids * ( (A*EXP(-alpha*(AF$15-$H16))) + (B*EXP(-bêta*(AF$15-$H16))) + (_C*EXP(-gamma*(AF$15-$H16 ))) ) -> 0 | AG16: =$G16/[0]!Poids * ( (A*EXP(-alpha*(AG$15-$H16))) + (B*EXP(-bêta*(AG$15-$H16))) + (_C*EXP(-gamma*(AG$15-$H16 ))) ) -> 0 | AH16: =$G16/[0]!Poids * ( (A*EXP(-alpha*(AH$15-$H16))) + (B*EXP(-bêta*(AH$15-$H16))) + (_C*EXP(-gamma*(AH$15-$H16 ))) ) -> 0 | AI16: =$G16/[0]!Poids * ( (A*EXP(-alpha*(AI$15-$H16))) + (B*EXP(-bêta*(AI$15-$H16))) + (_C*EXP(-gamma*(AI$15-$H16 ))) ) -> 0 | AJ16: =$G16/[0]!Poids * ( (A*EXP(-alpha*(AJ$15-$H16))) + (B*EXP(-bêta*(AJ$15-$H16))) + (_C*EXP(-gamma*(AJ$15-$H16 ))) ) -> 0 | AK16: =$G16/[0]!Poids * ( (A*EXP(-alpha*(AK$15-$H16))) + (B*EXP(-bêta*(AK$15-$H16))) + (_C*EXP(-gamma*(AK$15-$H16 ))) ) -> 0 | AL16: =$G16/[0]!Poids * ( (A*EXP(-alpha*(AL$15-$H16))) + (B*EXP(-bêta*(AL$15-$H16))) + (_C*EXP(-gamma*(AL$15-$H16 ))) ) -> 0 | AM16: =$G16/[0]!Poids * ( (A*EXP(-alpha*(AM$15-$H16))) + (B*EXP(-bêta*(AM$15-$H16))) + (_C*EXP(-gamma*(AM$15-$H16 ))) ) -> 0 | AN16: =$G16/[0]!Poids * ( (A*EXP(-alpha*(AN$15-$H16))) + (B*EXP(-bêta*(AN$15-$H16))) + (_C*EXP(-gamma*(AN$15-$H16 ))) ) -> 0 | AO16: =$G16/[0]!Poids * ( (A*EXP(-alpha*(AO$15-$H16))) + (B*EXP(-bêta*(AO$15-$H16))) + (_C*EXP(-gamma*(AO$15-$H16 ))) ) -> 0 | AP16: =$G16/[0]!Poids * ( (A*EXP(-alpha*(AP$15-$H16))) + (B*EXP(-bêta*(AP$15-$H16))) + (_C*EXP(-gamma*(AP$15-$H16 ))) ) -> 0 | AQ16: =$G16/[0]!Poids * ( (A*EXP(-alpha*(AQ$15-$H16))) + (B*EXP(-bêta*(AQ$15-$H16))) + (_C*EXP(-gamma*(AQ$15-$H16 ))) ) -> 0 | AR16: =$G16/[0]!Poids * ( (A*EXP(-alpha*(AR$15-$H16))) + (B*EXP(-bêta*(AR$15-$H16))) + (_C*EXP(-gamma*(AR$15-$H16 ))) ) -> 0 | AS16: =$G16/[0]!Poids * ( (A*EXP(-alpha*(AS$15-$H16))) + (B*EXP(-bêta*(AS$15-$H16))) + (_C*EXP(-gamma*(AS$15-$H16 ))) ) -> 0 | AT16: =$G16/[0]!Poids * ( (A*EXP(-alpha*(AT$15-$H16))) + (B*EXP(-bêta*(AT$15-$H16))) + (_C*EXP(-gamma*(AT$15-$H16 ))) ) -> 0 | AU16: =$G16/[0]!Poids * ( (A*EXP(-alpha*(AU$15-$H16))) + (B*EXP(-bêta*(AU$15-$H16))) + (_C*EXP(-gamma*(AU$15-$H16 ))) ) -> 0 | AV16: =$G16/[0]!Poids * ( (A*EXP(-alpha*(AV$15-$H16))) + (B*EXP(-bêta*(AV$15-$H16))) + (_C*EXP(-gamma*(AV$15-$H16 ))) ) -> 0 | AW16: =$G16/[0]!Poids * ( (A*EXP(-alpha*(AW$15-$H16))) + (B*EXP(-bêta*(AW$15-$H16))) + (_C*EXP(-gamma*(AW$15-$H16 ))) ) -> 0 | AX16: =$G16/[0]!Poids * ( (A*EXP(-alpha*(AX$15-$H16))) + (B*EXP(-bêta*(AX$15-$H16))) + (_C*EXP(-gamma*(AX$15-$H16 ))) ) -> 0 | AY16: =$G16/[0]!Poids * ( (A*EXP(-alpha*(AY$15-$H16))) + (B*EXP(-bêta*(AY$15-$H16))) + (_C*EXP(-gamma*(AY$15-$H16 ))) ) -> 0 | AZ16: =$G16/[0]!Poids * ( (A*EXP(-alpha*(AZ$15-$H16))) + (B*EXP(-bêta*(AZ$15-$H16))) + (_C*EXP(-gamma*(AZ$15-$H16 ))) ) -> 0 | BA16: =$G16/[0]!Poids * ( (A*EXP(-alpha*(BA$15-$H16))) + (B*EXP(-bêta*(BA$15-$H16))) + (_C*EXP(-gamma*(BA$15-$H16 ))) ) -> 0 | BB16: =$G16/[0]!Poids * ( (A*EXP(-alpha*(BB$15-$H16))) + (B*EXP(-bêta*(BB$15-$H16))) + (_C*EXP(-gamma*(BB$15-$H16 ))) ) -> 0 | BC16: =$G16/[0]!Poids * ( (A*EXP(-alpha*(BC$15-$H16))) + (B*EXP(-bêta*(BC$15-$H16))) + (_C*EXP(-gamma*(BC$15-$H16 ))) ) -> 0 | BD16: =$G16/[0]!Poids * ( (A*EXP(-alpha*(BD$15-$H16))) + (B*EXP(-bêta*(BD$15-$H16))) + (_C*EXP(-gamma*(BD$15-$H16 ))) ) -> 0 | BE16: =$G16/[0]!Poids * ( (A*EXP(-alpha*(BE$15-$H16))) + (B*EXP(-bêta*(BE$15-$H16))) + (_C*EXP(-gamma*(BE$15-$H16 ))) ) -> 0 | BF16: =$G16/[0]!Poids * ( (A*EXP(-alpha*(BF$15-$H16))) + (B*EXP(-bêta*(BF$15-$H16))) + (_C*EXP(-gamma*(BF$15-$H16 ))) ) -> 0 | BG16: =$G16/[0]!Poids * ( (A*EXP(-alpha*(BG$15-$H16))) + (B*EXP(-bêta*(BG$15-$H16))) + (_C*EXP(-gamma*(BG$15-$H16 ))) ) -> 0 | BH16: =$G16/[0]!Poids * ( (A*EXP(-alpha*(BH$15-$H16))) + (B*EXP(-bêta*(BH$15-$H16))) + (_C*EXP(-gamma*(BH$15-$H16 ))) ) -> 0 | BI16: =$G16/[0]!Poids * ( (A*EXP(-alpha*(BI$15-$H16))) + (B*EXP(-bêta*(BI$15-$H16))) + (_C*EXP(-gamma*(BI$15-$H16 ))) ) -> 0 | BJ16: =$G16/[0]!Poids * ( (A*EXP(-alpha*(BJ$15-$H16))) + (B*EXP(-bêta*(BJ$15-$H16))) + (_C*EXP(-gamma*(BJ$15-$H16 ))) ) -> 0 | BK16: =$G16/[0]!Poids * ( (A*EXP(-alpha*(BK$15-$H16))) + (B*EXP(-bêta*(BK$15-$H16))) + (_C*EXP(-gamma*(BK$15-$H16 ))) ) -> 0 | BL16: =$G16/[0]!Poids * ( (A*EXP(-alpha*(BL$15-$H16))) + (B*EXP(-bêta*(BL$15-$H16))) + (_C*EXP(-gamma*(BL$15-$H16 ))) ) -> 0 | BM16: =$G16/[0]!Poids * ( (A*EXP(-alpha*(BM$15-$H16))) + (B*EXP(-bêta*(BM$15-$H16))) + (_C*EXP(-gamma*(BM$15-$H16 ))) ) -> 0 | BN16: =$G16/[0]!Poids * ( (A*EXP(-alpha*(BN$15-$H16))) + (B*EXP(-bêta*(BN$15-$H16))) + (_C*EXP(-gamma*(BN$15-$H16 ))) ) -> 0 | BO16: =$G16/[0]!Poids * ( (A*EXP(-alpha*(BO$15-$H16))) + (B*EXP(-bêta*(BO$15-$H16))) + (_C*EXP(-gamma*(BO$15-$H16 ))) ) -> 0 | BP16: =$G16/[0]!Poids * ( (A*EXP(-alpha*(BP$15-$H16))) + (B*EXP(-bêta*(BP$15-$H16))) + (_C*EXP(-gamma*(BP$15-$H16 ))) ) -> 0 | BQ16: =$G16/[0]!Poids * ( (A*EXP(-alpha*(BQ$15-$H16))) + (B*EXP(-bêta*(BQ$15-$H16))) + (_C*EXP(-gamma*(BQ$15-$H16 ))) ) -> 0 | BR16: =$G16/[0]!Poids * ( (A*EXP(-alpha*(BR$15-$H16))) + (B*EXP(-bêta*(BR$15-$H16))) + (_C*EXP(-gamma*(BR$15-$H16 ))) ) -> 0
B17: A équation | C17: 14300 | D17: A/dose | E17: =C17/D28 -> 7150 | G17: =K$10 -> 0 | H17: 5 | K17: =$G17/[0]!Poids * ( (A*EXP(-alpha*(K$15-$H17))) + (B*EXP(-bêta*(K$15-$H17))) + (_C*EXP(-gamma*(K$15-$H17 ))) ) -> 0 | L17: =$G17/[0]!Poids * ( (A*EXP(-alpha*(L$15-$H17))) + (B*EXP(-bêta*(L$15-$H17))) + (_C*EXP(-gamma*(L$15-$H17 ))) ) -> 0 | M17: =$G17/[0]!Poids * ( (A*EXP(-alpha*(M$15-$H17))) + (B*EXP(-bêta*(M$15-$H17))) + (_C*EXP(-gamma*(M$15-$H17 ))) ) -> 0 | N17: =$G17/[0]!Poids * ( (A*EXP(-alpha*(N$15-$H17))) + (B*EXP(-bêta*(N$15-$H17))) + (_C*EXP(-gamma*(N$15-$H17 ))) ) -> 0 | O17: =$G17/[0]!Poids * ( (A*EXP(-alpha*(O$15-$H17))) + (B*EXP(-bêta*(O$15-$H17))) + (_C*EXP(-gamma*(O$15-$H17 ))) ) -> 0 | P17: =$G17/[0]!Poids * ( (A*EXP(-alpha*(P$15-$H17))) + (B*EXP(-bêta*(P$15-$H17))) + (_C*EXP(-gamma*(P$15-$H17 ))) ) -> 0 | Q17: =$G17/[0]!Poids * ( (A*EXP(-alpha*(Q$15-$H17))) + (B*EXP(-bêta*(Q$15-$H17))) + (_C*EXP(-gamma*(Q$15-$H17 ))) ) -> 0 | R17: =$G17/[0]!Poids * ( (A*EXP(-alpha*(R$15-$H17))) + (B*EXP(-bêta*(R$15-$H17))) + (_C*EXP(-gamma*(R$15-$H17 ))) ) -> 0 | S17: =$G17/[0]!Poids * ( (A*EXP(-alpha*(S$15-$H17))) + (B*EXP(-bêta*(S$15-$H17))) + (_C*EXP(-gamma*(S$15-$H17 ))) ) -> 0 | T17: =$G17/[0]!Poids * ( (A*EXP(-alpha*(T$15-$H17))) + (B*EXP(-bêta*(T$15-$H17))) + (_C*EXP(-gamma*(T$15-$H17 ))) ) -> 0 | U17: =$G17/[0]!Poids * ( (A*EXP(-alpha*(U$15-$H17))) + (B*EXP(-bêta*(U$15-$H17))) + (_C*EXP(-gamma*(U$15-$H17 ))) ) -> 0 | V17: =$G17/[0]!Poids * ( (A*EXP(-alpha*(V$15-$H17))) + (B*EXP(-bêta*(V$15-$H17))) + (_C*EXP(-gamma*(V$15-$H17 ))) ) -> 0 | W17: =$G17/[0]!Poids * ( (A*EXP(-alpha*(W$15-$H17))) + (B*EXP(-bêta*(W$15-$H17))) + (_C*EXP(-gamma*(W$15-$H17 ))) ) -> 0 | X17: =$G17/[0]!Poids * ( (A*EXP(-alpha*(X$15-$H17))) + (B*EXP(-bêta*(X$15-$H17))) + (_C*EXP(-gamma*(X$15-$H17 ))) ) -> 0 | Y17: =$G17/[0]!Poids * ( (A*EXP(-alpha*(Y$15-$H17))) + (B*EXP(-bêta*(Y$15-$H17))) + (_C*EXP(-gamma*(Y$15-$H17 ))) ) -> 0 | Z17: =$G17/[0]!Poids * ( (A*EXP(-alpha*(Z$15-$H17))) + (B*EXP(-bêta*(Z$15-$H17))) + (_C*EXP(-gamma*(Z$15-$H17 ))) ) -> 0 | AA17: =$G17/[0]!Poids * ( (A*EXP(-alpha*(AA$15-$H17))) + (B*EXP(-bêta*(AA$15-$H17))) + (_C*EXP(-gamma*(AA$15-$H17 ))) ) -> 0 | AB17: =$G17/[0]!Poids * ( (A*EXP(-alpha*(AB$15-$H17))) + (B*EXP(-bêta*(AB$15-$H17))) + (_C*EXP(-gamma*(AB$15-$H17 ))) ) -> 0 | AC17: =$G17/[0]!Poids * ( (A*EXP(-alpha*(AC$15-$H17))) + (B*EXP(-bêta*(AC$15-$H17))) + (_C*EXP(-gamma*(AC$15-$H17 ))) ) -> 0 | AD17: =$G17/[0]!Poids * ( (A*EXP(-alpha*(AD$15-$H17))) + (B*EXP(-bêta*(AD$15-$H17))) + (_C*EXP(-gamma*(AD$15-$H17 ))) ) -> 0 | AE17: =$G17/[0]!Poids * ( (A*EXP(-alpha*(AE$15-$H17))) + (B*EXP(-bêta*(AE$15-$H17))) + (_C*EXP(-gamma*(AE$15-$H17 ))) ) -> 0 | AF17: =$G17/[0]!Poids * ( (A*EXP(-alpha*(AF$15-$H17))) + (B*EXP(-bêta*(AF$15-$H17))) + (_C*EXP(-gamma*(AF$15-$H17 ))) ) -> 0 | AG17: =$G17/[0]!Poids * ( (A*EXP(-alpha*(AG$15-$H17))) + (B*EXP(-bêta*(AG$15-$H17))) + (_C*EXP(-gamma*(AG$15-$H17 ))) ) -> 0 | AH17: =$G17/[0]!Poids * ( (A*EXP(-alpha*(AH$15-$H17))) + (B*EXP(-bêta*(AH$15-$H17))) + (_C*EXP(-gamma*(AH$15-$H17 ))) ) -> 0 | AI17: =$G17/[0]!Poids * ( (A*EXP(-alpha*(AI$15-$H17))) + (B*EXP(-bêta*(AI$15-$H17))) + (_C*EXP(-gamma*(AI$15-$H17 ))) ) -> 0 | AJ17: =$G17/[0]!Poids * ( (A*EXP(-alpha*(AJ$15-$H17))) + (B*EXP(-bêta*(AJ$15-$H17))) + (_C*EXP(-gamma*(AJ$15-$H17 ))) ) -> 0 | AK17: =$G17/[0]!Poids * ( (A*EXP(-alpha*(AK$15-$H17))) + (B*EXP(-bêta*(AK$15-$H17))) + (_C*EXP(-gamma*(AK$15-$H17 ))) ) -> 0 | AL17: =$G17/[0]!Poids * ( (A*EXP(-alpha*(AL$15-$H17))) + (B*EXP(-bêta*(AL$15-$H17))) + (_C*EXP(-gamma*(AL$15-$H17 ))) ) -> 0 | AM17: =$G17/[0]!Poids * ( (A*EXP(-alpha*(AM$15-$H17))) + (B*EXP(-bêta*(AM$15-$H17))) + (_C*EXP(-gamma*(AM$15-$H17 ))) ) -> 0 | AN17: =$G17/[0]!Poids * ( (A*EXP(-alpha*(AN$15-$H17))) + (B*EXP(-bêta*(AN$15-$H17))) + (_C*EXP(-gamma*(AN$15-$H17 ))) ) -> 0 | AO17: =$G17/[0]!Poids * ( (A*EXP(-alpha*(AO$15-$H17))) + (B*EXP(-bêta*(AO$15-$H17))) + (_C*EXP(-gamma*(AO$15-$H17 ))) ) -> 0 | AP17: =$G17/[0]!Poids * ( (A*EXP(-alpha*(AP$15-$H17))) + (B*EXP(-bêta*(AP$15-$H17))) + (_C*EXP(-gamma*(AP$15-$H17 ))) ) -> 0 | AQ17: =$G17/[0]!Poids * ( (A*EXP(-alpha*(AQ$15-$H17))) + (B*EXP(-bêta*(AQ$15-$H17))) + (_C*EXP(-gamma*(AQ$15-$H17 ))) ) -> 0 | AR17: =$G17/[0]!Poids * ( (A*EXP(-alpha*(AR$15-$H17))) + (B*EXP(-bêta*(AR$15-$H17))) + (_C*EXP(-gamma*(AR$15-$H17 ))) ) -> 0 | AS17: =$G17/[0]!Poids * ( (A*EXP(-alpha*(AS$15-$H17))) + (B*EXP(-bêta*(AS$15-$H17))) + (_C*EXP(-gamma*(AS$15-$H17 ))) ) -> 0 | AT17: =$G17/[0]!Poids * ( (A*EXP(-alpha*(AT$15-$H17))) + (B*EXP(-bêta*(AT$15-$H17))) + (_C*EXP(-gamma*(AT$15-$H17 ))) ) -> 0 | AU17: =$G17/[0]!Poids * ( (A*EXP(-alpha*(AU$15-$H17))) + (B*EXP(-bêta*(AU$15-$H17))) + (_C*EXP(-gamma*(AU$15-$H17 ))) ) -> 0 | AV17: =$G17/[0]!Poids * ( (A*EXP(-alpha*(AV$15-$H17))) + (B*EXP(-bêta*(AV$15-$H17))) + (_C*EXP(-gamma*(AV$15-$H17 ))) ) -> 0 | AW17: =$G17/[0]!Poids * ( (A*EXP(-alpha*(AW$15-$H17))) + (B*EXP(-bêta*(AW$15-$H17))) + (_C*EXP(-gamma*(AW$15-$H17 ))) ) -> 0 | AX17: =$G17/[0]!Poids * ( (A*EXP(-alpha*(AX$15-$H17))) + (B*EXP(-bêta*(AX$15-$H17))) + (_C*EXP(-gamma*(AX$15-$H17 ))) ) -> 0 | AY17: =$G17/[0]!Poids * ( (A*EXP(-alpha*(AY$15-$H17))) + (B*EXP(-bêta*(AY$15-$H17))) + (_C*EXP(-gamma*(AY$15-$H17 ))) ) -> 0 | AZ17: =$G17/[0]!Poids * ( (A*EXP(-alpha*(AZ$15-$H17))) + (B*EXP(-bêta*(AZ$15-$H17))) + (_C*EXP(-gamma*(AZ$15-$H17 ))) ) -> 0 | BA17: =$G17/[0]!Poids * ( (A*EXP(-alpha*(BA$15-$H17))) + (B*EXP(-bêta*(BA$15-$H17))) + (_C*EXP(-gamma*(BA$15-$H17 ))) ) -> 0 | BB17: =$G17/[0]!Poids * ( (A*EXP(-alpha*(BB$15-$H17))) + (B*EXP(-bêta*(BB$15-$H17))) + (_C*EXP(-gamma*(BB$15-$H17 ))) ) -> 0 | BC17: =$G17/[0]!Poids * ( (A*EXP(-alpha*(BC$15-$H17))) + (B*EXP(-bêta*(BC$15-$H17))) + (_C*EXP(-gamma*(BC$15-$H17 ))) ) -> 0 | BD17: =$G17/[0]!Poids * ( (A*EXP(-alpha*(BD$15-$H17))) + (B*EXP(-bêta*(BD$15-$H17))) + (_C*EXP(-gamma*(BD$15-$H17 ))) ) -> 0 | BE17: =$G17/[0]!Poids * ( (A*EXP(-alpha*(BE$15-$H17))) + (B*EXP(-bêta*(BE$15-$H17))) + (_C*EXP(-gamma*(BE$15-$H17 ))) ) -> 0 | BF17: =$G17/[0]!Poids * ( (A*EXP(-alpha*(BF$15-$H17))) + (B*EXP(-bêta*(BF$15-$H17))) + (_C*EXP(-gamma*(BF$15-$H17 ))) ) -> 0 | BG17: =$G17/[0]!Poids * ( (A*EXP(-alpha*(BG$15-$H17))) + (B*EXP(-bêta*(BG$15-$H17))) + (_C*EXP(-gamma*(BG$15-$H17 ))) ) -> 0 | BH17: =$G17/[0]!Poids * ( (A*EXP(-alpha*(BH$15-$H17))) + (B*EXP(-bêta*(BH$15-$H17))) + (_C*EXP(-gamma*(BH$15-$H17 ))) ) -> 0 | BI17: =$G17/[0]!Poids * ( (A*EXP(-alpha*(BI$15-$H17))) + (B*EXP(-bêta*(BI$15-$H17))) + (_C*EXP(-gamma*(BI$15-$H17 ))) ) -> 0 | BJ17: =$G17/[0]!Poids * ( (A*EXP(-alpha*(BJ$15-$H17))) + (B*EXP(-bêta*(BJ$15-$H17))) + (_C*EXP(-gamma*(BJ$15-$H17 ))) ) -> 0 | BK17: =$G17/[0]!Poids * ( (A*EXP(-alpha*(BK$15-$H17))) + (B*EXP(-bêta*(BK$15-$H17))) + (_C*EXP(-gamma*(BK$15-$H17 ))) ) -> 0 | BL17: =$G17/[0]!Poids * ( (A*EXP(-alpha*(BL$15-$H17))) + (B*EXP(-bêta*(BL$15-$H17))) + (_C*EXP(-gamma*(BL$15-$H17 ))) ) -> 0 | BM17: =$G17/[0]!Poids * ( (A*EXP(-alpha*(BM$15-$H17))) + (B*EXP(-bêta*(BM$15-$H17))) + (_C*EXP(-gamma*(BM$15-$H17 ))) ) -> 0 | BN17: =$G17/[0]!Poids * ( (A*EXP(-alpha*(BN$15-$H17))) + (B*EXP(-bêta*(BN$15-$H17))) + (_C*EXP(-gamma*(BN$15-$H17 ))) ) -> 0 | BO17: =$G17/[0]!Poids * ( (A*EXP(-alpha*(BO$15-$H17))) + (B*EXP(-bêta*(BO$15-$H17))) + (_C*EXP(-gamma*(BO$15-$H17 ))) ) -> 0 | BP17: =$G17/[0]!Poids * ( (A*EXP(-alpha*(BP$15-$H17))) + (B*EXP(-bêta*(BP$15-$H17))) + (_C*EXP(-gamma*(BP$15-$H17 ))) ) -> 0 | BQ17: =$G17/[0]!Poids * ( (A*EXP(-alpha*(BQ$15-$H17))) + (B*EXP(-bêta*(BQ$15-$H17))) + (_C*EXP(-gamma*(BQ$15-$H17 ))) ) -> 0 | BR17: =$G17/[0]!Poids * ( (A*EXP(-alpha*(BR$15-$H17))) + (B*EXP(-bêta*(BR$15-$H17))) + (_C*EXP(-gamma*(BR$15-$H17 ))) ) -> 0
B18: B équation | C18: 2340 | D18: B/dose | E18: =C18/D28 -> 1170 | G18: =L$10 -> 0 | H18: 10 | L18: =$G18/[0]!Poids * ( (A*EXP(-alpha*(L$15-$H18))) + (B*EXP(-bêta*(L$15-$H18))) + (_C*EXP(-gamma*(L$15-$H18 ))) ) -> 0 | M18: =$G18/[0]!Poids * ( (A*EXP(-alpha*(M$15-$H18))) + (B*EXP(-bêta*(M$15-$H18))) + (_C*EXP(-gamma*(M$15-$H18 ))) ) -> 0 | N18: =$G18/[0]!Poids * ( (A*EXP(-alpha*(N$15-$H18))) + (B*EXP(-bêta*(N$15-$H18))) + (_C*EXP(-gamma*(N$15-$H18 ))) ) -> 0 | O18: =$G18/[0]!Poids * ( (A*EXP(-alpha*(O$15-$H18))) + (B*EXP(-bêta*(O$15-$H18))) + (_C*EXP(-gamma*(O$15-$H18 ))) ) -> 0 | P18: =$G18/[0]!Poids * ( (A*EXP(-alpha*(P$15-$H18))) + (B*EXP(-bêta*(P$15-$H18))) + (_C*EXP(-gamma*(P$15-$H18 ))) ) -> 0 | Q18: =$G18/[0]!Poids * ( (A*EXP(-alpha*(Q$15-$H18))) + (B*EXP(-bêta*(Q$15-$H18))) + (_C*EXP(-gamma*(Q$15-$H18 ))) ) -> 0 | R18: =$G18/[0]!Poids * ( (A*EXP(-alpha*(R$15-$H18))) + (B*EXP(-bêta*(R$15-$H18))) + (_C*EXP(-gamma*(R$15-$H18 ))) ) -> 0 | S18: =$G18/[0]!Poids * ( (A*EXP(-alpha*(S$15-$H18))) + (B*EXP(-bêta*(S$15-$H18))) + (_C*EXP(-gamma*(S$15-$H18 ))) ) -> 0 | T18: =$G18/[0]!Poids * ( (A*EXP(-alpha*(T$15-$H18))) + (B*EXP(-bêta*(T$15-$H18))) + (_C*EXP(-gamma*(T$15-$H18 ))) ) -> 0 | U18: =$G18/[0]!Poids * ( (A*EXP(-alpha*(U$15-$H18))) + (B*EXP(-bêta*(U$15-$H18))) + (_C*EXP(-gamma*(U$15-$H18 ))) ) -> 0 | V18: =$G18/[0]!Poids * ( (A*EXP(-alpha*(V$15-$H18))) + (B*EXP(-bêta*(V$15-$H18))) + (_C*EXP(-gamma*(V$15-$H18 ))) ) -> 0 | W18: =$G18/[0]!Poids * ( (A*EXP(-alpha*(W$15-$H18))) + (B*EXP(-bêta*(W$15-$H18))) + (_C*EXP(-gamma*(W$15-$H18 ))) ) -> 0 | X18: =$G18/[0]!Poids * ( (A*EXP(-alpha*(X$15-$H18))) + (B*EXP(-bêta*(X$15-$H18))) + (_C*EXP(-gamma*(X$15-$H18 ))) ) -> 0 | Y18: =$G18/[0]!Poids * ( (A*EXP(-alpha*(Y$15-$H18))) + (B*EXP(-bêta*(Y$15-$H18))) + (_C*EXP(-gamma*(Y$15-$H18 ))) ) -> 0 | Z18: =$G18/[0]!Poids * ( (A*EXP(-alpha*(Z$15-$H18))) + (B*EXP(-bêta*(Z$15-$H18))) + (_C*EXP(-gamma*(Z$15-$H18 ))) ) -> 0 | AA18: =$G18/[0]!Poids * ( (A*EXP(-alpha*(AA$15-$H18))) + (B*EXP(-bêta*(AA$15-$H18))) + (_C*EXP(-gamma*(AA$15-$H18 ))) ) -> 0 | AB18: =$G18/[0]!Poids * ( (A*EXP(-alpha*(AB$15-$H18))) + (B*EXP(-bêta*(AB$15-$H18))) + (_C*EXP(-gamma*(AB$15-$H18 ))) ) -> 0 | AC18: =$G18/[0]!Poids * ( (A*EXP(-alpha*(AC$15-$H18))) + (B*EXP(-bêta*(AC$15-$H18))) + (_C*EXP(-gamma*(AC$15-$H18 ))) ) -> 0 | AD18: =$G18/[0]!Poids * ( (A*EXP(-alpha*(AD$15-$H18))) + (B*EXP(-bêta*(AD$15-$H18))) + (_C*EXP(-gamma*(AD$15-$H18 ))) ) -> 0 | AE18: =$G18/[0]!Poids * ( (A*EXP(-alpha*(AE$15-$H18))) + (B*EXP(-bêta*(AE$15-$H18))) + (_C*EXP(-gamma*(AE$15-$H18 ))) ) -> 0 | AF18: =$G18/[0]!Poids * ( (A*EXP(-alpha*(AF$15-$H18))) + (B*EXP(-bêta*(AF$15-$H18))) + (_C*EXP(-gamma*(AF$15-$H18 ))) ) -> 0 | AG18: =$G18/[0]!Poids * ( (A*EXP(-alpha*(AG$15-$H18))) + (B*EXP(-bêta*(AG$15-$H18))) + (_C*EXP(-gamma*(AG$15-$H18 ))) ) -> 0 | AH18: =$G18/[0]!Poids * ( (A*EXP(-alpha*(AH$15-$H18))) + (B*EXP(-bêta*(AH$15-$H18))) + (_C*EXP(-gamma*(AH$15-$H18 ))) ) -> 0 | AI18: =$G18/[0]!Poids * ( (A*EXP(-alpha*(AI$15-$H18))) + (B*EXP(-bêta*(AI$15-$H18))) + (_C*EXP(-gamma*(AI$15-$H18 ))) ) -> 0 | AJ18: =$G18/[0]!Poids * ( (A*EXP(-alpha*(AJ$15-$H18))) + (B*EXP(-bêta*(AJ$15-$H18))) + (_C*EXP(-gamma*(AJ$15-$H18 ))) ) -> 0 | AK18: =$G18/[0]!Poids * ( (A*EXP(-alpha*(AK$15-$H18))) + (B*EXP(-bêta*(AK$15-$H18))) + (_C*EXP(-gamma*(AK$15-$H18 ))) ) -> 0 | AL18: =$G18/[0]!Poids * ( (A*EXP(-alpha*(AL$15-$H18))) + (B*EXP(-bêta*(AL$15-$H18))) + (_C*EXP(-gamma*(AL$15-$H18 ))) ) -> 0 | AM18: =$G18/[0]!Poids * ( (A*EXP(-alpha*(AM$15-$H18))) + (B*EXP(-bêta*(AM$15-$H18))) + (_C*EXP(-gamma*(AM$15-$H18 ))) ) -> 0 | AN18: =$G18/[0]!Poids * ( (A*EXP(-alpha*(AN$15-$H18))) + (B*EXP(-bêta*(AN$15-$H18))) + (_C*EXP(-gamma*(AN$15-$H18 ))) ) -> 0 | AO18: =$G18/[0]!Poids * ( (A*EXP(-alpha*(AO$15-$H18))) + (B*EXP(-bêta*(AO$15-$H18))) + (_C*EXP(-gamma*(AO$15-$H18 ))) ) -> 0 | AP18: =$G18/[0]!Poids * ( (A*EXP(-alpha*(AP$15-$H18))) + (B*EXP(-bêta*(AP$15-$H18))) + (_C*EXP(-gamma*(AP$15-$H18 ))) ) -> 0 | AQ18: =$G18/[0]!Poids * ( (A*EXP(-alpha*(AQ$15-$H18))) + (B*EXP(-bêta*(AQ$15-$H18))) + (_C*EXP(-gamma*(AQ$15-$H18 ))) ) -> 0 | AR18: =$G18/[0]!Poids * ( (A*EXP(-alpha*(AR$15-$H18))) + (B*EXP(-bêta*(AR$15-$H18))) + (_C*EXP(-gamma*(AR$15-$H18 ))) ) -> 0 | AS18: =$G18/[0]!Poids * ( (A*EXP(-alpha*(AS$15-$H18))) + (B*EXP(-bêta*(AS$15-$H18))) + (_C*EXP(-gamma*(AS$15-$H18 ))) ) -> 0 | AT18: =$G18/[0]!Poids * ( (A*EXP(-alpha*(AT$15-$H18))) + (B*EXP(-bêta*(AT$15-$H18))) + (_C*EXP(-gamma*(AT$15-$H18 ))) ) -> 0 | AU18: =$G18/[0]!Poids * ( (A*EXP(-alpha*(AU$15-$H18))) + (B*EXP(-bêta*(AU$15-$H18))) + (_C*EXP(-gamma*(AU$15-$H18 ))) ) -> 0 | AV18: =$G18/[0]!Poids * ( (A*EXP(-alpha*(AV$15-$H18))) + (B*EXP(-bêta*(AV$15-$H18))) + (_C*EXP(-gamma*(AV$15-$H18 ))) ) -> 0 | AW18: =$G18/[0]!Poids * ( (A*EXP(-alpha*(AW$15-$H18))) + (B*EXP(-bêta*(AW$15-$H18))) + (_C*EXP(-gamma*(AW$15-$H18 ))) ) -> 0 | AX18: =$G18/[0]!Poids * ( (A*EXP(-alpha*(AX$15-$H18))) + (B*EXP(-bêta*(AX$15-$H18))) + (_C*EXP(-gamma*(AX$15-$H18 ))) ) -> 0 | AY18: =$G18/[0]!Poids * ( (A*EXP(-alpha*(AY$15-$H18))) + (B*EXP(-bêta*(AY$15-$H18))) + (_C*EXP(-gamma*(AY$15-$H18 ))) ) -> 0 | AZ18: =$G18/[0]!Poids * ( (A*EXP(-alpha*(AZ$15-$H18))) + (B*EXP(-bêta*(AZ$15-$H18))) + (_C*EXP(-gamma*(AZ$15-$H18 ))) ) -> 0 | BA18: =$G18/[0]!Poids * ( (A*EXP(-alpha*(BA$15-$H18))) + (B*EXP(-bêta*(BA$15-$H18))) + (_C*EXP(-gamma*(BA$15-$H18 ))) ) -> 0 | BB18: =$G18/[0]!Poids * ( (A*EXP(-alpha*(BB$15-$H18))) + (B*EXP(-bêta*(BB$15-$H18))) + (_C*EXP(-gamma*(BB$15-$H18 ))) ) -> 0 | BC18: =$G18/[0]!Poids * ( (A*EXP(-alpha*(BC$15-$H18))) + (B*EXP(-bêta*(BC$15-$H18))) + (_C*EXP(-gamma*(BC$15-$H18 ))) ) -> 0 | BD18: =$G18/[0]!Poids * ( (A*EXP(-alpha*(BD$15-$H18))) + (B*EXP(-bêta*(BD$15-$H18))) + (_C*EXP(-gamma*(BD$15-$H18 ))) ) -> 0 | BE18: =$G18/[0]!Poids * ( (A*EXP(-alpha*(BE$15-$H18))) + (B*EXP(-bêta*(BE$15-$H18))) + (_C*EXP(-gamma*(BE$15-$H18 ))) ) -> 0 | BF18: =$G18/[0]!Poids * ( (A*EXP(-alpha*(BF$15-$H18))) + (B*EXP(-bêta*(BF$15-$H18))) + (_C*EXP(-gamma*(BF$15-$H18 ))) ) -> 0 | BG18: =$G18/[0]!Poids * ( (A*EXP(-alpha*(BG$15-$H18))) + (B*EXP(-bêta*(BG$15-$H18))) + (_C*EXP(-gamma*(BG$15-$H18 ))) ) -> 0 | BH18: =$G18/[0]!Poids * ( (A*EXP(-alpha*(BH$15-$H18))) + (B*EXP(-bêta*(BH$15-$H18))) + (_C*EXP(-gamma*(BH$15-$H18 ))) ) -> 0 | BI18: =$G18/[0]!Poids * ( (A*EXP(-alpha*(BI$15-$H18))) + (B*EXP(-bêta*(BI$15-$H18))) + (_C*EXP(-gamma*(BI$15-$H18 ))) ) -> 0 | BJ18: =$G18/[0]!Poids * ( (A*EXP(-alpha*(BJ$15-$H18))) + (B*EXP(-bêta*(BJ$15-$H18))) + (_C*EXP(-gamma*(BJ$15-$H18 ))) ) -> 0 | BK18: =$G18/[0]!Poids * ( (A*EXP(-alpha*(BK$15-$H18))) + (B*EXP(-bêta*(BK$15-$H18))) + (_C*EXP(-gamma*(BK$15-$H18 ))) ) -> 0 | BL18: =$G18/[0]!Poids * ( (A*EXP(-alpha*(BL$15-$H18))) + (B*EXP(-bêta*(BL$15-$H18))) + (_C*EXP(-gamma*(BL$15-$H18 ))) ) -> 0 | BM18: =$G18/[0]!Poids * ( (A*EXP(-alpha*(BM$15-$H18))) + (B*EXP(-bêta*(BM$15-$H18))) + (_C*EXP(-gamma*(BM$15-$H18 ))) ) -> 0 | BN18: =$G18/[0]!Poids * ( (A*EXP(-alpha*(BN$15-$H18))) + (B*EXP(-bêta*(BN$15-$H18))) + (_C*EXP(-gamma*(BN$15-$H18 ))) ) -> 0 | BO18: =$G18/[0]!Poids * ( (A*EXP(-alpha*(BO$15-$H18))) + (B*EXP(-bêta*(BO$15-$H18))) + (_C*EXP(-gamma*(BO$15-$H18 ))) ) -> 0 | BP18: =$G18/[0]!Poids * ( (A*EXP(-alpha*(BP$15-$H18))) + (B*EXP(-bêta*(BP$15-$H18))) + (_C*EXP(-gamma*(BP$15-$H18 ))) ) -> 0 | BQ18: =$G18/[0]!Poids * ( (A*EXP(-alpha*(BQ$15-$H18))) + (B*EXP(-bêta*(BQ$15-$H18))) + (_C*EXP(-gamma*(BQ$15-$H18 ))) ) -> 0 | BR18: =$G18/[0]!Poids * ( (A*EXP(-alpha*(BR$15-$H18))) + (B*EXP(-bêta*(BR$15-$H18))) + (_C*EXP(-gamma*(BR$15-$H18 ))) ) -> 0
B19: C équation | C19: 197 | D19: C/dose | E19: =C19/D28 -> 98.5 | G19: =M$10 -> 0 | H19: 15 | M19: =$G19/[0]!Poids * ( (A*EXP(-alpha*(M$15-$H19))) + (B*EXP(-bêta*(M$15-$H19))) + (_C*EXP(-gamma*(M$15-$H19 ))) ) -> 0 | N19: =$G19/[0]!Poids * ( (A*EXP(-alpha*(N$15-$H19))) + (B*EXP(-bêta*(N$15-$H19))) + (_C*EXP(-gamma*(N$15-$H19 ))) ) -> 0 | O19: =$G19/[0]!Poids * ( (A*EXP(-alpha*(O$15-$H19))) + (B*EXP(-bêta*(O$15-$H19))) + (_C*EXP(-gamma*(O$15-$H19 ))) ) -> 0 | P19: =$G19/[0]!Poids * ( (A*EXP(-alpha*(P$15-$H19))) + (B*EXP(-bêta*(P$15-$H19))) + (_C*EXP(-gamma*(P$15-$H19 ))) ) -> 0 | Q19: =$G19/[0]!Poids * ( (A*EXP(-alpha*(Q$15-$H19))) + (B*EXP(-bêta*(Q$15-$H19))) + (_C*EXP(-gamma*(Q$15-$H19 ))) ) -> 0 | R19: =$G19/[0]!Poids * ( (A*EXP(-alpha*(R$15-$H19))) + (B*EXP(-bêta*(R$15-$H19))) + (_C*EXP(-gamma*(R$15-$H19 ))) ) -> 0 | S19: =$G19/[0]!Poids * ( (A*EXP(-alpha*(S$15-$H19))) + (B*EXP(-bêta*(S$15-$H19))) + (_C*EXP(-gamma*(S$15-$H19 ))) ) -> 0 | T19: =$G19/[0]!Poids * ( (A*EXP(-alpha*(T$15-$H19))) + (B*EXP(-bêta*(T$15-$H19))) + (_C*EXP(-gamma*(T$15-$H19 ))) ) -> 0 | U19: =$G19/[0]!Poids * ( (A*EXP(-alpha*(U$15-$H19))) + (B*EXP(-bêta*(U$15-$H19))) + (_C*EXP(-gamma*(U$15-$H19 ))) ) -> 0 | V19: =$G19/[0]!Poids * ( (A*EXP(-alpha*(V$15-$H19))) + (B*EXP(-bêta*(V$15-$H19))) + (_C*EXP(-gamma*(V$15-$H19 ))) ) -> 0 | W19: =$G19/[0]!Poids * ( (A*EXP(-alpha*(W$15-$H19))) + (B*EXP(-bêta*(W$15-$H19))) + (_C*EXP(-gamma*(W$15-$H19 ))) ) -> 0 | X19: =$G19/[0]!Poids * ( (A*EXP(-alpha*(X$15-$H19))) + (B*EXP(-bêta*(X$15-$H19))) + (_C*EXP(-gamma*(X$15-$H19 ))) ) -> 0 | Y19: =$G19/[0]!Poids * ( (A*EXP(-alpha*(Y$15-$H19))) + (B*EXP(-bêta*(Y$15-$H19))) + (_C*EXP(-gamma*(Y$15-$H19 ))) ) -> 0 | Z19: =$G19/[0]!Poids * ( (A*EXP(-alpha*(Z$15-$H19))) + (B*EXP(-bêta*(Z$15-$H19))) + (_C*EXP(-gamma*(Z$15-$H19 ))) ) -> 0 | AA19: =$G19/[0]!Poids * ( (A*EXP(-alpha*(AA$15-$H19))) + (B*EXP(-bêta*(AA$15-$H19))) + (_C*EXP(-gamma*(AA$15-$H19 ))) ) -> 0 | AB19: =$G19/[0]!Poids * ( (A*EXP(-alpha*(AB$15-$H19))) + (B*EXP(-bêta*(AB$15-$H19))) + (_C*EXP(-gamma*(AB$15-$H19 ))) ) -> 0 | AC19: =$G19/[0]!Poids * ( (A*EXP(-alpha*(AC$15-$H19))) + (B*EXP(-bêta*(AC$15-$H19))) + (_C*EXP(-gamma*(AC$15-$H19 ))) ) -> 0 | AD19: =$G19/[0]!Poids * ( (A*EXP(-alpha*(AD$15-$H19))) + (B*EXP(-bêta*(AD$15-$H19))) + (_C*EXP(-gamma*(AD$15-$H19 ))) ) -> 0 | AE19: =$G19/[0]!Poids * ( (A*EXP(-alpha*(AE$15-$H19))) + (B*EXP(-bêta*(AE$15-$H19))) + (_C*EXP(-gamma*(AE$15-$H19 ))) ) -> 0 | AF19: =$G19/[0]!Poids * ( (A*EXP(-alpha*(AF$15-$H19))) + (B*EXP(-bêta*(AF$15-$H19))) + (_C*EXP(-gamma*(AF$15-$H19 ))) ) -> 0 | AG19: =$G19/[0]!Poids * ( (A*EXP(-alpha*(AG$15-$H19))) + (B*EXP(-bêta*(AG$15-$H19))) + (_C*EXP(-gamma*(AG$15-$H19 ))) ) -> 0 | AH19: =$G19/[0]!Poids * ( (A*EXP(-alpha*(AH$15-$H19))) + (B*EXP(-bêta*(AH$15-$H19))) + (_C*EXP(-gamma*(AH$15-$H19 ))) ) -> 0 | AI19: =$G19/[0]!Poids * ( (A*EXP(-alpha*(AI$15-$H19))) + (B*EXP(-bêta*(AI$15-$H19))) + (_C*EXP(-gamma*(AI$15-$H19 ))) ) -> 0 | AJ19: =$G19/[0]!Poids * ( (A*EXP(-alpha*(AJ$15-$H19))) + (B*EXP(-bêta*(AJ$15-$H19))) + (_C*EXP(-gamma*(AJ$15-$H19 ))) ) -> 0 | AK19: =$G19/[0]!Poids * ( (A*EXP(-alpha*(AK$15-$H19))) + (B*EXP(-bêta*(AK$15-$H19))) + (_C*EXP(-gamma*(AK$15-$H19 ))) ) -> 0 | AL19: =$G19/[0]!Poids * ( (A*EXP(-alpha*(AL$15-$H19))) + (B*EXP(-bêta*(AL$15-$H19))) + (_C*EXP(-gamma*(AL$15-$H19 ))) ) -> 0 | AM19: =$G19/[0]!Poids * ( (A*EXP(-alpha*(AM$15-$H19))) + (B*EXP(-bêta*(AM$15-$H19))) + (_C*EXP(-gamma*(AM$15-$H19 ))) ) -> 0 | AN19: =$G19/[0]!Poids * ( (A*EXP(-alpha*(AN$15-$H19))) + (B*EXP(-bêta*(AN$15-$H19))) + (_C*EXP(-gamma*(AN$15-$H19 ))) ) -> 0 | AO19: =$G19/[0]!Poids * ( (A*EXP(-alpha*(AO$15-$H19))) + (B*EXP(-bêta*(AO$15-$H19))) + (_C*EXP(-gamma*(AO$15-$H19 ))) ) -> 0 | AP19: =$G19/[0]!Poids * ( (A*EXP(-alpha*(AP$15-$H19))) + (B*EXP(-bêta*(AP$15-$H19))) + (_C*EXP(-gamma*(AP$15-$H19 ))) ) -> 0 | AQ19: =$G19/[0]!Poids * ( (A*EXP(-alpha*(AQ$15-$H19))) + (B*EXP(-bêta*(AQ$15-$H19))) + (_C*EXP(-gamma*(AQ$15-$H19 ))) ) -> 0 | AR19: =$G19/[0]!Poids * ( (A*EXP(-alpha*(AR$15-$H19))) + (B*EXP(-bêta*(AR$15-$H19))) + (_C*EXP(-gamma*(AR$15-$H19 ))) ) -> 0 | AS19: =$G19/[0]!Poids * ( (A*EXP(-alpha*(AS$15-$H19))) + (B*EXP(-bêta*(AS$15-$H19))) + (_C*EXP(-gamma*(AS$15-$H19 ))) ) -> 0 | AT19: =$G19/[0]!Poids * ( (A*EXP(-alpha*(AT$15-$H19))) + (B*EXP(-bêta*(AT$15-$H19))) + (_C*EXP(-gamma*(AT$15-$H19 ))) ) -> 0 | AU19: =$G19/[0]!Poids * ( (A*EXP(-alpha*(AU$15-$H19))) + (B*EXP(-bêta*(AU$15-$H19))) + (_C*EXP(-gamma*(AU$15-$H19 ))) ) -> 0 | AV19: =$G19/[0]!Poids * ( (A*EXP(-alpha*(AV$15-$H19))) + (B*EXP(-bêta*(AV$15-$H19))) + (_C*EXP(-gamma*(AV$15-$H19 ))) ) -> 0 | AW19: =$G19/[0]!Poids * ( (A*EXP(-alpha*(AW$15-$H19))) + (B*EXP(-bêta*(AW$15-$H19))) + (_C*EXP(-gamma*(AW$15-$H19 ))) ) -> 0 | AX19: =$G19/[0]!Poids * ( (A*EXP(-alpha*(AX$15-$H19))) + (B*EXP(-bêta*(AX$15-$H19))) + (_C*EXP(-gamma*(AX$15-$H19 ))) ) -> 0 | AY19: =$G19/[0]!Poids * ( (A*EXP(-alpha*(AY$15-$H19))) + (B*EXP(-bêta*(AY$15-$H19))) + (_C*EXP(-gamma*(AY$15-$H19 ))) ) -> 0 | AZ19: =$G19/[0]!Poids * ( (A*EXP(-alpha*(AZ$15-$H19))) + (B*EXP(-bêta*(AZ$15-$H19))) + (_C*EXP(-gamma*(AZ$15-$H19 ))) ) -> 0 | BA19: =$G19/[0]!Poids * ( (A*EXP(-alpha*(BA$15-$H19))) + (B*EXP(-bêta*(BA$15-$H19))) + (_C*EXP(-gamma*(BA$15-$H19 ))) ) -> 0 | BB19: =$G19/[0]!Poids * ( (A*EXP(-alpha*(BB$15-$H19))) + (B*EXP(-bêta*(BB$15-$H19))) + (_C*EXP(-gamma*(BB$15-$H19 ))) ) -> 0 | BC19: =$G19/[0]!Poids * ( (A*EXP(-alpha*(BC$15-$H19))) + (B*EXP(-bêta*(BC$15-$H19))) + (_C*EXP(-gamma*(BC$15-$H19 ))) ) -> 0 | BD19: =$G19/[0]!Poids * ( (A*EXP(-alpha*(BD$15-$H19))) + (B*EXP(-bêta*(BD$15-$H19))) + (_C*EXP(-gamma*(BD$15-$H19 ))) ) -> 0 | BE19: =$G19/[0]!Poids * ( (A*EXP(-alpha*(BE$15-$H19))) + (B*EXP(-bêta*(BE$15-$H19))) + (_C*EXP(-gamma*(BE$15-$H19 ))) ) -> 0 | BF19: =$G19/[0]!Poids * ( (A*EXP(-alpha*(BF$15-$H19))) + (B*EXP(-bêta*(BF$15-$H19))) + (_C*EXP(-gamma*(BF$15-$H19 ))) ) -> 0 | BG19: =$G19/[0]!Poids * ( (A*EXP(-alpha*(BG$15-$H19))) + (B*EXP(-bêta*(BG$15-$H19))) + (_C*EXP(-gamma*(BG$15-$H19 ))) ) -> 0 | BH19: =$G19/[0]!Poids * ( (A*EXP(-alpha*(BH$15-$H19))) + (B*EXP(-bêta*(BH$15-$H19))) + (_C*EXP(-gamma*(BH$15-$H19 ))) ) -> 0 | BI19: =$G19/[0]!Poids * ( (A*EXP(-alpha*(BI$15-$H19))) + (B*EXP(-bêta*(BI$15-$H19))) + (_C*EXP(-gamma*(BI$15-$H19 ))) ) -> 0 | BJ19: =$G19/[0]!Poids * ( (A*EXP(-alpha*(BJ$15-$H19))) + (B*EXP(-bêta*(BJ$15-$H19))) + (_C*EXP(-gamma*(BJ$15-$H19 ))) ) -> 0 | BK19: =$G19/[0]!Poids * ( (A*EXP(-alpha*(BK$15-$H19))) + (B*EXP(-bêta*(BK$15-$H19))) + (_C*EXP(-gamma*(BK$15-$H19 ))) ) -> 0 | BL19: =$G19/[0]!Poids * ( (A*EXP(-alpha*(BL$15-$H19))) + (B*EXP(-bêta*(BL$15-$H19))) + (_C*EXP(-gamma*(BL$15-$H19 ))) ) -> 0 | BM19: =$G19/[0]!Poids * ( (A*EXP(-alpha*(BM$15-$H19))) + (B*EXP(-bêta*(BM$15-$H19))) + (_C*EXP(-gamma*(BM$15-$H19 ))) ) -> 0 | BN19: =$G19/[0]!Poids * ( (A*EXP(-alpha*(BN$15-$H19))) + (B*EXP(-bêta*(BN$15-$H19))) + (_C*EXP(-gamma*(BN$15-$H19 ))) ) -> 0 | BO19: =$G19/[0]!Poids * ( (A*EXP(-alpha*(BO$15-$H19))) + (B*EXP(-bêta*(BO$15-$H19))) + (_C*EXP(-gamma*(BO$15-$H19 ))) ) -> 0 | BP19: =$G19/[0]!Poids * ( (A*EXP(-alpha*(BP$15-$H19))) + (B*EXP(-bêta*(BP$15-$H19))) + (_C*EXP(-gamma*(BP$15-$H19 ))) ) -> 0 | BQ19: =$G19/[0]!Poids * ( (A*EXP(-alpha*(BQ$15-$H19))) + (B*EXP(-bêta*(BQ$15-$H19))) + (_C*EXP(-gamma*(BQ$15-$H19 ))) ) -> 0 | BR19: =$G19/[0]!Poids * ( (A*EXP(-alpha*(BR$15-$H19))) + (B*EXP(-bêta*(BR$15-$H19))) + (_C*EXP(-gamma*(BR$15-$H19 ))) ) -> 0
G20: =N$10 -> 0 | H20: 20 | N20: =$G20/[0]!Poids * ( (A*EXP(-alpha*(N$15-$H20))) + (B*EXP(-bêta*(N$15-$H20))) + (_C*EXP(-gamma*(N$15-$H20 ))) ) -> 0 | O20: =$G20/[0]!Poids * ( (A*EXP(-alpha*(O$15-$H20))) + (B*EXP(-bêta*(O$15-$H20))) + (_C*EXP(-gamma*(O$15-$H20 ))) ) -> 0 | P20: =$G20/[0]!Poids * ( (A*EXP(-alpha*(P$15-$H20))) + (B*EXP(-bêta*(P$15-$H20))) + (_C*EXP(-gamma*(P$15-$H20 ))) ) -> 0 | Q20: =$G20/[0]!Poids * ( (A*EXP(-alpha*(Q$15-$H20))) + (B*EXP(-bêta*(Q$15-$H20))) + (_C*EXP(-gamma*(Q$15-$H20 ))) ) -> 0 | R20: =$G20/[0]!Poids * ( (A*EXP(-alpha*(R$15-$H20))) + (B*EXP(-bêta*(R$15-$H20))) + (_C*EXP(-gamma*(R$15-$H20 ))) ) -> 0 | S20: =$G20/[0]!Poids * ( (A*EXP(-alpha*(S$15-$H20))) + (B*EXP(-bêta*(S$15-$H20))) + (_C*EXP(-gamma*(S$15-$H20 ))) ) -> 0 | T20: =$G20/[0]!Poids * ( (A*EXP(-alpha*(T$15-$H20))) + (B*EXP(-bêta*(T$15-$H20))) + (_C*EXP(-gamma*(T$15-$H20 ))) ) -> 0 | U20: =$G20/[0]!Poids * ( (A*EXP(-alpha*(U$15-$H20))) + (B*EXP(-bêta*(U$15-$H20))) + (_C*EXP(-gamma*(U$15-$H20 ))) ) -> 0 | V20: =$G20/[0]!Poids * ( (A*EXP(-alpha*(V$15-$H20))) + (B*EXP(-bêta*(V$15-$H20))) + (_C*EXP(-gamma*(V$15-$H20 ))) ) -> 0 | W20: =$G20/[0]!Poids * ( (A*EXP(-alpha*(W$15-$H20))) + (B*EXP(-bêta*(W$15-$H20))) + (_C*EXP(-gamma*(W$15-$H20 ))) ) -> 0 | X20: =$G20/[0]!Poids * ( (A*EXP(-alpha*(X$15-$H20))) + (B*EXP(-bêta*(X$15-$H20))) + (_C*EXP(-gamma*(X$15-$H20 ))) ) -> 0 | Y20: =$G20/[0]!Poids * ( (A*EXP(-alpha*(Y$15-$H20))) + (B*EXP(-bêta*(Y$15-$H20))) + (_C*EXP(-gamma*(Y$15-$H20 ))) ) -> 0 | Z20: =$G20/[0]!Poids * ( (A*EXP(-alpha*(Z$15-$H20))) + (B*EXP(-bêta*(Z$15-$H20))) + (_C*EXP(-gamma*(Z$15-$H20 ))) ) -> 0 | AA20: =$G20/[0]!Poids * ( (A*EXP(-alpha*(AA$15-$H20))) + (B*EXP(-bêta*(AA$15-$H20))) + (_C*EXP(-gamma*(AA$15-$H20 ))) ) -> 0 | AB20: =$G20/[0]!Poids * ( (A*EXP(-alpha*(AB$15-$H20))) + (B*EXP(-bêta*(AB$15-$H20))) + (_C*EXP(-gamma*(AB$15-$H20 ))) ) -> 0 | AC20: =$G20/[0]!Poids * ( (A*EXP(-alpha*(AC$15-$H20))) + (B*EXP(-bêta*(AC$15-$H20))) + (_C*EXP(-gamma*(AC$15-$H20 ))) ) -> 0 | AD20: =$G20/[0]!Poids * ( (A*EXP(-alpha*(AD$15-$H20))) + (B*EXP(-bêta*(AD$15-$H20))) + (_C*EXP(-gamma*(AD$15-$H20 ))) ) -> 0 | AE20: =$G20/[0]!Poids * ( (A*EXP(-alpha*(AE$15-$H20))) + (B*EXP(-bêta*(AE$15-$H20))) + (_C*EXP(-gamma*(AE$15-$H20 ))) ) -> 0 | AF20: =$G20/[0]!Poids * ( (A*EXP(-alpha*(AF$15-$H20))) + (B*EXP(-bêta*(AF$15-$H20))) + (_C*EXP(-gamma*(AF$15-$H20 ))) ) -> 0 | AG20: =$G20/[0]!Poids * ( (A*EXP(-alpha*(AG$15-$H20))) + (B*EXP(-bêta*(AG$15-$H20))) + (_C*EXP(-gamma*(AG$15-$H20 ))) ) -> 0 | AH20: =$G20/[0]!Poids * ( (A*EXP(-alpha*(AH$15-$H20))) + (B*EXP(-bêta*(AH$15-$H20))) + (_C*EXP(-gamma*(AH$15-$H20 ))) ) -> 0 | AI20: =$G20/[0]!Poids * ( (A*EXP(-alpha*(AI$15-$H20))) + (B*EXP(-bêta*(AI$15-$H20))) + (_C*EXP(-gamma*(AI$15-$H20 ))) ) -> 0 | AJ20: =$G20/[0]!Poids * ( (A*EXP(-alpha*(AJ$15-$H20))) + (B*EXP(-bêta*(AJ$15-$H20))) + (_C*EXP(-gamma*(AJ$15-$H20 ))) ) -> 0 | AK20: =$G20/[0]!Poids * ( (A*EXP(-alpha*(AK$15-$H20))) + (B*EXP(-bêta*(AK$15-$H20))) + (_C*EXP(-gamma*(AK$15-$H20 ))) ) -> 0 | AL20: =$G20/[0]!Poids * ( (A*EXP(-alpha*(AL$15-$H20))) + (B*EXP(-bêta*(AL$15-$H20))) + (_C*EXP(-gamma*(AL$15-$H20 ))) ) -> 0 | AM20: =$G20/[0]!Poids * ( (A*EXP(-alpha*(AM$15-$H20))) + (B*EXP(-bêta*(AM$15-$H20))) + (_C*EXP(-gamma*(AM$15-$H20 ))) ) -> 0 | AN20: =$G20/[0]!Poids * ( (A*EXP(-alpha*(AN$15-$H20))) + (B*EXP(-bêta*(AN$15-$H20))) + (_C*EXP(-gamma*(AN$15-$H20 ))) ) -> 0 | AO20: =$G20/[0]!Poids * ( (A*EXP(-alpha*(AO$15-$H20))) + (B*EXP(-bêta*(AO$15-$H20))) + (_C*EXP(-gamma*(AO$15-$H20 ))) ) -> 0 | AP20: =$G20/[0]!Poids * ( (A*EXP(-alpha*(AP$15-$H20))) + (B*EXP(-bêta*(AP$15-$H20))) + (_C*EXP(-gamma*(AP$15-$H20 ))) ) -> 0 | AQ20: =$G20/[0]!Poids * ( (A*EXP(-alpha*(AQ$15-$H20))) + (B*EXP(-bêta*(AQ$15-$H20))) + (_C*EXP(-gamma*(AQ$15-$H20 ))) ) -> 0 | AR20: =$G20/[0]!Poids * ( (A*EXP(-alpha*(AR$15-$H20))) + (B*EXP(-bêta*(AR$15-$H20))) + (_C*EXP(-gamma*(AR$15-$H20 ))) ) -> 0 | AS20: =$G20/[0]!Poids * ( (A*EXP(-alpha*(AS$15-$H20))) + (B*EXP(-bêta*(AS$15-$H20))) + (_C*EXP(-gamma*(AS$15-$H20 ))) ) -> 0 | AT20: =$G20/[0]!Poids * ( (A*EXP(-alpha*(AT$15-$H20))) + (B*EXP(-bêta*(AT$15-$H20))) + (_C*EXP(-gamma*(AT$15-$H20 ))) ) -> 0 | AU20: =$G20/[0]!Poids * ( (A*EXP(-alpha*(AU$15-$H20))) + (B*EXP(-bêta*(AU$15-$H20))) + (_C*EXP(-gamma*(AU$15-$H20 ))) ) -> 0 | AV20: =$G20/[0]!Poids * ( (A*EXP(-alpha*(AV$15-$H20))) + (B*EXP(-bêta*(AV$15-$H20))) + (_C*EXP(-gamma*(AV$15-$H20 ))) ) -> 0 | AW20: =$G20/[0]!Poids * ( (A*EXP(-alpha*(AW$15-$H20))) + (B*EXP(-bêta*(AW$15-$H20))) + (_C*EXP(-gamma*(AW$15-$H20 ))) ) -> 0 | AX20: =$G20/[0]!Poids * ( (A*EXP(-alpha*(AX$15-$H20))) + (B*EXP(-bêta*(AX$15-$H20))) + (_C*EXP(-gamma*(AX$15-$H20 ))) ) -> 0 | AY20: =$G20/[0]!Poids * ( (A*EXP(-alpha*(AY$15-$H20))) + (B*EXP(-bêta*(AY$15-$H20))) + (_C*EXP(-gamma*(AY$15-$H20 ))) ) -> 0 | AZ20: =$G20/[0]!Poids * ( (A*EXP(-alpha*(AZ$15-$H20))) + (B*EXP(-bêta*(AZ$15-$H20))) + (_C*EXP(-gamma*(AZ$15-$H20 ))) ) -> 0 | BA20: =$G20/[0]!Poids * ( (A*EXP(-alpha*(BA$15-$H20))) + (B*EXP(-bêta*(BA$15-$H20))) + (_C*EXP(-gamma*(BA$15-$H20 ))) ) -> 0 | BB20: =$G20/[0]!Poids * ( (A*EXP(-alpha*(BB$15-$H20))) + (B*EXP(-bêta*(BB$15-$H20))) + (_C*EXP(-gamma*(BB$15-$H20 ))) ) -> 0 | BC20: =$G20/[0]!Poids * ( (A*EXP(-alpha*(BC$15-$H20))) + (B*EXP(-bêta*(BC$15-$H20))) + (_C*EXP(-gamma*(BC$15-$H20 ))) ) -> 0 | BD20: =$G20/[0]!Poids * ( (A*EXP(-alpha*(BD$15-$H20))) + (B*EXP(-bêta*(BD$15-$H20))) + (_C*EXP(-gamma*(BD$15-$H20 ))) ) -> 0 | BE20: =$G20/[0]!Poids * ( (A*EXP(-alpha*(BE$15-$H20))) + (B*EXP(-bêta*(BE$15-$H20))) + (_C*EXP(-gamma*(BE$15-$H20 ))) ) -> 0 | BF20: =$G20/[0]!Poids * ( (A*EXP(-alpha*(BF$15-$H20))) + (B*EXP(-bêta*(BF$15-$H20))) + (_C*EXP(-gamma*(BF$15-$H20 ))) ) -> 0 | BG20: =$G20/[0]!Poids * ( (A*EXP(-alpha*(BG$15-$H20))) + (B*EXP(-bêta*(BG$15-$H20))) + (_C*EXP(-gamma*(BG$15-$H20 ))) ) -> 0 | BH20: =$G20/[0]!Poids * ( (A*EXP(-alpha*(BH$15-$H20))) + (B*EXP(-bêta*(BH$15-$H20))) + (_C*EXP(-gamma*(BH$15-$H20 ))) ) -> 0 | BI20: =$G20/[0]!Poids * ( (A*EXP(-alpha*(BI$15-$H20))) + (B*EXP(-bêta*(BI$15-$H20))) + (_C*EXP(-gamma*(BI$15-$H20 ))) ) -> 0 | BJ20: =$G20/[0]!Poids * ( (A*EXP(-alpha*(BJ$15-$H20))) + (B*EXP(-bêta*(BJ$15-$H20))) + (_C*EXP(-gamma*(BJ$15-$H20 ))) ) -> 0 | BK20: =$G20/[0]!Poids * ( (A*EXP(-alpha*(BK$15-$H20))) + (B*EXP(-bêta*(BK$15-$H20))) + (_C*EXP(-gamma*(BK$15-$H20 ))) ) -> 0 | BL20: =$G20/[0]!Poids * ( (A*EXP(-alpha*(BL$15-$H20))) + (B*EXP(-bêta*(BL$15-$H20))) + (_C*EXP(-gamma*(BL$15-$H20 ))) ) -> 0 | BM20: =$G20/[0]!Poids * ( (A*EXP(-alpha*(BM$15-$H20))) + (B*EXP(-bêta*(BM$15-$H20))) + (_C*EXP(-gamma*(BM$15-$H20 ))) ) -> 0 | BN20: =$G20/[0]!Poids * ( (A*EXP(-alpha*(BN$15-$H20))) + (B*EXP(-bêta*(BN$15-$H20))) + (_C*EXP(-gamma*(BN$15-$H20 ))) ) -> 0 | BO20: =$G20/[0]!Poids * ( (A*EXP(-alpha*(BO$15-$H20))) + (B*EXP(-bêta*(BO$15-$H20))) + (_C*EXP(-gamma*(BO$15-$H20 ))) ) -> 0 | BP20: =$G20/[0]!Poids * ( (A*EXP(-alpha*(BP$15-$H20))) + (B*EXP(-bêta*(BP$15-$H20))) + (_C*EXP(-gamma*(BP$15-$H20 ))) ) -> 0 | BQ20: =$G20/[0]!Poids * ( (A*EXP(-alpha*(BQ$15-$H20))) + (B*EXP(-bêta*(BQ$15-$H20))) + (_C*EXP(-gamma*(BQ$15-$H20 ))) ) -> 0 | BR20: =$G20/[0]!Poids * ( (A*EXP(-alpha*(BR$15-$H20))) + (B*EXP(-bêta*(BR$15-$H20))) + (_C*EXP(-gamma*(BR$15-$H20 ))) ) -> 0
B21: alpha | C21: 1.351666667 | E21: =C21 -> 1.351666667 | G21: =O$10 -> 0 | H21: 25 | O21: =$G21/[0]!Poids * ( (A*EXP(-alpha*(O$15-$H21))) + (B*EXP(-bêta*(O$15-$H21))) + (_C*EXP(-gamma*(O$15-$H21 ))) ) -> 0 | P21: =$G21/[0]!Poids * ( (A*EXP(-alpha*(P$15-$H21))) + (B*EXP(-bêta*(P$15-$H21))) + (_C*EXP(-gamma*(P$15-$H21 ))) ) -> 0 | Q21: =$G21/[0]!Poids * ( (A*EXP(-alpha*(Q$15-$H21))) + (B*EXP(-bêta*(Q$15-$H21))) + (_C*EXP(-gamma*(Q$15-$H21 ))) ) -> 0 | R21: =$G21/[0]!Poids * ( (A*EXP(-alpha*(R$15-$H21))) + (B*EXP(-bêta*(R$15-$H21))) + (_C*EXP(-gamma*(R$15-$H21 ))) ) -> 0 | S21: =$G21/[0]!Poids * ( (A*EXP(-alpha*(S$15-$H21))) + (B*EXP(-bêta*(S$15-$H21))) + (_C*EXP(-gamma*(S$15-$H21 ))) ) -> 0 | T21: =$G21/[0]!Poids * ( (A*EXP(-alpha*(T$15-$H21))) + (B*EXP(-bêta*(T$15-$H21))) + (_C*EXP(-gamma*(T$15-$H21 ))) ) -> 0 | U21: =$G21/[0]!Poids * ( (A*EXP(-alpha*(U$15-$H21))) + (B*EXP(-bêta*(U$15-$H21))) + (_C*EXP(-gamma*(U$15-$H21 ))) ) -> 0 | V21: =$G21/[0]!Poids * ( (A*EXP(-alpha*(V$15-$H21))) + (B*EXP(-bêta*(V$15-$H21))) + (_C*EXP(-gamma*(V$15-$H21 ))) ) -> 0 | W21: =$G21/[0]!Poids * ( (A*EXP(-alpha*(W$15-$H21))) + (B*EXP(-bêta*(W$15-$H21))) + (_C*EXP(-gamma*(W$15-$H21 ))) ) -> 0 | X21: =$G21/[0]!Poids * ( (A*EXP(-alpha*(X$15-$H21))) + (B*EXP(-bêta*(X$15-$H21))) + (_C*EXP(-gamma*(X$15-$H21 ))) ) -> 0 | Y21: =$G21/[0]!Poids * ( (A*EXP(-alpha*(Y$15-$H21))) + (B*EXP(-bêta*(Y$15-$H21))) + (_C*EXP(-gamma*(Y$15-$H21 ))) ) -> 0 | Z21: =$G21/[0]!Poids * ( (A*EXP(-alpha*(Z$15-$H21))) + (B*EXP(-bêta*(Z$15-$H21))) + (_C*EXP(-gamma*(Z$15-$H21 ))) ) -> 0 | AA21: =$G21/[0]!Poids * ( (A*EXP(-alpha*(AA$15-$H21))) + (B*EXP(-bêta*(AA$15-$H21))) + (_C*EXP(-gamma*(AA$15-$H21 ))) ) -> 0 | AB21: =$G21/[0]!Poids * ( (A*EXP(-alpha*(AB$15-$H21))) + (B*EXP(-bêta*(AB$15-$H21))) + (_C*EXP(-gamma*(AB$15-$H21 ))) ) -> 0 | AC21: =$G21/[0]!Poids * ( (A*EXP(-alpha*(AC$15-$H21))) + (B*EXP(-bêta*(AC$15-$H21))) + (_C*EXP(-gamma*(AC$15-$H21 ))) ) -> 0 | AD21: =$G21/[0]!Poids * ( (A*EXP(-alpha*(AD$15-$H21))) + (B*EXP(-bêta*(AD$15-$H21))) + (_C*EXP(-gamma*(AD$15-$H21 ))) ) -> 0 | AE21: =$G21/[0]!Poids * ( (A*EXP(-alpha*(AE$15-$H21))) + (B*EXP(-bêta*(AE$15-$H21))) + (_C*EXP(-gamma*(AE$15-$H21 ))) ) -> 0 | AF21: =$G21/[0]!Poids * ( (A*EXP(-alpha*(AF$15-$H21))) + (B*EXP(-bêta*(AF$15-$H21))) + (_C*EXP(-gamma*(AF$15-$H21 ))) ) -> 0 | AG21: =$G21/[0]!Poids * ( (A*EXP(-alpha*(AG$15-$H21))) + (B*EXP(-bêta*(AG$15-$H21))) + (_C*EXP(-gamma*(AG$15-$H21 ))) ) -> 0 | AH21: =$G21/[0]!Poids * ( (A*EXP(-alpha*(AH$15-$H21))) + (B*EXP(-bêta*(AH$15-$H21))) + (_C*EXP(-gamma*(AH$15-$H21 ))) ) -> 0 | AI21: =$G21/[0]!Poids * ( (A*EXP(-alpha*(AI$15-$H21))) + (B*EXP(-bêta*(AI$15-$H21))) + (_C*EXP(-gamma*(AI$15-$H21 ))) ) -> 0 | AJ21: =$G21/[0]!Poids * ( (A*EXP(-alpha*(AJ$15-$H21))) + (B*EXP(-bêta*(AJ$15-$H21))) + (_C*EXP(-gamma*(AJ$15-$H21 ))) ) -> 0 | AK21: =$G21/[0]!Poids * ( (A*EXP(-alpha*(AK$15-$H21))) + (B*EXP(-bêta*(AK$15-$H21))) + (_C*EXP(-gamma*(AK$15-$H21 ))) ) -> 0 | AL21: =$G21/[0]!Poids * ( (A*EXP(-alpha*(AL$15-$H21))) + (B*EXP(-bêta*(AL$15-$H21))) + (_C*EXP(-gamma*(AL$15-$H21 ))) ) -> 0 | AM21: =$G21/[0]!Poids * ( (A*EXP(-alpha*(AM$15-$H21))) + (B*EXP(-bêta*(AM$15-$H21))) + (_C*EXP(-gamma*(AM$15-$H21 ))) ) -> 0 | AN21: =$G21/[0]!Poids * ( (A*EXP(-alpha*(AN$15-$H21))) + (B*EXP(-bêta*(AN$15-$H21))) + (_C*EXP(-gamma*(AN$15-$H21 ))) ) -> 0 | AO21: =$G21/[0]!Poids * ( (A*EXP(-alpha*(AO$15-$H21))) + (B*EXP(-bêta*(AO$15-$H21))) + (_C*EXP(-gamma*(AO$15-$H21 ))) ) -> 0 | AP21: =$G21/[0]!Poids * ( (A*EXP(-alpha*(AP$15-$H21))) + (B*EXP(-bêta*(AP$15-$H21))) + (_C*EXP(-gamma*(AP$15-$H21 ))) ) -> 0 | AQ21: =$G21/[0]!Poids * ( (A*EXP(-alpha*(AQ$15-$H21))) + (B*EXP(-bêta*(AQ$15-$H21))) + (_C*EXP(-gamma*(AQ$15-$H21 ))) ) -> 0 | AR21: =$G21/[0]!Poids * ( (A*EXP(-alpha*(AR$15-$H21))) + (B*EXP(-bêta*(AR$15-$H21))) + (_C*EXP(-gamma*(AR$15-$H21 ))) ) -> 0 | AS21: =$G21/[0]!Poids * ( (A*EXP(-alpha*(AS$15-$H21))) + (B*EXP(-bêta*(AS$15-$H21))) + (_C*EXP(-gamma*(AS$15-$H21 ))) ) -> 0 | AT21: =$G21/[0]!Poids * ( (A*EXP(-alpha*(AT$15-$H21))) + (B*EXP(-bêta*(AT$15-$H21))) + (_C*EXP(-gamma*(AT$15-$H21 ))) ) -> 0 | AU21: =$G21/[0]!Poids * ( (A*EXP(-alpha*(AU$15-$H21))) + (B*EXP(-bêta*(AU$15-$H21))) + (_C*EXP(-gamma*(AU$15-$H21 ))) ) -> 0 | AV21: =$G21/[0]!Poids * ( (A*EXP(-alpha*(AV$15-$H21))) + (B*EXP(-bêta*(AV$15-$H21))) + (_C*EXP(-gamma*(AV$15-$H21 ))) ) -> 0 | AW21: =$G21/[0]!Poids * ( (A*EXP(-alpha*(AW$15-$H21))) + (B*EXP(-bêta*(AW$15-$H21))) + (_C*EXP(-gamma*(AW$15-$H21 ))) ) -> 0 | AX21: =$G21/[0]!Poids * ( (A*EXP(-alpha*(AX$15-$H21))) + (B*EXP(-bêta*(AX$15-$H21))) + (_C*EXP(-gamma*(AX$15-$H21 ))) ) -> 0 | AY21: =$G21/[0]!Poids * ( (A*EXP(-alpha*(AY$15-$H21))) + (B*EXP(-bêta*(AY$15-$H21))) + (_C*EXP(-gamma*(AY$15-$H21 ))) ) -> 0 | AZ21: =$G21/[0]!Poids * ( (A*EXP(-alpha*(AZ$15-$H21))) + (B*EXP(-bêta*(AZ$15-$H21))) + (_C*EXP(-gamma*(AZ$15-$H21 ))) ) -> 0 | BA21: =$G21/[0]!Poids * ( (A*EXP(-alpha*(BA$15-$H21))) + (B*EXP(-bêta*(BA$15-$H21))) + (_C*EXP(-gamma*(BA$15-$H21 ))) ) -> 0 | BB21: =$G21/[0]!Poids * ( (A*EXP(-alpha*(BB$15-$H21))) + (B*EXP(-bêta*(BB$15-$H21))) + (_C*EXP(-gamma*(BB$15-$H21 ))) ) -> 0 | BC21: =$G21/[0]!Poids * ( (A*EXP(-alpha*(BC$15-$H21))) + (B*EXP(-bêta*(BC$15-$H21))) + (_C*EXP(-gamma*(BC$15-$H21 ))) ) -> 0 | BD21: =$G21/[0]!Poids * ( (A*EXP(-alpha*(BD$15-$H21))) + (B*EXP(-bêta*(BD$15-$H21))) + (_C*EXP(-gamma*(BD$15-$H21 ))) ) -> 0 | BE21: =$G21/[0]!Poids * ( (A*EXP(-alpha*(BE$15-$H21))) + (B*EXP(-bêta*(BE$15-$H21))) + (_C*EXP(-gamma*(BE$15-$H21 ))) ) -> 0 | BF21: =$G21/[0]!Poids * ( (A*EXP(-alpha*(BF$15-$H21))) + (B*EXP(-bêta*(BF$15-$H21))) + (_C*EXP(-gamma*(BF$15-$H21 ))) ) -> 0 | BG21: =$G21/[0]!Poids * ( (A*EXP(-alpha*(BG$15-$H21))) + (B*EXP(-bêta*(BG$15-$H21))) + (_C*EXP(-gamma*(BG$15-$H21 ))) ) -> 0 | BH21: =$G21/[0]!Poids * ( (A*EXP(-alpha*(BH$15-$H21))) + (B*EXP(-bêta*(BH$15-$H21))) + (_C*EXP(-gamma*(BH$15-$H21 ))) ) -> 0 | BI21: =$G21/[0]!Poids * ( (A*EXP(-alpha*(BI$15-$H21))) + (B*EXP(-bêta*(BI$15-$H21))) + (_C*EXP(-gamma*(BI$15-$H21 ))) ) -> 0 | BJ21: =$G21/[0]!Poids * ( (A*EXP(-alpha*(BJ$15-$H21))) + (B*EXP(-bêta*(BJ$15-$H21))) + (_C*EXP(-gamma*(BJ$15-$H21 ))) ) -> 0 | BK21: =$G21/[0]!Poids * ( (A*EXP(-alpha*(BK$15-$H21))) + (B*EXP(-bêta*(BK$15-$H21))) + (_C*EXP(-gamma*(BK$15-$H21 ))) ) -> 0 | BL21: =$G21/[0]!Poids * ( (A*EXP(-alpha*(BL$15-$H21))) + (B*EXP(-bêta*(BL$15-$H21))) + (_C*EXP(-gamma*(BL$15-$H21 ))) ) -> 0 | BM21: =$G21/[0]!Poids * ( (A*EXP(-alpha*(BM$15-$H21))) + (B*EXP(-bêta*(BM$15-$H21))) + (_C*EXP(-gamma*(BM$15-$H21 ))) ) -> 0 | BN21: =$G21/[0]!Poids * ( (A*EXP(-alpha*(BN$15-$H21))) + (B*EXP(-bêta*(BN$15-$H21))) + (_C*EXP(-gamma*(BN$15-$H21 ))) ) -> 0 | BO21: =$G21/[0]!Poids * ( (A*EXP(-alpha*(BO$15-$H21))) + (B*EXP(-bêta*(BO$15-$H21))) + (_C*EXP(-gamma*(BO$15-$H21 ))) ) -> 0 | BP21: =$G21/[0]!Poids * ( (A*EXP(-alpha*(BP$15-$H21))) + (B*EXP(-bêta*(BP$15-$H21))) + (_C*EXP(-gamma*(BP$15-$H21 ))) ) -> 0 | BQ21: =$G21/[0]!Poids * ( (A*EXP(-alpha*(BQ$15-$H21))) + (B*EXP(-bêta*(BQ$15-$H21))) + (_C*EXP(-gamma*(BQ$15-$H21 ))) ) -> 0 | BR21: =$G21/[0]!Poids * ( (A*EXP(-alpha*(BR$15-$H21))) + (B*EXP(-bêta*(BR$15-$H21))) + (_C*EXP(-gamma*(BR$15-$H21 ))) ) -> 0
B22: bêta | C22: 0.09516666667 | E22: =C22 -> 0.09516666667 | G22: =P$10 -> 0 | H22: 30 | P22: =$G22/[0]!Poids * ( (A*EXP(-alpha*(P$15-$H22))) + (B*EXP(-bêta*(P$15-$H22))) + (_C*EXP(-gamma*(P$15-$H22 ))) ) -> 0 | Q22: =$G22/[0]!Poids * ( (A*EXP(-alpha*(Q$15-$H22))) + (B*EXP(-bêta*(Q$15-$H22))) + (_C*EXP(-gamma*(Q$15-$H22 ))) ) -> 0 | R22: =$G22/[0]!Poids * ( (A*EXP(-alpha*(R$15-$H22))) + (B*EXP(-bêta*(R$15-$H22))) + (_C*EXP(-gamma*(R$15-$H22 ))) ) -> 0 | S22: =$G22/[0]!Poids * ( (A*EXP(-alpha*(S$15-$H22))) + (B*EXP(-bêta*(S$15-$H22))) + (_C*EXP(-gamma*(S$15-$H22 ))) ) -> 0 | T22: =$G22/[0]!Poids * ( (A*EXP(-alpha*(T$15-$H22))) + (B*EXP(-bêta*(T$15-$H22))) + (_C*EXP(-gamma*(T$15-$H22 ))) ) -> 0 | U22: =$G22/[0]!Poids * ( (A*EXP(-alpha*(U$15-$H22))) + (B*EXP(-bêta*(U$15-$H22))) + (_C*EXP(-gamma*(U$15-$H22 ))) ) -> 0 | V22: =$G22/[0]!Poids * ( (A*EXP(-alpha*(V$15-$H22))) + (B*EXP(-bêta*(V$15-$H22))) + (_C*EXP(-gamma*(V$15-$H22 ))) ) -> 0 | W22: =$G22/[0]!Poids * ( (A*EXP(-alpha*(W$15-$H22))) + (B*EXP(-bêta*(W$15-$H22))) + (_C*EXP(-gamma*(W$15-$H22 ))) ) -> 0 | X22: =$G22/[0]!Poids * ( (A*EXP(-alpha*(X$15-$H22))) + (B*EXP(-bêta*(X$15-$H22))) + (_C*EXP(-gamma*(X$15-$H22 ))) ) -> 0 | Y22: =$G22/[0]!Poids * ( (A*EXP(-alpha*(Y$15-$H22))) + (B*EXP(-bêta*(Y$15-$H22))) + (_C*EXP(-gamma*(Y$15-$H22 ))) ) -> 0 | Z22: =$G22/[0]!Poids * ( (A*EXP(-alpha*(Z$15-$H22))) + (B*EXP(-bêta*(Z$15-$H22))) + (_C*EXP(-gamma*(Z$15-$H22 ))) ) -> 0 | AA22: =$G22/[0]!Poids * ( (A*EXP(-alpha*(AA$15-$H22))) + (B*EXP(-bêta*(AA$15-$H22))) + (_C*EXP(-gamma*(AA$15-$H22 ))) ) -> 0 | AB22: =$G22/[0]!Poids * ( (A*EXP(-alpha*(AB$15-$H22))) + (B*EXP(-bêta*(AB$15-$H22))) + (_C*EXP(-gamma*(AB$15-$H22 ))) ) -> 0 | AC22: =$G22/[0]!Poids * ( (A*EXP(-alpha*(AC$15-$H22))) + (B*EXP(-bêta*(AC$15-$H22))) + (_C*EXP(-gamma*(AC$15-$H22 ))) ) -> 0 | AD22: =$G22/[0]!Poids * ( (A*EXP(-alpha*(AD$15-$H22))) + (B*EXP(-bêta*(AD$15-$H22))) + (_C*EXP(-gamma*(AD$15-$H22 ))) ) -> 0 | AE22: =$G22/[0]!Poids * ( (A*EXP(-alpha*(AE$15-$H22))) + (B*EXP(-bêta*(AE$15-$H22))) + (_C*EXP(-gamma*(AE$15-$H22 ))) ) -> 0 | AF22: =$G22/[0]!Poids * ( (A*EXP(-alpha*(AF$15-$H22))) + (B*EXP(-bêta*(AF$15-$H22))) + (_C*EXP(-gamma*(AF$15-$H22 ))) ) -> 0 | AG22: =$G22/[0]!Poids * ( (A*EXP(-alpha*(AG$15-$H22))) + (B*EXP(-bêta*(AG$15-$H22))) + (_C*EXP(-gamma*(AG$15-$H22 ))) ) -> 0 | AH22: =$G22/[0]!Poids * ( (A*EXP(-alpha*(AH$15-$H22))) + (B*EXP(-bêta*(AH$15-$H22))) + (_C*EXP(-gamma*(AH$15-$H22 ))) ) -> 0 | AI22: =$G22/[0]!Poids * ( (A*EXP(-alpha*(AI$15-$H22))) + (B*EXP(-bêta*(AI$15-$H22))) + (_C*EXP(-gamma*(AI$15-$H22 ))) ) -> 0 | AJ22: =$G22/[0]!Poids * ( (A*EXP(-alpha*(AJ$15-$H22))) + (B*EXP(-bêta*(AJ$15-$H22))) + (_C*EXP(-gamma*(AJ$15-$H22 ))) ) -> 0 | AK22: =$G22/[0]!Poids * ( (A*EXP(-alpha*(AK$15-$H22))) + (B*EXP(-bêta*(AK$15-$H22))) + (_C*EXP(-gamma*(AK$15-$H22 ))) ) -> 0 | AL22: =$G22/[0]!Poids * ( (A*EXP(-alpha*(AL$15-$H22))) + (B*EXP(-bêta*(AL$15-$H22))) + (_C*EXP(-gamma*(AL$15-$H22 ))) ) -> 0 | AM22: =$G22/[0]!Poids * ( (A*EXP(-alpha*(AM$15-$H22))) + (B*EXP(-bêta*(AM$15-$H22))) + (_C*EXP(-gamma*(AM$15-$H22 ))) ) -> 0 | AN22: =$G22/[0]!Poids * ( (A*EXP(-alpha*(AN$15-$H22))) + (B*EXP(-bêta*(AN$15-$H22))) + (_C*EXP(-gamma*(AN$15-$H22 ))) ) -> 0 | AO22: =$G22/[0]!Poids * ( (A*EXP(-alpha*(AO$15-$H22))) + (B*EXP(-bêta*(AO$15-$H22))) + (_C*EXP(-gamma*(AO$15-$H22 ))) ) -> 0 | AP22: =$G22/[0]!Poids * ( (A*EXP(-alpha*(AP$15-$H22))) + (B*EXP(-bêta*(AP$15-$H22))) + (_C*EXP(-gamma*(AP$15-$H22 ))) ) -> 0 | AQ22: =$G22/[0]!Poids * ( (A*EXP(-alpha*(AQ$15-$H22))) + (B*EXP(-bêta*(AQ$15-$H22))) + (_C*EXP(-gamma*(AQ$15-$H22 ))) ) -> 0 | AR22: =$G22/[0]!Poids * ( (A*EXP(-alpha*(AR$15-$H22))) + (B*EXP(-bêta*(AR$15-$H22))) + (_C*EXP(-gamma*(AR$15-$H22 ))) ) -> 0 | AS22: =$G22/[0]!Poids * ( (A*EXP(-alpha*(AS$15-$H22))) + (B*EXP(-bêta*(AS$15-$H22))) + (_C*EXP(-gamma*(AS$15-$H22 ))) ) -> 0 | AT22: =$G22/[0]!Poids * ( (A*EXP(-alpha*(AT$15-$H22))) + (B*EXP(-bêta*(AT$15-$H22))) + (_C*EXP(-gamma*(AT$15-$H22 ))) ) -> 0 | AU22: =$G22/[0]!Poids * ( (A*EXP(-alpha*(AU$15-$H22))) + (B*EXP(-bêta*(AU$15-$H22))) + (_C*EXP(-gamma*(AU$15-$H22 ))) ) -> 0 | AV22: =$G22/[0]!Poids * ( (A*EXP(-alpha*(AV$15-$H22))) + (B*EXP(-bêta*(AV$15-$H22))) + (_C*EXP(-gamma*(AV$15-$H22 ))) ) -> 0 | AW22: =$G22/[0]!Poids * ( (A*EXP(-alpha*(AW$15-$H22))) + (B*EXP(-bêta*(AW$15-$H22))) + (_C*EXP(-gamma*(AW$15-$H22 ))) ) -> 0 | AX22: =$G22/[0]!Poids * ( (A*EXP(-alpha*(AX$15-$H22))) + (B*EXP(-bêta*(AX$15-$H22))) + (_C*EXP(-gamma*(AX$15-$H22 ))) ) -> 0 | AY22: =$G22/[0]!Poids * ( (A*EXP(-alpha*(AY$15-$H22))) + (B*EXP(-bêta*(AY$15-$H22))) + (_C*EXP(-gamma*(AY$15-$H22 ))) ) -> 0 | AZ22: =$G22/[0]!Poids * ( (A*EXP(-alpha*(AZ$15-$H22))) + (B*EXP(-bêta*(AZ$15-$H22))) + (_C*EXP(-gamma*(AZ$15-$H22 ))) ) -> 0 | BA22: =$G22/[0]!Poids * ( (A*EXP(-alpha*(BA$15-$H22))) + (B*EXP(-bêta*(BA$15-$H22))) + (_C*EXP(-gamma*(BA$15-$H22 ))) ) -> 0 | BB22: =$G22/[0]!Poids * ( (A*EXP(-alpha*(BB$15-$H22))) + (B*EXP(-bêta*(BB$15-$H22))) + (_C*EXP(-gamma*(BB$15-$H22 ))) ) -> 0 | BC22: =$G22/[0]!Poids * ( (A*EXP(-alpha*(BC$15-$H22))) + (B*EXP(-bêta*(BC$15-$H22))) + (_C*EXP(-gamma*(BC$15-$H22 ))) ) -> 0 | BD22: =$G22/[0]!Poids * ( (A*EXP(-alpha*(BD$15-$H22))) + (B*EXP(-bêta*(BD$15-$H22))) + (_C*EXP(-gamma*(BD$15-$H22 ))) ) -> 0 | BE22: =$G22/[0]!Poids * ( (A*EXP(-alpha*(BE$15-$H22))) + (B*EXP(-bêta*(BE$15-$H22))) + (_C*EXP(-gamma*(BE$15-$H22 ))) ) -> 0 | BF22: =$G22/[0]!Poids * ( (A*EXP(-alpha*(BF$15-$H22))) + (B*EXP(-bêta*(BF$15-$H22))) + (_C*EXP(-gamma*(BF$15-$H22 ))) ) -> 0 | BG22: =$G22/[0]!Poids * ( (A*EXP(-alpha*(BG$15-$H22))) + (B*EXP(-bêta*(BG$15-$H22))) + (_C*EXP(-gamma*(BG$15-$H22 ))) ) -> 0 | BH22: =$G22/[0]!Poids * ( (A*EXP(-alpha*(BH$15-$H22))) + (B*EXP(-bêta*(BH$15-$H22))) + (_C*EXP(-gamma*(BH$15-$H22 ))) ) -> 0 | BI22: =$G22/[0]!Poids * ( (A*EXP(-alpha*(BI$15-$H22))) + (B*EXP(-bêta*(BI$15-$H22))) + (_C*EXP(-gamma*(BI$15-$H22 ))) ) -> 0 | BJ22: =$G22/[0]!Poids * ( (A*EXP(-alpha*(BJ$15-$H22))) + (B*EXP(-bêta*(BJ$15-$H22))) + (_C*EXP(-gamma*(BJ$15-$H22 ))) ) -> 0 | BK22: =$G22/[0]!Poids * ( (A*EXP(-alpha*(BK$15-$H22))) + (B*EXP(-bêta*(BK$15-$H22))) + (_C*EXP(-gamma*(BK$15-$H22 ))) ) -> 0 | BL22: =$G22/[0]!Poids * ( (A*EXP(-alpha*(BL$15-$H22))) + (B*EXP(-bêta*(BL$15-$H22))) + (_C*EXP(-gamma*(BL$15-$H22 ))) ) -> 0 | BM22: =$G22/[0]!Poids * ( (A*EXP(-alpha*(BM$15-$H22))) + (B*EXP(-bêta*(BM$15-$H22))) + (_C*EXP(-gamma*(BM$15-$H22 ))) ) -> 0 | BN22: =$G22/[0]!Poids * ( (A*EXP(-alpha*(BN$15-$H22))) + (B*EXP(-bêta*(BN$15-$H22))) + (_C*EXP(-gamma*(BN$15-$H22 ))) ) -> 0 | BO22: =$G22/[0]!Poids * ( (A*EXP(-alpha*(BO$15-$H22))) + (B*EXP(-bêta*(BO$15-$H22))) + (_C*EXP(-gamma*(BO$15-$H22 ))) ) -> 0 | BP22: =$G22/[0]!Poids * ( (A*EXP(-alpha*(BP$15-$H22))) + (B*EXP(-bêta*(BP$15-$H22))) + (_C*EXP(-gamma*(BP$15-$H22 ))) ) -> 0 | BQ22: =$G22/[0]!Poids * ( (A*EXP(-alpha*(BQ$15-$H22))) + (B*EXP(-bêta*(BQ$15-$H22))) + (_C*EXP(-gamma*(BQ$15-$H22 ))) ) -> 0 | BR22: =$G22/[0]!Poids * ( (A*EXP(-alpha*(BR$15-$H22))) + (B*EXP(-bêta*(BR$15-$H22))) + (_C*EXP(-gamma*(BR$15-$H22 ))) ) -> 0
B23: gamma | C23: 0.003783333333 | E23: 0.003783333333 | G23: =Q$10 -> 0 | H23: 35 | Q23: =$G23/[0]!Poids * ( (A*EXP(-alpha*(Q$15-$H23))) + (B*EXP(-bêta*(Q$15-$H23))) + (_C*EXP(-gamma*(Q$15-$H23 ))) ) -> 0 | R23: =$G23/[0]!Poids * ( (A*EXP(-alpha*(R$15-$H23))) + (B*EXP(-bêta*(R$15-$H23))) + (_C*EXP(-gamma*(R$15-$H23 ))) ) -> 0 | S23: =$G23/[0]!Poids * ( (A*EXP(-alpha*(S$15-$H23))) + (B*EXP(-bêta*(S$15-$H23))) + (_C*EXP(-gamma*(S$15-$H23 ))) ) -> 0 | T23: =$G23/[0]!Poids * ( (A*EXP(-alpha*(T$15-$H23))) + (B*EXP(-bêta*(T$15-$H23))) + (_C*EXP(-gamma*(T$15-$H23 ))) ) -> 0 | U23: =$G23/[0]!Poids * ( (A*EXP(-alpha*(U$15-$H23))) + (B*EXP(-bêta*(U$15-$H23))) + (_C*EXP(-gamma*(U$15-$H23 ))) ) -> 0 | V23: =$G23/[0]!Poids * ( (A*EXP(-alpha*(V$15-$H23))) + (B*EXP(-bêta*(V$15-$H23))) + (_C*EXP(-gamma*(V$15-$H23 ))) ) -> 0 | W23: =$G23/[0]!Poids * ( (A*EXP(-alpha*(W$15-$H23))) + (B*EXP(-bêta*(W$15-$H23))) + (_C*EXP(-gamma*(W$15-$H23 ))) ) -> 0 | X23: =$G23/[0]!Poids * ( (A*EXP(-alpha*(X$15-$H23))) + (B*EXP(-bêta*(X$15-$H23))) + (_C*EXP(-gamma*(X$15-$H23 ))) ) -> 0 | Y23: =$G23/[0]!Poids * ( (A*EXP(-alpha*(Y$15-$H23))) + (B*EXP(-bêta*(Y$15-$H23))) + (_C*EXP(-gamma*(Y$15-$H23 ))) ) -> 0 | Z23: =$G23/[0]!Poids * ( (A*EXP(-alpha*(Z$15-$H23))) + (B*EXP(-bêta*(Z$15-$H23))) + (_C*EXP(-gamma*(Z$15-$H23 ))) ) -> 0 | AA23: =$G23/[0]!Poids * ( (A*EXP(-alpha*(AA$15-$H23))) + (B*EXP(-bêta*(AA$15-$H23))) + (_C*EXP(-gamma*(AA$15-$H23 ))) ) -> 0 | AB23: =$G23/[0]!Poids * ( (A*EXP(-alpha*(AB$15-$H23))) + (B*EXP(-bêta*(AB$15-$H23))) + (_C*EXP(-gamma*(AB$15-$H23 ))) ) -> 0 | AC23: =$G23/[0]!Poids * ( (A*EXP(-alpha*(AC$15-$H23))) + (B*EXP(-bêta*(AC$15-$H23))) + (_C*EXP(-gamma*(AC$15-$H23 ))) ) -> 0 | AD23: =$G23/[0]!Poids * ( (A*EXP(-alpha*(AD$15-$H23))) + (B*EXP(-bêta*(AD$15-$H23))) + (_C*EXP(-gamma*(AD$15-$H23 ))) ) -> 0 | AE23: =$G23/[0]!Poids * ( (A*EXP(-alpha*(AE$15-$H23))) + (B*EXP(-bêta*(AE$15-$H23))) + (_C*EXP(-gamma*(AE$15-$H23 ))) ) -> 0 | AF23: =$G23/[0]!Poids * ( (A*EXP(-alpha*(AF$15-$H23))) + (B*EXP(-bêta*(AF$15-$H23))) + (_C*EXP(-gamma*(AF$15-$H23 ))) ) -> 0 | AG23: =$G23/[0]!Poids * ( (A*EXP(-alpha*(AG$15-$H23))) + (B*EXP(-bêta*(AG$15-$H23))) + (_C*EXP(-gamma*(AG$15-$H23 ))) ) -> 0 | AH23: =$G23/[0]!Poids * ( (A*EXP(-alpha*(AH$15-$H23))) + (B*EXP(-bêta*(AH$15-$H23))) + (_C*EXP(-gamma*(AH$15-$H23 ))) ) -> 0 | AI23: =$G23/[0]!Poids * ( (A*EXP(-alpha*(AI$15-$H23))) + (B*EXP(-bêta*(AI$15-$H23))) + (_C*EXP(-gamma*(AI$15-$H23 ))) ) -> 0 | AJ23: =$G23/[0]!Poids * ( (A*EXP(-alpha*(AJ$15-$H23))) + (B*EXP(-bêta*(AJ$15-$H23))) + (_C*EXP(-gamma*(AJ$15-$H23 ))) ) -> 0 | AK23: =$G23/[0]!Poids * ( (A*EXP(-alpha*(AK$15-$H23))) + (B*EXP(-bêta*(AK$15-$H23))) + (_C*EXP(-gamma*(AK$15-$H23 ))) ) -> 0 | AL23: =$G23/[0]!Poids * ( (A*EXP(-alpha*(AL$15-$H23))) + (B*EXP(-bêta*(AL$15-$H23))) + (_C*EXP(-gamma*(AL$15-$H23 ))) ) -> 0 | AM23: =$G23/[0]!Poids * ( (A*EXP(-alpha*(AM$15-$H23))) + (B*EXP(-bêta*(AM$15-$H23))) + (_C*EXP(-gamma*(AM$15-$H23 ))) ) -> 0 | AN23: =$G23/[0]!Poids * ( (A*EXP(-alpha*(AN$15-$H23))) + (B*EXP(-bêta*(AN$15-$H23))) + (_C*EXP(-gamma*(AN$15-$H23 ))) ) -> 0 | AO23: =$G23/[0]!Poids * ( (A*EXP(-alpha*(AO$15-$H23))) + (B*EXP(-bêta*(AO$15-$H23))) + (_C*EXP(-gamma*(AO$15-$H23 ))) ) -> 0 | AP23: =$G23/[0]!Poids * ( (A*EXP(-alpha*(AP$15-$H23))) + (B*EXP(-bêta*(AP$15-$H23))) + (_C*EXP(-gamma*(AP$15-$H23 ))) ) -> 0 | AQ23: =$G23/[0]!Poids * ( (A*EXP(-alpha*(AQ$15-$H23))) + (B*EXP(-bêta*(AQ$15-$H23))) + (_C*EXP(-gamma*(AQ$15-$H23 ))) ) -> 0 | AR23: =$G23/[0]!Poids * ( (A*EXP(-alpha*(AR$15-$H23))) + (B*EXP(-bêta*(AR$15-$H23))) + (_C*EXP(-gamma*(AR$15-$H23 ))) ) -> 0 | AS23: =$G23/[0]!Poids * ( (A*EXP(-alpha*(AS$15-$H23))) + (B*EXP(-bêta*(AS$15-$H23))) + (_C*EXP(-gamma*(AS$15-$H23 ))) ) -> 0 | AT23: =$G23/[0]!Poids * ( (A*EXP(-alpha*(AT$15-$H23))) + (B*EXP(-bêta*(AT$15-$H23))) + (_C*EXP(-gamma*(AT$15-$H23 ))) ) -> 0 | AU23: =$G23/[0]!Poids * ( (A*EXP(-alpha*(AU$15-$H23))) + (B*EXP(-bêta*(AU$15-$H23))) + (_C*EXP(-gamma*(AU$15-$H23 ))) ) -> 0 | AV23: =$G23/[0]!Poids * ( (A*EXP(-alpha*(AV$15-$H23))) + (B*EXP(-bêta*(AV$15-$H23))) + (_C*EXP(-gamma*(AV$15-$H23 ))) ) -> 0 | AW23: =$G23/[0]!Poids * ( (A*EXP(-alpha*(AW$15-$H23))) + (B*EXP(-bêta*(AW$15-$H23))) + (_C*EXP(-gamma*(AW$15-$H23 ))) ) -> 0 | AX23: =$G23/[0]!Poids * ( (A*EXP(-alpha*(AX$15-$H23))) + (B*EXP(-bêta*(AX$15-$H23))) + (_C*EXP(-gamma*(AX$15-$H23 ))) ) -> 0 | AY23: =$G23/[0]!Poids * ( (A*EXP(-alpha*(AY$15-$H23))) + (B*EXP(-bêta*(AY$15-$H23))) + (_C*EXP(-gamma*(AY$15-$H23 ))) ) -> 0 | AZ23: =$G23/[0]!Poids * ( (A*EXP(-alpha*(AZ$15-$H23))) + (B*EXP(-bêta*(AZ$15-$H23))) + (_C*EXP(-gamma*(AZ$15-$H23 ))) ) -> 0 | BA23: =$G23/[0]!Poids * ( (A*EXP(-alpha*(BA$15-$H23))) + (B*EXP(-bêta*(BA$15-$H23))) + (_C*EXP(-gamma*(BA$15-$H23 ))) ) -> 0 | BB23: =$G23/[0]!Poids * ( (A*EXP(-alpha*(BB$15-$H23))) + (B*EXP(-bêta*(BB$15-$H23))) + (_C*EXP(-gamma*(BB$15-$H23 ))) ) -> 0 | BC23: =$G23/[0]!Poids * ( (A*EXP(-alpha*(BC$15-$H23))) + (B*EXP(-bêta*(BC$15-$H23))) + (_C*EXP(-gamma*(BC$15-$H23 ))) ) -> 0 | BD23: =$G23/[0]!Poids * ( (A*EXP(-alpha*(BD$15-$H23))) + (B*EXP(-bêta*(BD$15-$H23))) + (_C*EXP(-gamma*(BD$15-$H23 ))) ) -> 0 | BE23: =$G23/[0]!Poids * ( (A*EXP(-alpha*(BE$15-$H23))) + (B*EXP(-bêta*(BE$15-$H23))) + (_C*EXP(-gamma*(BE$15-$H23 ))) ) -> 0 | BF23: =$G23/[0]!Poids * ( (A*EXP(-alpha*(BF$15-$H23))) + (B*EXP(-bêta*(BF$15-$H23))) + (_C*EXP(-gamma*(BF$15-$H23 ))) ) -> 0 | BG23: =$G23/[0]!Poids * ( (A*EXP(-alpha*(BG$15-$H23))) + (B*EXP(-bêta*(BG$15-$H23))) + (_C*EXP(-gamma*(BG$15-$H23 ))) ) -> 0 | BH23: =$G23/[0]!Poids * ( (A*EXP(-alpha*(BH$15-$H23))) + (B*EXP(-bêta*(BH$15-$H23))) + (_C*EXP(-gamma*(BH$15-$H23 ))) ) -> 0 | BI23: =$G23/[0]!Poids * ( (A*EXP(-alpha*(BI$15-$H23))) + (B*EXP(-bêta*(BI$15-$H23))) + (_C*EXP(-gamma*(BI$15-$H23 ))) ) -> 0 | BJ23: =$G23/[0]!Poids * ( (A*EXP(-alpha*(BJ$15-$H23))) + (B*EXP(-bêta*(BJ$15-$H23))) + (_C*EXP(-gamma*(BJ$15-$H23 ))) ) -> 0 | BK23: =$G23/[0]!Poids * ( (A*EXP(-alpha*(BK$15-$H23))) + (B*EXP(-bêta*(BK$15-$H23))) + (_C*EXP(-gamma*(BK$15-$H23 ))) ) -> 0 | BL23: =$G23/[0]!Poids * ( (A*EXP(-alpha*(BL$15-$H23))) + (B*EXP(-bêta*(BL$15-$H23))) + (_C*EXP(-gamma*(BL$15-$H23 ))) ) -> 0 | BM23: =$G23/[0]!Poids * ( (A*EXP(-alpha*(BM$15-$H23))) + (B*EXP(-bêta*(BM$15-$H23))) + (_C*EXP(-gamma*(BM$15-$H23 ))) ) -> 0 | BN23: =$G23/[0]!Poids * ( (A*EXP(-alpha*(BN$15-$H23))) + (B*EXP(-bêta*(BN$15-$H23))) + (_C*EXP(-gamma*(BN$15-$H23 ))) ) -> 0 | BO23: =$G23/[0]!Poids * ( (A*EXP(-alpha*(BO$15-$H23))) + (B*EXP(-bêta*(BO$15-$H23))) + (_C*EXP(-gamma*(BO$15-$H23 ))) ) -> 0 | BP23: =$G23/[0]!Poids * ( (A*EXP(-alpha*(BP$15-$H23))) + (B*EXP(-bêta*(BP$15-$H23))) + (_C*EXP(-gamma*(BP$15-$H23 ))) ) -> 0 | BQ23: =$G23/[0]!Poids * ( (A*EXP(-alpha*(BQ$15-$H23))) + (B*EXP(-bêta*(BQ$15-$H23))) + (_C*EXP(-gamma*(BQ$15-$H23 ))) ) -> 0 | BR23: =$G23/[0]!Poids * ( (A*EXP(-alpha*(BR$15-$H23))) + (B*EXP(-bêta*(BR$15-$H23))) + (_C*EXP(-gamma*(BR$15-$H23 ))) ) -> 0
G24: =R$10 -> 0 | H24: 40 | R24: =$G24/[0]!Poids * ( (A*EXP(-alpha*(R$15-$H24))) + (B*EXP(-bêta*(R$15-$H24))) + (_C*EXP(-gamma*(R$15-$H24 ))) ) -> 0 | S24: =$G24/[0]!Poids * ( (A*EXP(-alpha*(S$15-$H24))) + (B*EXP(-bêta*(S$15-$H24))) + (_C*EXP(-gamma*(S$15-$H24 ))) ) -> 0 | T24: =$G24/[0]!Poids * ( (A*EXP(-alpha*(T$15-$H24))) + (B*EXP(-bêta*(T$15-$H24))) + (_C*EXP(-gamma*(T$15-$H24 ))) ) -> 0 | U24: =$G24/[0]!Poids * ( (A*EXP(-alpha*(U$15-$H24))) + (B*EXP(-bêta*(U$15-$H24))) + (_C*EXP(-gamma*(U$15-$H24 ))) ) -> 0 | V24: =$G24/[0]!Poids * ( (A*EXP(-alpha*(V$15-$H24))) + (B*EXP(-bêta*(V$15-$H24))) + (_C*EXP(-gamma*(V$15-$H24 ))) ) -> 0 | W24: =$G24/[0]!Poids * ( (A*EXP(-alpha*(W$15-$H24))) + (B*EXP(-bêta*(W$15-$H24))) + (_C*EXP(-gamma*(W$15-$H24 ))) ) -> 0 | X24: =$G24/[0]!Poids * ( (A*EXP(-alpha*(X$15-$H24))) + (B*EXP(-bêta*(X$15-$H24))) + (_C*EXP(-gamma*(X$15-$H24 ))) ) -> 0 | Y24: =$G24/[0]!Poids * ( (A*EXP(-alpha*(Y$15-$H24))) + (B*EXP(-bêta*(Y$15-$H24))) + (_C*EXP(-gamma*(Y$15-$H24 ))) ) -> 0 | Z24: =$G24/[0]!Poids * ( (A*EXP(-alpha*(Z$15-$H24))) + (B*EXP(-bêta*(Z$15-$H24))) + (_C*EXP(-gamma*(Z$15-$H24 ))) ) -> 0 | AA24: =$G24/[0]!Poids * ( (A*EXP(-alpha*(AA$15-$H24))) + (B*EXP(-bêta*(AA$15-$H24))) + (_C*EXP(-gamma*(AA$15-$H24 ))) ) -> 0 | AB24: =$G24/[0]!Poids * ( (A*EXP(-alpha*(AB$15-$H24))) + (B*EXP(-bêta*(AB$15-$H24))) + (_C*EXP(-gamma*(AB$15-$H24 ))) ) -> 0 | AC24: =$G24/[0]!Poids * ( (A*EXP(-alpha*(AC$15-$H24))) + (B*EXP(-bêta*(AC$15-$H24))) + (_C*EXP(-gamma*(AC$15-$H24 ))) ) -> 0 | AD24: =$G24/[0]!Poids * ( (A*EXP(-alpha*(AD$15-$H24))) + (B*EXP(-bêta*(AD$15-$H24))) + (_C*EXP(-gamma*(AD$15-$H24 ))) ) -> 0 | AE24: =$G24/[0]!Poids * ( (A*EXP(-alpha*(AE$15-$H24))) + (B*EXP(-bêta*(AE$15-$H24))) + (_C*EXP(-gamma*(AE$15-$H24 ))) ) -> 0 | AF24: =$G24/[0]!Poids * ( (A*EXP(-alpha*(AF$15-$H24))) + (B*EXP(-bêta*(AF$15-$H24))) + (_C*EXP(-gamma*(AF$15-$H24 ))) ) -> 0 | AG24: =$G24/[0]!Poids * ( (A*EXP(-alpha*(AG$15-$H24))) + (B*EXP(-bêta*(AG$15-$H24))) + (_C*EXP(-gamma*(AG$15-$H24 ))) ) -> 0 | AH24: =$G24/[0]!Poids * ( (A*EXP(-alpha*(AH$15-$H24))) + (B*EXP(-bêta*(AH$15-$H24))) + (_C*EXP(-gamma*(AH$15-$H24 ))) ) -> 0 | AI24: =$G24/[0]!Poids * ( (A*EXP(-alpha*(AI$15-$H24))) + (B*EXP(-bêta*(AI$15-$H24))) + (_C*EXP(-gamma*(AI$15-$H24 ))) ) -> 0 | AJ24: =$G24/[0]!Poids * ( (A*EXP(-alpha*(AJ$15-$H24))) + (B*EXP(-bêta*(AJ$15-$H24))) + (_C*EXP(-gamma*(AJ$15-$H24 ))) ) -> 0 | AK24: =$G24/[0]!Poids * ( (A*EXP(-alpha*(AK$15-$H24))) + (B*EXP(-bêta*(AK$15-$H24))) + (_C*EXP(-gamma*(AK$15-$H24 ))) ) -> 0 | AL24: =$G24/[0]!Poids * ( (A*EXP(-alpha*(AL$15-$H24))) + (B*EXP(-bêta*(AL$15-$H24))) + (_C*EXP(-gamma*(AL$15-$H24 ))) ) -> 0 | AM24: =$G24/[0]!Poids * ( (A*EXP(-alpha*(AM$15-$H24))) + (B*EXP(-bêta*(AM$15-$H24))) + (_C*EXP(-gamma*(AM$15-$H24 ))) ) -> 0 | AN24: =$G24/[0]!Poids * ( (A*EXP(-alpha*(AN$15-$H24))) + (B*EXP(-bêta*(AN$15-$H24))) + (_C*EXP(-gamma*(AN$15-$H24 ))) ) -> 0 | AO24: =$G24/[0]!Poids * ( (A*EXP(-alpha*(AO$15-$H24))) + (B*EXP(-bêta*(AO$15-$H24))) + (_C*EXP(-gamma*(AO$15-$H24 ))) ) -> 0 | AP24: =$G24/[0]!Poids * ( (A*EXP(-alpha*(AP$15-$H24))) + (B*EXP(-bêta*(AP$15-$H24))) + (_C*EXP(-gamma*(AP$15-$H24 ))) ) -> 0 | AQ24: =$G24/[0]!Poids * ( (A*EXP(-alpha*(AQ$15-$H24))) + (B*EXP(-bêta*(AQ$15-$H24))) + (_C*EXP(-gamma*(AQ$15-$H24 ))) ) -> 0 | AR24: =$G24/[0]!Poids * ( (A*EXP(-alpha*(AR$15-$H24))) + (B*EXP(-bêta*(AR$15-$H24))) + (_C*EXP(-gamma*(AR$15-$H24 ))) ) -> 0 | AS24: =$G24/[0]!Poids * ( (A*EXP(-alpha*(AS$15-$H24))) + (B*EXP(-bêta*(AS$15-$H24))) + (_C*EXP(-gamma*(AS$15-$H24 ))) ) -> 0 | AT24: =$G24/[0]!Poids * ( (A*EXP(-alpha*(AT$15-$H24))) + (B*EXP(-bêta*(AT$15-$H24))) + (_C*EXP(-gamma*(AT$15-$H24 ))) ) -> 0 | AU24: =$G24/[0]!Poids * ( (A*EXP(-alpha*(AU$15-$H24))) + (B*EXP(-bêta*(AU$15-$H24))) + (_C*EXP(-gamma*(AU$15-$H24 ))) ) -> 0 | AV24: =$G24/[0]!Poids * ( (A*EXP(-alpha*(AV$15-$H24))) + (B*EXP(-bêta*(AV$15-$H24))) + (_C*EXP(-gamma*(AV$15-$H24 ))) ) -> 0 | AW24: =$G24/[0]!Poids * ( (A*EXP(-alpha*(AW$15-$H24))) + (B*EXP(-bêta*(AW$15-$H24))) + (_C*EXP(-gamma*(AW$15-$H24 ))) ) -> 0 | AX24: =$G24/[0]!Poids * ( (A*EXP(-alpha*(AX$15-$H24))) + (B*EXP(-bêta*(AX$15-$H24))) + (_C*EXP(-gamma*(AX$15-$H24 ))) ) -> 0 | AY24: =$G24/[0]!Poids * ( (A*EXP(-alpha*(AY$15-$H24))) + (B*EXP(-bêta*(AY$15-$H24))) + (_C*EXP(-gamma*(AY$15-$H24 ))) ) -> 0 | AZ24: =$G24/[0]!Poids * ( (A*EXP(-alpha*(AZ$15-$H24))) + (B*EXP(-bêta*(AZ$15-$H24))) + (_C*EXP(-gamma*(AZ$15-$H24 ))) ) -> 0 | BA24: =$G24/[0]!Poids * ( (A*EXP(-alpha*(BA$15-$H24))) + (B*EXP(-bêta*(BA$15-$H24))) + (_C*EXP(-gamma*(BA$15-$H24 ))) ) -> 0 | BB24: =$G24/[0]!Poids * ( (A*EXP(-alpha*(BB$15-$H24))) + (B*EXP(-bêta*(BB$15-$H24))) + (_C*EXP(-gamma*(BB$15-$H24 ))) ) -> 0 | BC24: =$G24/[0]!Poids * ( (A*EXP(-alpha*(BC$15-$H24))) + (B*EXP(-bêta*(BC$15-$H24))) + (_C*EXP(-gamma*(BC$15-$H24 ))) ) -> 0 | BD24: =$G24/[0]!Poids * ( (A*EXP(-alpha*(BD$15-$H24))) + (B*EXP(-bêta*(BD$15-$H24))) + (_C*EXP(-gamma*(BD$15-$H24 ))) ) -> 0 | BE24: =$G24/[0]!Poids * ( (A*EXP(-alpha*(BE$15-$H24))) + (B*EXP(-bêta*(BE$15-$H24))) + (_C*EXP(-gamma*(BE$15-$H24 ))) ) -> 0 | BF24: =$G24/[0]!Poids * ( (A*EXP(-alpha*(BF$15-$H24))) + (B*EXP(-bêta*(BF$15-$H24))) + (_C*EXP(-gamma*(BF$15-$H24 ))) ) -> 0 | BG24: =$G24/[0]!Poids * ( (A*EXP(-alpha*(BG$15-$H24))) + (B*EXP(-bêta*(BG$15-$H24))) + (_C*EXP(-gamma*(BG$15-$H24 ))) ) -> 0 | BH24: =$G24/[0]!Poids * ( (A*EXP(-alpha*(BH$15-$H24))) + (B*EXP(-bêta*(BH$15-$H24))) + (_C*EXP(-gamma*(BH$15-$H24 ))) ) -> 0 | BI24: =$G24/[0]!Poids * ( (A*EXP(-alpha*(BI$15-$H24))) + (B*EXP(-bêta*(BI$15-$H24))) + (_C*EXP(-gamma*(BI$15-$H24 ))) ) -> 0 | BJ24: =$G24/[0]!Poids * ( (A*EXP(-alpha*(BJ$15-$H24))) + (B*EXP(-bêta*(BJ$15-$H24))) + (_C*EXP(-gamma*(BJ$15-$H24 ))) ) -> 0 | BK24: =$G24/[0]!Poids * ( (A*EXP(-alpha*(BK$15-$H24))) + (B*EXP(-bêta*(BK$15-$H24))) + (_C*EXP(-gamma*(BK$15-$H24 ))) ) -> 0 | BL24: =$G24/[0]!Poids * ( (A*EXP(-alpha*(BL$15-$H24))) + (B*EXP(-bêta*(BL$15-$H24))) + (_C*EXP(-gamma*(BL$15-$H24 ))) ) -> 0 | BM24: =$G24/[0]!Poids * ( (A*EXP(-alpha*(BM$15-$H24))) + (B*EXP(-bêta*(BM$15-$H24))) + (_C*EXP(-gamma*(BM$15-$H24 ))) ) -> 0 | BN24: =$G24/[0]!Poids * ( (A*EXP(-alpha*(BN$15-$H24))) + (B*EXP(-bêta*(BN$15-$H24))) + (_C*EXP(-gamma*(BN$15-$H24 ))) ) -> 0 | BO24: =$G24/[0]!Poids * ( (A*EXP(-alpha*(BO$15-$H24))) + (B*EXP(-bêta*(BO$15-$H24))) + (_C*EXP(-gamma*(BO$15-$H24 ))) ) -> 0 | BP24: =$G24/[0]!Poids * ( (A*EXP(-alpha*(BP$15-$H24))) + (B*EXP(-bêta*(BP$15-$H24))) + (_C*EXP(-gamma*(BP$15-$H24 ))) ) -> 0 | BQ24: =$G24/[0]!Poids * ( (A*EXP(-alpha*(BQ$15-$H24))) + (B*EXP(-bêta*(BQ$15-$H24))) + (_C*EXP(-gamma*(BQ$15-$H24 ))) ) -> 0 | BR24: =$G24/[0]!Poids * ( (A*EXP(-alpha*(BR$15-$H24))) + (B*EXP(-bêta*(BR$15-$H24))) + (_C*EXP(-gamma*(BR$15-$H24 ))) ) -> 0
E25: POIDS | G25: =S$10 -> 0 | H25: 45 | S25: =$G25/[0]!Poids * ( (A*EXP(-alpha*(S$15-$H25))) + (B*EXP(-bêta*(S$15-$H25))) + (_C*EXP(-gamma*(S$15-$H25 ))) ) -> 0 | T25: =$G25/[0]!Poids * ( (A*EXP(-alpha*(T$15-$H25))) + (B*EXP(-bêta*(T$15-$H25))) + (_C*EXP(-gamma*(T$15-$H25 ))) ) -> 0 | U25: =$G25/[0]!Poids * ( (A*EXP(-alpha*(U$15-$H25))) + (B*EXP(-bêta*(U$15-$H25))) + (_C*EXP(-gamma*(U$15-$H25 ))) ) -> 0 | V25: =$G25/[0]!Poids * ( (A*EXP(-alpha*(V$15-$H25))) + (B*EXP(-bêta*(V$15-$H25))) + (_C*EXP(-gamma*(V$15-$H25 ))) ) -> 0 | W25: =$G25/[0]!Poids * ( (A*EXP(-alpha*(W$15-$H25))) + (B*EXP(-bêta*(W$15-$H25))) + (_C*EXP(-gamma*(W$15-$H25 ))) ) -> 0 | X25: =$G25/[0]!Poids * ( (A*EXP(-alpha*(X$15-$H25))) + (B*EXP(-bêta*(X$15-$H25))) + (_C*EXP(-gamma*(X$15-$H25 ))) ) -> 0 | Y25: =$G25/[0]!Poids * ( (A*EXP(-alpha*(Y$15-$H25))) + (B*EXP(-bêta*(Y$15-$H25))) + (_C*EXP(-gamma*(Y$15-$H25 ))) ) -> 0 | Z25: =$G25/[0]!Poids * ( (A*EXP(-alpha*(Z$15-$H25))) + (B*EXP(-bêta*(Z$15-$H25))) + (_C*EXP(-gamma*(Z$15-$H25 ))) ) -> 0 | AA25: =$G25/[0]!Poids * ( (A*EXP(-alpha*(AA$15-$H25))) + (B*EXP(-bêta*(AA$15-$H25))) + (_C*EXP(-gamma*(AA$15-$H25 ))) ) -> 0 | AB25: =$G25/[0]!Poids * ( (A*EXP(-alpha*(AB$15-$H25))) + (B*EXP(-bêta*(AB$15-$H25))) + (_C*EXP(-gamma*(AB$15-$H25 ))) ) -> 0 | AC25: =$G25/[0]!Poids * ( (A*EXP(-alpha*(AC$15-$H25))) + (B*EXP(-bêta*(AC$15-$H25))) + (_C*EXP(-gamma*(AC$15-$H25 ))) ) -> 0 | AD25: =$G25/[0]!Poids * ( (A*EXP(-alpha*(AD$15-$H25))) + (B*EXP(-bêta*(AD$15-$H25))) + (_C*EXP(-gamma*(AD$15-$H25 ))) ) -> 0 | AE25: =$G25/[0]!Poids * ( (A*EXP(-alpha*(AE$15-$H25))) + (B*EXP(-bêta*(AE$15-$H25))) + (_C*EXP(-gamma*(AE$15-$H25 ))) ) -> 0 | AF25: =$G25/[0]!Poids * ( (A*EXP(-alpha*(AF$15-$H25))) + (B*EXP(-bêta*(AF$15-$H25))) + (_C*EXP(-gamma*(AF$15-$H25 ))) ) -> 0 | AG25: =$G25/[0]!Poids * ( (A*EXP(-alpha*(AG$15-$H25))) + (B*EXP(-bêta*(AG$15-$H25))) + (_C*EXP(-gamma*(AG$15-$H25 ))) ) -> 0 | AH25: =$G25/[0]!Poids * ( (A*EXP(-alpha*(AH$15-$H25))) + (B*EXP(-bêta*(AH$15-$H25))) + (_C*EXP(-gamma*(AH$15-$H25 ))) ) -> 0 | AI25: =$G25/[0]!Poids * ( (A*EXP(-alpha*(AI$15-$H25))) + (B*EXP(-bêta*(AI$15-$H25))) + (_C*EXP(-gamma*(AI$15-$H25 ))) ) -> 0 | AJ25: =$G25/[0]!Poids * ( (A*EXP(-alpha*(AJ$15-$H25))) + (B*EXP(-bêta*(AJ$15-$H25))) + (_C*EXP(-gamma*(AJ$15-$H25 ))) ) -> 0 | AK25: =$G25/[0]!Poids * ( (A*EXP(-alpha*(AK$15-$H25))) + (B*EXP(-bêta*(AK$15-$H25))) + (_C*EXP(-gamma*(AK$15-$H25 ))) ) -> 0 | AL25: =$G25/[0]!Poids * ( (A*EXP(-alpha*(AL$15-$H25))) + (B*EXP(-bêta*(AL$15-$H25))) + (_C*EXP(-gamma*(AL$15-$H25 ))) ) -> 0 | AM25: =$G25/[0]!Poids * ( (A*EXP(-alpha*(AM$15-$H25))) + (B*EXP(-bêta*(AM$15-$H25))) + (_C*EXP(-gamma*(AM$15-$H25 ))) ) -> 0 | AN25: =$G25/[0]!Poids * ( (A*EXP(-alpha*(AN$15-$H25))) + (B*EXP(-bêta*(AN$15-$H25))) + (_C*EXP(-gamma*(AN$15-$H25 ))) ) -> 0 | AO25: =$G25/[0]!Poids * ( (A*EXP(-alpha*(AO$15-$H25))) + (B*EXP(-bêta*(AO$15-$H25))) + (_C*EXP(-gamma*(AO$15-$H25 ))) ) -> 0 | AP25: =$G25/[0]!Poids * ( (A*EXP(-alpha*(AP$15-$H25))) + (B*EXP(-bêta*(AP$15-$H25))) + (_C*EXP(-gamma*(AP$15-$H25 ))) ) -> 0 | AQ25: =$G25/[0]!Poids * ( (A*EXP(-alpha*(AQ$15-$H25))) + (B*EXP(-bêta*(AQ$15-$H25))) + (_C*EXP(-gamma*(AQ$15-$H25 ))) ) -> 0 | AR25: =$G25/[0]!Poids * ( (A*EXP(-alpha*(AR$15-$H25))) + (B*EXP(-bêta*(AR$15-$H25))) + (_C*EXP(-gamma*(AR$15-$H25 ))) ) -> 0 | AS25: =$G25/[0]!Poids * ( (A*EXP(-alpha*(AS$15-$H25))) + (B*EXP(-bêta*(AS$15-$H25))) + (_C*EXP(-gamma*(AS$15-$H25 ))) ) -> 0 | AT25: =$G25/[0]!Poids * ( (A*EXP(-alpha*(AT$15-$H25))) + (B*EXP(-bêta*(AT$15-$H25))) + (_C*EXP(-gamma*(AT$15-$H25 ))) ) -> 0 | AU25: =$G25/[0]!Poids * ( (A*EXP(-alpha*(AU$15-$H25))) + (B*EXP(-bêta*(AU$15-$H25))) + (_C*EXP(-gamma*(AU$15-$H25 ))) ) -> 0 | AV25: =$G25/[0]!Poids * ( (A*EXP(-alpha*(AV$15-$H25))) + (B*EXP(-bêta*(AV$15-$H25))) + (_C*EXP(-gamma*(AV$15-$H25 ))) ) -> 0 | AW25: =$G25/[0]!Poids * ( (A*EXP(-alpha*(AW$15-$H25))) + (B*EXP(-bêta*(AW$15-$H25))) + (_C*EXP(-gamma*(AW$15-$H25 ))) ) -> 0 | AX25: =$G25/[0]!Poids * ( (A*EXP(-alpha*(AX$15-$H25))) + (B*EXP(-bêta*(AX$15-$H25))) + (_C*EXP(-gamma*(AX$15-$H25 ))) ) -> 0 | AY25: =$G25/[0]!Poids * ( (A*EXP(-alpha*(AY$15-$H25))) + (B*EXP(-bêta*(AY$15-$H25))) + (_C*EXP(-gamma*(AY$15-$H25 ))) ) -> 0 | AZ25: =$G25/[0]!Poids * ( (A*EXP(-alpha*(AZ$15-$H25))) + (B*EXP(-bêta*(AZ$15-$H25))) + (_C*EXP(-gamma*(AZ$15-$H25 ))) ) -> 0 | BA25: =$G25/[0]!Poids * ( (A*EXP(-alpha*(BA$15-$H25))) + (B*EXP(-bêta*(BA$15-$H25))) + (_C*EXP(-gamma*(BA$15-$H25 ))) ) -> 0 | BB25: =$G25/[0]!Poids * ( (A*EXP(-alpha*(BB$15-$H25))) + (B*EXP(-bêta*(BB$15-$H25))) + (_C*EXP(-gamma*(BB$15-$H25 ))) ) -> 0 | BC25: =$G25/[0]!Poids * ( (A*EXP(-alpha*(BC$15-$H25))) + (B*EXP(-bêta*(BC$15-$H25))) + (_C*EXP(-gamma*(BC$15-$H25 ))) ) -> 0 | BD25: =$G25/[0]!Poids * ( (A*EXP(-alpha*(BD$15-$H25))) + (B*EXP(-bêta*(BD$15-$H25))) + (_C*EXP(-gamma*(BD$15-$H25 ))) ) -> 0 | BE25: =$G25/[0]!Poids * ( (A*EXP(-alpha*(BE$15-$H25))) + (B*EXP(-bêta*(BE$15-$H25))) + (_C*EXP(-gamma*(BE$15-$H25 ))) ) -> 0 | BF25: =$G25/[0]!Poids * ( (A*EXP(-alpha*(BF$15-$H25))) + (B*EXP(-bêta*(BF$15-$H25))) + (_C*EXP(-gamma*(BF$15-$H25 ))) ) -> 0 | BG25: =$G25/[0]!Poids * ( (A*EXP(-alpha*(BG$15-$H25))) + (B*EXP(-bêta*(BG$15-$H25))) + (_C*EXP(-gamma*(BG$15-$H25 ))) ) -> 0 | BH25: =$G25/[0]!Poids * ( (A*EXP(-alpha*(BH$15-$H25))) + (B*EXP(-bêta*(BH$15-$H25))) + (_C*EXP(-gamma*(BH$15-$H25 ))) ) -> 0 | BI25: =$G25/[0]!Poids * ( (A*EXP(-alpha*(BI$15-$H25))) + (B*EXP(-bêta*(BI$15-$H25))) + (_C*EXP(-gamma*(BI$15-$H25 ))) ) -> 0 | BJ25: =$G25/[0]!Poids * ( (A*EXP(-alpha*(BJ$15-$H25))) + (B*EXP(-bêta*(BJ$15-$H25))) + (_C*EXP(-gamma*(BJ$15-$H25 ))) ) -> 0 | BK25: =$G25/[0]!Poids * ( (A*EXP(-alpha*(BK$15-$H25))) + (B*EXP(-bêta*(BK$15-$H25))) + (_C*EXP(-gamma*(BK$15-$H25 ))) ) -> 0 | BL25: =$G25/[0]!Poids * ( (A*EXP(-alpha*(BL$15-$H25))) + (B*EXP(-bêta*(BL$15-$H25))) + (_C*EXP(-gamma*(BL$15-$H25 ))) ) -> 0 | BM25: =$G25/[0]!Poids * ( (A*EXP(-alpha*(BM$15-$H25))) + (B*EXP(-bêta*(BM$15-$H25))) + (_C*EXP(-gamma*(BM$15-$H25 ))) ) -> 0 | BN25: =$G25/[0]!Poids * ( (A*EXP(-alpha*(BN$15-$H25))) + (B*EXP(-bêta*(BN$15-$H25))) + (_C*EXP(-gamma*(BN$15-$H25 ))) ) -> 0 | BO25: =$G25/[0]!Poids * ( (A*EXP(-alpha*(BO$15-$H25))) + (B*EXP(-bêta*(BO$15-$H25))) + (_C*EXP(-gamma*(BO$15-$H25 ))) ) -> 0 | BP25: =$G25/[0]!Poids * ( (A*EXP(-alpha*(BP$15-$H25))) + (B*EXP(-bêta*(BP$15-$H25))) + (_C*EXP(-gamma*(BP$15-$H25 ))) ) -> 0 | BQ25: =$G25/[0]!Poids * ( (A*EXP(-alpha*(BQ$15-$H25))) + (B*EXP(-bêta*(BQ$15-$H25))) + (_C*EXP(-gamma*(BQ$15-$H25 ))) ) -> 0 | BR25: =$G25/[0]!Poids * ( (A*EXP(-alpha*(BR$15-$H25))) + (B*EXP(-bêta*(BR$15-$H25))) + (_C*EXP(-gamma*(BR$15-$H25 ))) ) -> 0
E26: =[0]!Poids -> 70 | G26: =T$10 -> 0 | H26: 50 | T26: =$G26/[0]!Poids * ( (A*EXP(-alpha*(T$15-$H26))) + (B*EXP(-bêta*(T$15-$H26))) + (_C*EXP(-gamma*(T$15-$H26 ))) ) -> 0 | U26: =$G26/[0]!Poids * ( (A*EXP(-alpha*(U$15-$H26))) + (B*EXP(-bêta*(U$15-$H26))) + (_C*EXP(-gamma*(U$15-$H26 ))) ) -> 0 | V26: =$G26/[0]!Poids * ( (A*EXP(-alpha*(V$15-$H26))) + (B*EXP(-bêta*(V$15-$H26))) + (_C*EXP(-gamma*(V$15-$H26 ))) ) -> 0 | W26: =$G26/[0]!Poids * ( (A*EXP(-alpha*(W$15-$H26))) + (B*EXP(-bêta*(W$15-$H26))) + (_C*EXP(-gamma*(W$15-$H26 ))) ) -> 0 | X26: =$G26/[0]!Poids * ( (A*EXP(-alpha*(X$15-$H26))) + (B*EXP(-bêta*(X$15-$H26))) + (_C*EXP(-gamma*(X$15-$H26 ))) ) -> 0 | Y26: =$G26/[0]!Poids * ( (A*EXP(-alpha*(Y$15-$H26))) + (B*EXP(-bêta*(Y$15-$H26))) + (_C*EXP(-gamma*(Y$15-$H26 ))) ) -> 0 | Z26: =$G26/[0]!Poids * ( (A*EXP(-alpha*(Z$15-$H26))) + (B*EXP(-bêta*(Z$15-$H26))) + (_C*EXP(-gamma*(Z$15-$H26 ))) ) -> 0 | AA26: =$G26/[0]!Poids * ( (A*EXP(-alpha*(AA$15-$H26))) + (B*EXP(-bêta*(AA$15-$H26))) + (_C*EXP(-gamma*(AA$15-$H26 ))) ) -> 0 | AB26: =$G26/[0]!Poids * ( (A*EXP(-alpha*(AB$15-$H26))) + (B*EXP(-bêta*(AB$15-$H26))) + (_C*EXP(-gamma*(AB$15-$H26 ))) ) -> 0 | AC26: =$G26/[0]!Poids * ( (A*EXP(-alpha*(AC$15-$H26))) + (B*EXP(-bêta*(AC$15-$H26))) + (_C*EXP(-gamma*(AC$15-$H26 ))) ) -> 0 | AD26: =$G26/[0]!Poids * ( (A*EXP(-alpha*(AD$15-$H26))) + (B*EXP(-bêta*(AD$15-$H26))) + (_C*EXP(-gamma*(AD$15-$H26 ))) ) -> 0 | AE26: =$G26/[0]!Poids * ( (A*EXP(-alpha*(AE$15-$H26))) + (B*EXP(-bêta*(AE$15-$H26))) + (_C*EXP(-gamma*(AE$15-$H26 ))) ) -> 0 | AF26: =$G26/[0]!Poids * ( (A*EXP(-alpha*(AF$15-$H26))) + (B*EXP(-bêta*(AF$15-$H26))) + (_C*EXP(-gamma*(AF$15-$H26 ))) ) -> 0 | AG26: =$G26/[0]!Poids * ( (A*EXP(-alpha*(AG$15-$H26))) + (B*EXP(-bêta*(AG$15-$H26))) + (_C*EXP(-gamma*(AG$15-$H26 ))) ) -> 0 | AH26: =$G26/[0]!Poids * ( (A*EXP(-alpha*(AH$15-$H26))) + (B*EXP(-bêta*(AH$15-$H26))) + (_C*EXP(-gamma*(AH$15-$H26 ))) ) -> 0 | AI26: =$G26/[0]!Poids * ( (A*EXP(-alpha*(AI$15-$H26))) + (B*EXP(-bêta*(AI$15-$H26))) + (_C*EXP(-gamma*(AI$15-$H26 ))) ) -> 0 | AJ26: =$G26/[0]!Poids * ( (A*EXP(-alpha*(AJ$15-$H26))) + (B*EXP(-bêta*(AJ$15-$H26))) + (_C*EXP(-gamma*(AJ$15-$H26 ))) ) -> 0 | AK26: =$G26/[0]!Poids * ( (A*EXP(-alpha*(AK$15-$H26))) + (B*EXP(-bêta*(AK$15-$H26))) + (_C*EXP(-gamma*(AK$15-$H26 ))) ) -> 0 | AL26: =$G26/[0]!Poids * ( (A*EXP(-alpha*(AL$15-$H26))) + (B*EXP(-bêta*(AL$15-$H26))) + (_C*EXP(-gamma*(AL$15-$H26 ))) ) -> 0 | AM26: =$G26/[0]!Poids * ( (A*EXP(-alpha*(AM$15-$H26))) + (B*EXP(-bêta*(AM$15-$H26))) + (_C*EXP(-gamma*(AM$15-$H26 ))) ) -> 0 | AN26: =$G26/[0]!Poids * ( (A*EXP(-alpha*(AN$15-$H26))) + (B*EXP(-bêta*(AN$15-$H26))) + (_C*EXP(-gamma*(AN$15-$H26 ))) ) -> 0 | AO26: =$G26/[0]!Poids * ( (A*EXP(-alpha*(AO$15-$H26))) + (B*EXP(-bêta*(AO$15-$H26))) + (_C*EXP(-gamma*(AO$15-$H26 ))) ) -> 0 | AP26: =$G26/[0]!Poids * ( (A*EXP(-alpha*(AP$15-$H26))) + (B*EXP(-bêta*(AP$15-$H26))) + (_C*EXP(-gamma*(AP$15-$H26 ))) ) -> 0 | AQ26: =$G26/[0]!Poids * ( (A*EXP(-alpha*(AQ$15-$H26))) + (B*EXP(-bêta*(AQ$15-$H26))) + (_C*EXP(-gamma*(AQ$15-$H26 ))) ) -> 0 | AR26: =$G26/[0]!Poids * ( (A*EXP(-alpha*(AR$15-$H26))) + (B*EXP(-bêta*(AR$15-$H26))) + (_C*EXP(-gamma*(AR$15-$H26 ))) ) -> 0 | AS26: =$G26/[0]!Poids * ( (A*EXP(-alpha*(AS$15-$H26))) + (B*EXP(-bêta*(AS$15-$H26))) + (_C*EXP(-gamma*(AS$15-$H26 ))) ) -> 0 | AT26: =$G26/[0]!Poids * ( (A*EXP(-alpha*(AT$15-$H26))) + (B*EXP(-bêta*(AT$15-$H26))) + (_C*EXP(-gamma*(AT$15-$H26 ))) ) -> 0 | AU26: =$G26/[0]!Poids * ( (A*EXP(-alpha*(AU$15-$H26))) + (B*EXP(-bêta*(AU$15-$H26))) + (_C*EXP(-gamma*(AU$15-$H26 ))) ) -> 0 | AV26: =$G26/[0]!Poids * ( (A*EXP(-alpha*(AV$15-$H26))) + (B*EXP(-bêta*(AV$15-$H26))) + (_C*EXP(-gamma*(AV$15-$H26 ))) ) -> 0 | AW26: =$G26/[0]!Poids * ( (A*EXP(-alpha*(AW$15-$H26))) + (B*EXP(-bêta*(AW$15-$H26))) + (_C*EXP(-gamma*(AW$15-$H26 ))) ) -> 0 | AX26: =$G26/[0]!Poids * ( (A*EXP(-alpha*(AX$15-$H26))) + (B*EXP(-bêta*(AX$15-$H26))) + (_C*EXP(-gamma*(AX$15-$H26 ))) ) -> 0 | AY26: =$G26/[0]!Poids * ( (A*EXP(-alpha*(AY$15-$H26))) + (B*EXP(-bêta*(AY$15-$H26))) + (_C*EXP(-gamma*(AY$15-$H26 ))) ) -> 0 | AZ26: =$G26/[0]!Poids * ( (A*EXP(-alpha*(AZ$15-$H26))) + (B*EXP(-bêta*(AZ$15-$H26))) + (_C*EXP(-gamma*(AZ$15-$H26 ))) ) -> 0 | BA26: =$G26/[0]!Poids * ( (A*EXP(-alpha*(BA$15-$H26))) + (B*EXP(-bêta*(BA$15-$H26))) + (_C*EXP(-gamma*(BA$15-$H26 ))) ) -> 0 | BB26: =$G26/[0]!Poids * ( (A*EXP(-alpha*(BB$15-$H26))) + (B*EXP(-bêta*(BB$15-$H26))) + (_C*EXP(-gamma*(BB$15-$H26 ))) ) -> 0 | BC26: =$G26/[0]!Poids * ( (A*EXP(-alpha*(BC$15-$H26))) + (B*EXP(-bêta*(BC$15-$H26))) + (_C*EXP(-gamma*(BC$15-$H26 ))) ) -> 0 | BD26: =$G26/[0]!Poids * ( (A*EXP(-alpha*(BD$15-$H26))) + (B*EXP(-bêta*(BD$15-$H26))) + (_C*EXP(-gamma*(BD$15-$H26 ))) ) -> 0 | BE26: =$G26/[0]!Poids * ( (A*EXP(-alpha*(BE$15-$H26))) + (B*EXP(-bêta*(BE$15-$H26))) + (_C*EXP(-gamma*(BE$15-$H26 ))) ) -> 0 | BF26: =$G26/[0]!Poids * ( (A*EXP(-alpha*(BF$15-$H26))) + (B*EXP(-bêta*(BF$15-$H26))) + (_C*EXP(-gamma*(BF$15-$H26 ))) ) -> 0 | BG26: =$G26/[0]!Poids * ( (A*EXP(-alpha*(BG$15-$H26))) + (B*EXP(-bêta*(BG$15-$H26))) + (_C*EXP(-gamma*(BG$15-$H26 ))) ) -> 0 | BH26: =$G26/[0]!Poids * ( (A*EXP(-alpha*(BH$15-$H26))) + (B*EXP(-bêta*(BH$15-$H26))) + (_C*EXP(-gamma*(BH$15-$H26 ))) ) -> 0 | BI26: =$G26/[0]!Poids * ( (A*EXP(-alpha*(BI$15-$H26))) + (B*EXP(-bêta*(BI$15-$H26))) + (_C*EXP(-gamma*(BI$15-$H26 ))) ) -> 0 | BJ26: =$G26/[0]!Poids * ( (A*EXP(-alpha*(BJ$15-$H26))) + (B*EXP(-bêta*(BJ$15-$H26))) + (_C*EXP(-gamma*(BJ$15-$H26 ))) ) -> 0 | BK26: =$G26/[0]!Poids * ( (A*EXP(-alpha*(BK$15-$H26))) + (B*EXP(-bêta*(BK$15-$H26))) + (_C*EXP(-gamma*(BK$15-$H26 ))) ) -> 0 | BL26: =$G26/[0]!Poids * ( (A*EXP(-alpha*(BL$15-$H26))) + (B*EXP(-bêta*(BL$15-$H26))) + (_C*EXP(-gamma*(BL$15-$H26 ))) ) -> 0 | BM26: =$G26/[0]!Poids * ( (A*EXP(-alpha*(BM$15-$H26))) + (B*EXP(-bêta*(BM$15-$H26))) + (_C*EXP(-gamma*(BM$15-$H26 ))) ) -> 0 | BN26: =$G26/[0]!Poids * ( (A*EXP(-alpha*(BN$15-$H26))) + (B*EXP(-bêta*(BN$15-$H26))) + (_C*EXP(-gamma*(BN$15-$H26 ))) ) -> 0 | BO26: =$G26/[0]!Poids * ( (A*EXP(-alpha*(BO$15-$H26))) + (B*EXP(-bêta*(BO$15-$H26))) + (_C*EXP(-gamma*(BO$15-$H26 ))) ) -> 0 | BP26: =$G26/[0]!Poids * ( (A*EXP(-alpha*(BP$15-$H26))) + (B*EXP(-bêta*(BP$15-$H26))) + (_C*EXP(-gamma*(BP$15-$H26 ))) ) -> 0 | BQ26: =$G26/[0]!Poids * ( (A*EXP(-alpha*(BQ$15-$H26))) + (B*EXP(-bêta*(BQ$15-$H26))) + (_C*EXP(-gamma*(BQ$15-$H26 ))) ) -> 0 | BR26: =$G26/[0]!Poids * ( (A*EXP(-alpha*(BR$15-$H26))) + (B*EXP(-bêta*(BR$15-$H26))) + (_C*EXP(-gamma*(BR$15-$H26 ))) ) -> 0
B27: Dose fournie pour équation | G27: =U$10 -> 0 | H27: 55 | U27: =$G27/[0]!Poids * ( (A*EXP(-alpha*(U$15-$H27))) + (B*EXP(-bêta*(U$15-$H27))) + (_C*EXP(-gamma*(U$15-$H27 ))) ) -> 0 | V27: =$G27/[0]!Poids * ( (A*EXP(-alpha*(V$15-$H27))) + (B*EXP(-bêta*(V$15-$H27))) + (_C*EXP(-gamma*(V$15-$H27 ))) ) -> 0 | W27: =$G27/[0]!Poids * ( (A*EXP(-alpha*(W$15-$H27))) + (B*EXP(-bêta*(W$15-$H27))) + (_C*EXP(-gamma*(W$15-$H27 ))) ) -> 0 | X27: =$G27/[0]!Poids * ( (A*EXP(-alpha*(X$15-$H27))) + (B*EXP(-bêta*(X$15-$H27))) + (_C*EXP(-gamma*(X$15-$H27 ))) ) -> 0 | Y27: =$G27/[0]!Poids * ( (A*EXP(-alpha*(Y$15-$H27))) + (B*EXP(-bêta*(Y$15-$H27))) + (_C*EXP(-gamma*(Y$15-$H27 ))) ) -> 0 | Z27: =$G27/[0]!Poids * ( (A*EXP(-alpha*(Z$15-$H27))) + (B*EXP(-bêta*(Z$15-$H27))) + (_C*EXP(-gamma*(Z$15-$H27 ))) ) -> 0 | AA27: =$G27/[0]!Poids * ( (A*EXP(-alpha*(AA$15-$H27))) + (B*EXP(-bêta*(AA$15-$H27))) + (_C*EXP(-gamma*(AA$15-$H27 ))) ) -> 0 | AB27: =$G27/[0]!Poids * ( (A*EXP(-alpha*(AB$15-$H27))) + (B*EXP(-bêta*(AB$15-$H27))) + (_C*EXP(-gamma*(AB$15-$H27 ))) ) -> 0 | AC27: =$G27/[0]!Poids * ( (A*EXP(-alpha*(AC$15-$H27))) + (B*EXP(-bêta*(AC$15-$H27))) + (_C*EXP(-gamma*(AC$15-$H27 ))) ) -> 0 | AD27: =$G27/[0]!Poids * ( (A*EXP(-alpha*(AD$15-$H27))) + (B*EXP(-bêta*(AD$15-$H27))) + (_C*EXP(-gamma*(AD$15-$H27 ))) ) -> 0 | AE27: =$G27/[0]!Poids * ( (A*EXP(-alpha*(AE$15-$H27))) + (B*EXP(-bêta*(AE$15-$H27))) + (_C*EXP(-gamma*(AE$15-$H27 ))) ) -> 0 | AF27: =$G27/[0]!Poids * ( (A*EXP(-alpha*(AF$15-$H27))) + (B*EXP(-bêta*(AF$15-$H27))) + (_C*EXP(-gamma*(AF$15-$H27 ))) ) -> 0 | AG27: =$G27/[0]!Poids * ( (A*EXP(-alpha*(AG$15-$H27))) + (B*EXP(-bêta*(AG$15-$H27))) + (_C*EXP(-gamma*(AG$15-$H27 ))) ) -> 0 | AH27: =$G27/[0]!Poids * ( (A*EXP(-alpha*(AH$15-$H27))) + (B*EXP(-bêta*(AH$15-$H27))) + (_C*EXP(-gamma*(AH$15-$H27 ))) ) -> 0 | AI27: =$G27/[0]!Poids * ( (A*EXP(-alpha*(AI$15-$H27))) + (B*EXP(-bêta*(AI$15-$H27))) + (_C*EXP(-gamma*(AI$15-$H27 ))) ) -> 0 | AJ27: =$G27/[0]!Poids * ( (A*EXP(-alpha*(AJ$15-$H27))) + (B*EXP(-bêta*(AJ$15-$H27))) + (_C*EXP(-gamma*(AJ$15-$H27 ))) ) -> 0 | AK27: =$G27/[0]!Poids * ( (A*EXP(-alpha*(AK$15-$H27))) + (B*EXP(-bêta*(AK$15-$H27))) + (_C*EXP(-gamma*(AK$15-$H27 ))) ) -> 0 | AL27: =$G27/[0]!Poids * ( (A*EXP(-alpha*(AL$15-$H27))) + (B*EXP(-bêta*(AL$15-$H27))) + (_C*EXP(-gamma*(AL$15-$H27 ))) ) -> 0 | AM27: =$G27/[0]!Poids * ( (A*EXP(-alpha*(AM$15-$H27))) + (B*EXP(-bêta*(AM$15-$H27))) + (_C*EXP(-gamma*(AM$15-$H27 ))) ) -> 0 | AN27: =$G27/[0]!Poids * ( (A*EXP(-alpha*(AN$15-$H27))) + (B*EXP(-bêta*(AN$15-$H27))) + (_C*EXP(-gamma*(AN$15-$H27 ))) ) -> 0 | AO27: =$G27/[0]!Poids * ( (A*EXP(-alpha*(AO$15-$H27))) + (B*EXP(-bêta*(AO$15-$H27))) + (_C*EXP(-gamma*(AO$15-$H27 ))) ) -> 0 | AP27: =$G27/[0]!Poids * ( (A*EXP(-alpha*(AP$15-$H27))) + (B*EXP(-bêta*(AP$15-$H27))) + (_C*EXP(-gamma*(AP$15-$H27 ))) ) -> 0 | AQ27: =$G27/[0]!Poids * ( (A*EXP(-alpha*(AQ$15-$H27))) + (B*EXP(-bêta*(AQ$15-$H27))) + (_C*EXP(-gamma*(AQ$15-$H27 ))) ) -> 0 | AR27: =$G27/[0]!Poids * ( (A*EXP(-alpha*(AR$15-$H27))) + (B*EXP(-bêta*(AR$15-$H27))) + (_C*EXP(-gamma*(AR$15-$H27 ))) ) -> 0 | AS27: =$G27/[0]!Poids * ( (A*EXP(-alpha*(AS$15-$H27))) + (B*EXP(-bêta*(AS$15-$H27))) + (_C*EXP(-gamma*(AS$15-$H27 ))) ) -> 0 | AT27: =$G27/[0]!Poids * ( (A*EXP(-alpha*(AT$15-$H27))) + (B*EXP(-bêta*(AT$15-$H27))) + (_C*EXP(-gamma*(AT$15-$H27 ))) ) -> 0 | AU27: =$G27/[0]!Poids * ( (A*EXP(-alpha*(AU$15-$H27))) + (B*EXP(-bêta*(AU$15-$H27))) + (_C*EXP(-gamma*(AU$15-$H27 ))) ) -> 0 | AV27: =$G27/[0]!Poids * ( (A*EXP(-alpha*(AV$15-$H27))) + (B*EXP(-bêta*(AV$15-$H27))) + (_C*EXP(-gamma*(AV$15-$H27 ))) ) -> 0 | AW27: =$G27/[0]!Poids * ( (A*EXP(-alpha*(AW$15-$H27))) + (B*EXP(-bêta*(AW$15-$H27))) + (_C*EXP(-gamma*(AW$15-$H27 ))) ) -> 0 | AX27: =$G27/[0]!Poids * ( (A*EXP(-alpha*(AX$15-$H27))) + (B*EXP(-bêta*(AX$15-$H27))) + (_C*EXP(-gamma*(AX$15-$H27 ))) ) -> 0 | AY27: =$G27/[0]!Poids * ( (A*EXP(-alpha*(AY$15-$H27))) + (B*EXP(-bêta*(AY$15-$H27))) + (_C*EXP(-gamma*(AY$15-$H27 ))) ) -> 0 | AZ27: =$G27/[0]!Poids * ( (A*EXP(-alpha*(AZ$15-$H27))) + (B*EXP(-bêta*(AZ$15-$H27))) + (_C*EXP(-gamma*(AZ$15-$H27 ))) ) -> 0 | BA27: =$G27/[0]!Poids * ( (A*EXP(-alpha*(BA$15-$H27))) + (B*EXP(-bêta*(BA$15-$H27))) + (_C*EXP(-gamma*(BA$15-$H27 ))) ) -> 0 | BB27: =$G27/[0]!Poids * ( (A*EXP(-alpha*(BB$15-$H27))) + (B*EXP(-bêta*(BB$15-$H27))) + (_C*EXP(-gamma*(BB$15-$H27 ))) ) -> 0 | BC27: =$G27/[0]!Poids * ( (A*EXP(-alpha*(BC$15-$H27))) + (B*EXP(-bêta*(BC$15-$H27))) + (_C*EXP(-gamma*(BC$15-$H27 ))) ) -> 0 | BD27: =$G27/[0]!Poids * ( (A*EXP(-alpha*(BD$15-$H27))) + (B*EXP(-bêta*(BD$15-$H27))) + (_C*EXP(-gamma*(BD$15-$H27 ))) ) -> 0 | BE27: =$G27/[0]!Poids * ( (A*EXP(-alpha*(BE$15-$H27))) + (B*EXP(-bêta*(BE$15-$H27))) + (_C*EXP(-gamma*(BE$15-$H27 ))) ) -> 0 | BF27: =$G27/[0]!Poids * ( (A*EXP(-alpha*(BF$15-$H27))) + (B*EXP(-bêta*(BF$15-$H27))) + (_C*EXP(-gamma*(BF$15-$H27 ))) ) -> 0 | BG27: =$G27/[0]!Poids * ( (A*EXP(-alpha*(BG$15-$H27))) + (B*EXP(-bêta*(BG$15-$H27))) + (_C*EXP(-gamma*(BG$15-$H27 ))) ) -> 0 | BH27: =$G27/[0]!Poids * ( (A*EXP(-alpha*(BH$15-$H27))) + (B*EXP(-bêta*(BH$15-$H27))) + (_C*EXP(-gamma*(BH$15-$H27 ))) ) -> 0 | BI27: =$G27/[0]!Poids * ( (A*EXP(-alpha*(BI$15-$H27))) + (B*EXP(-bêta*(BI$15-$H27))) + (_C*EXP(-gamma*(BI$15-$H27 ))) ) -> 0 | BJ27: =$G27/[0]!Poids * ( (A*EXP(-alpha*(BJ$15-$H27))) + (B*EXP(-bêta*(BJ$15-$H27))) + (_C*EXP(-gamma*(BJ$15-$H27 ))) ) -> 0 | BK27: =$G27/[0]!Poids * ( (A*EXP(-alpha*(BK$15-$H27))) + (B*EXP(-bêta*(BK$15-$H27))) + (_C*EXP(-gamma*(BK$15-$H27 ))) ) -> 0 | BL27: =$G27/[0]!Poids * ( (A*EXP(-alpha*(BL$15-$H27))) + (B*EXP(-bêta*(BL$15-$H27))) + (_C*EXP(-gamma*(BL$15-$H27 ))) ) -> 0 | BM27: =$G27/[0]!Poids * ( (A*EXP(-alpha*(BM$15-$H27))) + (B*EXP(-bêta*(BM$15-$H27))) + (_C*EXP(-gamma*(BM$15-$H27 ))) ) -> 0 | BN27: =$G27/[0]!Poids * ( (A*EXP(-alpha*(BN$15-$H27))) + (B*EXP(-bêta*(BN$15-$H27))) + (_C*EXP(-gamma*(BN$15-$H27 ))) ) -> 0 | BO27: =$G27/[0]!Poids * ( (A*EXP(-alpha*(BO$15-$H27))) + (B*EXP(-bêta*(BO$15-$H27))) + (_C*EXP(-gamma*(BO$15-$H27 ))) ) -> 0 | BP27: =$G27/[0]!Poids * ( (A*EXP(-alpha*(BP$15-$H27))) + (B*EXP(-bêta*(BP$15-$H27))) + (_C*EXP(-gamma*(BP$15-$H27 ))) ) -> 0 | BQ27: =$G27/[0]!Poids * ( (A*EXP(-alpha*(BQ$15-$H27))) + (B*EXP(-bêta*(BQ$15-$H27))) + (_C*EXP(-gamma*(BQ$15-$H27 ))) ) -> 0 | BR27: =$G27/[0]!Poids * ( (A*EXP(-alpha*(BR$15-$H27))) + (B*EXP(-bêta*(BR$15-$H27))) + (_C*EXP(-gamma*(BR$15-$H27 ))) ) -> 0
D28: 2 | E28: mg/kg | G28: =V$10 -> 0 | H28: 60 | V28: =$G28/[0]!Poids * ( (A*EXP(-alpha*(V$15-$H28))) + (B*EXP(-bêta*(V$15-$H28))) + (_C*EXP(-gamma*(V$15-$H28 ))) ) -> 0 | W28: =$G28/[0]!Poids * ( (A*EXP(-alpha*(W$15-$H28))) + (B*EXP(-bêta*(W$15-$H28))) + (_C*EXP(-gamma*(W$15-$H28 ))) ) -> 0 | X28: =$G28/[0]!Poids * ( (A*EXP(-alpha*(X$15-$H28))) + (B*EXP(-bêta*(X$15-$H28))) + (_C*EXP(-gamma*(X$15-$H28 ))) ) -> 0 | Y28: =$G28/[0]!Poids * ( (A*EXP(-alpha*(Y$15-$H28))) + (B*EXP(-bêta*(Y$15-$H28))) + (_C*EXP(-gamma*(Y$15-$H28 ))) ) -> 0 | Z28: =$G28/[0]!Poids * ( (A*EXP(-alpha*(Z$15-$H28))) + (B*EXP(-bêta*(Z$15-$H28))) + (_C*EXP(-gamma*(Z$15-$H28 ))) ) -> 0 | AA28: =$G28/[0]!Poids * ( (A*EXP(-alpha*(AA$15-$H28))) + (B*EXP(-bêta*(AA$15-$H28))) + (_C*EXP(-gamma*(AA$15-$H28 ))) ) -> 0 | AB28: =$G28/[0]!Poids * ( (A*EXP(-alpha*(AB$15-$H28))) + (B*EXP(-bêta*(AB$15-$H28))) + (_C*EXP(-gamma*(AB$15-$H28 ))) ) -> 0 | AC28: =$G28/[0]!Poids * ( (A*EXP(-alpha*(AC$15-$H28))) + (B*EXP(-bêta*(AC$15-$H28))) + (_C*EXP(-gamma*(AC$15-$H28 ))) ) -> 0 | AD28: =$G28/[0]!Poids * ( (A*EXP(-alpha*(AD$15-$H28))) + (B*EXP(-bêta*(AD$15-$H28))) + (_C*EXP(-gamma*(AD$15-$H28 ))) ) -> 0 | AE28: =$G28/[0]!Poids * ( (A*EXP(-alpha*(AE$15-$H28))) + (B*EXP(-bêta*(AE$15-$H28))) + (_C*EXP(-gamma*(AE$15-$H28 ))) ) -> 0 | AF28: =$G28/[0]!Poids * ( (A*EXP(-alpha*(AF$15-$H28))) + (B*EXP(-bêta*(AF$15-$H28))) + (_C*EXP(-gamma*(AF$15-$H28 ))) ) -> 0 | AG28: =$G28/[0]!Poids * ( (A*EXP(-alpha*(AG$15-$H28))) + (B*EXP(-bêta*(AG$15-$H28))) + (_C*EXP(-gamma*(AG$15-$H28 ))) ) -> 0 | AH28: =$G28/[0]!Poids * ( (A*EXP(-alpha*(AH$15-$H28))) + (B*EXP(-bêta*(AH$15-$H28))) + (_C*EXP(-gamma*(AH$15-$H28 ))) ) -> 0 | AI28: =$G28/[0]!Poids * ( (A*EXP(-alpha*(AI$15-$H28))) + (B*EXP(-bêta*(AI$15-$H28))) + (_C*EXP(-gamma*(AI$15-$H28 ))) ) -> 0 | AJ28: =$G28/[0]!Poids * ( (A*EXP(-alpha*(AJ$15-$H28))) + (B*EXP(-bêta*(AJ$15-$H28))) + (_C*EXP(-gamma*(AJ$15-$H28 ))) ) -> 0 | AK28: =$G28/[0]!Poids * ( (A*EXP(-alpha*(AK$15-$H28))) + (B*EXP(-bêta*(AK$15-$H28))) + (_C*EXP(-gamma*(AK$15-$H28 ))) ) -> 0 | AL28: =$G28/[0]!Poids * ( (A*EXP(-alpha*(AL$15-$H28))) + (B*EXP(-bêta*(AL$15-$H28))) + (_C*EXP(-gamma*(AL$15-$H28 ))) ) -> 0 | AM28: =$G28/[0]!Poids * ( (A*EXP(-alpha*(AM$15-$H28))) + (B*EXP(-bêta*(AM$15-$H28))) + (_C*EXP(-gamma*(AM$15-$H28 ))) ) -> 0 | AN28: =$G28/[0]!Poids * ( (A*EXP(-alpha*(AN$15-$H28))) + (B*EXP(-bêta*(AN$15-$H28))) + (_C*EXP(-gamma*(AN$15-$H28 ))) ) -> 0 | AO28: =$G28/[0]!Poids * ( (A*EXP(-alpha*(AO$15-$H28))) + (B*EXP(-bêta*(AO$15-$H28))) + (_C*EXP(-gamma*(AO$15-$H28 ))) ) -> 0 | AP28: =$G28/[0]!Poids * ( (A*EXP(-alpha*(AP$15-$H28))) + (B*EXP(-bêta*(AP$15-$H28))) + (_C*EXP(-gamma*(AP$15-$H28 ))) ) -> 0 | AQ28: =$G28/[0]!Poids * ( (A*EXP(-alpha*(AQ$15-$H28))) + (B*EXP(-bêta*(AQ$15-$H28))) + (_C*EXP(-gamma*(AQ$15-$H28 ))) ) -> 0 | AR28: =$G28/[0]!Poids * ( (A*EXP(-alpha*(AR$15-$H28))) + (B*EXP(-bêta*(AR$15-$H28))) + (_C*EXP(-gamma*(AR$15-$H28 ))) ) -> 0 | AS28: =$G28/[0]!Poids * ( (A*EXP(-alpha*(AS$15-$H28))) + (B*EXP(-bêta*(AS$15-$H28))) + (_C*EXP(-gamma*(AS$15-$H28 ))) ) -> 0 | AT28: =$G28/[0]!Poids * ( (A*EXP(-alpha*(AT$15-$H28))) + (B*EXP(-bêta*(AT$15-$H28))) + (_C*EXP(-gamma*(AT$15-$H28 ))) ) -> 0 | AU28: =$G28/[0]!Poids * ( (A*EXP(-alpha*(AU$15-$H28))) + (B*EXP(-bêta*(AU$15-$H28))) + (_C*EXP(-gamma*(AU$15-$H28 ))) ) -> 0 | AV28: =$G28/[0]!Poids * ( (A*EXP(-alpha*(AV$15-$H28))) + (B*EXP(-bêta*(AV$15-$H28))) + (_C*EXP(-gamma*(AV$15-$H28 ))) ) -> 0 | AW28: =$G28/[0]!Poids * ( (A*EXP(-alpha*(AW$15-$H28))) + (B*EXP(-bêta*(AW$15-$H28))) + (_C*EXP(-gamma*(AW$15-$H28 ))) ) -> 0 | AX28: =$G28/[0]!Poids * ( (A*EXP(-alpha*(AX$15-$H28))) + (B*EXP(-bêta*(AX$15-$H28))) + (_C*EXP(-gamma*(AX$15-$H28 ))) ) -> 0 | AY28: =$G28/[0]!Poids * ( (A*EXP(-alpha*(AY$15-$H28))) + (B*EXP(-bêta*(AY$15-$H28))) + (_C*EXP(-gamma*(AY$15-$H28 ))) ) -> 0 | AZ28: =$G28/[0]!Poids * ( (A*EXP(-alpha*(AZ$15-$H28))) + (B*EXP(-bêta*(AZ$15-$H28))) + (_C*EXP(-gamma*(AZ$15-$H28 ))) ) -> 0 | BA28: =$G28/[0]!Poids * ( (A*EXP(-alpha*(BA$15-$H28))) + (B*EXP(-bêta*(BA$15-$H28))) + (_C*EXP(-gamma*(BA$15-$H28 ))) ) -> 0 | BB28: =$G28/[0]!Poids * ( (A*EXP(-alpha*(BB$15-$H28))) + (B*EXP(-bêta*(BB$15-$H28))) + (_C*EXP(-gamma*(BB$15-$H28 ))) ) -> 0 | BC28: =$G28/[0]!Poids * ( (A*EXP(-alpha*(BC$15-$H28))) + (B*EXP(-bêta*(BC$15-$H28))) + (_C*EXP(-gamma*(BC$15-$H28 ))) ) -> 0 | BD28: =$G28/[0]!Poids * ( (A*EXP(-alpha*(BD$15-$H28))) + (B*EXP(-bêta*(BD$15-$H28))) + (_C*EXP(-gamma*(BD$15-$H28 ))) ) -> 0 | BE28: =$G28/[0]!Poids * ( (A*EXP(-alpha*(BE$15-$H28))) + (B*EXP(-bêta*(BE$15-$H28))) + (_C*EXP(-gamma*(BE$15-$H28 ))) ) -> 0 | BF28: =$G28/[0]!Poids * ( (A*EXP(-alpha*(BF$15-$H28))) + (B*EXP(-bêta*(BF$15-$H28))) + (_C*EXP(-gamma*(BF$15-$H28 ))) ) -> 0 | BG28: =$G28/[0]!Poids * ( (A*EXP(-alpha*(BG$15-$H28))) + (B*EXP(-bêta*(BG$15-$H28))) + (_C*EXP(-gamma*(BG$15-$H28 ))) ) -> 0 | BH28: =$G28/[0]!Poids * ( (A*EXP(-alpha*(BH$15-$H28))) + (B*EXP(-bêta*(BH$15-$H28))) + (_C*EXP(-gamma*(BH$15-$H28 ))) ) -> 0 | BI28: =$G28/[0]!Poids * ( (A*EXP(-alpha*(BI$15-$H28))) + (B*EXP(-bêta*(BI$15-$H28))) + (_C*EXP(-gamma*(BI$15-$H28 ))) ) -> 0 | BJ28: =$G28/[0]!Poids * ( (A*EXP(-alpha*(BJ$15-$H28))) + (B*EXP(-bêta*(BJ$15-$H28))) + (_C*EXP(-gamma*(BJ$15-$H28 ))) ) -> 0 | BK28: =$G28/[0]!Poids * ( (A*EXP(-alpha*(BK$15-$H28))) + (B*EXP(-bêta*(BK$15-$H28))) + (_C*EXP(-gamma*(BK$15-$H28 ))) ) -> 0 | BL28: =$G28/[0]!Poids * ( (A*EXP(-alpha*(BL$15-$H28))) + (B*EXP(-bêta*(BL$15-$H28))) + (_C*EXP(-gamma*(BL$15-$H28 ))) ) -> 0 | BM28: =$G28/[0]!Poids * ( (A*EXP(-alpha*(BM$15-$H28))) + (B*EXP(-bêta*(BM$15-$H28))) + (_C*EXP(-gamma*(BM$15-$H28 ))) ) -> 0 | BN28: =$G28/[0]!Poids * ( (A*EXP(-alpha*(BN$15-$H28))) + (B*EXP(-bêta*(BN$15-$H28))) + (_C*EXP(-gamma*(BN$15-$H28 ))) ) -> 0 | BO28: =$G28/[0]!Poids * ( (A*EXP(-alpha*(BO$15-$H28))) + (B*EXP(-bêta*(BO$15-$H28))) + (_C*EXP(-gamma*(BO$15-$H28 ))) ) -> 0 | BP28: =$G28/[0]!Poids * ( (A*EXP(-alpha*(BP$15-$H28))) + (B*EXP(-bêta*(BP$15-$H28))) + (_C*EXP(-gamma*(BP$15-$H28 ))) ) -> 0 | BQ28: =$G28/[0]!Poids * ( (A*EXP(-alpha*(BQ$15-$H28))) + (B*EXP(-bêta*(BQ$15-$H28))) + (_C*EXP(-gamma*(BQ$15-$H28 ))) ) -> 0 | BR28: =$G28/[0]!Poids * ( (A*EXP(-alpha*(BR$15-$H28))) + (B*EXP(-bêta*(BR$15-$H28))) + (_C*EXP(-gamma*(BR$15-$H28 ))) ) -> 0
B29: A+B+C | C29: =SUM(C17:C19) -> 16837 | D29: (pour 2) | E29: à T=0 | G29: =W$10 -> 0 | H29: 65 | W29: =$G29/[0]!Poids * ( (A*EXP(-alpha*(W$15-$H29))) + (B*EXP(-bêta*(W$15-$H29))) + (_C*EXP(-gamma*(W$15-$H29 ))) ) -> 0 | X29: =$G29/[0]!Poids * ( (A*EXP(-alpha*(X$15-$H29))) + (B*EXP(-bêta*(X$15-$H29))) + (_C*EXP(-gamma*(X$15-$H29 ))) ) -> 0 | Y29: =$G29/[0]!Poids * ( (A*EXP(-alpha*(Y$15-$H29))) + (B*EXP(-bêta*(Y$15-$H29))) + (_C*EXP(-gamma*(Y$15-$H29 ))) ) -> 0 | Z29: =$G29/[0]!Poids * ( (A*EXP(-alpha*(Z$15-$H29))) + (B*EXP(-bêta*(Z$15-$H29))) + (_C*EXP(-gamma*(Z$15-$H29 ))) ) -> 0 | AA29: =$G29/[0]!Poids * ( (A*EXP(-alpha*(AA$15-$H29))) + (B*EXP(-bêta*(AA$15-$H29))) + (_C*EXP(-gamma*(AA$15-$H29 ))) ) -> 0 | AB29: =$G29/[0]!Poids * ( (A*EXP(-alpha*(AB$15-$H29))) + (B*EXP(-bêta*(AB$15-$H29))) + (_C*EXP(-gamma*(AB$15-$H29 ))) ) -> 0 | AC29: =$G29/[0]!Poids * ( (A*EXP(-alpha*(AC$15-$H29))) + (B*EXP(-bêta*(AC$15-$H29))) + (_C*EXP(-gamma*(AC$15-$H29 ))) ) -> 0 | AD29: =$G29/[0]!Poids * ( (A*EXP(-alpha*(AD$15-$H29))) + (B*EXP(-bêta*(AD$15-$H29))) + (_C*EXP(-gamma*(AD$15-$H29 ))) ) -> 0 | AE29: =$G29/[0]!Poids * ( (A*EXP(-alpha*(AE$15-$H29))) + (B*EXP(-bêta*(AE$15-$H29))) + (_C*EXP(-gamma*(AE$15-$H29 ))) ) -> 0 | AF29: =$G29/[0]!Poids * ( (A*EXP(-alpha*(AF$15-$H29))) + (B*EXP(-bêta*(AF$15-$H29))) + (_C*EXP(-gamma*(AF$15-$H29 ))) ) -> 0 | AG29: =$G29/[0]!Poids * ( (A*EXP(-alpha*(AG$15-$H29))) + (B*EXP(-bêta*(AG$15-$H29))) + (_C*EXP(-gamma*(AG$15-$H29 ))) ) -> 0 | AH29: =$G29/[0]!Poids * ( (A*EXP(-alpha*(AH$15-$H29))) + (B*EXP(-bêta*(AH$15-$H29))) + (_C*EXP(-gamma*(AH$15-$H29 ))) ) -> 0 | AI29: =$G29/[0]!Poids * ( (A*EXP(-alpha*(AI$15-$H29))) + (B*EXP(-bêta*(AI$15-$H29))) + (_C*EXP(-gamma*(AI$15-$H29 ))) ) -> 0 | AJ29: =$G29/[0]!Poids * ( (A*EXP(-alpha*(AJ$15-$H29))) + (B*EXP(-bêta*(AJ$15-$H29))) + (_C*EXP(-gamma*(AJ$15-$H29 ))) ) -> 0 | AK29: =$G29/[0]!Poids * ( (A*EXP(-alpha*(AK$15-$H29))) + (B*EXP(-bêta*(AK$15-$H29))) + (_C*EXP(-gamma*(AK$15-$H29 ))) ) -> 0 | AL29: =$G29/[0]!Poids * ( (A*EXP(-alpha*(AL$15-$H29))) + (B*EXP(-bêta*(AL$15-$H29))) + (_C*EXP(-gamma*(AL$15-$H29 ))) ) -> 0 | AM29: =$G29/[0]!Poids * ( (A*EXP(-alpha*(AM$15-$H29))) + (B*EXP(-bêta*(AM$15-$H29))) + (_C*EXP(-gamma*(AM$15-$H29 ))) ) -> 0 | AN29: =$G29/[0]!Poids * ( (A*EXP(-alpha*(AN$15-$H29))) + (B*EXP(-bêta*(AN$15-$H29))) + (_C*EXP(-gamma*(AN$15-$H29 ))) ) -> 0 | AO29: =$G29/[0]!Poids * ( (A*EXP(-alpha*(AO$15-$H29))) + (B*EXP(-bêta*(AO$15-$H29))) + (_C*EXP(-gamma*(AO$15-$H29 ))) ) -> 0 | AP29: =$G29/[0]!Poids * ( (A*EXP(-alpha*(AP$15-$H29))) + (B*EXP(-bêta*(AP$15-$H29))) + (_C*EXP(-gamma*(AP$15-$H29 ))) ) -> 0 | AQ29: =$G29/[0]!Poids * ( (A*EXP(-alpha*(AQ$15-$H29))) + (B*EXP(-bêta*(AQ$15-$H29))) + (_C*EXP(-gamma*(AQ$15-$H29 ))) ) -> 0 | AR29: =$G29/[0]!Poids * ( (A*EXP(-alpha*(AR$15-$H29))) + (B*EXP(-bêta*(AR$15-$H29))) + (_C*EXP(-gamma*(AR$15-$H29 ))) ) -> 0 | AS29: =$G29/[0]!Poids * ( (A*EXP(-alpha*(AS$15-$H29))) + (B*EXP(-bêta*(AS$15-$H29))) + (_C*EXP(-gamma*(AS$15-$H29 ))) ) -> 0 | AT29: =$G29/[0]!Poids * ( (A*EXP(-alpha*(AT$15-$H29))) + (B*EXP(-bêta*(AT$15-$H29))) + (_C*EXP(-gamma*(AT$15-$H29 ))) ) -> 0 | AU29: =$G29/[0]!Poids * ( (A*EXP(-alpha*(AU$15-$H29))) + (B*EXP(-bêta*(AU$15-$H29))) + (_C*EXP(-gamma*(AU$15-$H29 ))) ) -> 0 | AV29: =$G29/[0]!Poids * ( (A*EXP(-alpha*(AV$15-$H29))) + (B*EXP(-bêta*(AV$15-$H29))) + (_C*EXP(-gamma*(AV$15-$H29 ))) ) -> 0 | AW29: =$G29/[0]!Poids * ( (A*EXP(-alpha*(AW$15-$H29))) + (B*EXP(-bêta*(AW$15-$H29))) + (_C*EXP(-gamma*(AW$15-$H29 ))) ) -> 0 | AX29: =$G29/[0]!Poids * ( (A*EXP(-alpha*(AX$15-$H29))) + (B*EXP(-bêta*(AX$15-$H29))) + (_C*EXP(-gamma*(AX$15-$H29 ))) ) -> 0 | AY29: =$G29/[0]!Poids * ( (A*EXP(-alpha*(AY$15-$H29))) + (B*EXP(-bêta*(AY$15-$H29))) + (_C*EXP(-gamma*(AY$15-$H29 ))) ) -> 0 | AZ29: =$G29/[0]!Poids * ( (A*EXP(-alpha*(AZ$15-$H29))) + (B*EXP(-bêta*(AZ$15-$H29))) + (_C*EXP(-gamma*(AZ$15-$H29 ))) ) -> 0 | BA29: =$G29/[0]!Poids * ( (A*EXP(-alpha*(BA$15-$H29))) + (B*EXP(-bêta*(BA$15-$H29))) + (_C*EXP(-gamma*(BA$15-$H29 ))) ) -> 0 | BB29: =$G29/[0]!Poids * ( (A*EXP(-alpha*(BB$15-$H29))) + (B*EXP(-bêta*(BB$15-$H29))) + (_C*EXP(-gamma*(BB$15-$H29 ))) ) -> 0 | BC29: =$G29/[0]!Poids * ( (A*EXP(-alpha*(BC$15-$H29))) + (B*EXP(-bêta*(BC$15-$H29))) + (_C*EXP(-gamma*(BC$15-$H29 ))) ) -> 0 | BD29: =$G29/[0]!Poids * ( (A*EXP(-alpha*(BD$15-$H29))) + (B*EXP(-bêta*(BD$15-$H29))) + (_C*EXP(-gamma*(BD$15-$H29 ))) ) -> 0 | BE29: =$G29/[0]!Poids * ( (A*EXP(-alpha*(BE$15-$H29))) + (B*EXP(-bêta*(BE$15-$H29))) + (_C*EXP(-gamma*(BE$15-$H29 ))) ) -> 0 | BF29: =$G29/[0]!Poids * ( (A*EXP(-alpha*(BF$15-$H29))) + (B*EXP(-bêta*(BF$15-$H29))) + (_C*EXP(-gamma*(BF$15-$H29 ))) ) -> 0 | BG29: =$G29/[0]!Poids * ( (A*EXP(-alpha*(BG$15-$H29))) + (B*EXP(-bêta*(BG$15-$H29))) + (_C*EXP(-gamma*(BG$15-$H29 ))) ) -> 0 | BH29: =$G29/[0]!Poids * ( (A*EXP(-alpha*(BH$15-$H29))) + (B*EXP(-bêta*(BH$15-$H29))) + (_C*EXP(-gamma*(BH$15-$H29 ))) ) -> 0 | BI29: =$G29/[0]!Poids * ( (A*EXP(-alpha*(BI$15-$H29))) + (B*EXP(-bêta*(BI$15-$H29))) + (_C*EXP(-gamma*(BI$15-$H29 ))) ) -> 0 | BJ29: =$G29/[0]!Poids * ( (A*EXP(-alpha*(BJ$15-$H29))) + (B*EXP(-bêta*(BJ$15-$H29))) + (_C*EXP(-gamma*(BJ$15-$H29 ))) ) -> 0 | BK29: =$G29/[0]!Poids * ( (A*EXP(-alpha*(BK$15-$H29))) + (B*EXP(-bêta*(BK$15-$H29))) + (_C*EXP(-gamma*(BK$15-$H29 ))) ) -> 0 | BL29: =$G29/[0]!Poids * ( (A*EXP(-alpha*(BL$15-$H29))) + (B*EXP(-bêta*(BL$15-$H29))) + (_C*EXP(-gamma*(BL$15-$H29 ))) ) -> 0 | BM29: =$G29/[0]!Poids * ( (A*EXP(-alpha*(BM$15-$H29))) + (B*EXP(-bêta*(BM$15-$H29))) + (_C*EXP(-gamma*(BM$15-$H29 ))) ) -> 0 | BN29: =$G29/[0]!Poids * ( (A*EXP(-alpha*(BN$15-$H29))) + (B*EXP(-bêta*(BN$15-$H29))) + (_C*EXP(-gamma*(BN$15-$H29 ))) ) -> 0 | BO29: =$G29/[0]!Poids * ( (A*EXP(-alpha*(BO$15-$H29))) + (B*EXP(-bêta*(BO$15-$H29))) + (_C*EXP(-gamma*(BO$15-$H29 ))) ) -> 0 | BP29: =$G29/[0]!Poids * ( (A*EXP(-alpha*(BP$15-$H29))) + (B*EXP(-bêta*(BP$15-$H29))) + (_C*EXP(-gamma*(BP$15-$H29 ))) ) -> 0 | BQ29: =$G29/[0]!Poids * ( (A*EXP(-alpha*(BQ$15-$H29))) + (B*EXP(-bêta*(BQ$15-$H29))) + (_C*EXP(-gamma*(BQ$15-$H29 ))) ) -> 0 | BR29: =$G29/[0]!Poids * ( (A*EXP(-alpha*(BR$15-$H29))) + (B*EXP(-bêta*(BR$15-$H29))) + (_C*EXP(-gamma*(BR$15-$H29 ))) ) -> 0
G30: =X$10 -> 0 | H30: 70 | X30: =$G30/[0]!Poids * ( (A*EXP(-alpha*(X$15-$H30))) + (B*EXP(-bêta*(X$15-$H30))) + (_C*EXP(-gamma*(X$15-$H30 ))) ) -> 0 | Y30: =$G30/[0]!Poids * ( (A*EXP(-alpha*(Y$15-$H30))) + (B*EXP(-bêta*(Y$15-$H30))) + (_C*EXP(-gamma*(Y$15-$H30 ))) ) -> 0 | Z30: =$G30/[0]!Poids * ( (A*EXP(-alpha*(Z$15-$H30))) + (B*EXP(-bêta*(Z$15-$H30))) + (_C*EXP(-gamma*(Z$15-$H30 ))) ) -> 0 | AA30: =$G30/[0]!Poids * ( (A*EXP(-alpha*(AA$15-$H30))) + (B*EXP(-bêta*(AA$15-$H30))) + (_C*EXP(-gamma*(AA$15-$H30 ))) ) -> 0 | AB30: =$G30/[0]!Poids * ( (A*EXP(-alpha*(AB$15-$H30))) + (B*EXP(-bêta*(AB$15-$H30))) + (_C*EXP(-gamma*(AB$15-$H30 ))) ) -> 0 | AC30: =$G30/[0]!Poids * ( (A*EXP(-alpha*(AC$15-$H30))) + (B*EXP(-bêta*(AC$15-$H30))) + (_C*EXP(-gamma*(AC$15-$H30 ))) ) -> 0 | AD30: =$G30/[0]!Poids * ( (A*EXP(-alpha*(AD$15-$H30))) + (B*EXP(-bêta*(AD$15-$H30))) + (_C*EXP(-gamma*(AD$15-$H30 ))) ) -> 0 | AE30: =$G30/[0]!Poids * ( (A*EXP(-alpha*(AE$15-$H30))) + (B*EXP(-bêta*(AE$15-$H30))) + (_C*EXP(-gamma*(AE$15-$H30 ))) ) -> 0 | AF30: =$G30/[0]!Poids * ( (A*EXP(-alpha*(AF$15-$H30))) + (B*EXP(-bêta*(AF$15-$H30))) + (_C*EXP(-gamma*(AF$15-$H30 ))) ) -> 0 | AG30: =$G30/[0]!Poids * ( (A*EXP(-alpha*(AG$15-$H30))) + (B*EXP(-bêta*(AG$15-$H30))) + (_C*EXP(-gamma*(AG$15-$H30 ))) ) -> 0 | AH30: =$G30/[0]!Poids * ( (A*EXP(-alpha*(AH$15-$H30))) + (B*EXP(-bêta*(AH$15-$H30))) + (_C*EXP(-gamma*(AH$15-$H30 ))) ) -> 0 | AI30: =$G30/[0]!Poids * ( (A*EXP(-alpha*(AI$15-$H30))) + (B*EXP(-bêta*(AI$15-$H30))) + (_C*EXP(-gamma*(AI$15-$H30 ))) ) -> 0 | AJ30: =$G30/[0]!Poids * ( (A*EXP(-alpha*(AJ$15-$H30))) + (B*EXP(-bêta*(AJ$15-$H30))) + (_C*EXP(-gamma*(AJ$15-$H30 ))) ) -> 0 | AK30: =$G30/[0]!Poids * ( (A*EXP(-alpha*(AK$15-$H30))) + (B*EXP(-bêta*(AK$15-$H30))) + (_C*EXP(-gamma*(AK$15-$H30 ))) ) -> 0 | AL30: =$G30/[0]!Poids * ( (A*EXP(-alpha*(AL$15-$H30))) + (B*EXP(-bêta*(AL$15-$H30))) + (_C*EXP(-gamma*(AL$15-$H30 ))) ) -> 0 | AM30: =$G30/[0]!Poids * ( (A*EXP(-alpha*(AM$15-$H30))) + (B*EXP(-bêta*(AM$15-$H30))) + (_C*EXP(-gamma*(AM$15-$H30 ))) ) -> 0 | AN30: =$G30/[0]!Poids * ( (A*EXP(-alpha*(AN$15-$H30))) + (B*EXP(-bêta*(AN$15-$H30))) + (_C*EXP(-gamma*(AN$15-$H30 ))) ) -> 0 | AO30: =$G30/[0]!Poids * ( (A*EXP(-alpha*(AO$15-$H30))) + (B*EXP(-bêta*(AO$15-$H30))) + (_C*EXP(-gamma*(AO$15-$H30 ))) ) -> 0 | AP30: =$G30/[0]!Poids * ( (A*EXP(-alpha*(AP$15-$H30))) + (B*EXP(-bêta*(AP$15-$H30))) + (_C*EXP(-gamma*(AP$15-$H30 ))) ) -> 0 | AQ30: =$G30/[0]!Poids * ( (A*EXP(-alpha*(AQ$15-$H30))) + (B*EXP(-bêta*(AQ$15-$H30))) + (_C*EXP(-gamma*(AQ$15-$H30 ))) ) -> 0 | AR30: =$G30/[0]!Poids * ( (A*EXP(-alpha*(AR$15-$H30))) + (B*EXP(-bêta*(AR$15-$H30))) + (_C*EXP(-gamma*(AR$15-$H30 ))) ) -> 0 | AS30: =$G30/[0]!Poids * ( (A*EXP(-alpha*(AS$15-$H30))) + (B*EXP(-bêta*(AS$15-$H30))) + (_C*EXP(-gamma*(AS$15-$H30 ))) ) -> 0 | AT30: =$G30/[0]!Poids * ( (A*EXP(-alpha*(AT$15-$H30))) + (B*EXP(-bêta*(AT$15-$H30))) + (_C*EXP(-gamma*(AT$15-$H30 ))) ) -> 0 | AU30: =$G30/[0]!Poids * ( (A*EXP(-alpha*(AU$15-$H30))) + (B*EXP(-bêta*(AU$15-$H30))) + (_C*EXP(-gamma*(AU$15-$H30 ))) ) -> 0 | AV30: =$G30/[0]!Poids * ( (A*EXP(-alpha*(AV$15-$H30))) + (B*EXP(-bêta*(AV$15-$H30))) + (_C*EXP(-gamma*(AV$15-$H30 ))) ) -> 0 | AW30: =$G30/[0]!Poids * ( (A*EXP(-alpha*(AW$15-$H30))) + (B*EXP(-bêta*(AW$15-$H30))) + (_C*EXP(-gamma*(AW$15-$H30 ))) ) -> 0 | AX30: =$G30/[0]!Poids * ( (A*EXP(-alpha*(AX$15-$H30))) + (B*EXP(-bêta*(AX$15-$H30))) + (_C*EXP(-gamma*(AX$15-$H30 ))) ) -> 0 | AY30: =$G30/[0]!Poids * ( (A*EXP(-alpha*(AY$15-$H30))) + (B*EXP(-bêta*(AY$15-$H30))) + (_C*EXP(-gamma*(AY$15-$H30 ))) ) -> 0 | AZ30: =$G30/[0]!Poids * ( (A*EXP(-alpha*(AZ$15-$H30))) + (B*EXP(-bêta*(AZ$15-$H30))) + (_C*EXP(-gamma*(AZ$15-$H30 ))) ) -> 0 | BA30: =$G30/[0]!Poids * ( (A*EXP(-alpha*(BA$15-$H30))) + (B*EXP(-bêta*(BA$15-$H30))) + (_C*EXP(-gamma*(BA$15-$H30 ))) ) -> 0 | BB30: =$G30/[0]!Poids * ( (A*EXP(-alpha*(BB$15-$H30))) + (B*EXP(-bêta*(BB$15-$H30))) + (_C*EXP(-gamma*(BB$15-$H30 ))) ) -> 0 | BC30: =$G30/[0]!Poids * ( (A*EXP(-alpha*(BC$15-$H30))) + (B*EXP(-bêta*(BC$15-$H30))) + (_C*EXP(-gamma*(BC$15-$H30 ))) ) -> 0 | BD30: =$G30/[0]!Poids * ( (A*EXP(-alpha*(BD$15-$H30))) + (B*EXP(-bêta*(BD$15-$H30))) + (_C*EXP(-gamma*(BD$15-$H30 ))) ) -> 0 | BE30: =$G30/[0]!Poids * ( (A*EXP(-alpha*(BE$15-$H30))) + (B*EXP(-bêta*(BE$15-$H30))) + (_C*EXP(-gamma*(BE$15-$H30 ))) ) -> 0 | BF30: =$G30/[0]!Poids * ( (A*EXP(-alpha*(BF$15-$H30))) + (B*EXP(-bêta*(BF$15-$H30))) + (_C*EXP(-gamma*(BF$15-$H30 ))) ) -> 0 | BG30: =$G30/[0]!Poids * ( (A*EXP(-alpha*(BG$15-$H30))) + (B*EXP(-bêta*(BG$15-$H30))) + (_C*EXP(-gamma*(BG$15-$H30 ))) ) -> 0 | BH30: =$G30/[0]!Poids * ( (A*EXP(-alpha*(BH$15-$H30))) + (B*EXP(-bêta*(BH$15-$H30))) + (_C*EXP(-gamma*(BH$15-$H30 ))) ) -> 0 | BI30: =$G30/[0]!Poids * ( (A*EXP(-alpha*(BI$15-$H30))) + (B*EXP(-bêta*(BI$15-$H30))) + (_C*EXP(-gamma*(BI$15-$H30 ))) ) -> 0 | BJ30: =$G30/[0]!Poids * ( (A*EXP(-alpha*(BJ$15-$H30))) + (B*EXP(-bêta*(BJ$15-$H30))) + (_C*EXP(-gamma*(BJ$15-$H30 ))) ) -> 0 | BK30: =$G30/[0]!Poids * ( (A*EXP(-alpha*(BK$15-$H30))) + (B*EXP(-bêta*(BK$15-$H30))) + (_C*EXP(-gamma*(BK$15-$H30 ))) ) -> 0 | BL30: =$G30/[0]!Poids * ( (A*EXP(-alpha*(BL$15-$H30))) + (B*EXP(-bêta*(BL$15-$H30))) + (_C*EXP(-gamma*(BL$15-$H30 ))) ) -> 0 | BM30: =$G30/[0]!Poids * ( (A*EXP(-alpha*(BM$15-$H30))) + (B*EXP(-bêta*(BM$15-$H30))) + (_C*EXP(-gamma*(BM$15-$H30 ))) ) -> 0 | BN30: =$G30/[0]!Poids * ( (A*EXP(-alpha*(BN$15-$H30))) + (B*EXP(-bêta*(BN$15-$H30))) + (_C*EXP(-gamma*(BN$15-$H30 ))) ) -> 0 | BO30: =$G30/[0]!Poids * ( (A*EXP(-alpha*(BO$15-$H30))) + (B*EXP(-bêta*(BO$15-$H30))) + (_C*EXP(-gamma*(BO$15-$H30 ))) ) -> 0 | BP30: =$G30/[0]!Poids * ( (A*EXP(-alpha*(BP$15-$H30))) + (B*EXP(-bêta*(BP$15-$H30))) + (_C*EXP(-gamma*(BP$15-$H30 ))) ) -> 0 | BQ30: =$G30/[0]!Poids * ( (A*EXP(-alpha*(BQ$15-$H30))) + (B*EXP(-bêta*(BQ$15-$H30))) + (_C*EXP(-gamma*(BQ$15-$H30 ))) ) -> 0 | BR30: =$G30/[0]!Poids * ( (A*EXP(-alpha*(BR$15-$H30))) + (B*EXP(-bêta*(BR$15-$H30))) + (_C*EXP(-gamma*(BR$15-$H30 ))) ) -> 0
B31: Calculs test formule | G31: =Y$10 -> 0 | H31: 75 | Y31: =$G31/[0]!Poids * ( (A*EXP(-alpha*(Y$15-$H31))) + (B*EXP(-bêta*(Y$15-$H31))) + (_C*EXP(-gamma*(Y$15-$H31 ))) ) -> 0 | Z31: =$G31/[0]!Poids * ( (A*EXP(-alpha*(Z$15-$H31))) + (B*EXP(-bêta*(Z$15-$H31))) + (_C*EXP(-gamma*(Z$15-$H31 ))) ) -> 0 | AA31: =$G31/[0]!Poids * ( (A*EXP(-alpha*(AA$15-$H31))) + (B*EXP(-bêta*(AA$15-$H31))) + (_C*EXP(-gamma*(AA$15-$H31 ))) ) -> 0 | AB31: =$G31/[0]!Poids * ( (A*EXP(-alpha*(AB$15-$H31))) + (B*EXP(-bêta*(AB$15-$H31))) + (_C*EXP(-gamma*(AB$15-$H31 ))) ) -> 0 | AC31: =$G31/[0]!Poids * ( (A*EXP(-alpha*(AC$15-$H31))) + (B*EXP(-bêta*(AC$15-$H31))) + (_C*EXP(-gamma*(AC$15-$H31 ))) ) -> 0 | AD31: =$G31/[0]!Poids * ( (A*EXP(-alpha*(AD$15-$H31))) + (B*EXP(-bêta*(AD$15-$H31))) + (_C*EXP(-gamma*(AD$15-$H31 ))) ) -> 0 | AE31: =$G31/[0]!Poids * ( (A*EXP(-alpha*(AE$15-$H31))) + (B*EXP(-bêta*(AE$15-$H31))) + (_C*EXP(-gamma*(AE$15-$H31 ))) ) -> 0 | AF31: =$G31/[0]!Poids * ( (A*EXP(-alpha*(AF$15-$H31))) + (B*EXP(-bêta*(AF$15-$H31))) + (_C*EXP(-gamma*(AF$15-$H31 ))) ) -> 0 | AG31: =$G31/[0]!Poids * ( (A*EXP(-alpha*(AG$15-$H31))) + (B*EXP(-bêta*(AG$15-$H31))) + (_C*EXP(-gamma*(AG$15-$H31 ))) ) -> 0 | AH31: =$G31/[0]!Poids * ( (A*EXP(-alpha*(AH$15-$H31))) + (B*EXP(-bêta*(AH$15-$H31))) + (_C*EXP(-gamma*(AH$15-$H31 ))) ) -> 0 | AI31: =$G31/[0]!Poids * ( (A*EXP(-alpha*(AI$15-$H31))) + (B*EXP(-bêta*(AI$15-$H31))) + (_C*EXP(-gamma*(AI$15-$H31 ))) ) -> 0 | AJ31: =$G31/[0]!Poids * ( (A*EXP(-alpha*(AJ$15-$H31))) + (B*EXP(-bêta*(AJ$15-$H31))) + (_C*EXP(-gamma*(AJ$15-$H31 ))) ) -> 0 | AK31: =$G31/[0]!Poids * ( (A*EXP(-alpha*(AK$15-$H31))) + (B*EXP(-bêta*(AK$15-$H31))) + (_C*EXP(-gamma*(AK$15-$H31 ))) ) -> 0 | AL31: =$G31/[0]!Poids * ( (A*EXP(-alpha*(AL$15-$H31))) + (B*EXP(-bêta*(AL$15-$H31))) + (_C*EXP(-gamma*(AL$15-$H31 ))) ) -> 0 | AM31: =$G31/[0]!Poids * ( (A*EXP(-alpha*(AM$15-$H31))) + (B*EXP(-bêta*(AM$15-$H31))) + (_C*EXP(-gamma*(AM$15-$H31 ))) ) -> 0 | AN31: =$G31/[0]!Poids * ( (A*EXP(-alpha*(AN$15-$H31))) + (B*EXP(-bêta*(AN$15-$H31))) + (_C*EXP(-gamma*(AN$15-$H31 ))) ) -> 0 | AO31: =$G31/[0]!Poids * ( (A*EXP(-alpha*(AO$15-$H31))) + (B*EXP(-bêta*(AO$15-$H31))) + (_C*EXP(-gamma*(AO$15-$H31 ))) ) -> 0 | AP31: =$G31/[0]!Poids * ( (A*EXP(-alpha*(AP$15-$H31))) + (B*EXP(-bêta*(AP$15-$H31))) + (_C*EXP(-gamma*(AP$15-$H31 ))) ) -> 0 | AQ31: =$G31/[0]!Poids * ( (A*EXP(-alpha*(AQ$15-$H31))) + (B*EXP(-bêta*(AQ$15-$H31))) + (_C*EXP(-gamma*(AQ$15-$H31 ))) ) -> 0 | AR31: =$G31/[0]!Poids * ( (A*EXP(-alpha*(AR$15-$H31))) + (B*EXP(-bêta*(AR$15-$H31))) + (_C*EXP(-gamma*(AR$15-$H31 ))) ) -> 0 | AS31: =$G31/[0]!Poids * ( (A*EXP(-alpha*(AS$15-$H31))) + (B*EXP(-bêta*(AS$15-$H31))) + (_C*EXP(-gamma*(AS$15-$H31 ))) ) -> 0 | AT31: =$G31/[0]!Poids * ( (A*EXP(-alpha*(AT$15-$H31))) + (B*EXP(-bêta*(AT$15-$H31))) + (_C*EXP(-gamma*(AT$15-$H31 ))) ) -> 0 | AU31: =$G31/[0]!Poids * ( (A*EXP(-alpha*(AU$15-$H31))) + (B*EXP(-bêta*(AU$15-$H31))) + (_C*EXP(-gamma*(AU$15-$H31 ))) ) -> 0 | AV31: =$G31/[0]!Poids * ( (A*EXP(-alpha*(AV$15-$H31))) + (B*EXP(-bêta*(AV$15-$H31))) + (_C*EXP(-gamma*(AV$15-$H31 ))) ) -> 0 | AW31: =$G31/[0]!Poids * ( (A*EXP(-alpha*(AW$15-$H31))) + (B*EXP(-bêta*(AW$15-$H31))) + (_C*EXP(-gamma*(AW$15-$H31 ))) ) -> 0 | AX31: =$G31/[0]!Poids * ( (A*EXP(-alpha*(AX$15-$H31))) + (B*EXP(-bêta*(AX$15-$H31))) + (_C*EXP(-gamma*(AX$15-$H31 ))) ) -> 0 | AY31: =$G31/[0]!Poids * ( (A*EXP(-alpha*(AY$15-$H31))) + (B*EXP(-bêta*(AY$15-$H31))) + (_C*EXP(-gamma*(AY$15-$H31 ))) ) -> 0 | AZ31: =$G31/[0]!Poids * ( (A*EXP(-alpha*(AZ$15-$H31))) + (B*EXP(-bêta*(AZ$15-$H31))) + (_C*EXP(-gamma*(AZ$15-$H31 ))) ) -> 0 | BA31: =$G31/[0]!Poids * ( (A*EXP(-alpha*(BA$15-$H31))) + (B*EXP(-bêta*(BA$15-$H31))) + (_C*EXP(-gamma*(BA$15-$H31 ))) ) -> 0 | BB31: =$G31/[0]!Poids * ( (A*EXP(-alpha*(BB$15-$H31))) + (B*EXP(-bêta*(BB$15-$H31))) + (_C*EXP(-gamma*(BB$15-$H31 ))) ) -> 0 | BC31: =$G31/[0]!Poids * ( (A*EXP(-alpha*(BC$15-$H31))) + (B*EXP(-bêta*(BC$15-$H31))) + (_C*EXP(-gamma*(BC$15-$H31 ))) ) -> 0 | BD31: =$G31/[0]!Poids * ( (A*EXP(-alpha*(BD$15-$H31))) + (B*EXP(-bêta*(BD$15-$H31))) + (_C*EXP(-gamma*(BD$15-$H31 ))) ) -> 0 | BE31: =$G31/[0]!Poids * ( (A*EXP(-alpha*(BE$15-$H31))) + (B*EXP(-bêta*(BE$15-$H31))) + (_C*EXP(-gamma*(BE$15-$H31 ))) ) -> 0 | BF31: =$G31/[0]!Poids * ( (A*EXP(-alpha*(BF$15-$H31))) + (B*EXP(-bêta*(BF$15-$H31))) + (_C*EXP(-gamma*(BF$15-$H31 ))) ) -> 0 | BG31: =$G31/[0]!Poids * ( (A*EXP(-alpha*(BG$15-$H31))) + (B*EXP(-bêta*(BG$15-$H31))) + (_C*EXP(-gamma*(BG$15-$H31 ))) ) -> 0 | BH31: =$G31/[0]!Poids * ( (A*EXP(-alpha*(BH$15-$H31))) + (B*EXP(-bêta*(BH$15-$H31))) + (_C*EXP(-gamma*(BH$15-$H31 ))) ) -> 0 | BI31: =$G31/[0]!Poids * ( (A*EXP(-alpha*(BI$15-$H31))) + (B*EXP(-bêta*(BI$15-$H31))) + (_C*EXP(-gamma*(BI$15-$H31 ))) ) -> 0 | BJ31: =$G31/[0]!Poids * ( (A*EXP(-alpha*(BJ$15-$H31))) + (B*EXP(-bêta*(BJ$15-$H31))) + (_C*EXP(-gamma*(BJ$15-$H31 ))) ) -> 0 | BK31: =$G31/[0]!Poids * ( (A*EXP(-alpha*(BK$15-$H31))) + (B*EXP(-bêta*(BK$15-$H31))) + (_C*EXP(-gamma*(BK$15-$H31 ))) ) -> 0 | BL31: =$G31/[0]!Poids * ( (A*EXP(-alpha*(BL$15-$H31))) + (B*EXP(-bêta*(BL$15-$H31))) + (_C*EXP(-gamma*(BL$15-$H31 ))) ) -> 0 | BM31: =$G31/[0]!Poids * ( (A*EXP(-alpha*(BM$15-$H31))) + (B*EXP(-bêta*(BM$15-$H31))) + (_C*EXP(-gamma*(BM$15-$H31 ))) ) -> 0 | BN31: =$G31/[0]!Poids * ( (A*EXP(-alpha*(BN$15-$H31))) + (B*EXP(-bêta*(BN$15-$H31))) + (_C*EXP(-gamma*(BN$15-$H31 ))) ) -> 0 | BO31: =$G31/[0]!Poids * ( (A*EXP(-alpha*(BO$15-$H31))) + (B*EXP(-bêta*(BO$15-$H31))) + (_C*EXP(-gamma*(BO$15-$H31 ))) ) -> 0 | BP31: =$G31/[0]!Poids * ( (A*EXP(-alpha*(BP$15-$H31))) + (B*EXP(-bêta*(BP$15-$H31))) + (_C*EXP(-gamma*(BP$15-$H31 ))) ) -> 0 | BQ31: =$G31/[0]!Poids * ( (A*EXP(-alpha*(BQ$15-$H31))) + (B*EXP(-bêta*(BQ$15-$H31))) + (_C*EXP(-gamma*(BQ$15-$H31 ))) ) -> 0 | BR31: =$G31/[0]!Poids * ( (A*EXP(-alpha*(BR$15-$H31))) + (B*EXP(-bêta*(BR$15-$H31))) + (_C*EXP(-gamma*(BR$15-$H31 ))) ) -> 0
B32: poids | C32: dose | D32: temps | G32: =Z$10 -> 0 | H32: 80 | Z32: =$G32/[0]!Poids * ( (A*EXP(-alpha*(Z$15-$H32))) + (B*EXP(-bêta*(Z$15-$H32))) + (_C*EXP(-gamma*(Z$15-$H32 ))) ) -> 0 | AA32: =$G32/[0]!Poids * ( (A*EXP(-alpha*(AA$15-$H32))) + (B*EXP(-bêta*(AA$15-$H32))) + (_C*EXP(-gamma*(AA$15-$H32 ))) ) -> 0 | AB32: =$G32/[0]!Poids * ( (A*EXP(-alpha*(AB$15-$H32))) + (B*EXP(-bêta*(AB$15-$H32))) + (_C*EXP(-gamma*(AB$15-$H32 ))) ) -> 0 | AC32: =$G32/[0]!Poids * ( (A*EXP(-alpha*(AC$15-$H32))) + (B*EXP(-bêta*(AC$15-$H32))) + (_C*EXP(-gamma*(AC$15-$H32 ))) ) -> 0 | AD32: =$G32/[0]!Poids * ( (A*EXP(-alpha*(AD$15-$H32))) + (B*EXP(-bêta*(AD$15-$H32))) + (_C*EXP(-gamma*(AD$15-$H32 ))) ) -> 0 | AE32: =$G32/[0]!Poids * ( (A*EXP(-alpha*(AE$15-$H32))) + (B*EXP(-bêta*(AE$15-$H32))) + (_C*EXP(-gamma*(AE$15-$H32 ))) ) -> 0 | AF32: =$G32/[0]!Poids * ( (A*EXP(-alpha*(AF$15-$H32))) + (B*EXP(-bêta*(AF$15-$H32))) + (_C*EXP(-gamma*(AF$15-$H32 ))) ) -> 0 | AG32: =$G32/[0]!Poids * ( (A*EXP(-alpha*(AG$15-$H32))) + (B*EXP(-bêta*(AG$15-$H32))) + (_C*EXP(-gamma*(AG$15-$H32 ))) ) -> 0 | AH32: =$G32/[0]!Poids * ( (A*EXP(-alpha*(AH$15-$H32))) + (B*EXP(-bêta*(AH$15-$H32))) + (_C*EXP(-gamma*(AH$15-$H32 ))) ) -> 0 | AI32: =$G32/[0]!Poids * ( (A*EXP(-alpha*(AI$15-$H32))) + (B*EXP(-bêta*(AI$15-$H32))) + (_C*EXP(-gamma*(AI$15-$H32 ))) ) -> 0 | AJ32: =$G32/[0]!Poids * ( (A*EXP(-alpha*(AJ$15-$H32))) + (B*EXP(-bêta*(AJ$15-$H32))) + (_C*EXP(-gamma*(AJ$15-$H32 ))) ) -> 0 | AK32: =$G32/[0]!Poids * ( (A*EXP(-alpha*(AK$15-$H32))) + (B*EXP(-bêta*(AK$15-$H32))) + (_C*EXP(-gamma*(AK$15-$H32 ))) ) -> 0 | AL32: =$G32/[0]!Poids * ( (A*EXP(-alpha*(AL$15-$H32))) + (B*EXP(-bêta*(AL$15-$H32))) + (_C*EXP(-gamma*(AL$15-$H32 ))) ) -> 0 | AM32: =$G32/[0]!Poids * ( (A*EXP(-alpha*(AM$15-$H32))) + (B*EXP(-bêta*(AM$15-$H32))) + (_C*EXP(-gamma*(AM$15-$H32 ))) ) -> 0 | AN32: =$G32/[0]!Poids * ( (A*EXP(-alpha*(AN$15-$H32))) + (B*EXP(-bêta*(AN$15-$H32))) + (_C*EXP(-gamma*(AN$15-$H32 ))) ) -> 0 | AO32: =$G32/[0]!Poids * ( (A*EXP(-alpha*(AO$15-$H32))) + (B*EXP(-bêta*(AO$15-$H32))) + (_C*EXP(-gamma*(AO$15-$H32 ))) ) -> 0 | AP32: =$G32/[0]!Poids * ( (A*EXP(-alpha*(AP$15-$H32))) + (B*EXP(-bêta*(AP$15-$H32))) + (_C*EXP(-gamma*(AP$15-$H32 ))) ) -> 0 | AQ32: =$G32/[0]!Poids * ( (A*EXP(-alpha*(AQ$15-$H32))) + (B*EXP(-bêta*(AQ$15-$H32))) + (_C*EXP(-gamma*(AQ$15-$H32 ))) ) -> 0 | AR32: =$G32/[0]!Poids * ( (A*EXP(-alpha*(AR$15-$H32))) + (B*EXP(-bêta*(AR$15-$H32))) + (_C*EXP(-gamma*(AR$15-$H32 ))) ) -> 0 | AS32: =$G32/[0]!Poids * ( (A*EXP(-alpha*(AS$15-$H32))) + (B*EXP(-bêta*(AS$15-$H32))) + (_C*EXP(-gamma*(AS$15-$H32 ))) ) -> 0 | AT32: =$G32/[0]!Poids * ( (A*EXP(-alpha*(AT$15-$H32))) + (B*EXP(-bêta*(AT$15-$H32))) + (_C*EXP(-gamma*(AT$15-$H32 ))) ) -> 0 | AU32: =$G32/[0]!Poids * ( (A*EXP(-alpha*(AU$15-$H32))) + (B*EXP(-bêta*(AU$15-$H32))) + (_C*EXP(-gamma*(AU$15-$H32 ))) ) -> 0 | AV32: =$G32/[0]!Poids * ( (A*EXP(-alpha*(AV$15-$H32))) + (B*EXP(-bêta*(AV$15-$H32))) + (_C*EXP(-gamma*(AV$15-$H32 ))) ) -> 0 | AW32: =$G32/[0]!Poids * ( (A*EXP(-alpha*(AW$15-$H32))) + (B*EXP(-bêta*(AW$15-$H32))) + (_C*EXP(-gamma*(AW$15-$H32 ))) ) -> 0 | AX32: =$G32/[0]!Poids * ( (A*EXP(-alpha*(AX$15-$H32))) + (B*EXP(-bêta*(AX$15-$H32))) + (_C*EXP(-gamma*(AX$15-$H32 ))) ) -> 0 | AY32: =$G32/[0]!Poids * ( (A*EXP(-alpha*(AY$15-$H32))) + (B*EXP(-bêta*(AY$15-$H32))) + (_C*EXP(-gamma*(AY$15-$H32 ))) ) -> 0 | AZ32: =$G32/[0]!Poids * ( (A*EXP(-alpha*(AZ$15-$H32))) + (B*EXP(-bêta*(AZ$15-$H32))) + (_C*EXP(-gamma*(AZ$15-$H32 ))) ) -> 0 | BA32: =$G32/[0]!Poids * ( (A*EXP(-alpha*(BA$15-$H32))) + (B*EXP(-bêta*(BA$15-$H32))) + (_C*EXP(-gamma*(BA$15-$H32 ))) ) -> 0 | BB32: =$G32/[0]!Poids * ( (A*EXP(-alpha*(BB$15-$H32))) + (B*EXP(-bêta*(BB$15-$H32))) + (_C*EXP(-gamma*(BB$15-$H32 ))) ) -> 0 | BC32: =$G32/[0]!Poids * ( (A*EXP(-alpha*(BC$15-$H32))) + (B*EXP(-bêta*(BC$15-$H32))) + (_C*EXP(-gamma*(BC$15-$H32 ))) ) -> 0 | BD32: =$G32/[0]!Poids * ( (A*EXP(-alpha*(BD$15-$H32))) + (B*EXP(-bêta*(BD$15-$H32))) + (_C*EXP(-gamma*(BD$15-$H32 ))) ) -> 0 | BE32: =$G32/[0]!Poids * ( (A*EXP(-alpha*(BE$15-$H32))) + (B*EXP(-bêta*(BE$15-$H32))) + (_C*EXP(-gamma*(BE$15-$H32 ))) ) -> 0 | BF32: =$G32/[0]!Poids * ( (A*EXP(-alpha*(BF$15-$H32))) + (B*EXP(-bêta*(BF$15-$H32))) + (_C*EXP(-gamma*(BF$15-$H32 ))) ) -> 0 | BG32: =$G32/[0]!Poids * ( (A*EXP(-alpha*(BG$15-$H32))) + (B*EXP(-bêta*(BG$15-$H32))) + (_C*EXP(-gamma*(BG$15-$H32 ))) ) -> 0 | BH32: =$G32/[0]!Poids * ( (A*EXP(-alpha*(BH$15-$H32))) + (B*EXP(-bêta*(BH$15-$H32))) + (_C*EXP(-gamma*(BH$15-$H32 ))) ) -> 0 | BI32: =$G32/[0]!Poids * ( (A*EXP(-alpha*(BI$15-$H32))) + (B*EXP(-bêta*(BI$15-$H32))) + (_C*EXP(-gamma*(BI$15-$H32 ))) ) -> 0 | BJ32: =$G32/[0]!Poids * ( (A*EXP(-alpha*(BJ$15-$H32))) + (B*EXP(-bêta*(BJ$15-$H32))) + (_C*EXP(-gamma*(BJ$15-$H32 ))) ) -> 0 | BK32: =$G32/[0]!Poids * ( (A*EXP(-alpha*(BK$15-$H32))) + (B*EXP(-bêta*(BK$15-$H32))) + (_C*EXP(-gamma*(BK$15-$H32 ))) ) -> 0 | BL32: =$G32/[0]!Poids * ( (A*EXP(-alpha*(BL$15-$H32))) + (B*EXP(-bêta*(BL$15-$H32))) + (_C*EXP(-gamma*(BL$15-$H32 ))) ) -> 0 | BM32: =$G32/[0]!Poids * ( (A*EXP(-alpha*(BM$15-$H32))) + (B*EXP(-bêta*(BM$15-$H32))) + (_C*EXP(-gamma*(BM$15-$H32 ))) ) -> 0 | BN32: =$G32/[0]!Poids * ( (A*EXP(-alpha*(BN$15-$H32))) + (B*EXP(-bêta*(BN$15-$H32))) + (_C*EXP(-gamma*(BN$15-$H32 ))) ) -> 0 | BO32: =$G32/[0]!Poids * ( (A*EXP(-alpha*(BO$15-$H32))) + (B*EXP(-bêta*(BO$15-$H32))) + (_C*EXP(-gamma*(BO$15-$H32 ))) ) -> 0 | BP32: =$G32/[0]!Poids * ( (A*EXP(-alpha*(BP$15-$H32))) + (B*EXP(-bêta*(BP$15-$H32))) + (_C*EXP(-gamma*(BP$15-$H32 ))) ) -> 0 | BQ32: =$G32/[0]!Poids * ( (A*EXP(-alpha*(BQ$15-$H32))) + (B*EXP(-bêta*(BQ$15-$H32))) + (_C*EXP(-gamma*(BQ$15-$H32 ))) ) -> 0 | BR32: =$G32/[0]!Poids * ( (A*EXP(-alpha*(BR$15-$H32))) + (B*EXP(-bêta*(BR$15-$H32))) + (_C*EXP(-gamma*(BR$15-$H32 ))) ) -> 0
B33: Kg | C33: mg | D33: 0 | G33: =AA$10 -> 0 | H33: 85 | AA33: =$G33/[0]!Poids * ( (A*EXP(-alpha*(AA$15-$H33))) + (B*EXP(-bêta*(AA$15-$H33))) + (_C*EXP(-gamma*(AA$15-$H33 ))) ) -> 0 | AB33: =$G33/[0]!Poids * ( (A*EXP(-alpha*(AB$15-$H33))) + (B*EXP(-bêta*(AB$15-$H33))) + (_C*EXP(-gamma*(AB$15-$H33 ))) ) -> 0 | AC33: =$G33/[0]!Poids * ( (A*EXP(-alpha*(AC$15-$H33))) + (B*EXP(-bêta*(AC$15-$H33))) + (_C*EXP(-gamma*(AC$15-$H33 ))) ) -> 0 | AD33: =$G33/[0]!Poids * ( (A*EXP(-alpha*(AD$15-$H33))) + (B*EXP(-bêta*(AD$15-$H33))) + (_C*EXP(-gamma*(AD$15-$H33 ))) ) -> 0 | AE33: =$G33/[0]!Poids * ( (A*EXP(-alpha*(AE$15-$H33))) + (B*EXP(-bêta*(AE$15-$H33))) + (_C*EXP(-gamma*(AE$15-$H33 ))) ) -> 0 | AF33: =$G33/[0]!Poids * ( (A*EXP(-alpha*(AF$15-$H33))) + (B*EXP(-bêta*(AF$15-$H33))) + (_C*EXP(-gamma*(AF$15-$H33 ))) ) -> 0 | AG33: =$G33/[0]!Poids * ( (A*EXP(-alpha*(AG$15-$H33))) + (B*EXP(-bêta*(AG$15-$H33))) + (_C*EXP(-gamma*(AG$15-$H33 ))) ) -> 0 | AH33: =$G33/[0]!Poids * ( (A*EXP(-alpha*(AH$15-$H33))) + (B*EXP(-bêta*(AH$15-$H33))) + (_C*EXP(-gamma*(AH$15-$H33 ))) ) -> 0 | AI33: =$G33/[0]!Poids * ( (A*EXP(-alpha*(AI$15-$H33))) + (B*EXP(-bêta*(AI$15-$H33))) + (_C*EXP(-gamma*(AI$15-$H33 ))) ) -> 0 | AJ33: =$G33/[0]!Poids * ( (A*EXP(-alpha*(AJ$15-$H33))) + (B*EXP(-bêta*(AJ$15-$H33))) + (_C*EXP(-gamma*(AJ$15-$H33 ))) ) -> 0 | AK33: =$G33/[0]!Poids * ( (A*EXP(-alpha*(AK$15-$H33))) + (B*EXP(-bêta*(AK$15-$H33))) + (_C*EXP(-gamma*(AK$15-$H33 ))) ) -> 0 | AL33: =$G33/[0]!Poids * ( (A*EXP(-alpha*(AL$15-$H33))) + (B*EXP(-bêta*(AL$15-$H33))) + (_C*EXP(-gamma*(AL$15-$H33 ))) ) -> 0 | AM33: =$G33/[0]!Poids * ( (A*EXP(-alpha*(AM$15-$H33))) + (B*EXP(-bêta*(AM$15-$H33))) + (_C*EXP(-gamma*(AM$15-$H33 ))) ) -> 0 | AN33: =$G33/[0]!Poids * ( (A*EXP(-alpha*(AN$15-$H33))) + (B*EXP(-bêta*(AN$15-$H33))) + (_C*EXP(-gamma*(AN$15-$H33 ))) ) -> 0 | AO33: =$G33/[0]!Poids * ( (A*EXP(-alpha*(AO$15-$H33))) + (B*EXP(-bêta*(AO$15-$H33))) + (_C*EXP(-gamma*(AO$15-$H33 ))) ) -> 0 | AP33: =$G33/[0]!Poids * ( (A*EXP(-alpha*(AP$15-$H33))) + (B*EXP(-bêta*(AP$15-$H33))) + (_C*EXP(-gamma*(AP$15-$H33 ))) ) -> 0 | AQ33: =$G33/[0]!Poids * ( (A*EXP(-alpha*(AQ$15-$H33))) + (B*EXP(-bêta*(AQ$15-$H33))) + (_C*EXP(-gamma*(AQ$15-$H33 ))) ) -> 0 | AR33: =$G33/[0]!Poids * ( (A*EXP(-alpha*(AR$15-$H33))) + (B*EXP(-bêta*(AR$15-$H33))) + (_C*EXP(-gamma*(AR$15-$H33 ))) ) -> 0 | AS33: =$G33/[0]!Poids * ( (A*EXP(-alpha*(AS$15-$H33))) + (B*EXP(-bêta*(AS$15-$H33))) + (_C*EXP(-gamma*(AS$15-$H33 ))) ) -> 0 | AT33: =$G33/[0]!Poids * ( (A*EXP(-alpha*(AT$15-$H33))) + (B*EXP(-bêta*(AT$15-$H33))) + (_C*EXP(-gamma*(AT$15-$H33 ))) ) -> 0 | AU33: =$G33/[0]!Poids * ( (A*EXP(-alpha*(AU$15-$H33))) + (B*EXP(-bêta*(AU$15-$H33))) + (_C*EXP(-gamma*(AU$15-$H33 ))) ) -> 0 | AV33: =$G33/[0]!Poids * ( (A*EXP(-alpha*(AV$15-$H33))) + (B*EXP(-bêta*(AV$15-$H33))) + (_C*EXP(-gamma*(AV$15-$H33 ))) ) -> 0 | AW33: =$G33/[0]!Poids * ( (A*EXP(-alpha*(AW$15-$H33))) + (B*EXP(-bêta*(AW$15-$H33))) + (_C*EXP(-gamma*(AW$15-$H33 ))) ) -> 0 | AX33: =$G33/[0]!Poids * ( (A*EXP(-alpha*(AX$15-$H33))) + (B*EXP(-bêta*(AX$15-$H33))) + (_C*EXP(-gamma*(AX$15-$H33 ))) ) -> 0 | AY33: =$G33/[0]!Poids * ( (A*EXP(-alpha*(AY$15-$H33))) + (B*EXP(-bêta*(AY$15-$H33))) + (_C*EXP(-gamma*(AY$15-$H33 ))) ) -> 0 | AZ33: =$G33/[0]!Poids * ( (A*EXP(-alpha*(AZ$15-$H33))) + (B*EXP(-bêta*(AZ$15-$H33))) + (_C*EXP(-gamma*(AZ$15-$H33 ))) ) -> 0 | BA33: =$G33/[0]!Poids * ( (A*EXP(-alpha*(BA$15-$H33))) + (B*EXP(-bêta*(BA$15-$H33))) + (_C*EXP(-gamma*(BA$15-$H33 ))) ) -> 0 | BB33: =$G33/[0]!Poids * ( (A*EXP(-alpha*(BB$15-$H33))) + (B*EXP(-bêta*(BB$15-$H33))) + (_C*EXP(-gamma*(BB$15-$H33 ))) ) -> 0 | BC33: =$G33/[0]!Poids * ( (A*EXP(-alpha*(BC$15-$H33))) + (B*EXP(-bêta*(BC$15-$H33))) + (_C*EXP(-gamma*(BC$15-$H33 ))) ) -> 0 | BD33: =$G33/[0]!Poids * ( (A*EXP(-alpha*(BD$15-$H33))) + (B*EXP(-bêta*(BD$15-$H33))) + (_C*EXP(-gamma*(BD$15-$H33 ))) ) -> 0 | BE33: =$G33/[0]!Poids * ( (A*EXP(-alpha*(BE$15-$H33))) + (B*EXP(-bêta*(BE$15-$H33))) + (_C*EXP(-gamma*(BE$15-$H33 ))) ) -> 0 | BF33: =$G33/[0]!Poids * ( (A*EXP(-alpha*(BF$15-$H33))) + (B*EXP(-bêta*(BF$15-$H33))) + (_C*EXP(-gamma*(BF$15-$H33 ))) ) -> 0 | BG33: =$G33/[0]!Poids * ( (A*EXP(-alpha*(BG$15-$H33))) + (B*EXP(-bêta*(BG$15-$H33))) + (_C*EXP(-gamma*(BG$15-$H33 ))) ) -> 0 | BH33: =$G33/[0]!Poids * ( (A*EXP(-alpha*(BH$15-$H33))) + (B*EXP(-bêta*(BH$15-$H33))) + (_C*EXP(-gamma*(BH$15-$H33 ))) ) -> 0 | BI33: =$G33/[0]!Poids * ( (A*EXP(-alpha*(BI$15-$H33))) + (B*EXP(-bêta*(BI$15-$H33))) + (_C*EXP(-gamma*(BI$15-$H33 ))) ) -> 0 | BJ33: =$G33/[0]!Poids * ( (A*EXP(-alpha*(BJ$15-$H33))) + (B*EXP(-bêta*(BJ$15-$H33))) + (_C*EXP(-gamma*(BJ$15-$H33 ))) ) -> 0 | BK33: =$G33/[0]!Poids * ( (A*EXP(-alpha*(BK$15-$H33))) + (B*EXP(-bêta*(BK$15-$H33))) + (_C*EXP(-gamma*(BK$15-$H33 ))) ) -> 0 | BL33: =$G33/[0]!Poids * ( (A*EXP(-alpha*(BL$15-$H33))) + (B*EXP(-bêta*(BL$15-$H33))) + (_C*EXP(-gamma*(BL$15-$H33 ))) ) -> 0 | BM33: =$G33/[0]!Poids * ( (A*EXP(-alpha*(BM$15-$H33))) + (B*EXP(-bêta*(BM$15-$H33))) + (_C*EXP(-gamma*(BM$15-$H33 ))) ) -> 0 | BN33: =$G33/[0]!Poids * ( (A*EXP(-alpha*(BN$15-$H33))) + (B*EXP(-bêta*(BN$15-$H33))) + (_C*EXP(-gamma*(BN$15-$H33 ))) ) -> 0 | BO33: =$G33/[0]!Poids * ( (A*EXP(-alpha*(BO$15-$H33))) + (B*EXP(-bêta*(BO$15-$H33))) + (_C*EXP(-gamma*(BO$15-$H33 ))) ) -> 0 | BP33: =$G33/[0]!Poids * ( (A*EXP(-alpha*(BP$15-$H33))) + (B*EXP(-bêta*(BP$15-$H33))) + (_C*EXP(-gamma*(BP$15-$H33 ))) ) -> 0 | BQ33: =$G33/[0]!Poids * ( (A*EXP(-alpha*(BQ$15-$H33))) + (B*EXP(-bêta*(BQ$15-$H33))) + (_C*EXP(-gamma*(BQ$15-$H33 ))) ) -> 0 | BR33: =$G33/[0]!Poids * ( (A*EXP(-alpha*(BR$15-$H33))) + (B*EXP(-bêta*(BR$15-$H33))) + (_C*EXP(-gamma*(BR$15-$H33 ))) ) -> 0
B34: 70 | C34: 140 | D34: =C34/B34 * ( (A*EXP(-alpha*(D33))) + (B*EXP(-bêta*(D33))) + (_C*EXP(-gamma*(D33 ))) ) -> 16837 | E34: ng | G34: =AB$10 -> 0 | H34: 90 | AB34: =$G34/[0]!Poids * ( (A*EXP(-alpha*(AB$15-$H34))) + (B*EXP(-bêta*(AB$15-$H34))) + (_C*EXP(-gamma*(AB$15-$H34 ))) ) -> 0 | AC34: =$G34/[0]!Poids * ( (A*EXP(-alpha*(AC$15-$H34))) + (B*EXP(-bêta*(AC$15-$H34))) + (_C*EXP(-gamma*(AC$15-$H34 ))) ) -> 0 | AD34: =$G34/[0]!Poids * ( (A*EXP(-alpha*(AD$15-$H34))) + (B*EXP(-bêta*(AD$15-$H34))) + (_C*EXP(-gamma*(AD$15-$H34 ))) ) -> 0 | AE34: =$G34/[0]!Poids * ( (A*EXP(-alpha*(AE$15-$H34))) + (B*EXP(-bêta*(AE$15-$H34))) + (_C*EXP(-gamma*(AE$15-$H34 ))) ) -> 0 | AF34: =$G34/[0]!Poids * ( (A*EXP(-alpha*(AF$15-$H34))) + (B*EXP(-bêta*(AF$15-$H34))) + (_C*EXP(-gamma*(AF$15-$H34 ))) ) -> 0 | AG34: =$G34/[0]!Poids * ( (A*EXP(-alpha*(AG$15-$H34))) + (B*EXP(-bêta*(AG$15-$H34))) + (_C*EXP(-gamma*(AG$15-$H34 ))) ) -> 0 | AH34: =$G34/[0]!Poids * ( (A*EXP(-alpha*(AH$15-$H34))) + (B*EXP(-bêta*(AH$15-$H34))) + (_C*EXP(-gamma*(AH$15-$H34 ))) ) -> 0 | AI34: =$G34/[0]!Poids * ( (A*EXP(-alpha*(AI$15-$H34))) + (B*EXP(-bêta*(AI$15-$H34))) + (_C*EXP(-gamma*(AI$15-$H34 ))) ) -> 0 | AJ34: =$G34/[0]!Poids * ( (A*EXP(-alpha*(AJ$15-$H34))) + (B*EXP(-bêta*(AJ$15-$H34))) + (_C*EXP(-gamma*(AJ$15-$H34 ))) ) -> 0 | AK34: =$G34/[0]!Poids * ( (A*EXP(-alpha*(AK$15-$H34))) + (B*EXP(-bêta*(AK$15-$H34))) + (_C*EXP(-gamma*(AK$15-$H34 ))) ) -> 0 | AL34: =$G34/[0]!Poids * ( (A*EXP(-alpha*(AL$15-$H34))) + (B*EXP(-bêta*(AL$15-$H34))) + (_C*EXP(-gamma*(AL$15-$H34 ))) ) -> 0 | AM34: =$G34/[0]!Poids * ( (A*EXP(-alpha*(AM$15-$H34))) + (B*EXP(-bêta*(AM$15-$H34))) + (_C*EXP(-gamma*(AM$15-$H34 ))) ) -> 0 | AN34: =$G34/[0]!Poids * ( (A*EXP(-alpha*(AN$15-$H34))) + (B*EXP(-bêta*(AN$15-$H34))) + (_C*EXP(-gamma*(AN$15-$H34 ))) ) -> 0 | AO34: =$G34/[0]!Poids * ( (A*EXP(-alpha*(AO$15-$H34))) + (B*EXP(-bêta*(AO$15-$H34))) + (_C*EXP(-gamma*(AO$15-$H34 ))) ) -> 0 | AP34: =$G34/[0]!Poids * ( (A*EXP(-alpha*(AP$15-$H34))) + (B*EXP(-bêta*(AP$15-$H34))) + (_C*EXP(-gamma*(AP$15-$H34 ))) ) -> 0 | AQ34: =$G34/[0]!Poids * ( (A*EXP(-alpha*(AQ$15-$H34))) + (B*EXP(-bêta*(AQ$15-$H34))) + (_C*EXP(-gamma*(AQ$15-$H34 ))) ) -> 0 | AR34: =$G34/[0]!Poids * ( (A*EXP(-alpha*(AR$15-$H34))) + (B*EXP(-bêta*(AR$15-$H34))) + (_C*EXP(-gamma*(AR$15-$H34 ))) ) -> 0 | AS34: =$G34/[0]!Poids * ( (A*EXP(-alpha*(AS$15-$H34))) + (B*EXP(-bêta*(AS$15-$H34))) + (_C*EXP(-gamma*(AS$15-$H34 ))) ) -> 0 | AT34: =$G34/[0]!Poids * ( (A*EXP(-alpha*(AT$15-$H34))) + (B*EXP(-bêta*(AT$15-$H34))) + (_C*EXP(-gamma*(AT$15-$H34 ))) ) -> 0 | AU34: =$G34/[0]!Poids * ( (A*EXP(-alpha*(AU$15-$H34))) + (B*EXP(-bêta*(AU$15-$H34))) + (_C*EXP(-gamma*(AU$15-$H34 ))) ) -> 0 | AV34: =$G34/[0]!Poids * ( (A*EXP(-alpha*(AV$15-$H34))) + (B*EXP(-bêta*(AV$15-$H34))) + (_C*EXP(-gamma*(AV$15-$H34 ))) ) -> 0 | AW34: =$G34/[0]!Poids * ( (A*EXP(-alpha*(AW$15-$H34))) + (B*EXP(-bêta*(AW$15-$H34))) + (_C*EXP(-gamma*(AW$15-$H34 ))) ) -> 0 | AX34: =$G34/[0]!Poids * ( (A*EXP(-alpha*(AX$15-$H34))) + (B*EXP(-bêta*(AX$15-$H34))) + (_C*EXP(-gamma*(AX$15-$H34 ))) ) -> 0 | AY34: =$G34/[0]!Poids * ( (A*EXP(-alpha*(AY$15-$H34))) + (B*EXP(-bêta*(AY$15-$H34))) + (_C*EXP(-gamma*(AY$15-$H34 ))) ) -> 0 | AZ34: =$G34/[0]!Poids * ( (A*EXP(-alpha*(AZ$15-$H34))) + (B*EXP(-bêta*(AZ$15-$H34))) + (_C*EXP(-gamma*(AZ$15-$H34 ))) ) -> 0 | BA34: =$G34/[0]!Poids * ( (A*EXP(-alpha*(BA$15-$H34))) + (B*EXP(-bêta*(BA$15-$H34))) + (_C*EXP(-gamma*(BA$15-$H34 ))) ) -> 0 | BB34: =$G34/[0]!Poids * ( (A*EXP(-alpha*(BB$15-$H34))) + (B*EXP(-bêta*(BB$15-$H34))) + (_C*EXP(-gamma*(BB$15-$H34 ))) ) -> 0 | BC34: =$G34/[0]!Poids * ( (A*EXP(-alpha*(BC$15-$H34))) + (B*EXP(-bêta*(BC$15-$H34))) + (_C*EXP(-gamma*(BC$15-$H34 ))) ) -> 0 | BD34: =$G34/[0]!Poids * ( (A*EXP(-alpha*(BD$15-$H34))) + (B*EXP(-bêta*(BD$15-$H34))) + (_C*EXP(-gamma*(BD$15-$H34 ))) ) -> 0 | BE34: =$G34/[0]!Poids * ( (A*EXP(-alpha*(BE$15-$H34))) + (B*EXP(-bêta*(BE$15-$H34))) + (_C*EXP(-gamma*(BE$15-$H34 ))) ) -> 0 | BF34: =$G34/[0]!Poids * ( (A*EXP(-alpha*(BF$15-$H34))) + (B*EXP(-bêta*(BF$15-$H34))) + (_C*EXP(-gamma*(BF$15-$H34 ))) ) -> 0 | BG34: =$G34/[0]!Poids * ( (A*EXP(-alpha*(BG$15-$H34))) + (B*EXP(-bêta*(BG$15-$H34))) + (_C*EXP(-gamma*(BG$15-$H34 ))) ) -> 0 | BH34: =$G34/[0]!Poids * ( (A*EXP(-alpha*(BH$15-$H34))) + (B*EXP(-bêta*(BH$15-$H34))) + (_C*EXP(-gamma*(BH$15-$H34 ))) ) -> 0 | BI34: =$G34/[0]!Poids * ( (A*EXP(-alpha*(BI$15-$H34))) + (B*EXP(-bêta*(BI$15-$H34))) + (_C*EXP(-gamma*(BI$15-$H34 ))) ) -> 0 | BJ34: =$G34/[0]!Poids * ( (A*EXP(-alpha*(BJ$15-$H34))) + (B*EXP(-bêta*(BJ$15-$H34))) + (_C*EXP(-gamma*(BJ$15-$H34 ))) ) -> 0 | BK34: =$G34/[0]!Poids * ( (A*EXP(-alpha*(BK$15-$H34))) + (B*EXP(-bêta*(BK$15-$H34))) + (_C*EXP(-gamma*(BK$15-$H34 ))) ) -> 0 | BL34: =$G34/[0]!Poids * ( (A*EXP(-alpha*(BL$15-$H34))) + (B*EXP(-bêta*(BL$15-$H34))) + (_C*EXP(-gamma*(BL$15-$H34 ))) ) -> 0 | BM34: =$G34/[0]!Poids * ( (A*EXP(-alpha*(BM$15-$H34))) + (B*EXP(-bêta*(BM$15-$H34))) + (_C*EXP(-gamma*(BM$15-$H34 ))) ) -> 0 | BN34: =$G34/[0]!Poids * ( (A*EXP(-alpha*(BN$15-$H34))) + (B*EXP(-bêta*(BN$15-$H34))) + (_C*EXP(-gamma*(BN$15-$H34 ))) ) -> 0 | BO34: =$G34/[0]!Poids * ( (A*EXP(-alpha*(BO$15-$H34))) + (B*EXP(-bêta*(BO$15-$H34))) + (_C*EXP(-gamma*(BO$15-$H34 ))) ) -> 0 | BP34: =$G34/[0]!Poids * ( (A*EXP(-alpha*(BP$15-$H34))) + (B*EXP(-bêta*(BP$15-$H34))) + (_C*EXP(-gamma*(BP$15-$H34 ))) ) -> 0 | BQ34: =$G34/[0]!Poids * ( (A*EXP(-alpha*(BQ$15-$H34))) + (B*EXP(-bêta*(BQ$15-$H34))) + (_C*EXP(-gamma*(BQ$15-$H34 ))) ) -> 0 | BR34: =$G34/[0]!Poids * ( (A*EXP(-alpha*(BR$15-$H34))) + (B*EXP(-bêta*(BR$15-$H34))) + (_C*EXP(-gamma*(BR$15-$H34 ))) ) -> 0
G35: =AC$10 -> 0 | H35: 95 | AC35: =$G35/[0]!Poids * ( (A*EXP(-alpha*(AC$15-$H35))) + (B*EXP(-bêta*(AC$15-$H35))) + (_C*EXP(-gamma*(AC$15-$H35 ))) ) -> 0 | AD35: =$G35/[0]!Poids * ( (A*EXP(-alpha*(AD$15-$H35))) + (B*EXP(-bêta*(AD$15-$H35))) + (_C*EXP(-gamma*(AD$15-$H35 ))) ) -> 0 | AE35: =$G35/[0]!Poids * ( (A*EXP(-alpha*(AE$15-$H35))) + (B*EXP(-bêta*(AE$15-$H35))) + (_C*EXP(-gamma*(AE$15-$H35 ))) ) -> 0 | AF35: =$G35/[0]!Poids * ( (A*EXP(-alpha*(AF$15-$H35))) + (B*EXP(-bêta*(AF$15-$H35))) + (_C*EXP(-gamma*(AF$15-$H35 ))) ) -> 0 | AG35: =$G35/[0]!Poids * ( (A*EXP(-alpha*(AG$15-$H35))) + (B*EXP(-bêta*(AG$15-$H35))) + (_C*EXP(-gamma*(AG$15-$H35 ))) ) -> 0 | AH35: =$G35/[0]!Poids * ( (A*EXP(-alpha*(AH$15-$H35))) + (B*EXP(-bêta*(AH$15-$H35))) + (_C*EXP(-gamma*(AH$15-$H35 ))) ) -> 0 | AI35: =$G35/[0]!Poids * ( (A*EXP(-alpha*(AI$15-$H35))) + (B*EXP(-bêta*(AI$15-$H35))) + (_C*EXP(-gamma*(AI$15-$H35 ))) ) -> 0 | AJ35: =$G35/[0]!Poids * ( (A*EXP(-alpha*(AJ$15-$H35))) + (B*EXP(-bêta*(AJ$15-$H35))) + (_C*EXP(-gamma*(AJ$15-$H35 ))) ) -> 0 | AK35: =$G35/[0]!Poids * ( (A*EXP(-alpha*(AK$15-$H35))) + (B*EXP(-bêta*(AK$15-$H35))) + (_C*EXP(-gamma*(AK$15-$H35 ))) ) -> 0 | AL35: =$G35/[0]!Poids * ( (A*EXP(-alpha*(AL$15-$H35))) + (B*EXP(-bêta*(AL$15-$H35))) + (_C*EXP(-gamma*(AL$15-$H35 ))) ) -> 0 | AM35: =$G35/[0]!Poids * ( (A*EXP(-alpha*(AM$15-$H35))) + (B*EXP(-bêta*(AM$15-$H35))) + (_C*EXP(-gamma*(AM$15-$H35 ))) ) -> 0 | AN35: =$G35/[0]!Poids * ( (A*EXP(-alpha*(AN$15-$H35))) + (B*EXP(-bêta*(AN$15-$H35))) + (_C*EXP(-gamma*(AN$15-$H35 ))) ) -> 0 | AO35: =$G35/[0]!Poids * ( (A*EXP(-alpha*(AO$15-$H35))) + (B*EXP(-bêta*(AO$15-$H35))) + (_C*EXP(-gamma*(AO$15-$H35 ))) ) -> 0 | AP35: =$G35/[0]!Poids * ( (A*EXP(-alpha*(AP$15-$H35))) + (B*EXP(-bêta*(AP$15-$H35))) + (_C*EXP(-gamma*(AP$15-$H35 ))) ) -> 0 | AQ35: =$G35/[0]!Poids * ( (A*EXP(-alpha*(AQ$15-$H35))) + (B*EXP(-bêta*(AQ$15-$H35))) + (_C*EXP(-gamma*(AQ$15-$H35 ))) ) -> 0 | AR35: =$G35/[0]!Poids * ( (A*EXP(-alpha*(AR$15-$H35))) + (B*EXP(-bêta*(AR$15-$H35))) + (_C*EXP(-gamma*(AR$15-$H35 ))) ) -> 0 | AS35: =$G35/[0]!Poids * ( (A*EXP(-alpha*(AS$15-$H35))) + (B*EXP(-bêta*(AS$15-$H35))) + (_C*EXP(-gamma*(AS$15-$H35 ))) ) -> 0 | AT35: =$G35/[0]!Poids * ( (A*EXP(-alpha*(AT$15-$H35))) + (B*EXP(-bêta*(AT$15-$H35))) + (_C*EXP(-gamma*(AT$15-$H35 ))) ) -> 0 | AU35: =$G35/[0]!Poids * ( (A*EXP(-alpha*(AU$15-$H35))) + (B*EXP(-bêta*(AU$15-$H35))) + (_C*EXP(-gamma*(AU$15-$H35 ))) ) -> 0 | AV35: =$G35/[0]!Poids * ( (A*EXP(-alpha*(AV$15-$H35))) + (B*EXP(-bêta*(AV$15-$H35))) + (_C*EXP(-gamma*(AV$15-$H35 ))) ) -> 0 | AW35: =$G35/[0]!Poids * ( (A*EXP(-alpha*(AW$15-$H35))) + (B*EXP(-bêta*(AW$15-$H35))) + (_C*EXP(-gamma*(AW$15-$H35 ))) ) -> 0 | AX35: =$G35/[0]!Poids * ( (A*EXP(-alpha*(AX$15-$H35))) + (B*EXP(-bêta*(AX$15-$H35))) + (_C*EXP(-gamma*(AX$15-$H35 ))) ) -> 0 | AY35: =$G35/[0]!Poids * ( (A*EXP(-alpha*(AY$15-$H35))) + (B*EXP(-bêta*(AY$15-$H35))) + (_C*EXP(-gamma*(AY$15-$H35 ))) ) -> 0 | AZ35: =$G35/[0]!Poids * ( (A*EXP(-alpha*(AZ$15-$H35))) + (B*EXP(-bêta*(AZ$15-$H35))) + (_C*EXP(-gamma*(AZ$15-$H35 ))) ) -> 0 | BA35: =$G35/[0]!Poids * ( (A*EXP(-alpha*(BA$15-$H35))) + (B*EXP(-bêta*(BA$15-$H35))) + (_C*EXP(-gamma*(BA$15-$H35 ))) ) -> 0 | BB35: =$G35/[0]!Poids * ( (A*EXP(-alpha*(BB$15-$H35))) + (B*EXP(-bêta*(BB$15-$H35))) + (_C*EXP(-gamma*(BB$15-$H35 ))) ) -> 0 | BC35: =$G35/[0]!Poids * ( (A*EXP(-alpha*(BC$15-$H35))) + (B*EXP(-bêta*(BC$15-$H35))) + (_C*EXP(-gamma*(BC$15-$H35 ))) ) -> 0 | BD35: =$G35/[0]!Poids * ( (A*EXP(-alpha*(BD$15-$H35))) + (B*EXP(-bêta*(BD$15-$H35))) + (_C*EXP(-gamma*(BD$15-$H35 ))) ) -> 0 | BE35: =$G35/[0]!Poids * ( (A*EXP(-alpha*(BE$15-$H35))) + (B*EXP(-bêta*(BE$15-$H35))) + (_C*EXP(-gamma*(BE$15-$H35 ))) ) -> 0 | BF35: =$G35/[0]!Poids * ( (A*EXP(-alpha*(BF$15-$H35))) + (B*EXP(-bêta*(BF$15-$H35))) + (_C*EXP(-gamma*(BF$15-$H35 ))) ) -> 0 | BG35: =$G35/[0]!Poids * ( (A*EXP(-alpha*(BG$15-$H35))) + (B*EXP(-bêta*(BG$15-$H35))) + (_C*EXP(-gamma*(BG$15-$H35 ))) ) -> 0 | BH35: =$G35/[0]!Poids * ( (A*EXP(-alpha*(BH$15-$H35))) + (B*EXP(-bêta*(BH$15-$H35))) + (_C*EXP(-gamma*(BH$15-$H35 ))) ) -> 0 | BI35: =$G35/[0]!Poids * ( (A*EXP(-alpha*(BI$15-$H35))) + (B*EXP(-bêta*(BI$15-$H35))) + (_C*EXP(-gamma*(BI$15-$H35 ))) ) -> 0 | BJ35: =$G35/[0]!Poids * ( (A*EXP(-alpha*(BJ$15-$H35))) + (B*EXP(-bêta*(BJ$15-$H35))) + (_C*EXP(-gamma*(BJ$15-$H35 ))) ) -> 0 | BK35: =$G35/[0]!Poids * ( (A*EXP(-alpha*(BK$15-$H35))) + (B*EXP(-bêta*(BK$15-$H35))) + (_C*EXP(-gamma*(BK$15-$H35 ))) ) -> 0 | BL35: =$G35/[0]!Poids * ( (A*EXP(-alpha*(BL$15-$H35))) + (B*EXP(-bêta*(BL$15-$H35))) + (_C*EXP(-gamma*(BL$15-$H35 ))) ) -> 0 | BM35: =$G35/[0]!Poids * ( (A*EXP(-alpha*(BM$15-$H35))) + (B*EXP(-bêta*(BM$15-$H35))) + (_C*EXP(-gamma*(BM$15-$H35 ))) ) -> 0 | BN35: =$G35/[0]!Poids * ( (A*EXP(-alpha*(BN$15-$H35))) + (B*EXP(-bêta*(BN$15-$H35))) + (_C*EXP(-gamma*(BN$15-$H35 ))) ) -> 0 | BO35: =$G35/[0]!Poids * ( (A*EXP(-alpha*(BO$15-$H35))) + (B*EXP(-bêta*(BO$15-$H35))) + (_C*EXP(-gamma*(BO$15-$H35 ))) ) -> 0 | BP35: =$G35/[0]!Poids * ( (A*EXP(-alpha*(BP$15-$H35))) + (B*EXP(-bêta*(BP$15-$H35))) + (_C*EXP(-gamma*(BP$15-$H35 ))) ) -> 0 | BQ35: =$G35/[0]!Poids * ( (A*EXP(-alpha*(BQ$15-$H35))) + (B*EXP(-bêta*(BQ$15-$H35))) + (_C*EXP(-gamma*(BQ$15-$H35 ))) ) -> 0 | BR35: =$G35/[0]!Poids * ( (A*EXP(-alpha*(BR$15-$H35))) + (B*EXP(-bêta*(BR$15-$H35))) + (_C*EXP(-gamma*(BR$15-$H35 ))) ) -> 0
G36: =AD$10 -> 0 | H36: 100 | AD36: =$G36/[0]!Poids * ( (A*EXP(-alpha*(AD$15-$H36))) + (B*EXP(-bêta*(AD$15-$H36))) + (_C*EXP(-gamma*(AD$15-$H36 ))) ) -> 0 | AE36: =$G36/[0]!Poids * ( (A*EXP(-alpha*(AE$15-$H36))) + (B*EXP(-bêta*(AE$15-$H36))) + (_C*EXP(-gamma*(AE$15-$H36 ))) ) -> 0 | AF36: =$G36/[0]!Poids * ( (A*EXP(-alpha*(AF$15-$H36))) + (B*EXP(-bêta*(AF$15-$H36))) + (_C*EXP(-gamma*(AF$15-$H36 ))) ) -> 0 | AG36: =$G36/[0]!Poids * ( (A*EXP(-alpha*(AG$15-$H36))) + (B*EXP(-bêta*(AG$15-$H36))) + (_C*EXP(-gamma*(AG$15-$H36 ))) ) -> 0 | AH36: =$G36/[0]!Poids * ( (A*EXP(-alpha*(AH$15-$H36))) + (B*EXP(-bêta*(AH$15-$H36))) + (_C*EXP(-gamma*(AH$15-$H36 ))) ) -> 0 | AI36: =$G36/[0]!Poids * ( (A*EXP(-alpha*(AI$15-$H36))) + (B*EXP(-bêta*(AI$15-$H36))) + (_C*EXP(-gamma*(AI$15-$H36 ))) ) -> 0 | AJ36: =$G36/[0]!Poids * ( (A*EXP(-alpha*(AJ$15-$H36))) + (B*EXP(-bêta*(AJ$15-$H36))) + (_C*EXP(-gamma*(AJ$15-$H36 ))) ) -> 0 | AK36: =$G36/[0]!Poids * ( (A*EXP(-alpha*(AK$15-$H36))) + (B*EXP(-bêta*(AK$15-$H36))) + (_C*EXP(-gamma*(AK$15-$H36 ))) ) -> 0 | AL36: =$G36/[0]!Poids * ( (A*EXP(-alpha*(AL$15-$H36))) + (B*EXP(-bêta*(AL$15-$H36))) + (_C*EXP(-gamma*(AL$15-$H36 ))) ) -> 0 | AM36: =$G36/[0]!Poids * ( (A*EXP(-alpha*(AM$15-$H36))) + (B*EXP(-bêta*(AM$15-$H36))) + (_C*EXP(-gamma*(AM$15-$H36 ))) ) -> 0 | AN36: =$G36/[0]!Poids * ( (A*EXP(-alpha*(AN$15-$H36))) + (B*EXP(-bêta*(AN$15-$H36))) + (_C*EXP(-gamma*(AN$15-$H36 ))) ) -> 0 | AO36: =$G36/[0]!Poids * ( (A*EXP(-alpha*(AO$15-$H36))) + (B*EXP(-bêta*(AO$15-$H36))) + (_C*EXP(-gamma*(AO$15-$H36 ))) ) -> 0 | AP36: =$G36/[0]!Poids * ( (A*EXP(-alpha*(AP$15-$H36))) + (B*EXP(-bêta*(AP$15-$H36))) + (_C*EXP(-gamma*(AP$15-$H36 ))) ) -> 0 | AQ36: =$G36/[0]!Poids * ( (A*EXP(-alpha*(AQ$15-$H36))) + (B*EXP(-bêta*(AQ$15-$H36))) + (_C*EXP(-gamma*(AQ$15-$H36 ))) ) -> 0 | AR36: =$G36/[0]!Poids * ( (A*EXP(-alpha*(AR$15-$H36))) + (B*EXP(-bêta*(AR$15-$H36))) + (_C*EXP(-gamma*(AR$15-$H36 ))) ) -> 0 | AS36: =$G36/[0]!Poids * ( (A*EXP(-alpha*(AS$15-$H36))) + (B*EXP(-bêta*(AS$15-$H36))) + (_C*EXP(-gamma*(AS$15-$H36 ))) ) -> 0 | AT36: =$G36/[0]!Poids * ( (A*EXP(-alpha*(AT$15-$H36))) + (B*EXP(-bêta*(AT$15-$H36))) + (_C*EXP(-gamma*(AT$15-$H36 ))) ) -> 0 | AU36: =$G36/[0]!Poids * ( (A*EXP(-alpha*(AU$15-$H36))) + (B*EXP(-bêta*(AU$15-$H36))) + (_C*EXP(-gamma*(AU$15-$H36 ))) ) -> 0 | AV36: =$G36/[0]!Poids * ( (A*EXP(-alpha*(AV$15-$H36))) + (B*EXP(-bêta*(AV$15-$H36))) + (_C*EXP(-gamma*(AV$15-$H36 ))) ) -> 0 | AW36: =$G36/[0]!Poids * ( (A*EXP(-alpha*(AW$15-$H36))) + (B*EXP(-bêta*(AW$15-$H36))) + (_C*EXP(-gamma*(AW$15-$H36 ))) ) -> 0 | AX36: =$G36/[0]!Poids * ( (A*EXP(-alpha*(AX$15-$H36))) + (B*EXP(-bêta*(AX$15-$H36))) + (_C*EXP(-gamma*(AX$15-$H36 ))) ) -> 0 | AY36: =$G36/[0]!Poids * ( (A*EXP(-alpha*(AY$15-$H36))) + (B*EXP(-bêta*(AY$15-$H36))) + (_C*EXP(-gamma*(AY$15-$H36 ))) ) -> 0 | AZ36: =$G36/[0]!Poids * ( (A*EXP(-alpha*(AZ$15-$H36))) + (B*EXP(-bêta*(AZ$15-$H36))) + (_C*EXP(-gamma*(AZ$15-$H36 ))) ) -> 0 | BA36: =$G36/[0]!Poids * ( (A*EXP(-alpha*(BA$15-$H36))) + (B*EXP(-bêta*(BA$15-$H36))) + (_C*EXP(-gamma*(BA$15-$H36 ))) ) -> 0 | BB36: =$G36/[0]!Poids * ( (A*EXP(-alpha*(BB$15-$H36))) + (B*EXP(-bêta*(BB$15-$H36))) + (_C*EXP(-gamma*(BB$15-$H36 ))) ) -> 0 | BC36: =$G36/[0]!Poids * ( (A*EXP(-alpha*(BC$15-$H36))) + (B*EXP(-bêta*(BC$15-$H36))) + (_C*EXP(-gamma*(BC$15-$H36 ))) ) -> 0 | BD36: =$G36/[0]!Poids * ( (A*EXP(-alpha*(BD$15-$H36))) + (B*EXP(-bêta*(BD$15-$H36))) + (_C*EXP(-gamma*(BD$15-$H36 ))) ) -> 0 | BE36: =$G36/[0]!Poids * ( (A*EXP(-alpha*(BE$15-$H36))) + (B*EXP(-bêta*(BE$15-$H36))) + (_C*EXP(-gamma*(BE$15-$H36 ))) ) -> 0 | BF36: =$G36/[0]!Poids * ( (A*EXP(-alpha*(BF$15-$H36))) + (B*EXP(-bêta*(BF$15-$H36))) + (_C*EXP(-gamma*(BF$15-$H36 ))) ) -> 0 | BG36: =$G36/[0]!Poids * ( (A*EXP(-alpha*(BG$15-$H36))) + (B*EXP(-bêta*(BG$15-$H36))) + (_C*EXP(-gamma*(BG$15-$H36 ))) ) -> 0 | BH36: =$G36/[0]!Poids * ( (A*EXP(-alpha*(BH$15-$H36))) + (B*EXP(-bêta*(BH$15-$H36))) + (_C*EXP(-gamma*(BH$15-$H36 ))) ) -> 0 | BI36: =$G36/[0]!Poids * ( (A*EXP(-alpha*(BI$15-$H36))) + (B*EXP(-bêta*(BI$15-$H36))) + (_C*EXP(-gamma*(BI$15-$H36 ))) ) -> 0 | BJ36: =$G36/[0]!Poids * ( (A*EXP(-alpha*(BJ$15-$H36))) + (B*EXP(-bêta*(BJ$15-$H36))) + (_C*EXP(-gamma*(BJ$15-$H36 ))) ) -> 0 | BK36: =$G36/[0]!Poids * ( (A*EXP(-alpha*(BK$15-$H36))) + (B*EXP(-bêta*(BK$15-$H36))) + (_C*EXP(-gamma*(BK$15-$H36 ))) ) -> 0 | BL36: =$G36/[0]!Poids * ( (A*EXP(-alpha*(BL$15-$H36))) + (B*EXP(-bêta*(BL$15-$H36))) + (_C*EXP(-gamma*(BL$15-$H36 ))) ) -> 0 | BM36: =$G36/[0]!Poids * ( (A*EXP(-alpha*(BM$15-$H36))) + (B*EXP(-bêta*(BM$15-$H36))) + (_C*EXP(-gamma*(BM$15-$H36 ))) ) -> 0 | BN36: =$G36/[0]!Poids * ( (A*EXP(-alpha*(BN$15-$H36))) + (B*EXP(-bêta*(BN$15-$H36))) + (_C*EXP(-gamma*(BN$15-$H36 ))) ) -> 0 | BO36: =$G36/[0]!Poids * ( (A*EXP(-alpha*(BO$15-$H36))) + (B*EXP(-bêta*(BO$15-$H36))) + (_C*EXP(-gamma*(BO$15-$H36 ))) ) -> 0 | BP36: =$G36/[0]!Poids * ( (A*EXP(-alpha*(BP$15-$H36))) + (B*EXP(-bêta*(BP$15-$H36))) + (_C*EXP(-gamma*(BP$15-$H36 ))) ) -> 0 | BQ36: =$G36/[0]!Poids * ( (A*EXP(-alpha*(BQ$15-$H36))) + (B*EXP(-bêta*(BQ$15-$H36))) + (_C*EXP(-gamma*(BQ$15-$H36 ))) ) -> 0 | BR36: =$G36/[0]!Poids * ( (A*EXP(-alpha*(BR$15-$H36))) + (B*EXP(-bêta*(BR$15-$H36))) + (_C*EXP(-gamma*(BR$15-$H36 ))) ) -> 0
G37: =AE$10 -> 0 | H37: 105 | AE37: =$G37/[0]!Poids * ( (A*EXP(-alpha*(AE$15-$H37))) + (B*EXP(-bêta*(AE$15-$H37))) + (_C*EXP(-gamma*(AE$15-$H37 ))) ) -> 0 | AF37: =$G37/[0]!Poids * ( (A*EXP(-alpha*(AF$15-$H37))) + (B*EXP(-bêta*(AF$15-$H37))) + (_C*EXP(-gamma*(AF$15-$H37 ))) ) -> 0 | AG37: =$G37/[0]!Poids * ( (A*EXP(-alpha*(AG$15-$H37))) + (B*EXP(-bêta*(AG$15-$H37))) + (_C*EXP(-gamma*(AG$15-$H37 ))) ) -> 0 | AH37: =$G37/[0]!Poids * ( (A*EXP(-alpha*(AH$15-$H37))) + (B*EXP(-bêta*(AH$15-$H37))) + (_C*EXP(-gamma*(AH$15-$H37 ))) ) -> 0 | AI37: =$G37/[0]!Poids * ( (A*EXP(-alpha*(AI$15-$H37))) + (B*EXP(-bêta*(AI$15-$H37))) + (_C*EXP(-gamma*(AI$15-$H37 ))) ) -> 0 | AJ37: =$G37/[0]!Poids * ( (A*EXP(-alpha*(AJ$15-$H37))) + (B*EXP(-bêta*(AJ$15-$H37))) + (_C*EXP(-gamma*(AJ$15-$H37 ))) ) -> 0 | AK37: =$G37/[0]!Poids * ( (A*EXP(-alpha*(AK$15-$H37))) + (B*EXP(-bêta*(AK$15-$H37))) + (_C*EXP(-gamma*(AK$15-$H37 ))) ) -> 0 | AL37: =$G37/[0]!Poids * ( (A*EXP(-alpha*(AL$15-$H37))) + (B*EXP(-bêta*(AL$15-$H37))) + (_C*EXP(-gamma*(AL$15-$H37 ))) ) -> 0 | AM37: =$G37/[0]!Poids * ( (A*EXP(-alpha*(AM$15-$H37))) + (B*EXP(-bêta*(AM$15-$H37))) + (_C*EXP(-gamma*(AM$15-$H37 ))) ) -> 0 | AN37: =$G37/[0]!Poids * ( (A*EXP(-alpha*(AN$15-$H37))) + (B*EXP(-bêta*(AN$15-$H37))) + (_C*EXP(-gamma*(AN$15-$H37 ))) ) -> 0 | AO37: =$G37/[0]!Poids * ( (A*EXP(-alpha*(AO$15-$H37))) + (B*EXP(-bêta*(AO$15-$H37))) + (_C*EXP(-gamma*(AO$15-$H37 ))) ) -> 0 | AP37: =$G37/[0]!Poids * ( (A*EXP(-alpha*(AP$15-$H37))) + (B*EXP(-bêta*(AP$15-$H37))) + (_C*EXP(-gamma*(AP$15-$H37 ))) ) -> 0 | AQ37: =$G37/[0]!Poids * ( (A*EXP(-alpha*(AQ$15-$H37))) + (B*EXP(-bêta*(AQ$15-$H37))) + (_C*EXP(-gamma*(AQ$15-$H37 ))) ) -> 0 | AR37: =$G37/[0]!Poids * ( (A*EXP(-alpha*(AR$15-$H37))) + (B*EXP(-bêta*(AR$15-$H37))) + (_C*EXP(-gamma*(AR$15-$H37 ))) ) -> 0 | AS37: =$G37/[0]!Poids * ( (A*EXP(-alpha*(AS$15-$H37))) + (B*EXP(-bêta*(AS$15-$H37))) + (_C*EXP(-gamma*(AS$15-$H37 ))) ) -> 0 | AT37: =$G37/[0]!Poids * ( (A*EXP(-alpha*(AT$15-$H37))) + (B*EXP(-bêta*(AT$15-$H37))) + (_C*EXP(-gamma*(AT$15-$H37 ))) ) -> 0 | AU37: =$G37/[0]!Poids * ( (A*EXP(-alpha*(AU$15-$H37))) + (B*EXP(-bêta*(AU$15-$H37))) + (_C*EXP(-gamma*(AU$15-$H37 ))) ) -> 0 | AV37: =$G37/[0]!Poids * ( (A*EXP(-alpha*(AV$15-$H37))) + (B*EXP(-bêta*(AV$15-$H37))) + (_C*EXP(-gamma*(AV$15-$H37 ))) ) -> 0 | AW37: =$G37/[0]!Poids * ( (A*EXP(-alpha*(AW$15-$H37))) + (B*EXP(-bêta*(AW$15-$H37))) + (_C*EXP(-gamma*(AW$15-$H37 ))) ) -> 0 | AX37: =$G37/[0]!Poids * ( (A*EXP(-alpha*(AX$15-$H37))) + (B*EXP(-bêta*(AX$15-$H37))) + (_C*EXP(-gamma*(AX$15-$H37 ))) ) -> 0 | AY37: =$G37/[0]!Poids * ( (A*EXP(-alpha*(AY$15-$H37))) + (B*EXP(-bêta*(AY$15-$H37))) + (_C*EXP(-gamma*(AY$15-$H37 ))) ) -> 0 | AZ37: =$G37/[0]!Poids * ( (A*EXP(-alpha*(AZ$15-$H37))) + (B*EXP(-bêta*(AZ$15-$H37))) + (_C*EXP(-gamma*(AZ$15-$H37 ))) ) -> 0 | BA37: =$G37/[0]!Poids * ( (A*EXP(-alpha*(BA$15-$H37))) + (B*EXP(-bêta*(BA$15-$H37))) + (_C*EXP(-gamma*(BA$15-$H37 ))) ) -> 0 | BB37: =$G37/[0]!Poids * ( (A*EXP(-alpha*(BB$15-$H37))) + (B*EXP(-bêta*(BB$15-$H37))) + (_C*EXP(-gamma*(BB$15-$H37 ))) ) -> 0 | BC37: =$G37/[0]!Poids * ( (A*EXP(-alpha*(BC$15-$H37))) + (B*EXP(-bêta*(BC$15-$H37))) + (_C*EXP(-gamma*(BC$15-$H37 ))) ) -> 0 | BD37: =$G37/[0]!Poids * ( (A*EXP(-alpha*(BD$15-$H37))) + (B*EXP(-bêta*(BD$15-$H37))) + (_C*EXP(-gamma*(BD$15-$H37 ))) ) -> 0 | BE37: =$G37/[0]!Poids * ( (A*EXP(-alpha*(BE$15-$H37))) + (B*EXP(-bêta*(BE$15-$H37))) + (_C*EXP(-gamma*(BE$15-$H37 ))) ) -> 0 | BF37: =$G37/[0]!Poids * ( (A*EXP(-alpha*(BF$15-$H37))) + (B*EXP(-bêta*(BF$15-$H37))) + (_C*EXP(-gamma*(BF$15-$H37 ))) ) -> 0 | BG37: =$G37/[0]!Poids * ( (A*EXP(-alpha*(BG$15-$H37))) + (B*EXP(-bêta*(BG$15-$H37))) + (_C*EXP(-gamma*(BG$15-$H37 ))) ) -> 0 | BH37: =$G37/[0]!Poids * ( (A*EXP(-alpha*(BH$15-$H37))) + (B*EXP(-bêta*(BH$15-$H37))) + (_C*EXP(-gamma*(BH$15-$H37 ))) ) -> 0 | BI37: =$G37/[0]!Poids * ( (A*EXP(-alpha*(BI$15-$H37))) + (B*EXP(-bêta*(BI$15-$H37))) + (_C*EXP(-gamma*(BI$15-$H37 ))) ) -> 0 | BJ37: =$G37/[0]!Poids * ( (A*EXP(-alpha*(BJ$15-$H37))) + (B*EXP(-bêta*(BJ$15-$H37))) + (_C*EXP(-gamma*(BJ$15-$H37 ))) ) -> 0 | BK37: =$G37/[0]!Poids * ( (A*EXP(-alpha*(BK$15-$H37))) + (B*EXP(-bêta*(BK$15-$H37))) + (_C*EXP(-gamma*(BK$15-$H37 ))) ) -> 0 | BL37: =$G37/[0]!Poids * ( (A*EXP(-alpha*(BL$15-$H37))) + (B*EXP(-bêta*(BL$15-$H37))) + (_C*EXP(-gamma*(BL$15-$H37 ))) ) -> 0 | BM37: =$G37/[0]!Poids * ( (A*EXP(-alpha*(BM$15-$H37))) + (B*EXP(-bêta*(BM$15-$H37))) + (_C*EXP(-gamma*(BM$15-$H37 ))) ) -> 0 | BN37: =$G37/[0]!Poids * ( (A*EXP(-alpha*(BN$15-$H37))) + (B*EXP(-bêta*(BN$15-$H37))) + (_C*EXP(-gamma*(BN$15-$H37 ))) ) -> 0 | BO37: =$G37/[0]!Poids * ( (A*EXP(-alpha*(BO$15-$H37))) + (B*EXP(-bêta*(BO$15-$H37))) + (_C*EXP(-gamma*(BO$15-$H37 ))) ) -> 0 | BP37: =$G37/[0]!Poids * ( (A*EXP(-alpha*(BP$15-$H37))) + (B*EXP(-bêta*(BP$15-$H37))) + (_C*EXP(-gamma*(BP$15-$H37 ))) ) -> 0 | BQ37: =$G37/[0]!Poids * ( (A*EXP(-alpha*(BQ$15-$H37))) + (B*EXP(-bêta*(BQ$15-$H37))) + (_C*EXP(-gamma*(BQ$15-$H37 ))) ) -> 0 | BR37: =$G37/[0]!Poids * ( (A*EXP(-alpha*(BR$15-$H37))) + (B*EXP(-bêta*(BR$15-$H37))) + (_C*EXP(-gamma*(BR$15-$H37 ))) ) -> 0
G38: =AF$10 -> 0 | H38: 110 | AF38: =$G38/[0]!Poids * ( (A*EXP(-alpha*(AF$15-$H38))) + (B*EXP(-bêta*(AF$15-$H38))) + (_C*EXP(-gamma*(AF$15-$H38 ))) ) -> 0 | AG38: =$G38/[0]!Poids * ( (A*EXP(-alpha*(AG$15-$H38))) + (B*EXP(-bêta*(AG$15-$H38))) + (_C*EXP(-gamma*(AG$15-$H38 ))) ) -> 0 | AH38: =$G38/[0]!Poids * ( (A*EXP(-alpha*(AH$15-$H38))) + (B*EXP(-bêta*(AH$15-$H38))) + (_C*EXP(-gamma*(AH$15-$H38 ))) ) -> 0 | AI38: =$G38/[0]!Poids * ( (A*EXP(-alpha*(AI$15-$H38))) + (B*EXP(-bêta*(AI$15-$H38))) + (_C*EXP(-gamma*(AI$15-$H38 ))) ) -> 0 | AJ38: =$G38/[0]!Poids * ( (A*EXP(-alpha*(AJ$15-$H38))) + (B*EXP(-bêta*(AJ$15-$H38))) + (_C*EXP(-gamma*(AJ$15-$H38 ))) ) -> 0 | AK38: =$G38/[0]!Poids * ( (A*EXP(-alpha*(AK$15-$H38))) + (B*EXP(-bêta*(AK$15-$H38))) + (_C*EXP(-gamma*(AK$15-$H38 ))) ) -> 0 | AL38: =$G38/[0]!Poids * ( (A*EXP(-alpha*(AL$15-$H38))) + (B*EXP(-bêta*(AL$15-$H38))) + (_C*EXP(-gamma*(AL$15-$H38 ))) ) -> 0 | AM38: =$G38/[0]!Poids * ( (A*EXP(-alpha*(AM$15-$H38))) + (B*EXP(-bêta*(AM$15-$H38))) + (_C*EXP(-gamma*(AM$15-$H38 ))) ) -> 0 | AN38: =$G38/[0]!Poids * ( (A*EXP(-alpha*(AN$15-$H38))) + (B*EXP(-bêta*(AN$15-$H38))) + (_C*EXP(-gamma*(AN$15-$H38 ))) ) -> 0 | AO38: =$G38/[0]!Poids * ( (A*EXP(-alpha*(AO$15-$H38))) + (B*EXP(-bêta*(AO$15-$H38))) + (_C*EXP(-gamma*(AO$15-$H38 ))) ) -> 0 | AP38: =$G38/[0]!Poids * ( (A*EXP(-alpha*(AP$15-$H38))) + (B*EXP(-bêta*(AP$15-$H38))) + (_C*EXP(-gamma*(AP$15-$H38 ))) ) -> 0 | AQ38: =$G38/[0]!Poids * ( (A*EXP(-alpha*(AQ$15-$H38))) + (B*EXP(-bêta*(AQ$15-$H38))) + (_C*EXP(-gamma*(AQ$15-$H38 ))) ) -> 0 | AR38: =$G38/[0]!Poids * ( (A*EXP(-alpha*(AR$15-$H38))) + (B*EXP(-bêta*(AR$15-$H38))) + (_C*EXP(-gamma*(AR$15-$H38 ))) ) -> 0 | AS38: =$G38/[0]!Poids * ( (A*EXP(-alpha*(AS$15-$H38))) + (B*EXP(-bêta*(AS$15-$H38))) + (_C*EXP(-gamma*(AS$15-$H38 ))) ) -> 0 | AT38: =$G38/[0]!Poids * ( (A*EXP(-alpha*(AT$15-$H38))) + (B*EXP(-bêta*(AT$15-$H38))) + (_C*EXP(-gamma*(AT$15-$H38 ))) ) -> 0 | AU38: =$G38/[0]!Poids * ( (A*EXP(-alpha*(AU$15-$H38))) + (B*EXP(-bêta*(AU$15-$H38))) + (_C*EXP(-gamma*(AU$15-$H38 ))) ) -> 0 | AV38: =$G38/[0]!Poids * ( (A*EXP(-alpha*(AV$15-$H38))) + (B*EXP(-bêta*(AV$15-$H38))) + (_C*EXP(-gamma*(AV$15-$H38 ))) ) -> 0 | AW38: =$G38/[0]!Poids * ( (A*EXP(-alpha*(AW$15-$H38))) + (B*EXP(-bêta*(AW$15-$H38))) + (_C*EXP(-gamma*(AW$15-$H38 ))) ) -> 0 | AX38: =$G38/[0]!Poids * ( (A*EXP(-alpha*(AX$15-$H38))) + (B*EXP(-bêta*(AX$15-$H38))) + (_C*EXP(-gamma*(AX$15-$H38 ))) ) -> 0 | AY38: =$G38/[0]!Poids * ( (A*EXP(-alpha*(AY$15-$H38))) + (B*EXP(-bêta*(AY$15-$H38))) + (_C*EXP(-gamma*(AY$15-$H38 ))) ) -> 0 | AZ38: =$G38/[0]!Poids * ( (A*EXP(-alpha*(AZ$15-$H38))) + (B*EXP(-bêta*(AZ$15-$H38))) + (_C*EXP(-gamma*(AZ$15-$H38 ))) ) -> 0 | BA38: =$G38/[0]!Poids * ( (A*EXP(-alpha*(BA$15-$H38))) + (B*EXP(-bêta*(BA$15-$H38))) + (_C*EXP(-gamma*(BA$15-$H38 ))) ) -> 0 | BB38: =$G38/[0]!Poids * ( (A*EXP(-alpha*(BB$15-$H38))) + (B*EXP(-bêta*(BB$15-$H38))) + (_C*EXP(-gamma*(BB$15-$H38 ))) ) -> 0 | BC38: =$G38/[0]!Poids * ( (A*EXP(-alpha*(BC$15-$H38))) + (B*EXP(-bêta*(BC$15-$H38))) + (_C*EXP(-gamma*(BC$15-$H38 ))) ) -> 0 | BD38: =$G38/[0]!Poids * ( (A*EXP(-alpha*(BD$15-$H38))) + (B*EXP(-bêta*(BD$15-$H38))) + (_C*EXP(-gamma*(BD$15-$H38 ))) ) -> 0 | BE38: =$G38/[0]!Poids * ( (A*EXP(-alpha*(BE$15-$H38))) + (B*EXP(-bêta*(BE$15-$H38))) + (_C*EXP(-gamma*(BE$15-$H38 ))) ) -> 0 | BF38: =$G38/[0]!Poids * ( (A*EXP(-alpha*(BF$15-$H38))) + (B*EXP(-bêta*(BF$15-$H38))) + (_C*EXP(-gamma*(BF$15-$H38 ))) ) -> 0 | BG38: =$G38/[0]!Poids * ( (A*EXP(-alpha*(BG$15-$H38))) + (B*EXP(-bêta*(BG$15-$H38))) + (_C*EXP(-gamma*(BG$15-$H38 ))) ) -> 0 | BH38: =$G38/[0]!Poids * ( (A*EXP(-alpha*(BH$15-$H38))) + (B*EXP(-bêta*(BH$15-$H38))) + (_C*EXP(-gamma*(BH$15-$H38 ))) ) -> 0 | BI38: =$G38/[0]!Poids * ( (A*EXP(-alpha*(BI$15-$H38))) + (B*EXP(-bêta*(BI$15-$H38))) + (_C*EXP(-gamma*(BI$15-$H38 ))) ) -> 0 | BJ38: =$G38/[0]!Poids * ( (A*EXP(-alpha*(BJ$15-$H38))) + (B*EXP(-bêta*(BJ$15-$H38))) + (_C*EXP(-gamma*(BJ$15-$H38 ))) ) -> 0 | BK38: =$G38/[0]!Poids * ( (A*EXP(-alpha*(BK$15-$H38))) + (B*EXP(-bêta*(BK$15-$H38))) + (_C*EXP(-gamma*(BK$15-$H38 ))) ) -> 0 | BL38: =$G38/[0]!Poids * ( (A*EXP(-alpha*(BL$15-$H38))) + (B*EXP(-bêta*(BL$15-$H38))) + (_C*EXP(-gamma*(BL$15-$H38 ))) ) -> 0 | BM38: =$G38/[0]!Poids * ( (A*EXP(-alpha*(BM$15-$H38))) + (B*EXP(-bêta*(BM$15-$H38))) + (_C*EXP(-gamma*(BM$15-$H38 ))) ) -> 0 | BN38: =$G38/[0]!Poids * ( (A*EXP(-alpha*(BN$15-$H38))) + (B*EXP(-bêta*(BN$15-$H38))) + (_C*EXP(-gamma*(BN$15-$H38 ))) ) -> 0 | BO38: =$G38/[0]!Poids * ( (A*EXP(-alpha*(BO$15-$H38))) + (B*EXP(-bêta*(BO$15-$H38))) + (_C*EXP(-gamma*(BO$15-$H38 ))) ) -> 0 | BP38: =$G38/[0]!Poids * ( (A*EXP(-alpha*(BP$15-$H38))) + (B*EXP(-bêta*(BP$15-$H38))) + (_C*EXP(-gamma*(BP$15-$H38 ))) ) -> 0 | BQ38: =$G38/[0]!Poids * ( (A*EXP(-alpha*(BQ$15-$H38))) + (B*EXP(-bêta*(BQ$15-$H38))) + (_C*EXP(-gamma*(BQ$15-$H38 ))) ) -> 0 | BR38: =$G38/[0]!Poids * ( (A*EXP(-alpha*(BR$15-$H38))) + (B*EXP(-bêta*(BR$15-$H38))) + (_C*EXP(-gamma*(BR$15-$H38 ))) ) -> 0
G39: =AG$10 -> 0 | H39: 115 | AG39: =$G39/[0]!Poids * ( (A*EXP(-alpha*(AG$15-$H39))) + (B*EXP(-bêta*(AG$15-$H39))) + (_C*EXP(-gamma*(AG$15-$H39 ))) ) -> 0 | AH39: =$G39/[0]!Poids * ( (A*EXP(-alpha*(AH$15-$H39))) + (B*EXP(-bêta*(AH$15-$H39))) + (_C*EXP(-gamma*(AH$15-$H39 ))) ) -> 0 | AI39: =$G39/[0]!Poids * ( (A*EXP(-alpha*(AI$15-$H39))) + (B*EXP(-bêta*(AI$15-$H39))) + (_C*EXP(-gamma*(AI$15-$H39 ))) ) -> 0 | AJ39: =$G39/[0]!Poids * ( (A*EXP(-alpha*(AJ$15-$H39))) + (B*EXP(-bêta*(AJ$15-$H39))) + (_C*EXP(-gamma*(AJ$15-$H39 ))) ) -> 0 | AK39: =$G39/[0]!Poids * ( (A*EXP(-alpha*(AK$15-$H39))) + (B*EXP(-bêta*(AK$15-$H39))) + (_C*EXP(-gamma*(AK$15-$H39 ))) ) -> 0 | AL39: =$G39/[0]!Poids * ( (A*EXP(-alpha*(AL$15-$H39))) + (B*EXP(-bêta*(AL$15-$H39))) + (_C*EXP(-gamma*(AL$15-$H39 ))) ) -> 0 | AM39: =$G39/[0]!Poids * ( (A*EXP(-alpha*(AM$15-$H39))) + (B*EXP(-bêta*(AM$15-$H39))) + (_C*EXP(-gamma*(AM$15-$H39 ))) ) -> 0 | AN39: =$G39/[0]!Poids * ( (A*EXP(-alpha*(AN$15-$H39))) + (B*EXP(-bêta*(AN$15-$H39))) + (_C*EXP(-gamma*(AN$15-$H39 ))) ) -> 0 | AO39: =$G39/[0]!Poids * ( (A*EXP(-alpha*(AO$15-$H39))) + (B*EXP(-bêta*(AO$15-$H39))) + (_C*EXP(-gamma*(AO$15-$H39 ))) ) -> 0 | AP39: =$G39/[0]!Poids * ( (A*EXP(-alpha*(AP$15-$H39))) + (B*EXP(-bêta*(AP$15-$H39))) + (_C*EXP(-gamma*(AP$15-$H39 ))) ) -> 0 | AQ39: =$G39/[0]!Poids * ( (A*EXP(-alpha*(AQ$15-$H39))) + (B*EXP(-bêta*(AQ$15-$H39))) + (_C*EXP(-gamma*(AQ$15-$H39 ))) ) -> 0 | AR39: =$G39/[0]!Poids * ( (A*EXP(-alpha*(AR$15-$H39))) + (B*EXP(-bêta*(AR$15-$H39))) + (_C*EXP(-gamma*(AR$15-$H39 ))) ) -> 0 | AS39: =$G39/[0]!Poids * ( (A*EXP(-alpha*(AS$15-$H39))) + (B*EXP(-bêta*(AS$15-$H39))) + (_C*EXP(-gamma*(AS$15-$H39 ))) ) -> 0 | AT39: =$G39/[0]!Poids * ( (A*EXP(-alpha*(AT$15-$H39))) + (B*EXP(-bêta*(AT$15-$H39))) + (_C*EXP(-gamma*(AT$15-$H39 ))) ) -> 0 | AU39: =$G39/[0]!Poids * ( (A*EXP(-alpha*(AU$15-$H39))) + (B*EXP(-bêta*(AU$15-$H39))) + (_C*EXP(-gamma*(AU$15-$H39 ))) ) -> 0 | AV39: =$G39/[0]!Poids * ( (A*EXP(-alpha*(AV$15-$H39))) + (B*EXP(-bêta*(AV$15-$H39))) + (_C*EXP(-gamma*(AV$15-$H39 ))) ) -> 0 | AW39: =$G39/[0]!Poids * ( (A*EXP(-alpha*(AW$15-$H39))) + (B*EXP(-bêta*(AW$15-$H39))) + (_C*EXP(-gamma*(AW$15-$H39 ))) ) -> 0 | AX39: =$G39/[0]!Poids * ( (A*EXP(-alpha*(AX$15-$H39))) + (B*EXP(-bêta*(AX$15-$H39))) + (_C*EXP(-gamma*(AX$15-$H39 ))) ) -> 0 | AY39: =$G39/[0]!Poids * ( (A*EXP(-alpha*(AY$15-$H39))) + (B*EXP(-bêta*(AY$15-$H39))) + (_C*EXP(-gamma*(AY$15-$H39 ))) ) -> 0 | AZ39: =$G39/[0]!Poids * ( (A*EXP(-alpha*(AZ$15-$H39))) + (B*EXP(-bêta*(AZ$15-$H39))) + (_C*EXP(-gamma*(AZ$15-$H39 ))) ) -> 0 | BA39: =$G39/[0]!Poids * ( (A*EXP(-alpha*(BA$15-$H39))) + (B*EXP(-bêta*(BA$15-$H39))) + (_C*EXP(-gamma*(BA$15-$H39 ))) ) -> 0 | BB39: =$G39/[0]!Poids * ( (A*EXP(-alpha*(BB$15-$H39))) + (B*EXP(-bêta*(BB$15-$H39))) + (_C*EXP(-gamma*(BB$15-$H39 ))) ) -> 0 | BC39: =$G39/[0]!Poids * ( (A*EXP(-alpha*(BC$15-$H39))) + (B*EXP(-bêta*(BC$15-$H39))) + (_C*EXP(-gamma*(BC$15-$H39 ))) ) -> 0 | BD39: =$G39/[0]!Poids * ( (A*EXP(-alpha*(BD$15-$H39))) + (B*EXP(-bêta*(BD$15-$H39))) + (_C*EXP(-gamma*(BD$15-$H39 ))) ) -> 0 | BE39: =$G39/[0]!Poids * ( (A*EXP(-alpha*(BE$15-$H39))) + (B*EXP(-bêta*(BE$15-$H39))) + (_C*EXP(-gamma*(BE$15-$H39 ))) ) -> 0 | BF39: =$G39/[0]!Poids * ( (A*EXP(-alpha*(BF$15-$H39))) + (B*EXP(-bêta*(BF$15-$H39))) + (_C*EXP(-gamma*(BF$15-$H39 ))) ) -> 0 | BG39: =$G39/[0]!Poids * ( (A*EXP(-alpha*(BG$15-$H39))) + (B*EXP(-bêta*(BG$15-$H39))) + (_C*EXP(-gamma*(BG$15-$H39 ))) ) -> 0 | BH39: =$G39/[0]!Poids * ( (A*EXP(-alpha*(BH$15-$H39))) + (B*EXP(-bêta*(BH$15-$H39))) + (_C*EXP(-gamma*(BH$15-$H39 ))) ) -> 0 | BI39: =$G39/[0]!Poids * ( (A*EXP(-alpha*(BI$15-$H39))) + (B*EXP(-bêta*(BI$15-$H39))) + (_C*EXP(-gamma*(BI$15-$H39 ))) ) -> 0 | BJ39: =$G39/[0]!Poids * ( (A*EXP(-alpha*(BJ$15-$H39))) + (B*EXP(-bêta*(BJ$15-$H39))) + (_C*EXP(-gamma*(BJ$15-$H39 ))) ) -> 0 | BK39: =$G39/[0]!Poids * ( (A*EXP(-alpha*(BK$15-$H39))) + (B*EXP(-bêta*(BK$15-$H39))) + (_C*EXP(-gamma*(BK$15-$H39 ))) ) -> 0 | BL39: =$G39/[0]!Poids * ( (A*EXP(-alpha*(BL$15-$H39))) + (B*EXP(-bêta*(BL$15-$H39))) + (_C*EXP(-gamma*(BL$15-$H39 ))) ) -> 0 | BM39: =$G39/[0]!Poids * ( (A*EXP(-alpha*(BM$15-$H39))) + (B*EXP(-bêta*(BM$15-$H39))) + (_C*EXP(-gamma*(BM$15-$H39 ))) ) -> 0 | BN39: =$G39/[0]!Poids * ( (A*EXP(-alpha*(BN$15-$H39))) + (B*EXP(-bêta*(BN$15-$H39))) + (_C*EXP(-gamma*(BN$15-$H39 ))) ) -> 0 | BO39: =$G39/[0]!Poids * ( (A*EXP(-alpha*(BO$15-$H39))) + (B*EXP(-bêta*(BO$15-$H39))) + (_C*EXP(-gamma*(BO$15-$H39 ))) ) -> 0 | BP39: =$G39/[0]!Poids * ( (A*EXP(-alpha*(BP$15-$H39))) + (B*EXP(-bêta*(BP$15-$H39))) + (_C*EXP(-gamma*(BP$15-$H39 ))) ) -> 0 | BQ39: =$G39/[0]!Poids * ( (A*EXP(-alpha*(BQ$15-$H39))) + (B*EXP(-bêta*(BQ$15-$H39))) + (_C*EXP(-gamma*(BQ$15-$H39 ))) ) -> 0 | BR39: =$G39/[0]!Poids * ( (A*EXP(-alpha*(BR$15-$H39))) + (B*EXP(-bêta*(BR$15-$H39))) + (_C*EXP(-gamma*(BR$15-$H39 ))) ) -> 0
G40: =AH$10 -> 0 | H40: 120 | AH40: =$G40/[0]!Poids * ( (A*EXP(-alpha*(AH$15-$H40))) + (B*EXP(-bêta*(AH$15-$H40))) + (_C*EXP(-gamma*(AH$15-$H40 ))) ) -> 0 | AI40: =$G40/[0]!Poids * ( (A*EXP(-alpha*(AI$15-$H40))) + (B*EXP(-bêta*(AI$15-$H40))) + (_C*EXP(-gamma*(AI$15-$H40 ))) ) -> 0 | AJ40: =$G40/[0]!Poids * ( (A*EXP(-alpha*(AJ$15-$H40))) + (B*EXP(-bêta*(AJ$15-$H40))) + (_C*EXP(-gamma*(AJ$15-$H40 ))) ) -> 0 | AK40: =$G40/[0]!Poids * ( (A*EXP(-alpha*(AK$15-$H40))) + (B*EXP(-bêta*(AK$15-$H40))) + (_C*EXP(-gamma*(AK$15-$H40 ))) ) -> 0 | AL40: =$G40/[0]!Poids * ( (A*EXP(-alpha*(AL$15-$H40))) + (B*EXP(-bêta*(AL$15-$H40))) + (_C*EXP(-gamma*(AL$15-$H40 ))) ) -> 0 | AM40: =$G40/[0]!Poids * ( (A*EXP(-alpha*(AM$15-$H40))) + (B*EXP(-bêta*(AM$15-$H40))) + (_C*EXP(-gamma*(AM$15-$H40 ))) ) -> 0 | AN40: =$G40/[0]!Poids * ( (A*EXP(-alpha*(AN$15-$H40))) + (B*EXP(-bêta*(AN$15-$H40))) + (_C*EXP(-gamma*(AN$15-$H40 ))) ) -> 0 | AO40: =$G40/[0]!Poids * ( (A*EXP(-alpha*(AO$15-$H40))) + (B*EXP(-bêta*(AO$15-$H40))) + (_C*EXP(-gamma*(AO$15-$H40 ))) ) -> 0 | AP40: =$G40/[0]!Poids * ( (A*EXP(-alpha*(AP$15-$H40))) + (B*EXP(-bêta*(AP$15-$H40))) + (_C*EXP(-gamma*(AP$15-$H40 ))) ) -> 0 | AQ40: =$G40/[0]!Poids * ( (A*EXP(-alpha*(AQ$15-$H40))) + (B*EXP(-bêta*(AQ$15-$H40))) + (_C*EXP(-gamma*(AQ$15-$H40 ))) ) -> 0 | AR40: =$G40/[0]!Poids * ( (A*EXP(-alpha*(AR$15-$H40))) + (B*EXP(-bêta*(AR$15-$H40))) + (_C*EXP(-gamma*(AR$15-$H40 ))) ) -> 0 | AS40: =$G40/[0]!Poids * ( (A*EXP(-alpha*(AS$15-$H40))) + (B*EXP(-bêta*(AS$15-$H40))) + (_C*EXP(-gamma*(AS$15-$H40 ))) ) -> 0 | AT40: =$G40/[0]!Poids * ( (A*EXP(-alpha*(AT$15-$H40))) + (B*EXP(-bêta*(AT$15-$H40))) + (_C*EXP(-gamma*(AT$15-$H40 ))) ) -> 0 | AU40: =$G40/[0]!Poids * ( (A*EXP(-alpha*(AU$15-$H40))) + (B*EXP(-bêta*(AU$15-$H40))) + (_C*EXP(-gamma*(AU$15-$H40 ))) ) -> 0 | AV40: =$G40/[0]!Poids * ( (A*EXP(-alpha*(AV$15-$H40))) + (B*EXP(-bêta*(AV$15-$H40))) + (_C*EXP(-gamma*(AV$15-$H40 ))) ) -> 0 | AW40: =$G40/[0]!Poids * ( (A*EXP(-alpha*(AW$15-$H40))) + (B*EXP(-bêta*(AW$15-$H40))) + (_C*EXP(-gamma*(AW$15-$H40 ))) ) -> 0 | AX40: =$G40/[0]!Poids * ( (A*EXP(-alpha*(AX$15-$H40))) + (B*EXP(-bêta*(AX$15-$H40))) + (_C*EXP(-gamma*(AX$15-$H40 ))) ) -> 0 | AY40: =$G40/[0]!Poids * ( (A*EXP(-alpha*(AY$15-$H40))) + (B*EXP(-bêta*(AY$15-$H40))) + (_C*EXP(-gamma*(AY$15-$H40 ))) ) -> 0 | AZ40: =$G40/[0]!Poids * ( (A*EXP(-alpha*(AZ$15-$H40))) + (B*EXP(-bêta*(AZ$15-$H40))) + (_C*EXP(-gamma*(AZ$15-$H40 ))) ) -> 0 | BA40: =$G40/[0]!Poids * ( (A*EXP(-alpha*(BA$15-$H40))) + (B*EXP(-bêta*(BA$15-$H40))) + (_C*EXP(-gamma*(BA$15-$H40 ))) ) -> 0 | BB40: =$G40/[0]!Poids * ( (A*EXP(-alpha*(BB$15-$H40))) + (B*EXP(-bêta*(BB$15-$H40))) + (_C*EXP(-gamma*(BB$15-$H40 ))) ) -> 0 | BC40: =$G40/[0]!Poids * ( (A*EXP(-alpha*(BC$15-$H40))) + (B*EXP(-bêta*(BC$15-$H40))) + (_C*EXP(-gamma*(BC$15-$H40 ))) ) -> 0 | BD40: =$G40/[0]!Poids * ( (A*EXP(-alpha*(BD$15-$H40))) + (B*EXP(-bêta*(BD$15-$H40))) + (_C*EXP(-gamma*(BD$15-$H40 ))) ) -> 0 | BE40: =$G40/[0]!Poids * ( (A*EXP(-alpha*(BE$15-$H40))) + (B*EXP(-bêta*(BE$15-$H40))) + (_C*EXP(-gamma*(BE$15-$H40 ))) ) -> 0 | BF40: =$G40/[0]!Poids * ( (A*EXP(-alpha*(BF$15-$H40))) + (B*EXP(-bêta*(BF$15-$H40))) + (_C*EXP(-gamma*(BF$15-$H40 ))) ) -> 0 | BG40: =$G40/[0]!Poids * ( (A*EXP(-alpha*(BG$15-$H40))) + (B*EXP(-bêta*(BG$15-$H40))) + (_C*EXP(-gamma*(BG$15-$H40 ))) ) -> 0 | BH40: =$G40/[0]!Poids * ( (A*EXP(-alpha*(BH$15-$H40))) + (B*EXP(-bêta*(BH$15-$H40))) + (_C*EXP(-gamma*(BH$15-$H40 ))) ) -> 0 | BI40: =$G40/[0]!Poids * ( (A*EXP(-alpha*(BI$15-$H40))) + (B*EXP(-bêta*(BI$15-$H40))) + (_C*EXP(-gamma*(BI$15-$H40 ))) ) -> 0 | BJ40: =$G40/[0]!Poids * ( (A*EXP(-alpha*(BJ$15-$H40))) + (B*EXP(-bêta*(BJ$15-$H40))) + (_C*EXP(-gamma*(BJ$15-$H40 ))) ) -> 0 | BK40: =$G40/[0]!Poids * ( (A*EXP(-alpha*(BK$15-$H40))) + (B*EXP(-bêta*(BK$15-$H40))) + (_C*EXP(-gamma*(BK$15-$H40 ))) ) -> 0 | BL40: =$G40/[0]!Poids * ( (A*EXP(-alpha*(BL$15-$H40))) + (B*EXP(-bêta*(BL$15-$H40))) + (_C*EXP(-gamma*(BL$15-$H40 ))) ) -> 0 | BM40: =$G40/[0]!Poids * ( (A*EXP(-alpha*(BM$15-$H40))) + (B*EXP(-bêta*(BM$15-$H40))) + (_C*EXP(-gamma*(BM$15-$H40 ))) ) -> 0 | BN40: =$G40/[0]!Poids * ( (A*EXP(-alpha*(BN$15-$H40))) + (B*EXP(-bêta*(BN$15-$H40))) + (_C*EXP(-gamma*(BN$15-$H40 ))) ) -> 0 | BO40: =$G40/[0]!Poids * ( (A*EXP(-alpha*(BO$15-$H40))) + (B*EXP(-bêta*(BO$15-$H40))) + (_C*EXP(-gamma*(BO$15-$H40 ))) ) -> 0 | BP40: =$G40/[0]!Poids * ( (A*EXP(-alpha*(BP$15-$H40))) + (B*EXP(-bêta*(BP$15-$H40))) + (_C*EXP(-gamma*(BP$15-$H40 ))) ) -> 0 | BQ40: =$G40/[0]!Poids * ( (A*EXP(-alpha*(BQ$15-$H40))) + (B*EXP(-bêta*(BQ$15-$H40))) + (_C*EXP(-gamma*(BQ$15-$H40 ))) ) -> 0 | BR40: =$G40/[0]!Poids * ( (A*EXP(-alpha*(BR$15-$H40))) + (B*EXP(-bêta*(BR$15-$H40))) + (_C*EXP(-gamma*(BR$15-$H40 ))) ) -> 0
G41: =AI$10 -> 0 | H41: 125 | AI41: =$G41/[0]!Poids * ( (A*EXP(-alpha*(AI$15-$H41))) + (B*EXP(-bêta*(AI$15-$H41))) + (_C*EXP(-gamma*(AI$15-$H41 ))) ) -> 0 | AJ41: =$G41/[0]!Poids * ( (A*EXP(-alpha*(AJ$15-$H41))) + (B*EXP(-bêta*(AJ$15-$H41))) + (_C*EXP(-gamma*(AJ$15-$H41 ))) ) -> 0 | AK41: =$G41/[0]!Poids * ( (A*EXP(-alpha*(AK$15-$H41))) + (B*EXP(-bêta*(AK$15-$H41))) + (_C*EXP(-gamma*(AK$15-$H41 ))) ) -> 0 | AL41: =$G41/[0]!Poids * ( (A*EXP(-alpha*(AL$15-$H41))) + (B*EXP(-bêta*(AL$15-$H41))) + (_C*EXP(-gamma*(AL$15-$H41 ))) ) -> 0 | AM41: =$G41/[0]!Poids * ( (A*EXP(-alpha*(AM$15-$H41))) + (B*EXP(-bêta*(AM$15-$H41))) + (_C*EXP(-gamma*(AM$15-$H41 ))) ) -> 0 | AN41: =$G41/[0]!Poids * ( (A*EXP(-alpha*(AN$15-$H41))) + (B*EXP(-bêta*(AN$15-$H41))) + (_C*EXP(-gamma*(AN$15-$H41 ))) ) -> 0 | AO41: =$G41/[0]!Poids * ( (A*EXP(-alpha*(AO$15-$H41))) + (B*EXP(-bêta*(AO$15-$H41))) + (_C*EXP(-gamma*(AO$15-$H41 ))) ) -> 0 | AP41: =$G41/[0]!Poids * ( (A*EXP(-alpha*(AP$15-$H41))) + (B*EXP(-bêta*(AP$15-$H41))) + (_C*EXP(-gamma*(AP$15-$H41 ))) ) -> 0 | AQ41: =$G41/[0]!Poids * ( (A*EXP(-alpha*(AQ$15-$H41))) + (B*EXP(-bêta*(AQ$15-$H41))) + (_C*EXP(-gamma*(AQ$15-$H41 ))) ) -> 0 | AR41: =$G41/[0]!Poids * ( (A*EXP(-alpha*(AR$15-$H41))) + (B*EXP(-bêta*(AR$15-$H41))) + (_C*EXP(-gamma*(AR$15-$H41 ))) ) -> 0 | AS41: =$G41/[0]!Poids * ( (A*EXP(-alpha*(AS$15-$H41))) + (B*EXP(-bêta*(AS$15-$H41))) + (_C*EXP(-gamma*(AS$15-$H41 ))) ) -> 0 | AT41: =$G41/[0]!Poids * ( (A*EXP(-alpha*(AT$15-$H41))) + (B*EXP(-bêta*(AT$15-$H41))) + (_C*EXP(-gamma*(AT$15-$H41 ))) ) -> 0 | AU41: =$G41/[0]!Poids * ( (A*EXP(-alpha*(AU$15-$H41))) + (B*EXP(-bêta*(AU$15-$H41))) + (_C*EXP(-gamma*(AU$15-$H41 ))) ) -> 0 | AV41: =$G41/[0]!Poids * ( (A*EXP(-alpha*(AV$15-$H41))) + (B*EXP(-bêta*(AV$15-$H41))) + (_C*EXP(-gamma*(AV$15-$H41 ))) ) -> 0 | AW41: =$G41/[0]!Poids * ( (A*EXP(-alpha*(AW$15-$H41))) + (B*EXP(-bêta*(AW$15-$H41))) + (_C*EXP(-gamma*(AW$15-$H41 ))) ) -> 0 | AX41: =$G41/[0]!Poids * ( (A*EXP(-alpha*(AX$15-$H41))) + (B*EXP(-bêta*(AX$15-$H41))) + (_C*EXP(-gamma*(AX$15-$H41 ))) ) -> 0 | AY41: =$G41/[0]!Poids * ( (A*EXP(-alpha*(AY$15-$H41))) + (B*EXP(-bêta*(AY$15-$H41))) + (_C*EXP(-gamma*(AY$15-$H41 ))) ) -> 0 | AZ41: =$G41/[0]!Poids * ( (A*EXP(-alpha*(AZ$15-$H41))) + (B*EXP(-bêta*(AZ$15-$H41))) + (_C*EXP(-gamma*(AZ$15-$H41 ))) ) -> 0 | BA41: =$G41/[0]!Poids * ( (A*EXP(-alpha*(BA$15-$H41))) + (B*EXP(-bêta*(BA$15-$H41))) + (_C*EXP(-gamma*(BA$15-$H41 ))) ) -> 0 | BB41: =$G41/[0]!Poids * ( (A*EXP(-alpha*(BB$15-$H41))) + (B*EXP(-bêta*(BB$15-$H41))) + (_C*EXP(-gamma*(BB$15-$H41 ))) ) -> 0 | BC41: =$G41/[0]!Poids * ( (A*EXP(-alpha*(BC$15-$H41))) + (B*EXP(-bêta*(BC$15-$H41))) + (_C*EXP(-gamma*(BC$15-$H41 ))) ) -> 0 | BD41: =$G41/[0]!Poids * ( (A*EXP(-alpha*(BD$15-$H41))) + (B*EXP(-bêta*(BD$15-$H41))) + (_C*EXP(-gamma*(BD$15-$H41 ))) ) -> 0 | BE41: =$G41/[0]!Poids * ( (A*EXP(-alpha*(BE$15-$H41))) + (B*EXP(-bêta*(BE$15-$H41))) + (_C*EXP(-gamma*(BE$15-$H41 ))) ) -> 0 | BF41: =$G41/[0]!Poids * ( (A*EXP(-alpha*(BF$15-$H41))) + (B*EXP(-bêta*(BF$15-$H41))) + (_C*EXP(-gamma*(BF$15-$H41 ))) ) -> 0 | BG41: =$G41/[0]!Poids * ( (A*EXP(-alpha*(BG$15-$H41))) + (B*EXP(-bêta*(BG$15-$H41))) + (_C*EXP(-gamma*(BG$15-$H41 ))) ) -> 0 | BH41: =$G41/[0]!Poids * ( (A*EXP(-alpha*(BH$15-$H41))) + (B*EXP(-bêta*(BH$15-$H41))) + (_C*EXP(-gamma*(BH$15-$H41 ))) ) -> 0 | BI41: =$G41/[0]!Poids * ( (A*EXP(-alpha*(BI$15-$H41))) + (B*EXP(-bêta*(BI$15-$H41))) + (_C*EXP(-gamma*(BI$15-$H41 ))) ) -> 0 | BJ41: =$G41/[0]!Poids * ( (A*EXP(-alpha*(BJ$15-$H41))) + (B*EXP(-bêta*(BJ$15-$H41))) + (_C*EXP(-gamma*(BJ$15-$H41 ))) ) -> 0 | BK41: =$G41/[0]!Poids * ( (A*EXP(-alpha*(BK$15-$H41))) + (B*EXP(-bêta*(BK$15-$H41))) + (_C*EXP(-gamma*(BK$15-$H41 ))) ) -> 0 | BL41: =$G41/[0]!Poids * ( (A*EXP(-alpha*(BL$15-$H41))) + (B*EXP(-bêta*(BL$15-$H41))) + (_C*EXP(-gamma*(BL$15-$H41 ))) ) -> 0 | BM41: =$G41/[0]!Poids * ( (A*EXP(-alpha*(BM$15-$H41))) + (B*EXP(-bêta*(BM$15-$H41))) + (_C*EXP(-gamma*(BM$15-$H41 ))) ) -> 0 | BN41: =$G41/[0]!Poids * ( (A*EXP(-alpha*(BN$15-$H41))) + (B*EXP(-bêta*(BN$15-$H41))) + (_C*EXP(-gamma*(BN$15-$H41 ))) ) -> 0 | BO41: =$G41/[0]!Poids * ( (A*EXP(-alpha*(BO$15-$H41))) + (B*EXP(-bêta*(BO$15-$H41))) + (_C*EXP(-gamma*(BO$15-$H41 ))) ) -> 0 | BP41: =$G41/[0]!Poids * ( (A*EXP(-alpha*(BP$15-$H41))) + (B*EXP(-bêta*(BP$15-$H41))) + (_C*EXP(-gamma*(BP$15-$H41 ))) ) -> 0 | BQ41: =$G41/[0]!Poids * ( (A*EXP(-alpha*(BQ$15-$H41))) + (B*EXP(-bêta*(BQ$15-$H41))) + (_C*EXP(-gamma*(BQ$15-$H41 ))) ) -> 0 | BR41: =$G41/[0]!Poids * ( (A*EXP(-alpha*(BR$15-$H41))) + (B*EXP(-bêta*(BR$15-$H41))) + (_C*EXP(-gamma*(BR$15-$H41 ))) ) -> 0
G42: =AJ$10 -> 0 | H42: 130 | AJ42: =$G42/[0]!Poids * ( (A*EXP(-alpha*(AJ$15-$H42))) + (B*EXP(-bêta*(AJ$15-$H42))) + (_C*EXP(-gamma*(AJ$15-$H42 ))) ) -> 0 | AK42: =$G42/[0]!Poids * ( (A*EXP(-alpha*(AK$15-$H42))) + (B*EXP(-bêta*(AK$15-$H42))) + (_C*EXP(-gamma*(AK$15-$H42 ))) ) -> 0 | AL42: =$G42/[0]!Poids * ( (A*EXP(-alpha*(AL$15-$H42))) + (B*EXP(-bêta*(AL$15-$H42))) + (_C*EXP(-gamma*(AL$15-$H42 ))) ) -> 0 | AM42: =$G42/[0]!Poids * ( (A*EXP(-alpha*(AM$15-$H42))) + (B*EXP(-bêta*(AM$15-$H42))) + (_C*EXP(-gamma*(AM$15-$H42 ))) ) -> 0 | AN42: =$G42/[0]!Poids * ( (A*EXP(-alpha*(AN$15-$H42))) + (B*EXP(-bêta*(AN$15-$H42))) + (_C*EXP(-gamma*(AN$15-$H42 ))) ) -> 0 | AO42: =$G42/[0]!Poids * ( (A*EXP(-alpha*(AO$15-$H42))) + (B*EXP(-bêta*(AO$15-$H42))) + (_C*EXP(-gamma*(AO$15-$H42 ))) ) -> 0 | AP42: =$G42/[0]!Poids * ( (A*EXP(-alpha*(AP$15-$H42))) + (B*EXP(-bêta*(AP$15-$H42))) + (_C*EXP(-gamma*(AP$15-$H42 ))) ) -> 0 | AQ42: =$G42/[0]!Poids * ( (A*EXP(-alpha*(AQ$15-$H42))) + (B*EXP(-bêta*(AQ$15-$H42))) + (_C*EXP(-gamma*(AQ$15-$H42 ))) ) -> 0 | AR42: =$G42/[0]!Poids * ( (A*EXP(-alpha*(AR$15-$H42))) + (B*EXP(-bêta*(AR$15-$H42))) + (_C*EXP(-gamma*(AR$15-$H42 ))) ) -> 0 | AS42: =$G42/[0]!Poids * ( (A*EXP(-alpha*(AS$15-$H42))) + (B*EXP(-bêta*(AS$15-$H42))) + (_C*EXP(-gamma*(AS$15-$H42 ))) ) -> 0 | AT42: =$G42/[0]!Poids * ( (A*EXP(-alpha*(AT$15-$H42))) + (B*EXP(-bêta*(AT$15-$H42))) + (_C*EXP(-gamma*(AT$15-$H42 ))) ) -> 0 | AU42: =$G42/[0]!Poids * ( (A*EXP(-alpha*(AU$15-$H42))) + (B*EXP(-bêta*(AU$15-$H42))) + (_C*EXP(-gamma*(AU$15-$H42 ))) ) -> 0 | AV42: =$G42/[0]!Poids * ( (A*EXP(-alpha*(AV$15-$H42))) + (B*EXP(-bêta*(AV$15-$H42))) + (_C*EXP(-gamma*(AV$15-$H42 ))) ) -> 0 | AW42: =$G42/[0]!Poids * ( (A*EXP(-alpha*(AW$15-$H42))) + (B*EXP(-bêta*(AW$15-$H42))) + (_C*EXP(-gamma*(AW$15-$H42 ))) ) -> 0 | AX42: =$G42/[0]!Poids * ( (A*EXP(-alpha*(AX$15-$H42))) + (B*EXP(-bêta*(AX$15-$H42))) + (_C*EXP(-gamma*(AX$15-$H42 ))) ) -> 0 | AY42: =$G42/[0]!Poids * ( (A*EXP(-alpha*(AY$15-$H42))) + (B*EXP(-bêta*(AY$15-$H42))) + (_C*EXP(-gamma*(AY$15-$H42 ))) ) -> 0 | AZ42: =$G42/[0]!Poids * ( (A*EXP(-alpha*(AZ$15-$H42))) + (B*EXP(-bêta*(AZ$15-$H42))) + (_C*EXP(-gamma*(AZ$15-$H42 ))) ) -> 0 | BA42: =$G42/[0]!Poids * ( (A*EXP(-alpha*(BA$15-$H42))) + (B*EXP(-bêta*(BA$15-$H42))) + (_C*EXP(-gamma*(BA$15-$H42 ))) ) -> 0 | BB42: =$G42/[0]!Poids * ( (A*EXP(-alpha*(BB$15-$H42))) + (B*EXP(-bêta*(BB$15-$H42))) + (_C*EXP(-gamma*(BB$15-$H42 ))) ) -> 0 | BC42: =$G42/[0]!Poids * ( (A*EXP(-alpha*(BC$15-$H42))) + (B*EXP(-bêta*(BC$15-$H42))) + (_C*EXP(-gamma*(BC$15-$H42 ))) ) -> 0 | BD42: =$G42/[0]!Poids * ( (A*EXP(-alpha*(BD$15-$H42))) + (B*EXP(-bêta*(BD$15-$H42))) + (_C*EXP(-gamma*(BD$15-$H42 ))) ) -> 0 | BE42: =$G42/[0]!Poids * ( (A*EXP(-alpha*(BE$15-$H42))) + (B*EXP(-bêta*(BE$15-$H42))) + (_C*EXP(-gamma*(BE$15-$H42 ))) ) -> 0 | BF42: =$G42/[0]!Poids * ( (A*EXP(-alpha*(BF$15-$H42))) + (B*EXP(-bêta*(BF$15-$H42))) + (_C*EXP(-gamma*(BF$15-$H42 ))) ) -> 0 | BG42: =$G42/[0]!Poids * ( (A*EXP(-alpha*(BG$15-$H42))) + (B*EXP(-bêta*(BG$15-$H42))) + (_C*EXP(-gamma*(BG$15-$H42 ))) ) -> 0 | BH42: =$G42/[0]!Poids * ( (A*EXP(-alpha*(BH$15-$H42))) + (B*EXP(-bêta*(BH$15-$H42))) + (_C*EXP(-gamma*(BH$15-$H42 ))) ) -> 0 | BI42: =$G42/[0]!Poids * ( (A*EXP(-alpha*(BI$15-$H42))) + (B*EXP(-bêta*(BI$15-$H42))) + (_C*EXP(-gamma*(BI$15-$H42 ))) ) -> 0 | BJ42: =$G42/[0]!Poids * ( (A*EXP(-alpha*(BJ$15-$H42))) + (B*EXP(-bêta*(BJ$15-$H42))) + (_C*EXP(-gamma*(BJ$15-$H42 ))) ) -> 0 | BK42: =$G42/[0]!Poids * ( (A*EXP(-alpha*(BK$15-$H42))) + (B*EXP(-bêta*(BK$15-$H42))) + (_C*EXP(-gamma*(BK$15-$H42 ))) ) -> 0 | BL42: =$G42/[0]!Poids * ( (A*EXP(-alpha*(BL$15-$H42))) + (B*EXP(-bêta*(BL$15-$H42))) + (_C*EXP(-gamma*(BL$15-$H42 ))) ) -> 0 | BM42: =$G42/[0]!Poids * ( (A*EXP(-alpha*(BM$15-$H42))) + (B*EXP(-bêta*(BM$15-$H42))) + (_C*EXP(-gamma*(BM$15-$H42 ))) ) -> 0 | BN42: =$G42/[0]!Poids * ( (A*EXP(-alpha*(BN$15-$H42))) + (B*EXP(-bêta*(BN$15-$H42))) + (_C*EXP(-gamma*(BN$15-$H42 ))) ) -> 0 | BO42: =$G42/[0]!Poids * ( (A*EXP(-alpha*(BO$15-$H42))) + (B*EXP(-bêta*(BO$15-$H42))) + (_C*EXP(-gamma*(BO$15-$H42 ))) ) -> 0 | BP42: =$G42/[0]!Poids * ( (A*EXP(-alpha*(BP$15-$H42))) + (B*EXP(-bêta*(BP$15-$H42))) + (_C*EXP(-gamma*(BP$15-$H42 ))) ) -> 0 | BQ42: =$G42/[0]!Poids * ( (A*EXP(-alpha*(BQ$15-$H42))) + (B*EXP(-bêta*(BQ$15-$H42))) + (_C*EXP(-gamma*(BQ$15-$H42 ))) ) -> 0 | BR42: =$G42/[0]!Poids * ( (A*EXP(-alpha*(BR$15-$H42))) + (B*EXP(-bêta*(BR$15-$H42))) + (_C*EXP(-gamma*(BR$15-$H42 ))) ) -> 0
G43: =AK$10 -> 0 | H43: 135 | AK43: =$G43/[0]!Poids * ( (A*EXP(-alpha*(AK$15-$H43))) + (B*EXP(-bêta*(AK$15-$H43))) + (_C*EXP(-gamma*(AK$15-$H43 ))) ) -> 0 | AL43: =$G43/[0]!Poids * ( (A*EXP(-alpha*(AL$15-$H43))) + (B*EXP(-bêta*(AL$15-$H43))) + (_C*EXP(-gamma*(AL$15-$H43 ))) ) -> 0 | AM43: =$G43/[0]!Poids * ( (A*EXP(-alpha*(AM$15-$H43))) + (B*EXP(-bêta*(AM$15-$H43))) + (_C*EXP(-gamma*(AM$15-$H43 ))) ) -> 0 | AN43: =$G43/[0]!Poids * ( (A*EXP(-alpha*(AN$15-$H43))) + (B*EXP(-bêta*(AN$15-$H43))) + (_C*EXP(-gamma*(AN$15-$H43 ))) ) -> 0 | AO43: =$G43/[0]!Poids * ( (A*EXP(-alpha*(AO$15-$H43))) + (B*EXP(-bêta*(AO$15-$H43))) + (_C*EXP(-gamma*(AO$15-$H43 ))) ) -> 0 | AP43: =$G43/[0]!Poids * ( (A*EXP(-alpha*(AP$15-$H43))) + (B*EXP(-bêta*(AP$15-$H43))) + (_C*EXP(-gamma*(AP$15-$H43 ))) ) -> 0 | AQ43: =$G43/[0]!Poids * ( (A*EXP(-alpha*(AQ$15-$H43))) + (B*EXP(-bêta*(AQ$15-$H43))) + (_C*EXP(-gamma*(AQ$15-$H43 ))) ) -> 0 | AR43: =$G43/[0]!Poids * ( (A*EXP(-alpha*(AR$15-$H43))) + (B*EXP(-bêta*(AR$15-$H43))) + (_C*EXP(-gamma*(AR$15-$H43 ))) ) -> 0 | AS43: =$G43/[0]!Poids * ( (A*EXP(-alpha*(AS$15-$H43))) + (B*EXP(-bêta*(AS$15-$H43))) + (_C*EXP(-gamma*(AS$15-$H43 ))) ) -> 0 | AT43: =$G43/[0]!Poids * ( (A*EXP(-alpha*(AT$15-$H43))) + (B*EXP(-bêta*(AT$15-$H43))) + (_C*EXP(-gamma*(AT$15-$H43 ))) ) -> 0 | AU43: =$G43/[0]!Poids * ( (A*EXP(-alpha*(AU$15-$H43))) + (B*EXP(-bêta*(AU$15-$H43))) + (_C*EXP(-gamma*(AU$15-$H43 ))) ) -> 0 | AV43: =$G43/[0]!Poids * ( (A*EXP(-alpha*(AV$15-$H43))) + (B*EXP(-bêta*(AV$15-$H43))) + (_C*EXP(-gamma*(AV$15-$H43 ))) ) -> 0 | AW43: =$G43/[0]!Poids * ( (A*EXP(-alpha*(AW$15-$H43))) + (B*EXP(-bêta*(AW$15-$H43))) + (_C*EXP(-gamma*(AW$15-$H43 ))) ) -> 0 | AX43: =$G43/[0]!Poids * ( (A*EXP(-alpha*(AX$15-$H43))) + (B*EXP(-bêta*(AX$15-$H43))) + (_C*EXP(-gamma*(AX$15-$H43 ))) ) -> 0 | AY43: =$G43/[0]!Poids * ( (A*EXP(-alpha*(AY$15-$H43))) + (B*EXP(-bêta*(AY$15-$H43))) + (_C*EXP(-gamma*(AY$15-$H43 ))) ) -> 0 | AZ43: =$G43/[0]!Poids * ( (A*EXP(-alpha*(AZ$15-$H43))) + (B*EXP(-bêta*(AZ$15-$H43))) + (_C*EXP(-gamma*(AZ$15-$H43 ))) ) -> 0 | BA43: =$G43/[0]!Poids * ( (A*EXP(-alpha*(BA$15-$H43))) + (B*EXP(-bêta*(BA$15-$H43))) + (_C*EXP(-gamma*(BA$15-$H43 ))) ) -> 0 | BB43: =$G43/[0]!Poids * ( (A*EXP(-alpha*(BB$15-$H43))) + (B*EXP(-bêta*(BB$15-$H43))) + (_C*EXP(-gamma*(BB$15-$H43 ))) ) -> 0 | BC43: =$G43/[0]!Poids * ( (A*EXP(-alpha*(BC$15-$H43))) + (B*EXP(-bêta*(BC$15-$H43))) + (_C*EXP(-gamma*(BC$15-$H43 ))) ) -> 0 | BD43: =$G43/[0]!Poids * ( (A*EXP(-alpha*(BD$15-$H43))) + (B*EXP(-bêta*(BD$15-$H43))) + (_C*EXP(-gamma*(BD$15-$H43 ))) ) -> 0 | BE43: =$G43/[0]!Poids * ( (A*EXP(-alpha*(BE$15-$H43))) + (B*EXP(-bêta*(BE$15-$H43))) + (_C*EXP(-gamma*(BE$15-$H43 ))) ) -> 0 | BF43: =$G43/[0]!Poids * ( (A*EXP(-alpha*(BF$15-$H43))) + (B*EXP(-bêta*(BF$15-$H43))) + (_C*EXP(-gamma*(BF$15-$H43 ))) ) -> 0 | BG43: =$G43/[0]!Poids * ( (A*EXP(-alpha*(BG$15-$H43))) + (B*EXP(-bêta*(BG$15-$H43))) + (_C*EXP(-gamma*(BG$15-$H43 ))) ) -> 0 | BH43: =$G43/[0]!Poids * ( (A*EXP(-alpha*(BH$15-$H43))) + (B*EXP(-bêta*(BH$15-$H43))) + (_C*EXP(-gamma*(BH$15-$H43 ))) ) -> 0 | BI43: =$G43/[0]!Poids * ( (A*EXP(-alpha*(BI$15-$H43))) + (B*EXP(-bêta*(BI$15-$H43))) + (_C*EXP(-gamma*(BI$15-$H43 ))) ) -> 0 | BJ43: =$G43/[0]!Poids * ( (A*EXP(-alpha*(BJ$15-$H43))) + (B*EXP(-bêta*(BJ$15-$H43))) + (_C*EXP(-gamma*(BJ$15-$H43 ))) ) -> 0 | BK43: =$G43/[0]!Poids * ( (A*EXP(-alpha*(BK$15-$H43))) + (B*EXP(-bêta*(BK$15-$H43))) + (_C*EXP(-gamma*(BK$15-$H43 ))) ) -> 0 | BL43: =$G43/[0]!Poids * ( (A*EXP(-alpha*(BL$15-$H43))) + (B*EXP(-bêta*(BL$15-$H43))) + (_C*EXP(-gamma*(BL$15-$H43 ))) ) -> 0 | BM43: =$G43/[0]!Poids * ( (A*EXP(-alpha*(BM$15-$H43))) + (B*EXP(-bêta*(BM$15-$H43))) + (_C*EXP(-gamma*(BM$15-$H43 ))) ) -> 0 | BN43: =$G43/[0]!Poids * ( (A*EXP(-alpha*(BN$15-$H43))) + (B*EXP(-bêta*(BN$15-$H43))) + (_C*EXP(-gamma*(BN$15-$H43 ))) ) -> 0 | BO43: =$G43/[0]!Poids * ( (A*EXP(-alpha*(BO$15-$H43))) + (B*EXP(-bêta*(BO$15-$H43))) + (_C*EXP(-gamma*(BO$15-$H43 ))) ) -> 0 | BP43: =$G43/[0]!Poids * ( (A*EXP(-alpha*(BP$15-$H43))) + (B*EXP(-bêta*(BP$15-$H43))) + (_C*EXP(-gamma*(BP$15-$H43 ))) ) -> 0 | BQ43: =$G43/[0]!Poids * ( (A*EXP(-alpha*(BQ$15-$H43))) + (B*EXP(-bêta*(BQ$15-$H43))) + (_C*EXP(-gamma*(BQ$15-$H43 ))) ) -> 0 | BR43: =$G43/[0]!Poids * ( (A*EXP(-alpha*(BR$15-$H43))) + (B*EXP(-bêta*(BR$15-$H43))) + (_C*EXP(-gamma*(BR$15-$H43 ))) ) -> 0
G44: =AL$10 -> 0 | H44: 140 | AL44: =$G44/[0]!Poids * ( (A*EXP(-alpha*(AL$15-$H44))) + (B*EXP(-bêta*(AL$15-$H44))) + (_C*EXP(-gamma*(AL$15-$H44 ))) ) -> 0 | AM44: =$G44/[0]!Poids * ( (A*EXP(-alpha*(AM$15-$H44))) + (B*EXP(-bêta*(AM$15-$H44))) + (_C*EXP(-gamma*(AM$15-$H44 ))) ) -> 0 | AN44: =$G44/[0]!Poids * ( (A*EXP(-alpha*(AN$15-$H44))) + (B*EXP(-bêta*(AN$15-$H44))) + (_C*EXP(-gamma*(AN$15-$H44 ))) ) -> 0 | AO44: =$G44/[0]!Poids * ( (A*EXP(-alpha*(AO$15-$H44))) + (B*EXP(-bêta*(AO$15-$H44))) + (_C*EXP(-gamma*(AO$15-$H44 ))) ) -> 0 | AP44: =$G44/[0]!Poids * ( (A*EXP(-alpha*(AP$15-$H44))) + (B*EXP(-bêta*(AP$15-$H44))) + (_C*EXP(-gamma*(AP$15-$H44 ))) ) -> 0 | AQ44: =$G44/[0]!Poids * ( (A*EXP(-alpha*(AQ$15-$H44))) + (B*EXP(-bêta*(AQ$15-$H44))) + (_C*EXP(-gamma*(AQ$15-$H44 ))) ) -> 0 | AR44: =$G44/[0]!Poids * ( (A*EXP(-alpha*(AR$15-$H44))) + (B*EXP(-bêta*(AR$15-$H44))) + (_C*EXP(-gamma*(AR$15-$H44 ))) ) -> 0 | AS44: =$G44/[0]!Poids * ( (A*EXP(-alpha*(AS$15-$H44))) + (B*EXP(-bêta*(AS$15-$H44))) + (_C*EXP(-gamma*(AS$15-$H44 ))) ) -> 0 | AT44: =$G44/[0]!Poids * ( (A*EXP(-alpha*(AT$15-$H44))) + (B*EXP(-bêta*(AT$15-$H44))) + (_C*EXP(-gamma*(AT$15-$H44 ))) ) -> 0 | AU44: =$G44/[0]!Poids * ( (A*EXP(-alpha*(AU$15-$H44))) + (B*EXP(-bêta*(AU$15-$H44))) + (_C*EXP(-gamma*(AU$15-$H44 ))) ) -> 0 | AV44: =$G44/[0]!Poids * ( (A*EXP(-alpha*(AV$15-$H44))) + (B*EXP(-bêta*(AV$15-$H44))) + (_C*EXP(-gamma*(AV$15-$H44 ))) ) -> 0 | AW44: =$G44/[0]!Poids * ( (A*EXP(-alpha*(AW$15-$H44))) + (B*EXP(-bêta*(AW$15-$H44))) + (_C*EXP(-gamma*(AW$15-$H44 ))) ) -> 0 | AX44: =$G44/[0]!Poids * ( (A*EXP(-alpha*(AX$15-$H44))) + (B*EXP(-bêta*(AX$15-$H44))) + (_C*EXP(-gamma*(AX$15-$H44 ))) ) -> 0 | AY44: =$G44/[0]!Poids * ( (A*EXP(-alpha*(AY$15-$H44))) + (B*EXP(-bêta*(AY$15-$H44))) + (_C*EXP(-gamma*(AY$15-$H44 ))) ) -> 0 | AZ44: =$G44/[0]!Poids * ( (A*EXP(-alpha*(AZ$15-$H44))) + (B*EXP(-bêta*(AZ$15-$H44))) + (_C*EXP(-gamma*(AZ$15-$H44 ))) ) -> 0 | BA44: =$G44/[0]!Poids * ( (A*EXP(-alpha*(BA$15-$H44))) + (B*EXP(-bêta*(BA$15-$H44))) + (_C*EXP(-gamma*(BA$15-$H44 ))) ) -> 0 | BB44: =$G44/[0]!Poids * ( (A*EXP(-alpha*(BB$15-$H44))) + (B*EXP(-bêta*(BB$15-$H44))) + (_C*EXP(-gamma*(BB$15-$H44 ))) ) -> 0 | BC44: =$G44/[0]!Poids * ( (A*EXP(-alpha*(BC$15-$H44))) + (B*EXP(-bêta*(BC$15-$H44))) + (_C*EXP(-gamma*(BC$15-$H44 ))) ) -> 0 | BD44: =$G44/[0]!Poids * ( (A*EXP(-alpha*(BD$15-$H44))) + (B*EXP(-bêta*(BD$15-$H44))) + (_C*EXP(-gamma*(BD$15-$H44 ))) ) -> 0 | BE44: =$G44/[0]!Poids * ( (A*EXP(-alpha*(BE$15-$H44))) + (B*EXP(-bêta*(BE$15-$H44))) + (_C*EXP(-gamma*(BE$15-$H44 ))) ) -> 0 | BF44: =$G44/[0]!Poids * ( (A*EXP(-alpha*(BF$15-$H44))) + (B*EXP(-bêta*(BF$15-$H44))) + (_C*EXP(-gamma*(BF$15-$H44 ))) ) -> 0 | BG44: =$G44/[0]!Poids * ( (A*EXP(-alpha*(BG$15-$H44))) + (B*EXP(-bêta*(BG$15-$H44))) + (_C*EXP(-gamma*(BG$15-$H44 ))) ) -> 0 | BH44: =$G44/[0]!Poids * ( (A*EXP(-alpha*(BH$15-$H44))) + (B*EXP(-bêta*(BH$15-$H44))) + (_C*EXP(-gamma*(BH$15-$H44 ))) ) -> 0 | BI44: =$G44/[0]!Poids * ( (A*EXP(-alpha*(BI$15-$H44))) + (B*EXP(-bêta*(BI$15-$H44))) + (_C*EXP(-gamma*(BI$15-$H44 ))) ) -> 0 | BJ44: =$G44/[0]!Poids * ( (A*EXP(-alpha*(BJ$15-$H44))) + (B*EXP(-bêta*(BJ$15-$H44))) + (_C*EXP(-gamma*(BJ$15-$H44 ))) ) -> 0 | BK44: =$G44/[0]!Poids * ( (A*EXP(-alpha*(BK$15-$H44))) + (B*EXP(-bêta*(BK$15-$H44))) + (_C*EXP(-gamma*(BK$15-$H44 ))) ) -> 0 | BL44: =$G44/[0]!Poids * ( (A*EXP(-alpha*(BL$15-$H44))) + (B*EXP(-bêta*(BL$15-$H44))) + (_C*EXP(-gamma*(BL$15-$H44 ))) ) -> 0 | BM44: =$G44/[0]!Poids * ( (A*EXP(-alpha*(BM$15-$H44))) + (B*EXP(-bêta*(BM$15-$H44))) + (_C*EXP(-gamma*(BM$15-$H44 ))) ) -> 0 | BN44: =$G44/[0]!Poids * ( (A*EXP(-alpha*(BN$15-$H44))) + (B*EXP(-bêta*(BN$15-$H44))) + (_C*EXP(-gamma*(BN$15-$H44 ))) ) -> 0 | BO44: =$G44/[0]!Poids * ( (A*EXP(-alpha*(BO$15-$H44))) + (B*EXP(-bêta*(BO$15-$H44))) + (_C*EXP(-gamma*(BO$15-$H44 ))) ) -> 0 | BP44: =$G44/[0]!Poids * ( (A*EXP(-alpha*(BP$15-$H44))) + (B*EXP(-bêta*(BP$15-$H44))) + (_C*EXP(-gamma*(BP$15-$H44 ))) ) -> 0 | BQ44: =$G44/[0]!Poids * ( (A*EXP(-alpha*(BQ$15-$H44))) + (B*EXP(-bêta*(BQ$15-$H44))) + (_C*EXP(-gamma*(BQ$15-$H44 ))) ) -> 0 | BR44: =$G44/[0]!Poids * ( (A*EXP(-alpha*(BR$15-$H44))) + (B*EXP(-bêta*(BR$15-$H44))) + (_C*EXP(-gamma*(BR$15-$H44 ))) ) -> 0
G45: =AM$10 -> 0 | H45: 145 | AM45: =$G45/[0]!Poids * ( (A*EXP(-alpha*(AM$15-$H45))) + (B*EXP(-bêta*(AM$15-$H45))) + (_C*EXP(-gamma*(AM$15-$H45 ))) ) -> 0 | AN45: =$G45/[0]!Poids * ( (A*EXP(-alpha*(AN$15-$H45))) + (B*EXP(-bêta*(AN$15-$H45))) + (_C*EXP(-gamma*(AN$15-$H45 ))) ) -> 0 | AO45: =$G45/[0]!Poids * ( (A*EXP(-alpha*(AO$15-$H45))) + (B*EXP(-bêta*(AO$15-$H45))) + (_C*EXP(-gamma*(AO$15-$H45 ))) ) -> 0 | AP45: =$G45/[0]!Poids * ( (A*EXP(-alpha*(AP$15-$H45))) + (B*EXP(-bêta*(AP$15-$H45))) + (_C*EXP(-gamma*(AP$15-$H45 ))) ) -> 0 | AQ45: =$G45/[0]!Poids * ( (A*EXP(-alpha*(AQ$15-$H45))) + (B*EXP(-bêta*(AQ$15-$H45))) + (_C*EXP(-gamma*(AQ$15-$H45 ))) ) -> 0 | AR45: =$G45/[0]!Poids * ( (A*EXP(-alpha*(AR$15-$H45))) + (B*EXP(-bêta*(AR$15-$H45))) + (_C*EXP(-gamma*(AR$15-$H45 ))) ) -> 0 | AS45: =$G45/[0]!Poids * ( (A*EXP(-alpha*(AS$15-$H45))) + (B*EXP(-bêta*(AS$15-$H45))) + (_C*EXP(-gamma*(AS$15-$H45 ))) ) -> 0 | AT45: =$G45/[0]!Poids * ( (A*EXP(-alpha*(AT$15-$H45))) + (B*EXP(-bêta*(AT$15-$H45))) + (_C*EXP(-gamma*(AT$15-$H45 ))) ) -> 0 | AU45: =$G45/[0]!Poids * ( (A*EXP(-alpha*(AU$15-$H45))) + (B*EXP(-bêta*(AU$15-$H45))) + (_C*EXP(-gamma*(AU$15-$H45 ))) ) -> 0 | AV45: =$G45/[0]!Poids * ( (A*EXP(-alpha*(AV$15-$H45))) + (B*EXP(-bêta*(AV$15-$H45))) + (_C*EXP(-gamma*(AV$15-$H45 ))) ) -> 0 | AW45: =$G45/[0]!Poids * ( (A*EXP(-alpha*(AW$15-$H45))) + (B*EXP(-bêta*(AW$15-$H45))) + (_C*EXP(-gamma*(AW$15-$H45 ))) ) -> 0 | AX45: =$G45/[0]!Poids * ( (A*EXP(-alpha*(AX$15-$H45))) + (B*EXP(-bêta*(AX$15-$H45))) + (_C*EXP(-gamma*(AX$15-$H45 ))) ) -> 0 | AY45: =$G45/[0]!Poids * ( (A*EXP(-alpha*(AY$15-$H45))) + (B*EXP(-bêta*(AY$15-$H45))) + (_C*EXP(-gamma*(AY$15-$H45 ))) ) -> 0 | AZ45: =$G45/[0]!Poids * ( (A*EXP(-alpha*(AZ$15-$H45))) + (B*EXP(-bêta*(AZ$15-$H45))) + (_C*EXP(-gamma*(AZ$15-$H45 ))) ) -> 0 | BA45: =$G45/[0]!Poids * ( (A*EXP(-alpha*(BA$15-$H45))) + (B*EXP(-bêta*(BA$15-$H45))) + (_C*EXP(-gamma*(BA$15-$H45 ))) ) -> 0 | BB45: =$G45/[0]!Poids * ( (A*EXP(-alpha*(BB$15-$H45))) + (B*EXP(-bêta*(BB$15-$H45))) + (_C*EXP(-gamma*(BB$15-$H45 ))) ) -> 0 | BC45: =$G45/[0]!Poids * ( (A*EXP(-alpha*(BC$15-$H45))) + (B*EXP(-bêta*(BC$15-$H45))) + (_C*EXP(-gamma*(BC$15-$H45 ))) ) -> 0 | BD45: =$G45/[0]!Poids * ( (A*EXP(-alpha*(BD$15-$H45))) + (B*EXP(-bêta*(BD$15-$H45))) + (_C*EXP(-gamma*(BD$15-$H45 ))) ) -> 0 | BE45: =$G45/[0]!Poids * ( (A*EXP(-alpha*(BE$15-$H45))) + (B*EXP(-bêta*(BE$15-$H45))) + (_C*EXP(-gamma*(BE$15-$H45 ))) ) -> 0 | BF45: =$G45/[0]!Poids * ( (A*EXP(-alpha*(BF$15-$H45))) + (B*EXP(-bêta*(BF$15-$H45))) + (_C*EXP(-gamma*(BF$15-$H45 ))) ) -> 0 | BG45: =$G45/[0]!Poids * ( (A*EXP(-alpha*(BG$15-$H45))) + (B*EXP(-bêta*(BG$15-$H45))) + (_C*EXP(-gamma*(BG$15-$H45 ))) ) -> 0 | BH45: =$G45/[0]!Poids * ( (A*EXP(-alpha*(BH$15-$H45))) + (B*EXP(-bêta*(BH$15-$H45))) + (_C*EXP(-gamma*(BH$15-$H45 ))) ) -> 0 | BI45: =$G45/[0]!Poids * ( (A*EXP(-alpha*(BI$15-$H45))) + (B*EXP(-bêta*(BI$15-$H45))) + (_C*EXP(-gamma*(BI$15-$H45 ))) ) -> 0 | BJ45: =$G45/[0]!Poids * ( (A*EXP(-alpha*(BJ$15-$H45))) + (B*EXP(-bêta*(BJ$15-$H45))) + (_C*EXP(-gamma*(BJ$15-$H45 ))) ) -> 0 | BK45: =$G45/[0]!Poids * ( (A*EXP(-alpha*(BK$15-$H45))) + (B*EXP(-bêta*(BK$15-$H45))) + (_C*EXP(-gamma*(BK$15-$H45 ))) ) -> 0 | BL45: =$G45/[0]!Poids * ( (A*EXP(-alpha*(BL$15-$H45))) + (B*EXP(-bêta*(BL$15-$H45))) + (_C*EXP(-gamma*(BL$15-$H45 ))) ) -> 0 | BM45: =$G45/[0]!Poids * ( (A*EXP(-alpha*(BM$15-$H45))) + (B*EXP(-bêta*(BM$15-$H45))) + (_C*EXP(-gamma*(BM$15-$H45 ))) ) -> 0 | BN45: =$G45/[0]!Poids * ( (A*EXP(-alpha*(BN$15-$H45))) + (B*EXP(-bêta*(BN$15-$H45))) + (_C*EXP(-gamma*(BN$15-$H45 ))) ) -> 0 | BO45: =$G45/[0]!Poids * ( (A*EXP(-alpha*(BO$15-$H45))) + (B*EXP(-bêta*(BO$15-$H45))) + (_C*EXP(-gamma*(BO$15-$H45 ))) ) -> 0 | BP45: =$G45/[0]!Poids * ( (A*EXP(-alpha*(BP$15-$H45))) + (B*EXP(-bêta*(BP$15-$H45))) + (_C*EXP(-gamma*(BP$15-$H45 ))) ) -> 0 | BQ45: =$G45/[0]!Poids * ( (A*EXP(-alpha*(BQ$15-$H45))) + (B*EXP(-bêta*(BQ$15-$H45))) + (_C*EXP(-gamma*(BQ$15-$H45 ))) ) -> 0 | BR45: =$G45/[0]!Poids * ( (A*EXP(-alpha*(BR$15-$H45))) + (B*EXP(-bêta*(BR$15-$H45))) + (_C*EXP(-gamma*(BR$15-$H45 ))) ) -> 0
G46: =AN$10 -> 0 | H46: 150 | AN46: =$G46/[0]!Poids * ( (A*EXP(-alpha*(AN$15-$H46))) + (B*EXP(-bêta*(AN$15-$H46))) + (_C*EXP(-gamma*(AN$15-$H46 ))) ) -> 0 | AO46: =$G46/[0]!Poids * ( (A*EXP(-alpha*(AO$15-$H46))) + (B*EXP(-bêta*(AO$15-$H46))) + (_C*EXP(-gamma*(AO$15-$H46 ))) ) -> 0 | AP46: =$G46/[0]!Poids * ( (A*EXP(-alpha*(AP$15-$H46))) + (B*EXP(-bêta*(AP$15-$H46))) + (_C*EXP(-gamma*(AP$15-$H46 ))) ) -> 0 | AQ46: =$G46/[0]!Poids * ( (A*EXP(-alpha*(AQ$15-$H46))) + (B*EXP(-bêta*(AQ$15-$H46))) + (_C*EXP(-gamma*(AQ$15-$H46 ))) ) -> 0 | AR46: =$G46/[0]!Poids * ( (A*EXP(-alpha*(AR$15-$H46))) + (B*EXP(-bêta*(AR$15-$H46))) + (_C*EXP(-gamma*(AR$15-$H46 ))) ) -> 0 | AS46: =$G46/[0]!Poids * ( (A*EXP(-alpha*(AS$15-$H46))) + (B*EXP(-bêta*(AS$15-$H46))) + (_C*EXP(-gamma*(AS$15-$H46 ))) ) -> 0 | AT46: =$G46/[0]!Poids * ( (A*EXP(-alpha*(AT$15-$H46))) + (B*EXP(-bêta*(AT$15-$H46))) + (_C*EXP(-gamma*(AT$15-$H46 ))) ) -> 0 | AU46: =$G46/[0]!Poids * ( (A*EXP(-alpha*(AU$15-$H46))) + (B*EXP(-bêta*(AU$15-$H46))) + (_C*EXP(-gamma*(AU$15-$H46 ))) ) -> 0 | AV46: =$G46/[0]!Poids * ( (A*EXP(-alpha*(AV$15-$H46))) + (B*EXP(-bêta*(AV$15-$H46))) + (_C*EXP(-gamma*(AV$15-$H46 ))) ) -> 0 | AW46: =$G46/[0]!Poids * ( (A*EXP(-alpha*(AW$15-$H46))) + (B*EXP(-bêta*(AW$15-$H46))) + (_C*EXP(-gamma*(AW$15-$H46 ))) ) -> 0 | AX46: =$G46/[0]!Poids * ( (A*EXP(-alpha*(AX$15-$H46))) + (B*EXP(-bêta*(AX$15-$H46))) + (_C*EXP(-gamma*(AX$15-$H46 ))) ) -> 0 | AY46: =$G46/[0]!Poids * ( (A*EXP(-alpha*(AY$15-$H46))) + (B*EXP(-bêta*(AY$15-$H46))) + (_C*EXP(-gamma*(AY$15-$H46 ))) ) -> 0 | AZ46: =$G46/[0]!Poids * ( (A*EXP(-alpha*(AZ$15-$H46))) + (B*EXP(-bêta*(AZ$15-$H46))) + (_C*EXP(-gamma*(AZ$15-$H46 ))) ) -> 0 | BA46: =$G46/[0]!Poids * ( (A*EXP(-alpha*(BA$15-$H46))) + (B*EXP(-bêta*(BA$15-$H46))) + (_C*EXP(-gamma*(BA$15-$H46 ))) ) -> 0 | BB46: =$G46/[0]!Poids * ( (A*EXP(-alpha*(BB$15-$H46))) + (B*EXP(-bêta*(BB$15-$H46))) + (_C*EXP(-gamma*(BB$15-$H46 ))) ) -> 0 | BC46: =$G46/[0]!Poids * ( (A*EXP(-alpha*(BC$15-$H46))) + (B*EXP(-bêta*(BC$15-$H46))) + (_C*EXP(-gamma*(BC$15-$H46 ))) ) -> 0 | BD46: =$G46/[0]!Poids * ( (A*EXP(-alpha*(BD$15-$H46))) + (B*EXP(-bêta*(BD$15-$H46))) + (_C*EXP(-gamma*(BD$15-$H46 ))) ) -> 0 | BE46: =$G46/[0]!Poids * ( (A*EXP(-alpha*(BE$15-$H46))) + (B*EXP(-bêta*(BE$15-$H46))) + (_C*EXP(-gamma*(BE$15-$H46 ))) ) -> 0 | BF46: =$G46/[0]!Poids * ( (A*EXP(-alpha*(BF$15-$H46))) + (B*EXP(-bêta*(BF$15-$H46))) + (_C*EXP(-gamma*(BF$15-$H46 ))) ) -> 0 | BG46: =$G46/[0]!Poids * ( (A*EXP(-alpha*(BG$15-$H46))) + (B*EXP(-bêta*(BG$15-$H46))) + (_C*EXP(-gamma*(BG$15-$H46 ))) ) -> 0 | BH46: =$G46/[0]!Poids * ( (A*EXP(-alpha*(BH$15-$H46))) + (B*EXP(-bêta*(BH$15-$H46))) + (_C*EXP(-gamma*(BH$15-$H46 ))) ) -> 0 | BI46: =$G46/[0]!Poids * ( (A*EXP(-alpha*(BI$15-$H46))) + (B*EXP(-bêta*(BI$15-$H46))) + (_C*EXP(-gamma*(BI$15-$H46 ))) ) -> 0 | BJ46: =$G46/[0]!Poids * ( (A*EXP(-alpha*(BJ$15-$H46))) + (B*EXP(-bêta*(BJ$15-$H46))) + (_C*EXP(-gamma*(BJ$15-$H46 ))) ) -> 0 | BK46: =$G46/[0]!Poids * ( (A*EXP(-alpha*(BK$15-$H46))) + (B*EXP(-bêta*(BK$15-$H46))) + (_C*EXP(-gamma*(BK$15-$H46 ))) ) -> 0 | BL46: =$G46/[0]!Poids * ( (A*EXP(-alpha*(BL$15-$H46))) + (B*EXP(-bêta*(BL$15-$H46))) + (_C*EXP(-gamma*(BL$15-$H46 ))) ) -> 0 | BM46: =$G46/[0]!Poids * ( (A*EXP(-alpha*(BM$15-$H46))) + (B*EXP(-bêta*(BM$15-$H46))) + (_C*EXP(-gamma*(BM$15-$H46 ))) ) -> 0 | BN46: =$G46/[0]!Poids * ( (A*EXP(-alpha*(BN$15-$H46))) + (B*EXP(-bêta*(BN$15-$H46))) + (_C*EXP(-gamma*(BN$15-$H46 ))) ) -> 0 | BO46: =$G46/[0]!Poids * ( (A*EXP(-alpha*(BO$15-$H46))) + (B*EXP(-bêta*(BO$15-$H46))) + (_C*EXP(-gamma*(BO$15-$H46 ))) ) -> 0 | BP46: =$G46/[0]!Poids * ( (A*EXP(-alpha*(BP$15-$H46))) + (B*EXP(-bêta*(BP$15-$H46))) + (_C*EXP(-gamma*(BP$15-$H46 ))) ) -> 0 | BQ46: =$G46/[0]!Poids * ( (A*EXP(-alpha*(BQ$15-$H46))) + (B*EXP(-bêta*(BQ$15-$H46))) + (_C*EXP(-gamma*(BQ$15-$H46 ))) ) -> 0 | BR46: =$G46/[0]!Poids * ( (A*EXP(-alpha*(BR$15-$H46))) + (B*EXP(-bêta*(BR$15-$H46))) + (_C*EXP(-gamma*(BR$15-$H46 ))) ) -> 0
G47: =AO$10 -> 0 | H47: 155 | AO47: =$G47/[0]!Poids * ( (A*EXP(-alpha*(AO$15-$H47))) + (B*EXP(-bêta*(AO$15-$H47))) + (_C*EXP(-gamma*(AO$15-$H47 ))) ) -> 0 | AP47: =$G47/[0]!Poids * ( (A*EXP(-alpha*(AP$15-$H47))) + (B*EXP(-bêta*(AP$15-$H47))) + (_C*EXP(-gamma*(AP$15-$H47 ))) ) -> 0 | AQ47: =$G47/[0]!Poids * ( (A*EXP(-alpha*(AQ$15-$H47))) + (B*EXP(-bêta*(AQ$15-$H47))) + (_C*EXP(-gamma*(AQ$15-$H47 ))) ) -> 0 | AR47: =$G47/[0]!Poids * ( (A*EXP(-alpha*(AR$15-$H47))) + (B*EXP(-bêta*(AR$15-$H47))) + (_C*EXP(-gamma*(AR$15-$H47 ))) ) -> 0 | AS47: =$G47/[0]!Poids * ( (A*EXP(-alpha*(AS$15-$H47))) + (B*EXP(-bêta*(AS$15-$H47))) + (_C*EXP(-gamma*(AS$15-$H47 ))) ) -> 0 | AT47: =$G47/[0]!Poids * ( (A*EXP(-alpha*(AT$15-$H47))) + (B*EXP(-bêta*(AT$15-$H47))) + (_C*EXP(-gamma*(AT$15-$H47 ))) ) -> 0 | AU47: =$G47/[0]!Poids * ( (A*EXP(-alpha*(AU$15-$H47))) + (B*EXP(-bêta*(AU$15-$H47))) + (_C*EXP(-gamma*(AU$15-$H47 ))) ) -> 0 | AV47: =$G47/[0]!Poids * ( (A*EXP(-alpha*(AV$15-$H47))) + (B*EXP(-bêta*(AV$15-$H47))) + (_C*EXP(-gamma*(AV$15-$H47 ))) ) -> 0 | AW47: =$G47/[0]!Poids * ( (A*EXP(-alpha*(AW$15-$H47))) + (B*EXP(-bêta*(AW$15-$H47))) + (_C*EXP(-gamma*(AW$15-$H47 ))) ) -> 0 | AX47: =$G47/[0]!Poids * ( (A*EXP(-alpha*(AX$15-$H47))) + (B*EXP(-bêta*(AX$15-$H47))) + (_C*EXP(-gamma*(AX$15-$H47 ))) ) -> 0 | AY47: =$G47/[0]!Poids * ( (A*EXP(-alpha*(AY$15-$H47))) + (B*EXP(-bêta*(AY$15-$H47))) + (_C*EXP(-gamma*(AY$15-$H47 ))) ) -> 0 | AZ47: =$G47/[0]!Poids * ( (A*EXP(-alpha*(AZ$15-$H47))) + (B*EXP(-bêta*(AZ$15-$H47))) + (_C*EXP(-gamma*(AZ$15-$H47 ))) ) -> 0 | BA47: =$G47/[0]!Poids * ( (A*EXP(-alpha*(BA$15-$H47))) + (B*EXP(-bêta*(BA$15-$H47))) + (_C*EXP(-gamma*(BA$15-$H47 ))) ) -> 0 | BB47: =$G47/[0]!Poids * ( (A*EXP(-alpha*(BB$15-$H47))) + (B*EXP(-bêta*(BB$15-$H47))) + (_C*EXP(-gamma*(BB$15-$H47 ))) ) -> 0 | BC47: =$G47/[0]!Poids * ( (A*EXP(-alpha*(BC$15-$H47))) + (B*EXP(-bêta*(BC$15-$H47))) + (_C*EXP(-gamma*(BC$15-$H47 ))) ) -> 0 | BD47: =$G47/[0]!Poids * ( (A*EXP(-alpha*(BD$15-$H47))) + (B*EXP(-bêta*(BD$15-$H47))) + (_C*EXP(-gamma*(BD$15-$H47 ))) ) -> 0 | BE47: =$G47/[0]!Poids * ( (A*EXP(-alpha*(BE$15-$H47))) + (B*EXP(-bêta*(BE$15-$H47))) + (_C*EXP(-gamma*(BE$15-$H47 ))) ) -> 0 | BF47: =$G47/[0]!Poids * ( (A*EXP(-alpha*(BF$15-$H47))) + (B*EXP(-bêta*(BF$15-$H47))) + (_C*EXP(-gamma*(BF$15-$H47 ))) ) -> 0 | BG47: =$G47/[0]!Poids * ( (A*EXP(-alpha*(BG$15-$H47))) + (B*EXP(-bêta*(BG$15-$H47))) + (_C*EXP(-gamma*(BG$15-$H47 ))) ) -> 0 | BH47: =$G47/[0]!Poids * ( (A*EXP(-alpha*(BH$15-$H47))) + (B*EXP(-bêta*(BH$15-$H47))) + (_C*EXP(-gamma*(BH$15-$H47 ))) ) -> 0 | BI47: =$G47/[0]!Poids * ( (A*EXP(-alpha*(BI$15-$H47))) + (B*EXP(-bêta*(BI$15-$H47))) + (_C*EXP(-gamma*(BI$15-$H47 ))) ) -> 0 | BJ47: =$G47/[0]!Poids * ( (A*EXP(-alpha*(BJ$15-$H47))) + (B*EXP(-bêta*(BJ$15-$H47))) + (_C*EXP(-gamma*(BJ$15-$H47 ))) ) -> 0 | BK47: =$G47/[0]!Poids * ( (A*EXP(-alpha*(BK$15-$H47))) + (B*EXP(-bêta*(BK$15-$H47))) + (_C*EXP(-gamma*(BK$15-$H47 ))) ) -> 0 | BL47: =$G47/[0]!Poids * ( (A*EXP(-alpha*(BL$15-$H47))) + (B*EXP(-bêta*(BL$15-$H47))) + (_C*EXP(-gamma*(BL$15-$H47 ))) ) -> 0 | BM47: =$G47/[0]!Poids * ( (A*EXP(-alpha*(BM$15-$H47))) + (B*EXP(-bêta*(BM$15-$H47))) + (_C*EXP(-gamma*(BM$15-$H47 ))) ) -> 0 | BN47: =$G47/[0]!Poids * ( (A*EXP(-alpha*(BN$15-$H47))) + (B*EXP(-bêta*(BN$15-$H47))) + (_C*EXP(-gamma*(BN$15-$H47 ))) ) -> 0 | BO47: =$G47/[0]!Poids * ( (A*EXP(-alpha*(BO$15-$H47))) + (B*EXP(-bêta*(BO$15-$H47))) + (_C*EXP(-gamma*(BO$15-$H47 ))) ) -> 0 | BP47: =$G47/[0]!Poids * ( (A*EXP(-alpha*(BP$15-$H47))) + (B*EXP(-bêta*(BP$15-$H47))) + (_C*EXP(-gamma*(BP$15-$H47 ))) ) -> 0 | BQ47: =$G47/[0]!Poids * ( (A*EXP(-alpha*(BQ$15-$H47))) + (B*EXP(-bêta*(BQ$15-$H47))) + (_C*EXP(-gamma*(BQ$15-$H47 ))) ) -> 0 | BR47: =$G47/[0]!Poids * ( (A*EXP(-alpha*(BR$15-$H47))) + (B*EXP(-bêta*(BR$15-$H47))) + (_C*EXP(-gamma*(BR$15-$H47 ))) ) -> 0
G48: =AP$10 -> 0 | H48: 160 | AP48: =$G48/[0]!Poids * ( (A*EXP(-alpha*(AP$15-$H48))) + (B*EXP(-bêta*(AP$15-$H48))) + (_C*EXP(-gamma*(AP$15-$H48 ))) ) -> 0 | AQ48: =$G48/[0]!Poids * ( (A*EXP(-alpha*(AQ$15-$H48))) + (B*EXP(-bêta*(AQ$15-$H48))) + (_C*EXP(-gamma*(AQ$15-$H48 ))) ) -> 0 | AR48: =$G48/[0]!Poids * ( (A*EXP(-alpha*(AR$15-$H48))) + (B*EXP(-bêta*(AR$15-$H48))) + (_C*EXP(-gamma*(AR$15-$H48 ))) ) -> 0 | AS48: =$G48/[0]!Poids * ( (A*EXP(-alpha*(AS$15-$H48))) + (B*EXP(-bêta*(AS$15-$H48))) + (_C*EXP(-gamma*(AS$15-$H48 ))) ) -> 0 | AT48: =$G48/[0]!Poids * ( (A*EXP(-alpha*(AT$15-$H48))) + (B*EXP(-bêta*(AT$15-$H48))) + (_C*EXP(-gamma*(AT$15-$H48 ))) ) -> 0 | AU48: =$G48/[0]!Poids * ( (A*EXP(-alpha*(AU$15-$H48))) + (B*EXP(-bêta*(AU$15-$H48))) + (_C*EXP(-gamma*(AU$15-$H48 ))) ) -> 0 | AV48: =$G48/[0]!Poids * ( (A*EXP(-alpha*(AV$15-$H48))) + (B*EXP(-bêta*(AV$15-$H48))) + (_C*EXP(-gamma*(AV$15-$H48 ))) ) -> 0 | AW48: =$G48/[0]!Poids * ( (A*EXP(-alpha*(AW$15-$H48))) + (B*EXP(-bêta*(AW$15-$H48))) + (_C*EXP(-gamma*(AW$15-$H48 ))) ) -> 0 | AX48: =$G48/[0]!Poids * ( (A*EXP(-alpha*(AX$15-$H48))) + (B*EXP(-bêta*(AX$15-$H48))) + (_C*EXP(-gamma*(AX$15-$H48 ))) ) -> 0 | AY48: =$G48/[0]!Poids * ( (A*EXP(-alpha*(AY$15-$H48))) + (B*EXP(-bêta*(AY$15-$H48))) + (_C*EXP(-gamma*(AY$15-$H48 ))) ) -> 0 | AZ48: =$G48/[0]!Poids * ( (A*EXP(-alpha*(AZ$15-$H48))) + (B*EXP(-bêta*(AZ$15-$H48))) + (_C*EXP(-gamma*(AZ$15-$H48 ))) ) -> 0 | BA48: =$G48/[0]!Poids * ( (A*EXP(-alpha*(BA$15-$H48))) + (B*EXP(-bêta*(BA$15-$H48))) + (_C*EXP(-gamma*(BA$15-$H48 ))) ) -> 0 | BB48: =$G48/[0]!Poids * ( (A*EXP(-alpha*(BB$15-$H48))) + (B*EXP(-bêta*(BB$15-$H48))) + (_C*EXP(-gamma*(BB$15-$H48 ))) ) -> 0 | BC48: =$G48/[0]!Poids * ( (A*EXP(-alpha*(BC$15-$H48))) + (B*EXP(-bêta*(BC$15-$H48))) + (_C*EXP(-gamma*(BC$15-$H48 ))) ) -> 0 | BD48: =$G48/[0]!Poids * ( (A*EXP(-alpha*(BD$15-$H48))) + (B*EXP(-bêta*(BD$15-$H48))) + (_C*EXP(-gamma*(BD$15-$H48 ))) ) -> 0 | BE48: =$G48/[0]!Poids * ( (A*EXP(-alpha*(BE$15-$H48))) + (B*EXP(-bêta*(BE$15-$H48))) + (_C*EXP(-gamma*(BE$15-$H48 ))) ) -> 0 | BF48: =$G48/[0]!Poids * ( (A*EXP(-alpha*(BF$15-$H48))) + (B*EXP(-bêta*(BF$15-$H48))) + (_C*EXP(-gamma*(BF$15-$H48 ))) ) -> 0 | BG48: =$G48/[0]!Poids * ( (A*EXP(-alpha*(BG$15-$H48))) + (B*EXP(-bêta*(BG$15-$H48))) + (_C*EXP(-gamma*(BG$15-$H48 ))) ) -> 0 | BH48: =$G48/[0]!Poids * ( (A*EXP(-alpha*(BH$15-$H48))) + (B*EXP(-bêta*(BH$15-$H48))) + (_C*EXP(-gamma*(BH$15-$H48 ))) ) -> 0 | BI48: =$G48/[0]!Poids * ( (A*EXP(-alpha*(BI$15-$H48))) + (B*EXP(-bêta*(BI$15-$H48))) + (_C*EXP(-gamma*(BI$15-$H48 ))) ) -> 0 | BJ48: =$G48/[0]!Poids * ( (A*EXP(-alpha*(BJ$15-$H48))) + (B*EXP(-bêta*(BJ$15-$H48))) + (_C*EXP(-gamma*(BJ$15-$H48 ))) ) -> 0 | BK48: =$G48/[0]!Poids * ( (A*EXP(-alpha*(BK$15-$H48))) + (B*EXP(-bêta*(BK$15-$H48))) + (_C*EXP(-gamma*(BK$15-$H48 ))) ) -> 0 | BL48: =$G48/[0]!Poids * ( (A*EXP(-alpha*(BL$15-$H48))) + (B*EXP(-bêta*(BL$15-$H48))) + (_C*EXP(-gamma*(BL$15-$H48 ))) ) -> 0 | BM48: =$G48/[0]!Poids * ( (A*EXP(-alpha*(BM$15-$H48))) + (B*EXP(-bêta*(BM$15-$H48))) + (_C*EXP(-gamma*(BM$15-$H48 ))) ) -> 0 | BN48: =$G48/[0]!Poids * ( (A*EXP(-alpha*(BN$15-$H48))) + (B*EXP(-bêta*(BN$15-$H48))) + (_C*EXP(-gamma*(BN$15-$H48 ))) ) -> 0 | BO48: =$G48/[0]!Poids * ( (A*EXP(-alpha*(BO$15-$H48))) + (B*EXP(-bêta*(BO$15-$H48))) + (_C*EXP(-gamma*(BO$15-$H48 ))) ) -> 0 | BP48: =$G48/[0]!Poids * ( (A*EXP(-alpha*(BP$15-$H48))) + (B*EXP(-bêta*(BP$15-$H48))) + (_C*EXP(-gamma*(BP$15-$H48 ))) ) -> 0 | BQ48: =$G48/[0]!Poids * ( (A*EXP(-alpha*(BQ$15-$H48))) + (B*EXP(-bêta*(BQ$15-$H48))) + (_C*EXP(-gamma*(BQ$15-$H48 ))) ) -> 0 | BR48: =$G48/[0]!Poids * ( (A*EXP(-alpha*(BR$15-$H48))) + (B*EXP(-bêta*(BR$15-$H48))) + (_C*EXP(-gamma*(BR$15-$H48 ))) ) -> 0
G49: =AQ$10 -> 0 | H49: 165 | AQ49: =$G49/[0]!Poids * ( (A*EXP(-alpha*(AQ$15-$H49))) + (B*EXP(-bêta*(AQ$15-$H49))) + (_C*EXP(-gamma*(AQ$15-$H49 ))) ) -> 0 | AR49: =$G49/[0]!Poids * ( (A*EXP(-alpha*(AR$15-$H49))) + (B*EXP(-bêta*(AR$15-$H49))) + (_C*EXP(-gamma*(AR$15-$H49 ))) ) -> 0 | AS49: =$G49/[0]!Poids * ( (A*EXP(-alpha*(AS$15-$H49))) + (B*EXP(-bêta*(AS$15-$H49))) + (_C*EXP(-gamma*(AS$15-$H49 ))) ) -> 0 | AT49: =$G49/[0]!Poids * ( (A*EXP(-alpha*(AT$15-$H49))) + (B*EXP(-bêta*(AT$15-$H49))) + (_C*EXP(-gamma*(AT$15-$H49 ))) ) -> 0 | AU49: =$G49/[0]!Poids * ( (A*EXP(-alpha*(AU$15-$H49))) + (B*EXP(-bêta*(AU$15-$H49))) + (_C*EXP(-gamma*(AU$15-$H49 ))) ) -> 0 | AV49: =$G49/[0]!Poids * ( (A*EXP(-alpha*(AV$15-$H49))) + (B*EXP(-bêta*(AV$15-$H49))) + (_C*EXP(-gamma*(AV$15-$H49 ))) ) -> 0 | AW49: =$G49/[0]!Poids * ( (A*EXP(-alpha*(AW$15-$H49))) + (B*EXP(-bêta*(AW$15-$H49))) + (_C*EXP(-gamma*(AW$15-$H49 ))) ) -> 0 | AX49: =$G49/[0]!Poids * ( (A*EXP(-alpha*(AX$15-$H49))) + (B*EXP(-bêta*(AX$15-$H49))) + (_C*EXP(-gamma*(AX$15-$H49 ))) ) -> 0 | AY49: =$G49/[0]!Poids * ( (A*EXP(-alpha*(AY$15-$H49))) + (B*EXP(-bêta*(AY$15-$H49))) + (_C*EXP(-gamma*(AY$15-$H49 ))) ) -> 0 | AZ49: =$G49/[0]!Poids * ( (A*EXP(-alpha*(AZ$15-$H49))) + (B*EXP(-bêta*(AZ$15-$H49))) + (_C*EXP(-gamma*(AZ$15-$H49 ))) ) -> 0 | BA49: =$G49/[0]!Poids * ( (A*EXP(-alpha*(BA$15-$H49))) + (B*EXP(-bêta*(BA$15-$H49))) + (_C*EXP(-gamma*(BA$15-$H49 ))) ) -> 0 | BB49: =$G49/[0]!Poids * ( (A*EXP(-alpha*(BB$15-$H49))) + (B*EXP(-bêta*(BB$15-$H49))) + (_C*EXP(-gamma*(BB$15-$H49 ))) ) -> 0 | BC49: =$G49/[0]!Poids * ( (A*EXP(-alpha*(BC$15-$H49))) + (B*EXP(-bêta*(BC$15-$H49))) + (_C*EXP(-gamma*(BC$15-$H49 ))) ) -> 0 | BD49: =$G49/[0]!Poids * ( (A*EXP(-alpha*(BD$15-$H49))) + (B*EXP(-bêta*(BD$15-$H49))) + (_C*EXP(-gamma*(BD$15-$H49 ))) ) -> 0 | BE49: =$G49/[0]!Poids * ( (A*EXP(-alpha*(BE$15-$H49))) + (B*EXP(-bêta*(BE$15-$H49))) + (_C*EXP(-gamma*(BE$15-$H49 ))) ) -> 0 | BF49: =$G49/[0]!Poids * ( (A*EXP(-alpha*(BF$15-$H49))) + (B*EXP(-bêta*(BF$15-$H49))) + (_C*EXP(-gamma*(BF$15-$H49 ))) ) -> 0 | BG49: =$G49/[0]!Poids * ( (A*EXP(-alpha*(BG$15-$H49))) + (B*EXP(-bêta*(BG$15-$H49))) + (_C*EXP(-gamma*(BG$15-$H49 ))) ) -> 0 | BH49: =$G49/[0]!Poids * ( (A*EXP(-alpha*(BH$15-$H49))) + (B*EXP(-bêta*(BH$15-$H49))) + (_C*EXP(-gamma*(BH$15-$H49 ))) ) -> 0 | BI49: =$G49/[0]!Poids * ( (A*EXP(-alpha*(BI$15-$H49))) + (B*EXP(-bêta*(BI$15-$H49))) + (_C*EXP(-gamma*(BI$15-$H49 ))) ) -> 0 | BJ49: =$G49/[0]!Poids * ( (A*EXP(-alpha*(BJ$15-$H49))) + (B*EXP(-bêta*(BJ$15-$H49))) + (_C*EXP(-gamma*(BJ$15-$H49 ))) ) -> 0 | BK49: =$G49/[0]!Poids * ( (A*EXP(-alpha*(BK$15-$H49))) + (B*EXP(-bêta*(BK$15-$H49))) + (_C*EXP(-gamma*(BK$15-$H49 ))) ) -> 0 | BL49: =$G49/[0]!Poids * ( (A*EXP(-alpha*(BL$15-$H49))) + (B*EXP(-bêta*(BL$15-$H49))) + (_C*EXP(-gamma*(BL$15-$H49 ))) ) -> 0 | BM49: =$G49/[0]!Poids * ( (A*EXP(-alpha*(BM$15-$H49))) + (B*EXP(-bêta*(BM$15-$H49))) + (_C*EXP(-gamma*(BM$15-$H49 ))) ) -> 0 | BN49: =$G49/[0]!Poids * ( (A*EXP(-alpha*(BN$15-$H49))) + (B*EXP(-bêta*(BN$15-$H49))) + (_C*EXP(-gamma*(BN$15-$H49 ))) ) -> 0 | BO49: =$G49/[0]!Poids * ( (A*EXP(-alpha*(BO$15-$H49))) + (B*EXP(-bêta*(BO$15-$H49))) + (_C*EXP(-gamma*(BO$15-$H49 ))) ) -> 0 | BP49: =$G49/[0]!Poids * ( (A*EXP(-alpha*(BP$15-$H49))) + (B*EXP(-bêta*(BP$15-$H49))) + (_C*EXP(-gamma*(BP$15-$H49 ))) ) -> 0 | BQ49: =$G49/[0]!Poids * ( (A*EXP(-alpha*(BQ$15-$H49))) + (B*EXP(-bêta*(BQ$15-$H49))) + (_C*EXP(-gamma*(BQ$15-$H49 ))) ) -> 0 | BR49: =$G49/[0]!Poids * ( (A*EXP(-alpha*(BR$15-$H49))) + (B*EXP(-bêta*(BR$15-$H49))) + (_C*EXP(-gamma*(BR$15-$H49 ))) ) -> 0
G50: =AR$10 -> 0 | H50: 170 | AR50: =$G50/[0]!Poids * ( (A*EXP(-alpha*(AR$15-$H50))) + (B*EXP(-bêta*(AR$15-$H50))) + (_C*EXP(-gamma*(AR$15-$H50 ))) ) -> 0 | AS50: =$G50/[0]!Poids * ( (A*EXP(-alpha*(AS$15-$H50))) + (B*EXP(-bêta*(AS$15-$H50))) + (_C*EXP(-gamma*(AS$15-$H50 ))) ) -> 0 | AT50: =$G50/[0]!Poids * ( (A*EXP(-alpha*(AT$15-$H50))) + (B*EXP(-bêta*(AT$15-$H50))) + (_C*EXP(-gamma*(AT$15-$H50 ))) ) -> 0 | AU50: =$G50/[0]!Poids * ( (A*EXP(-alpha*(AU$15-$H50))) + (B*EXP(-bêta*(AU$15-$H50))) + (_C*EXP(-gamma*(AU$15-$H50 ))) ) -> 0 | AV50: =$G50/[0]!Poids * ( (A*EXP(-alpha*(AV$15-$H50))) + (B*EXP(-bêta*(AV$15-$H50))) + (_C*EXP(-gamma*(AV$15-$H50 ))) ) -> 0 | AW50: =$G50/[0]!Poids * ( (A*EXP(-alpha*(AW$15-$H50))) + (B*EXP(-bêta*(AW$15-$H50))) + (_C*EXP(-gamma*(AW$15-$H50 ))) ) -> 0 | AX50: =$G50/[0]!Poids * ( (A*EXP(-alpha*(AX$15-$H50))) + (B*EXP(-bêta*(AX$15-$H50))) + (_C*EXP(-gamma*(AX$15-$H50 ))) ) -> 0 | AY50: =$G50/[0]!Poids * ( (A*EXP(-alpha*(AY$15-$H50))) + (B*EXP(-bêta*(AY$15-$H50))) + (_C*EXP(-gamma*(AY$15-$H50 ))) ) -> 0 | AZ50: =$G50/[0]!Poids * ( (A*EXP(-alpha*(AZ$15-$H50))) + (B*EXP(-bêta*(AZ$15-$H50))) + (_C*EXP(-gamma*(AZ$15-$H50 ))) ) -> 0 | BA50: =$G50/[0]!Poids * ( (A*EXP(-alpha*(BA$15-$H50))) + (B*EXP(-bêta*(BA$15-$H50))) + (_C*EXP(-gamma*(BA$15-$H50 ))) ) -> 0 | BB50: =$G50/[0]!Poids * ( (A*EXP(-alpha*(BB$15-$H50))) + (B*EXP(-bêta*(BB$15-$H50))) + (_C*EXP(-gamma*(BB$15-$H50 ))) ) -> 0 | BC50: =$G50/[0]!Poids * ( (A*EXP(-alpha*(BC$15-$H50))) + (B*EXP(-bêta*(BC$15-$H50))) + (_C*EXP(-gamma*(BC$15-$H50 ))) ) -> 0 | BD50: =$G50/[0]!Poids * ( (A*EXP(-alpha*(BD$15-$H50))) + (B*EXP(-bêta*(BD$15-$H50))) + (_C*EXP(-gamma*(BD$15-$H50 ))) ) -> 0 | BE50: =$G50/[0]!Poids * ( (A*EXP(-alpha*(BE$15-$H50))) + (B*EXP(-bêta*(BE$15-$H50))) + (_C*EXP(-gamma*(BE$15-$H50 ))) ) -> 0 | BF50: =$G50/[0]!Poids * ( (A*EXP(-alpha*(BF$15-$H50))) + (B*EXP(-bêta*(BF$15-$H50))) + (_C*EXP(-gamma*(BF$15-$H50 ))) ) -> 0 | BG50: =$G50/[0]!Poids * ( (A*EXP(-alpha*(BG$15-$H50))) + (B*EXP(-bêta*(BG$15-$H50))) + (_C*EXP(-gamma*(BG$15-$H50 ))) ) -> 0 | BH50: =$G50/[0]!Poids * ( (A*EXP(-alpha*(BH$15-$H50))) + (B*EXP(-bêta*(BH$15-$H50))) + (_C*EXP(-gamma*(BH$15-$H50 ))) ) -> 0 | BI50: =$G50/[0]!Poids * ( (A*EXP(-alpha*(BI$15-$H50))) + (B*EXP(-bêta*(BI$15-$H50))) + (_C*EXP(-gamma*(BI$15-$H50 ))) ) -> 0 | BJ50: =$G50/[0]!Poids * ( (A*EXP(-alpha*(BJ$15-$H50))) + (B*EXP(-bêta*(BJ$15-$H50))) + (_C*EXP(-gamma*(BJ$15-$H50 ))) ) -> 0 | BK50: =$G50/[0]!Poids * ( (A*EXP(-alpha*(BK$15-$H50))) + (B*EXP(-bêta*(BK$15-$H50))) + (_C*EXP(-gamma*(BK$15-$H50 ))) ) -> 0 | BL50: =$G50/[0]!Poids * ( (A*EXP(-alpha*(BL$15-$H50))) + (B*EXP(-bêta*(BL$15-$H50))) + (_C*EXP(-gamma*(BL$15-$H50 ))) ) -> 0 | BM50: =$G50/[0]!Poids * ( (A*EXP(-alpha*(BM$15-$H50))) + (B*EXP(-bêta*(BM$15-$H50))) + (_C*EXP(-gamma*(BM$15-$H50 ))) ) -> 0 | BN50: =$G50/[0]!Poids * ( (A*EXP(-alpha*(BN$15-$H50))) + (B*EXP(-bêta*(BN$15-$H50))) + (_C*EXP(-gamma*(BN$15-$H50 ))) ) -> 0 | BO50: =$G50/[0]!Poids * ( (A*EXP(-alpha*(BO$15-$H50))) + (B*EXP(-bêta*(BO$15-$H50))) + (_C*EXP(-gamma*(BO$15-$H50 ))) ) -> 0 | BP50: =$G50/[0]!Poids * ( (A*EXP(-alpha*(BP$15-$H50))) + (B*EXP(-bêta*(BP$15-$H50))) + (_C*EXP(-gamma*(BP$15-$H50 ))) ) -> 0 | BQ50: =$G50/[0]!Poids * ( (A*EXP(-alpha*(BQ$15-$H50))) + (B*EXP(-bêta*(BQ$15-$H50))) + (_C*EXP(-gamma*(BQ$15-$H50 ))) ) -> 0 | BR50: =$G50/[0]!Poids * ( (A*EXP(-alpha*(BR$15-$H50))) + (B*EXP(-bêta*(BR$15-$H50))) + (_C*EXP(-gamma*(BR$15-$H50 ))) ) -> 0
G51: =AS$10 -> 0 | H51: 175 | AS51: =$G51/[0]!Poids * ( (A*EXP(-alpha*(AS$15-$H51))) + (B*EXP(-bêta*(AS$15-$H51))) + (_C*EXP(-gamma*(AS$15-$H51 ))) ) -> 0 | AT51: =$G51/[0]!Poids * ( (A*EXP(-alpha*(AT$15-$H51))) + (B*EXP(-bêta*(AT$15-$H51))) + (_C*EXP(-gamma*(AT$15-$H51 ))) ) -> 0 | AU51: =$G51/[0]!Poids * ( (A*EXP(-alpha*(AU$15-$H51))) + (B*EXP(-bêta*(AU$15-$H51))) + (_C*EXP(-gamma*(AU$15-$H51 ))) ) -> 0 | AV51: =$G51/[0]!Poids * ( (A*EXP(-alpha*(AV$15-$H51))) + (B*EXP(-bêta*(AV$15-$H51))) + (_C*EXP(-gamma*(AV$15-$H51 ))) ) -> 0 | AW51: =$G51/[0]!Poids * ( (A*EXP(-alpha*(AW$15-$H51))) + (B*EXP(-bêta*(AW$15-$H51))) + (_C*EXP(-gamma*(AW$15-$H51 ))) ) -> 0 | AX51: =$G51/[0]!Poids * ( (A*EXP(-alpha*(AX$15-$H51))) + (B*EXP(-bêta*(AX$15-$H51))) + (_C*EXP(-gamma*(AX$15-$H51 ))) ) -> 0 | AY51: =$G51/[0]!Poids * ( (A*EXP(-alpha*(AY$15-$H51))) + (B*EXP(-bêta*(AY$15-$H51))) + (_C*EXP(-gamma*(AY$15-$H51 ))) ) -> 0 | AZ51: =$G51/[0]!Poids * ( (A*EXP(-alpha*(AZ$15-$H51))) + (B*EXP(-bêta*(AZ$15-$H51))) + (_C*EXP(-gamma*(AZ$15-$H51 ))) ) -> 0 | BA51: =$G51/[0]!Poids * ( (A*EXP(-alpha*(BA$15-$H51))) + (B*EXP(-bêta*(BA$15-$H51))) + (_C*EXP(-gamma*(BA$15-$H51 ))) ) -> 0 | BB51: =$G51/[0]!Poids * ( (A*EXP(-alpha*(BB$15-$H51))) + (B*EXP(-bêta*(BB$15-$H51))) + (_C*EXP(-gamma*(BB$15-$H51 ))) ) -> 0 | BC51: =$G51/[0]!Poids * ( (A*EXP(-alpha*(BC$15-$H51))) + (B*EXP(-bêta*(BC$15-$H51))) + (_C*EXP(-gamma*(BC$15-$H51 ))) ) -> 0 | BD51: =$G51/[0]!Poids * ( (A*EXP(-alpha*(BD$15-$H51))) + (B*EXP(-bêta*(BD$15-$H51))) + (_C*EXP(-gamma*(BD$15-$H51 ))) ) -> 0 | BE51: =$G51/[0]!Poids * ( (A*EXP(-alpha*(BE$15-$H51))) + (B*EXP(-bêta*(BE$15-$H51))) + (_C*EXP(-gamma*(BE$15-$H51 ))) ) -> 0 | BF51: =$G51/[0]!Poids * ( (A*EXP(-alpha*(BF$15-$H51))) + (B*EXP(-bêta*(BF$15-$H51))) + (_C*EXP(-gamma*(BF$15-$H51 ))) ) -> 0 | BG51: =$G51/[0]!Poids * ( (A*EXP(-alpha*(BG$15-$H51))) + (B*EXP(-bêta*(BG$15-$H51))) + (_C*EXP(-gamma*(BG$15-$H51 ))) ) -> 0 | BH51: =$G51/[0]!Poids * ( (A*EXP(-alpha*(BH$15-$H51))) + (B*EXP(-bêta*(BH$15-$H51))) + (_C*EXP(-gamma*(BH$15-$H51 ))) ) -> 0 | BI51: =$G51/[0]!Poids * ( (A*EXP(-alpha*(BI$15-$H51))) + (B*EXP(-bêta*(BI$15-$H51))) + (_C*EXP(-gamma*(BI$15-$H51 ))) ) -> 0 | BJ51: =$G51/[0]!Poids * ( (A*EXP(-alpha*(BJ$15-$H51))) + (B*EXP(-bêta*(BJ$15-$H51))) + (_C*EXP(-gamma*(BJ$15-$H51 ))) ) -> 0 | BK51: =$G51/[0]!Poids * ( (A*EXP(-alpha*(BK$15-$H51))) + (B*EXP(-bêta*(BK$15-$H51))) + (_C*EXP(-gamma*(BK$15-$H51 ))) ) -> 0 | BL51: =$G51/[0]!Poids * ( (A*EXP(-alpha*(BL$15-$H51))) + (B*EXP(-bêta*(BL$15-$H51))) + (_C*EXP(-gamma*(BL$15-$H51 ))) ) -> 0 | BM51: =$G51/[0]!Poids * ( (A*EXP(-alpha*(BM$15-$H51))) + (B*EXP(-bêta*(BM$15-$H51))) + (_C*EXP(-gamma*(BM$15-$H51 ))) ) -> 0 | BN51: =$G51/[0]!Poids * ( (A*EXP(-alpha*(BN$15-$H51))) + (B*EXP(-bêta*(BN$15-$H51))) + (_C*EXP(-gamma*(BN$15-$H51 ))) ) -> 0 | BO51: =$G51/[0]!Poids * ( (A*EXP(-alpha*(BO$15-$H51))) + (B*EXP(-bêta*(BO$15-$H51))) + (_C*EXP(-gamma*(BO$15-$H51 ))) ) -> 0 | BP51: =$G51/[0]!Poids * ( (A*EXP(-alpha*(BP$15-$H51))) + (B*EXP(-bêta*(BP$15-$H51))) + (_C*EXP(-gamma*(BP$15-$H51 ))) ) -> 0 | BQ51: =$G51/[0]!Poids * ( (A*EXP(-alpha*(BQ$15-$H51))) + (B*EXP(-bêta*(BQ$15-$H51))) + (_C*EXP(-gamma*(BQ$15-$H51 ))) ) -> 0 | BR51: =$G51/[0]!Poids * ( (A*EXP(-alpha*(BR$15-$H51))) + (B*EXP(-bêta*(BR$15-$H51))) + (_C*EXP(-gamma*(BR$15-$H51 ))) ) -> 0
G52: =AT$10 -> 0 | H52: 180 | AT52: =$G52/[0]!Poids * ( (A*EXP(-alpha*(AT$15-$H52))) + (B*EXP(-bêta*(AT$15-$H52))) + (_C*EXP(-gamma*(AT$15-$H52 ))) ) -> 0 | AU52: =$G52/[0]!Poids * ( (A*EXP(-alpha*(AU$15-$H52))) + (B*EXP(-bêta*(AU$15-$H52))) + (_C*EXP(-gamma*(AU$15-$H52 ))) ) -> 0 | AV52: =$G52/[0]!Poids * ( (A*EXP(-alpha*(AV$15-$H52))) + (B*EXP(-bêta*(AV$15-$H52))) + (_C*EXP(-gamma*(AV$15-$H52 ))) ) -> 0 | AW52: =$G52/[0]!Poids * ( (A*EXP(-alpha*(AW$15-$H52))) + (B*EXP(-bêta*(AW$15-$H52))) + (_C*EXP(-gamma*(AW$15-$H52 ))) ) -> 0 | AX52: =$G52/[0]!Poids * ( (A*EXP(-alpha*(AX$15-$H52))) + (B*EXP(-bêta*(AX$15-$H52))) + (_C*EXP(-gamma*(AX$15-$H52 ))) ) -> 0 | AY52: =$G52/[0]!Poids * ( (A*EXP(-alpha*(AY$15-$H52))) + (B*EXP(-bêta*(AY$15-$H52))) + (_C*EXP(-gamma*(AY$15-$H52 ))) ) -> 0 | AZ52: =$G52/[0]!Poids * ( (A*EXP(-alpha*(AZ$15-$H52))) + (B*EXP(-bêta*(AZ$15-$H52))) + (_C*EXP(-gamma*(AZ$15-$H52 ))) ) -> 0 | BA52: =$G52/[0]!Poids * ( (A*EXP(-alpha*(BA$15-$H52))) + (B*EXP(-bêta*(BA$15-$H52))) + (_C*EXP(-gamma*(BA$15-$H52 ))) ) -> 0 | BB52: =$G52/[0]!Poids * ( (A*EXP(-alpha*(BB$15-$H52))) + (B*EXP(-bêta*(BB$15-$H52))) + (_C*EXP(-gamma*(BB$15-$H52 ))) ) -> 0 | BC52: =$G52/[0]!Poids * ( (A*EXP(-alpha*(BC$15-$H52))) + (B*EXP(-bêta*(BC$15-$H52))) + (_C*EXP(-gamma*(BC$15-$H52 ))) ) -> 0 | BD52: =$G52/[0]!Poids * ( (A*EXP(-alpha*(BD$15-$H52))) + (B*EXP(-bêta*(BD$15-$H52))) + (_C*EXP(-gamma*(BD$15-$H52 ))) ) -> 0 | BE52: =$G52/[0]!Poids * ( (A*EXP(-alpha*(BE$15-$H52))) + (B*EXP(-bêta*(BE$15-$H52))) + (_C*EXP(-gamma*(BE$15-$H52 ))) ) -> 0 | BF52: =$G52/[0]!Poids * ( (A*EXP(-alpha*(BF$15-$H52))) + (B*EXP(-bêta*(BF$15-$H52))) + (_C*EXP(-gamma*(BF$15-$H52 ))) ) -> 0 | BG52: =$G52/[0]!Poids * ( (A*EXP(-alpha*(BG$15-$H52))) + (B*EXP(-bêta*(BG$15-$H52))) + (_C*EXP(-gamma*(BG$15-$H52 ))) ) -> 0 | BH52: =$G52/[0]!Poids * ( (A*EXP(-alpha*(BH$15-$H52))) + (B*EXP(-bêta*(BH$15-$H52))) + (_C*EXP(-gamma*(BH$15-$H52 ))) ) -> 0 | BI52: =$G52/[0]!Poids * ( (A*EXP(-alpha*(BI$15-$H52))) + (B*EXP(-bêta*(BI$15-$H52))) + (_C*EXP(-gamma*(BI$15-$H52 ))) ) -> 0 | BJ52: =$G52/[0]!Poids * ( (A*EXP(-alpha*(BJ$15-$H52))) + (B*EXP(-bêta*(BJ$15-$H52))) + (_C*EXP(-gamma*(BJ$15-$H52 ))) ) -> 0 | BK52: =$G52/[0]!Poids * ( (A*EXP(-alpha*(BK$15-$H52))) + (B*EXP(-bêta*(BK$15-$H52))) + (_C*EXP(-gamma*(BK$15-$H52 ))) ) -> 0 | BL52: =$G52/[0]!Poids * ( (A*EXP(-alpha*(BL$15-$H52))) + (B*EXP(-bêta*(BL$15-$H52))) + (_C*EXP(-gamma*(BL$15-$H52 ))) ) -> 0 | BM52: =$G52/[0]!Poids * ( (A*EXP(-alpha*(BM$15-$H52))) + (B*EXP(-bêta*(BM$15-$H52))) + (_C*EXP(-gamma*(BM$15-$H52 ))) ) -> 0 | BN52: =$G52/[0]!Poids * ( (A*EXP(-alpha*(BN$15-$H52))) + (B*EXP(-bêta*(BN$15-$H52))) + (_C*EXP(-gamma*(BN$15-$H52 ))) ) -> 0 | BO52: =$G52/[0]!Poids * ( (A*EXP(-alpha*(BO$15-$H52))) + (B*EXP(-bêta*(BO$15-$H52))) + (_C*EXP(-gamma*(BO$15-$H52 ))) ) -> 0 | BP52: =$G52/[0]!Poids * ( (A*EXP(-alpha*(BP$15-$H52))) + (B*EXP(-bêta*(BP$15-$H52))) + (_C*EXP(-gamma*(BP$15-$H52 ))) ) -> 0 | BQ52: =$G52/[0]!Poids * ( (A*EXP(-alpha*(BQ$15-$H52))) + (B*EXP(-bêta*(BQ$15-$H52))) + (_C*EXP(-gamma*(BQ$15-$H52 ))) ) -> 0 | BR52: =$G52/[0]!Poids * ( (A*EXP(-alpha*(BR$15-$H52))) + (B*EXP(-bêta*(BR$15-$H52))) + (_C*EXP(-gamma*(BR$15-$H52 ))) ) -> 0
G53: =AU$10 -> 0 | H53: 185 | AU53: =$G53/[0]!Poids * ( (A*EXP(-alpha*(AU$15-$H53))) + (B*EXP(-bêta*(AU$15-$H53))) + (_C*EXP(-gamma*(AU$15-$H53 ))) ) -> 0 | AV53: =$G53/[0]!Poids * ( (A*EXP(-alpha*(AV$15-$H53))) + (B*EXP(-bêta*(AV$15-$H53))) + (_C*EXP(-gamma*(AV$15-$H53 ))) ) -> 0 | AW53: =$G53/[0]!Poids * ( (A*EXP(-alpha*(AW$15-$H53))) + (B*EXP(-bêta*(AW$15-$H53))) + (_C*EXP(-gamma*(AW$15-$H53 ))) ) -> 0 | AX53: =$G53/[0]!Poids * ( (A*EXP(-alpha*(AX$15-$H53))) + (B*EXP(-bêta*(AX$15-$H53))) + (_C*EXP(-gamma*(AX$15-$H53 ))) ) -> 0 | AY53: =$G53/[0]!Poids * ( (A*EXP(-alpha*(AY$15-$H53))) + (B*EXP(-bêta*(AY$15-$H53))) + (_C*EXP(-gamma*(AY$15-$H53 ))) ) -> 0 | AZ53: =$G53/[0]!Poids * ( (A*EXP(-alpha*(AZ$15-$H53))) + (B*EXP(-bêta*(AZ$15-$H53))) + (_C*EXP(-gamma*(AZ$15-$H53 ))) ) -> 0 | BA53: =$G53/[0]!Poids * ( (A*EXP(-alpha*(BA$15-$H53))) + (B*EXP(-bêta*(BA$15-$H53))) + (_C*EXP(-gamma*(BA$15-$H53 ))) ) -> 0 | BB53: =$G53/[0]!Poids * ( (A*EXP(-alpha*(BB$15-$H53))) + (B*EXP(-bêta*(BB$15-$H53))) + (_C*EXP(-gamma*(BB$15-$H53 ))) ) -> 0 | BC53: =$G53/[0]!Poids * ( (A*EXP(-alpha*(BC$15-$H53))) + (B*EXP(-bêta*(BC$15-$H53))) + (_C*EXP(-gamma*(BC$15-$H53 ))) ) -> 0 | BD53: =$G53/[0]!Poids * ( (A*EXP(-alpha*(BD$15-$H53))) + (B*EXP(-bêta*(BD$15-$H53))) + (_C*EXP(-gamma*(BD$15-$H53 ))) ) -> 0 | BE53: =$G53/[0]!Poids * ( (A*EXP(-alpha*(BE$15-$H53))) + (B*EXP(-bêta*(BE$15-$H53))) + (_C*EXP(-gamma*(BE$15-$H53 ))) ) -> 0 | BF53: =$G53/[0]!Poids * ( (A*EXP(-alpha*(BF$15-$H53))) + (B*EXP(-bêta*(BF$15-$H53))) + (_C*EXP(-gamma*(BF$15-$H53 ))) ) -> 0 | BG53: =$G53/[0]!Poids * ( (A*EXP(-alpha*(BG$15-$H53))) + (B*EXP(-bêta*(BG$15-$H53))) + (_C*EXP(-gamma*(BG$15-$H53 ))) ) -> 0 | BH53: =$G53/[0]!Poids * ( (A*EXP(-alpha*(BH$15-$H53))) + (B*EXP(-bêta*(BH$15-$H53))) + (_C*EXP(-gamma*(BH$15-$H53 ))) ) -> 0 | BI53: =$G53/[0]!Poids * ( (A*EXP(-alpha*(BI$15-$H53))) + (B*EXP(-bêta*(BI$15-$H53))) + (_C*EXP(-gamma*(BI$15-$H53 ))) ) -> 0 | BJ53: =$G53/[0]!Poids * ( (A*EXP(-alpha*(BJ$15-$H53))) + (B*EXP(-bêta*(BJ$15-$H53))) + (_C*EXP(-gamma*(BJ$15-$H53 ))) ) -> 0 | BK53: =$G53/[0]!Poids * ( (A*EXP(-alpha*(BK$15-$H53))) + (B*EXP(-bêta*(BK$15-$H53))) + (_C*EXP(-gamma*(BK$15-$H53 ))) ) -> 0 | BL53: =$G53/[0]!Poids * ( (A*EXP(-alpha*(BL$15-$H53))) + (B*EXP(-bêta*(BL$15-$H53))) + (_C*EXP(-gamma*(BL$15-$H53 ))) ) -> 0 | BM53: =$G53/[0]!Poids * ( (A*EXP(-alpha*(BM$15-$H53))) + (B*EXP(-bêta*(BM$15-$H53))) + (_C*EXP(-gamma*(BM$15-$H53 ))) ) -> 0 | BN53: =$G53/[0]!Poids * ( (A*EXP(-alpha*(BN$15-$H53))) + (B*EXP(-bêta*(BN$15-$H53))) + (_C*EXP(-gamma*(BN$15-$H53 ))) ) -> 0 | BO53: =$G53/[0]!Poids * ( (A*EXP(-alpha*(BO$15-$H53))) + (B*EXP(-bêta*(BO$15-$H53))) + (_C*EXP(-gamma*(BO$15-$H53 ))) ) -> 0 | BP53: =$G53/[0]!Poids * ( (A*EXP(-alpha*(BP$15-$H53))) + (B*EXP(-bêta*(BP$15-$H53))) + (_C*EXP(-gamma*(BP$15-$H53 ))) ) -> 0 | BQ53: =$G53/[0]!Poids * ( (A*EXP(-alpha*(BQ$15-$H53))) + (B*EXP(-bêta*(BQ$15-$H53))) + (_C*EXP(-gamma*(BQ$15-$H53 ))) ) -> 0 | BR53: =$G53/[0]!Poids * ( (A*EXP(-alpha*(BR$15-$H53))) + (B*EXP(-bêta*(BR$15-$H53))) + (_C*EXP(-gamma*(BR$15-$H53 ))) ) -> 0
G54: =AV$10 -> 0 | H54: 190 | AV54: =$G54/[0]!Poids * ( (A*EXP(-alpha*(AV$15-$H54))) + (B*EXP(-bêta*(AV$15-$H54))) + (_C*EXP(-gamma*(AV$15-$H54 ))) ) -> 0 | AW54: =$G54/[0]!Poids * ( (A*EXP(-alpha*(AW$15-$H54))) + (B*EXP(-bêta*(AW$15-$H54))) + (_C*EXP(-gamma*(AW$15-$H54 ))) ) -> 0 | AX54: =$G54/[0]!Poids * ( (A*EXP(-alpha*(AX$15-$H54))) + (B*EXP(-bêta*(AX$15-$H54))) + (_C*EXP(-gamma*(AX$15-$H54 ))) ) -> 0 | AY54: =$G54/[0]!Poids * ( (A*EXP(-alpha*(AY$15-$H54))) + (B*EXP(-bêta*(AY$15-$H54))) + (_C*EXP(-gamma*(AY$15-$H54 ))) ) -> 0 | AZ54: =$G54/[0]!Poids * ( (A*EXP(-alpha*(AZ$15-$H54))) + (B*EXP(-bêta*(AZ$15-$H54))) + (_C*EXP(-gamma*(AZ$15-$H54 ))) ) -> 0 | BA54: =$G54/[0]!Poids * ( (A*EXP(-alpha*(BA$15-$H54))) + (B*EXP(-bêta*(BA$15-$H54))) + (_C*EXP(-gamma*(BA$15-$H54 ))) ) -> 0 | BB54: =$G54/[0]!Poids * ( (A*EXP(-alpha*(BB$15-$H54))) + (B*EXP(-bêta*(BB$15-$H54))) + (_C*EXP(-gamma*(BB$15-$H54 ))) ) -> 0 | BC54: =$G54/[0]!Poids * ( (A*EXP(-alpha*(BC$15-$H54))) + (B*EXP(-bêta*(BC$15-$H54))) + (_C*EXP(-gamma*(BC$15-$H54 ))) ) -> 0 | BD54: =$G54/[0]!Poids * ( (A*EXP(-alpha*(BD$15-$H54))) + (B*EXP(-bêta*(BD$15-$H54))) + (_C*EXP(-gamma*(BD$15-$H54 ))) ) -> 0 | BE54: =$G54/[0]!Poids * ( (A*EXP(-alpha*(BE$15-$H54))) + (B*EXP(-bêta*(BE$15-$H54))) + (_C*EXP(-gamma*(BE$15-$H54 ))) ) -> 0 | BF54: =$G54/[0]!Poids * ( (A*EXP(-alpha*(BF$15-$H54))) + (B*EXP(-bêta*(BF$15-$H54))) + (_C*EXP(-gamma*(BF$15-$H54 ))) ) -> 0 | BG54: =$G54/[0]!Poids * ( (A*EXP(-alpha*(BG$15-$H54))) + (B*EXP(-bêta*(BG$15-$H54))) + (_C*EXP(-gamma*(BG$15-$H54 ))) ) -> 0 | BH54: =$G54/[0]!Poids * ( (A*EXP(-alpha*(BH$15-$H54))) + (B*EXP(-bêta*(BH$15-$H54))) + (_C*EXP(-gamma*(BH$15-$H54 ))) ) -> 0 | BI54: =$G54/[0]!Poids * ( (A*EXP(-alpha*(BI$15-$H54))) + (B*EXP(-bêta*(BI$15-$H54))) + (_C*EXP(-gamma*(BI$15-$H54 ))) ) -> 0 | BJ54: =$G54/[0]!Poids * ( (A*EXP(-alpha*(BJ$15-$H54))) + (B*EXP(-bêta*(BJ$15-$H54))) + (_C*EXP(-gamma*(BJ$15-$H54 ))) ) -> 0 | BK54: =$G54/[0]!Poids * ( (A*EXP(-alpha*(BK$15-$H54))) + (B*EXP(-bêta*(BK$15-$H54))) + (_C*EXP(-gamma*(BK$15-$H54 ))) ) -> 0 | BL54: =$G54/[0]!Poids * ( (A*EXP(-alpha*(BL$15-$H54))) + (B*EXP(-bêta*(BL$15-$H54))) + (_C*EXP(-gamma*(BL$15-$H54 ))) ) -> 0 | BM54: =$G54/[0]!Poids * ( (A*EXP(-alpha*(BM$15-$H54))) + (B*EXP(-bêta*(BM$15-$H54))) + (_C*EXP(-gamma*(BM$15-$H54 ))) ) -> 0 | BN54: =$G54/[0]!Poids * ( (A*EXP(-alpha*(BN$15-$H54))) + (B*EXP(-bêta*(BN$15-$H54))) + (_C*EXP(-gamma*(BN$15-$H54 ))) ) -> 0 | BO54: =$G54/[0]!Poids * ( (A*EXP(-alpha*(BO$15-$H54))) + (B*EXP(-bêta*(BO$15-$H54))) + (_C*EXP(-gamma*(BO$15-$H54 ))) ) -> 0 | BP54: =$G54/[0]!Poids * ( (A*EXP(-alpha*(BP$15-$H54))) + (B*EXP(-bêta*(BP$15-$H54))) + (_C*EXP(-gamma*(BP$15-$H54 ))) ) -> 0 | BQ54: =$G54/[0]!Poids * ( (A*EXP(-alpha*(BQ$15-$H54))) + (B*EXP(-bêta*(BQ$15-$H54))) + (_C*EXP(-gamma*(BQ$15-$H54 ))) ) -> 0 | BR54: =$G54/[0]!Poids * ( (A*EXP(-alpha*(BR$15-$H54))) + (B*EXP(-bêta*(BR$15-$H54))) + (_C*EXP(-gamma*(BR$15-$H54 ))) ) -> 0
G55: =AW$10 -> 0 | H55: 195 | AW55: =$G55/[0]!Poids * ( (A*EXP(-alpha*(AW$15-$H55))) + (B*EXP(-bêta*(AW$15-$H55))) + (_C*EXP(-gamma*(AW$15-$H55 ))) ) -> 0 | AX55: =$G55/[0]!Poids * ( (A*EXP(-alpha*(AX$15-$H55))) + (B*EXP(-bêta*(AX$15-$H55))) + (_C*EXP(-gamma*(AX$15-$H55 ))) ) -> 0 | AY55: =$G55/[0]!Poids * ( (A*EXP(-alpha*(AY$15-$H55))) + (B*EXP(-bêta*(AY$15-$H55))) + (_C*EXP(-gamma*(AY$15-$H55 ))) ) -> 0 | AZ55: =$G55/[0]!Poids * ( (A*EXP(-alpha*(AZ$15-$H55))) + (B*EXP(-bêta*(AZ$15-$H55))) + (_C*EXP(-gamma*(AZ$15-$H55 ))) ) -> 0 | BA55: =$G55/[0]!Poids * ( (A*EXP(-alpha*(BA$15-$H55))) + (B*EXP(-bêta*(BA$15-$H55))) + (_C*EXP(-gamma*(BA$15-$H55 ))) ) -> 0 | BB55: =$G55/[0]!Poids * ( (A*EXP(-alpha*(BB$15-$H55))) + (B*EXP(-bêta*(BB$15-$H55))) + (_C*EXP(-gamma*(BB$15-$H55 ))) ) -> 0 | BC55: =$G55/[0]!Poids * ( (A*EXP(-alpha*(BC$15-$H55))) + (B*EXP(-bêta*(BC$15-$H55))) + (_C*EXP(-gamma*(BC$15-$H55 ))) ) -> 0 | BD55: =$G55/[0]!Poids * ( (A*EXP(-alpha*(BD$15-$H55))) + (B*EXP(-bêta*(BD$15-$H55))) + (_C*EXP(-gamma*(BD$15-$H55 ))) ) -> 0 | BE55: =$G55/[0]!Poids * ( (A*EXP(-alpha*(BE$15-$H55))) + (B*EXP(-bêta*(BE$15-$H55))) + (_C*EXP(-gamma*(BE$15-$H55 ))) ) -> 0 | BF55: =$G55/[0]!Poids * ( (A*EXP(-alpha*(BF$15-$H55))) + (B*EXP(-bêta*(BF$15-$H55))) + (_C*EXP(-gamma*(BF$15-$H55 ))) ) -> 0 | BG55: =$G55/[0]!Poids * ( (A*EXP(-alpha*(BG$15-$H55))) + (B*EXP(-bêta*(BG$15-$H55))) + (_C*EXP(-gamma*(BG$15-$H55 ))) ) -> 0 | BH55: =$G55/[0]!Poids * ( (A*EXP(-alpha*(BH$15-$H55))) + (B*EXP(-bêta*(BH$15-$H55))) + (_C*EXP(-gamma*(BH$15-$H55 ))) ) -> 0 | BI55: =$G55/[0]!Poids * ( (A*EXP(-alpha*(BI$15-$H55))) + (B*EXP(-bêta*(BI$15-$H55))) + (_C*EXP(-gamma*(BI$15-$H55 ))) ) -> 0 | BJ55: =$G55/[0]!Poids * ( (A*EXP(-alpha*(BJ$15-$H55))) + (B*EXP(-bêta*(BJ$15-$H55))) + (_C*EXP(-gamma*(BJ$15-$H55 ))) ) -> 0 | BK55: =$G55/[0]!Poids * ( (A*EXP(-alpha*(BK$15-$H55))) + (B*EXP(-bêta*(BK$15-$H55))) + (_C*EXP(-gamma*(BK$15-$H55 ))) ) -> 0 | BL55: =$G55/[0]!Poids * ( (A*EXP(-alpha*(BL$15-$H55))) + (B*EXP(-bêta*(BL$15-$H55))) + (_C*EXP(-gamma*(BL$15-$H55 ))) ) -> 0 | BM55: =$G55/[0]!Poids * ( (A*EXP(-alpha*(BM$15-$H55))) + (B*EXP(-bêta*(BM$15-$H55))) + (_C*EXP(-gamma*(BM$15-$H55 ))) ) -> 0 | BN55: =$G55/[0]!Poids * ( (A*EXP(-alpha*(BN$15-$H55))) + (B*EXP(-bêta*(BN$15-$H55))) + (_C*EXP(-gamma*(BN$15-$H55 ))) ) -> 0 | BO55: =$G55/[0]!Poids * ( (A*EXP(-alpha*(BO$15-$H55))) + (B*EXP(-bêta*(BO$15-$H55))) + (_C*EXP(-gamma*(BO$15-$H55 ))) ) -> 0 | BP55: =$G55/[0]!Poids * ( (A*EXP(-alpha*(BP$15-$H55))) + (B*EXP(-bêta*(BP$15-$H55))) + (_C*EXP(-gamma*(BP$15-$H55 ))) ) -> 0 | BQ55: =$G55/[0]!Poids * ( (A*EXP(-alpha*(BQ$15-$H55))) + (B*EXP(-bêta*(BQ$15-$H55))) + (_C*EXP(-gamma*(BQ$15-$H55 ))) ) -> 0 | BR55: =$G55/[0]!Poids * ( (A*EXP(-alpha*(BR$15-$H55))) + (B*EXP(-bêta*(BR$15-$H55))) + (_C*EXP(-gamma*(BR$15-$H55 ))) ) -> 0
G56: =AX$10 -> 0 | H56: 200 | AX56: =$G56/[0]!Poids * ( (A*EXP(-alpha*(AX$15-$H56))) + (B*EXP(-bêta*(AX$15-$H56))) + (_C*EXP(-gamma*(AX$15-$H56 ))) ) -> 0 | AY56: =$G56/[0]!Poids * ( (A*EXP(-alpha*(AY$15-$H56))) + (B*EXP(-bêta*(AY$15-$H56))) + (_C*EXP(-gamma*(AY$15-$H56 ))) ) -> 0 | AZ56: =$G56/[0]!Poids * ( (A*EXP(-alpha*(AZ$15-$H56))) + (B*EXP(-bêta*(AZ$15-$H56))) + (_C*EXP(-gamma*(AZ$15-$H56 ))) ) -> 0 | BA56: =$G56/[0]!Poids * ( (A*EXP(-alpha*(BA$15-$H56))) + (B*EXP(-bêta*(BA$15-$H56))) + (_C*EXP(-gamma*(BA$15-$H56 ))) ) -> 0 | BB56: =$G56/[0]!Poids * ( (A*EXP(-alpha*(BB$15-$H56))) + (B*EXP(-bêta*(BB$15-$H56))) + (_C*EXP(-gamma*(BB$15-$H56 ))) ) -> 0 | BC56: =$G56/[0]!Poids * ( (A*EXP(-alpha*(BC$15-$H56))) + (B*EXP(-bêta*(BC$15-$H56))) + (_C*EXP(-gamma*(BC$15-$H56 ))) ) -> 0 | BD56: =$G56/[0]!Poids * ( (A*EXP(-alpha*(BD$15-$H56))) + (B*EXP(-bêta*(BD$15-$H56))) + (_C*EXP(-gamma*(BD$15-$H56 ))) ) -> 0 | BE56: =$G56/[0]!Poids * ( (A*EXP(-alpha*(BE$15-$H56))) + (B*EXP(-bêta*(BE$15-$H56))) + (_C*EXP(-gamma*(BE$15-$H56 ))) ) -> 0 | BF56: =$G56/[0]!Poids * ( (A*EXP(-alpha*(BF$15-$H56))) + (B*EXP(-bêta*(BF$15-$H56))) + (_C*EXP(-gamma*(BF$15-$H56 ))) ) -> 0 | BG56: =$G56/[0]!Poids * ( (A*EXP(-alpha*(BG$15-$H56))) + (B*EXP(-bêta*(BG$15-$H56))) + (_C*EXP(-gamma*(BG$15-$H56 ))) ) -> 0 | BH56: =$G56/[0]!Poids * ( (A*EXP(-alpha*(BH$15-$H56))) + (B*EXP(-bêta*(BH$15-$H56))) + (_C*EXP(-gamma*(BH$15-$H56 ))) ) -> 0 | BI56: =$G56/[0]!Poids * ( (A*EXP(-alpha*(BI$15-$H56))) + (B*EXP(-bêta*(BI$15-$H56))) + (_C*EXP(-gamma*(BI$15-$H56 ))) ) -> 0 | BJ56: =$G56/[0]!Poids * ( (A*EXP(-alpha*(BJ$15-$H56))) + (B*EXP(-bêta*(BJ$15-$H56))) + (_C*EXP(-gamma*(BJ$15-$H56 ))) ) -> 0 | BK56: =$G56/[0]!Poids * ( (A*EXP(-alpha*(BK$15-$H56))) + (B*EXP(-bêta*(BK$15-$H56))) + (_C*EXP(-gamma*(BK$15-$H56 ))) ) -> 0 | BL56: =$G56/[0]!Poids * ( (A*EXP(-alpha*(BL$15-$H56))) + (B*EXP(-bêta*(BL$15-$H56))) + (_C*EXP(-gamma*(BL$15-$H56 ))) ) -> 0 | BM56: =$G56/[0]!Poids * ( (A*EXP(-alpha*(BM$15-$H56))) + (B*EXP(-bêta*(BM$15-$H56))) + (_C*EXP(-gamma*(BM$15-$H56 ))) ) -> 0 | BN56: =$G56/[0]!Poids * ( (A*EXP(-alpha*(BN$15-$H56))) + (B*EXP(-bêta*(BN$15-$H56))) + (_C*EXP(-gamma*(BN$15-$H56 ))) ) -> 0 | BO56: =$G56/[0]!Poids * ( (A*EXP(-alpha*(BO$15-$H56))) + (B*EXP(-bêta*(BO$15-$H56))) + (_C*EXP(-gamma*(BO$15-$H56 ))) ) -> 0 | BP56: =$G56/[0]!Poids * ( (A*EXP(-alpha*(BP$15-$H56))) + (B*EXP(-bêta*(BP$15-$H56))) + (_C*EXP(-gamma*(BP$15-$H56 ))) ) -> 0 | BQ56: =$G56/[0]!Poids * ( (A*EXP(-alpha*(BQ$15-$H56))) + (B*EXP(-bêta*(BQ$15-$H56))) + (_C*EXP(-gamma*(BQ$15-$H56 ))) ) -> 0 | BR56: =$G56/[0]!Poids * ( (A*EXP(-alpha*(BR$15-$H56))) + (B*EXP(-bêta*(BR$15-$H56))) + (_C*EXP(-gamma*(BR$15-$H56 ))) ) -> 0
G57: =AY$10 -> 0 | H57: 205 | AY57: =$G57/[0]!Poids * ( (A*EXP(-alpha*(AY$15-$H57))) + (B*EXP(-bêta*(AY$15-$H57))) + (_C*EXP(-gamma*(AY$15-$H57 ))) ) -> 0 | AZ57: =$G57/[0]!Poids * ( (A*EXP(-alpha*(AZ$15-$H57))) + (B*EXP(-bêta*(AZ$15-$H57))) + (_C*EXP(-gamma*(AZ$15-$H57 ))) ) -> 0 | BA57: =$G57/[0]!Poids * ( (A*EXP(-alpha*(BA$15-$H57))) + (B*EXP(-bêta*(BA$15-$H57))) + (_C*EXP(-gamma*(BA$15-$H57 ))) ) -> 0 | BB57: =$G57/[0]!Poids * ( (A*EXP(-alpha*(BB$15-$H57))) + (B*EXP(-bêta*(BB$15-$H57))) + (_C*EXP(-gamma*(BB$15-$H57 ))) ) -> 0 | BC57: =$G57/[0]!Poids * ( (A*EXP(-alpha*(BC$15-$H57))) + (B*EXP(-bêta*(BC$15-$H57))) + (_C*EXP(-gamma*(BC$15-$H57 ))) ) -> 0 | BD57: =$G57/[0]!Poids * ( (A*EXP(-alpha*(BD$15-$H57))) + (B*EXP(-bêta*(BD$15-$H57))) + (_C*EXP(-gamma*(BD$15-$H57 ))) ) -> 0 | BE57: =$G57/[0]!Poids * ( (A*EXP(-alpha*(BE$15-$H57))) + (B*EXP(-bêta*(BE$15-$H57))) + (_C*EXP(-gamma*(BE$15-$H57 ))) ) -> 0 | BF57: =$G57/[0]!Poids * ( (A*EXP(-alpha*(BF$15-$H57))) + (B*EXP(-bêta*(BF$15-$H57))) + (_C*EXP(-gamma*(BF$15-$H57 ))) ) -> 0 | BG57: =$G57/[0]!Poids * ( (A*EXP(-alpha*(BG$15-$H57))) + (B*EXP(-bêta*(BG$15-$H57))) + (_C*EXP(-gamma*(BG$15-$H57 ))) ) -> 0 | BH57: =$G57/[0]!Poids * ( (A*EXP(-alpha*(BH$15-$H57))) + (B*EXP(-bêta*(BH$15-$H57))) + (_C*EXP(-gamma*(BH$15-$H57 ))) ) -> 0 | BI57: =$G57/[0]!Poids * ( (A*EXP(-alpha*(BI$15-$H57))) + (B*EXP(-bêta*(BI$15-$H57))) + (_C*EXP(-gamma*(BI$15-$H57 ))) ) -> 0 | BJ57: =$G57/[0]!Poids * ( (A*EXP(-alpha*(BJ$15-$H57))) + (B*EXP(-bêta*(BJ$15-$H57))) + (_C*EXP(-gamma*(BJ$15-$H57 ))) ) -> 0 | BK57: =$G57/[0]!Poids * ( (A*EXP(-alpha*(BK$15-$H57))) + (B*EXP(-bêta*(BK$15-$H57))) + (_C*EXP(-gamma*(BK$15-$H57 ))) ) -> 0 | BL57: =$G57/[0]!Poids * ( (A*EXP(-alpha*(BL$15-$H57))) + (B*EXP(-bêta*(BL$15-$H57))) + (_C*EXP(-gamma*(BL$15-$H57 ))) ) -> 0 | BM57: =$G57/[0]!Poids * ( (A*EXP(-alpha*(BM$15-$H57))) + (B*EXP(-bêta*(BM$15-$H57))) + (_C*EXP(-gamma*(BM$15-$H57 ))) ) -> 0 | BN57: =$G57/[0]!Poids * ( (A*EXP(-alpha*(BN$15-$H57))) + (B*EXP(-bêta*(BN$15-$H57))) + (_C*EXP(-gamma*(BN$15-$H57 ))) ) -> 0 | BO57: =$G57/[0]!Poids * ( (A*EXP(-alpha*(BO$15-$H57))) + (B*EXP(-bêta*(BO$15-$H57))) + (_C*EXP(-gamma*(BO$15-$H57 ))) ) -> 0 | BP57: =$G57/[0]!Poids * ( (A*EXP(-alpha*(BP$15-$H57))) + (B*EXP(-bêta*(BP$15-$H57))) + (_C*EXP(-gamma*(BP$15-$H57 ))) ) -> 0 | BQ57: =$G57/[0]!Poids * ( (A*EXP(-alpha*(BQ$15-$H57))) + (B*EXP(-bêta*(BQ$15-$H57))) + (_C*EXP(-gamma*(BQ$15-$H57 ))) ) -> 0 | BR57: =$G57/[0]!Poids * ( (A*EXP(-alpha*(BR$15-$H57))) + (B*EXP(-bêta*(BR$15-$H57))) + (_C*EXP(-gamma*(BR$15-$H57 ))) ) -> 0
G58: =AZ$10 -> 0 | H58: 210 | AZ58: =$G58/[0]!Poids * ( (A*EXP(-alpha*(AZ$15-$H58))) + (B*EXP(-bêta*(AZ$15-$H58))) + (_C*EXP(-gamma*(AZ$15-$H58 ))) ) -> 0 | BA58: =$G58/[0]!Poids * ( (A*EXP(-alpha*(BA$15-$H58))) + (B*EXP(-bêta*(BA$15-$H58))) + (_C*EXP(-gamma*(BA$15-$H58 ))) ) -> 0 | BB58: =$G58/[0]!Poids * ( (A*EXP(-alpha*(BB$15-$H58))) + (B*EXP(-bêta*(BB$15-$H58))) + (_C*EXP(-gamma*(BB$15-$H58 ))) ) -> 0 | BC58: =$G58/[0]!Poids * ( (A*EXP(-alpha*(BC$15-$H58))) + (B*EXP(-bêta*(BC$15-$H58))) + (_C*EXP(-gamma*(BC$15-$H58 ))) ) -> 0 | BD58: =$G58/[0]!Poids * ( (A*EXP(-alpha*(BD$15-$H58))) + (B*EXP(-bêta*(BD$15-$H58))) + (_C*EXP(-gamma*(BD$15-$H58 ))) ) -> 0 | BE58: =$G58/[0]!Poids * ( (A*EXP(-alpha*(BE$15-$H58))) + (B*EXP(-bêta*(BE$15-$H58))) + (_C*EXP(-gamma*(BE$15-$H58 ))) ) -> 0 | BF58: =$G58/[0]!Poids * ( (A*EXP(-alpha*(BF$15-$H58))) + (B*EXP(-bêta*(BF$15-$H58))) + (_C*EXP(-gamma*(BF$15-$H58 ))) ) -> 0 | BG58: =$G58/[0]!Poids * ( (A*EXP(-alpha*(BG$15-$H58))) + (B*EXP(-bêta*(BG$15-$H58))) + (_C*EXP(-gamma*(BG$15-$H58 ))) ) -> 0 | BH58: =$G58/[0]!Poids * ( (A*EXP(-alpha*(BH$15-$H58))) + (B*EXP(-bêta*(BH$15-$H58))) + (_C*EXP(-gamma*(BH$15-$H58 ))) ) -> 0 | BI58: =$G58/[0]!Poids * ( (A*EXP(-alpha*(BI$15-$H58))) + (B*EXP(-bêta*(BI$15-$H58))) + (_C*EXP(-gamma*(BI$15-$H58 ))) ) -> 0 | BJ58: =$G58/[0]!Poids * ( (A*EXP(-alpha*(BJ$15-$H58))) + (B*EXP(-bêta*(BJ$15-$H58))) + (_C*EXP(-gamma*(BJ$15-$H58 ))) ) -> 0 | BK58: =$G58/[0]!Poids * ( (A*EXP(-alpha*(BK$15-$H58))) + (B*EXP(-bêta*(BK$15-$H58))) + (_C*EXP(-gamma*(BK$15-$H58 ))) ) -> 0 | BL58: =$G58/[0]!Poids * ( (A*EXP(-alpha*(BL$15-$H58))) + (B*EXP(-bêta*(BL$15-$H58))) + (_C*EXP(-gamma*(BL$15-$H58 ))) ) -> 0 | BM58: =$G58/[0]!Poids * ( (A*EXP(-alpha*(BM$15-$H58))) + (B*EXP(-bêta*(BM$15-$H58))) + (_C*EXP(-gamma*(BM$15-$H58 ))) ) -> 0 | BN58: =$G58/[0]!Poids * ( (A*EXP(-alpha*(BN$15-$H58))) + (B*EXP(-bêta*(BN$15-$H58))) + (_C*EXP(-gamma*(BN$15-$H58 ))) ) -> 0 | BO58: =$G58/[0]!Poids * ( (A*EXP(-alpha*(BO$15-$H58))) + (B*EXP(-bêta*(BO$15-$H58))) + (_C*EXP(-gamma*(BO$15-$H58 ))) ) -> 0 | BP58: =$G58/[0]!Poids * ( (A*EXP(-alpha*(BP$15-$H58))) + (B*EXP(-bêta*(BP$15-$H58))) + (_C*EXP(-gamma*(BP$15-$H58 ))) ) -> 0 | BQ58: =$G58/[0]!Poids * ( (A*EXP(-alpha*(BQ$15-$H58))) + (B*EXP(-bêta*(BQ$15-$H58))) + (_C*EXP(-gamma*(BQ$15-$H58 ))) ) -> 0 | BR58: =$G58/[0]!Poids * ( (A*EXP(-alpha*(BR$15-$H58))) + (B*EXP(-bêta*(BR$15-$H58))) + (_C*EXP(-gamma*(BR$15-$H58 ))) ) -> 0
G59: =BA$10 -> 0 | H59: 215 | BA59: =$G59/[0]!Poids * ( (A*EXP(-alpha*(BA$15-$H59))) + (B*EXP(-bêta*(BA$15-$H59))) + (_C*EXP(-gamma*(BA$15-$H59 ))) ) -> 0 | BB59: =$G59/[0]!Poids * ( (A*EXP(-alpha*(BB$15-$H59))) + (B*EXP(-bêta*(BB$15-$H59))) + (_C*EXP(-gamma*(BB$15-$H59 ))) ) -> 0 | BC59: =$G59/[0]!Poids * ( (A*EXP(-alpha*(BC$15-$H59))) + (B*EXP(-bêta*(BC$15-$H59))) + (_C*EXP(-gamma*(BC$15-$H59 ))) ) -> 0 | BD59: =$G59/[0]!Poids * ( (A*EXP(-alpha*(BD$15-$H59))) + (B*EXP(-bêta*(BD$15-$H59))) + (_C*EXP(-gamma*(BD$15-$H59 ))) ) -> 0 | BE59: =$G59/[0]!Poids * ( (A*EXP(-alpha*(BE$15-$H59))) + (B*EXP(-bêta*(BE$15-$H59))) + (_C*EXP(-gamma*(BE$15-$H59 ))) ) -> 0 | BF59: =$G59/[0]!Poids * ( (A*EXP(-alpha*(BF$15-$H59))) + (B*EXP(-bêta*(BF$15-$H59))) + (_C*EXP(-gamma*(BF$15-$H59 ))) ) -> 0 | BG59: =$G59/[0]!Poids * ( (A*EXP(-alpha*(BG$15-$H59))) + (B*EXP(-bêta*(BG$15-$H59))) + (_C*EXP(-gamma*(BG$15-$H59 ))) ) -> 0 | BH59: =$G59/[0]!Poids * ( (A*EXP(-alpha*(BH$15-$H59))) + (B*EXP(-bêta*(BH$15-$H59))) + (_C*EXP(-gamma*(BH$15-$H59 ))) ) -> 0 | BI59: =$G59/[0]!Poids * ( (A*EXP(-alpha*(BI$15-$H59))) + (B*EXP(-bêta*(BI$15-$H59))) + (_C*EXP(-gamma*(BI$15-$H59 ))) ) -> 0 | BJ59: =$G59/[0]!Poids * ( (A*EXP(-alpha*(BJ$15-$H59))) + (B*EXP(-bêta*(BJ$15-$H59))) + (_C*EXP(-gamma*(BJ$15-$H59 ))) ) -> 0 | BK59: =$G59/[0]!Poids * ( (A*EXP(-alpha*(BK$15-$H59))) + (B*EXP(-bêta*(BK$15-$H59))) + (_C*EXP(-gamma*(BK$15-$H59 ))) ) -> 0 | BL59: =$G59/[0]!Poids * ( (A*EXP(-alpha*(BL$15-$H59))) + (B*EXP(-bêta*(BL$15-$H59))) + (_C*EXP(-gamma*(BL$15-$H59 ))) ) -> 0 | BM59: =$G59/[0]!Poids * ( (A*EXP(-alpha*(BM$15-$H59))) + (B*EXP(-bêta*(BM$15-$H59))) + (_C*EXP(-gamma*(BM$15-$H59 ))) ) -> 0 | BN59: =$G59/[0]!Poids * ( (A*EXP(-alpha*(BN$15-$H59))) + (B*EXP(-bêta*(BN$15-$H59))) + (_C*EXP(-gamma*(BN$15-$H59 ))) ) -> 0 | BO59: =$G59/[0]!Poids * ( (A*EXP(-alpha*(BO$15-$H59))) + (B*EXP(-bêta*(BO$15-$H59))) + (_C*EXP(-gamma*(BO$15-$H59 ))) ) -> 0 | BP59: =$G59/[0]!Poids * ( (A*EXP(-alpha*(BP$15-$H59))) + (B*EXP(-bêta*(BP$15-$H59))) + (_C*EXP(-gamma*(BP$15-$H59 ))) ) -> 0 | BQ59: =$G59/[0]!Poids * ( (A*EXP(-alpha*(BQ$15-$H59))) + (B*EXP(-bêta*(BQ$15-$H59))) + (_C*EXP(-gamma*(BQ$15-$H59 ))) ) -> 0 | BR59: =$G59/[0]!Poids * ( (A*EXP(-alpha*(BR$15-$H59))) + (B*EXP(-bêta*(BR$15-$H59))) + (_C*EXP(-gamma*(BR$15-$H59 ))) ) -> 0
G60: =BB$10 -> 0 | H60: 220 | BB60: =$G60/[0]!Poids * ( (A*EXP(-alpha*(BB$15-$H60))) + (B*EXP(-bêta*(BB$15-$H60))) + (_C*EXP(-gamma*(BB$15-$H60 ))) ) -> 0 | BC60: =$G60/[0]!Poids * ( (A*EXP(-alpha*(BC$15-$H60))) + (B*EXP(-bêta*(BC$15-$H60))) + (_C*EXP(-gamma*(BC$15-$H60 ))) ) -> 0 | BD60: =$G60/[0]!Poids * ( (A*EXP(-alpha*(BD$15-$H60))) + (B*EXP(-bêta*(BD$15-$H60))) + (_C*EXP(-gamma*(BD$15-$H60 ))) ) -> 0 | BE60: =$G60/[0]!Poids * ( (A*EXP(-alpha*(BE$15-$H60))) + (B*EXP(-bêta*(BE$15-$H60))) + (_C*EXP(-gamma*(BE$15-$H60 ))) ) -> 0 | BF60: =$G60/[0]!Poids * ( (A*EXP(-alpha*(BF$15-$H60))) + (B*EXP(-bêta*(BF$15-$H60))) + (_C*EXP(-gamma*(BF$15-$H60 ))) ) -> 0 | BG60: =$G60/[0]!Poids * ( (A*EXP(-alpha*(BG$15-$H60))) + (B*EXP(-bêta*(BG$15-$H60))) + (_C*EXP(-gamma*(BG$15-$H60 ))) ) -> 0 | BH60: =$G60/[0]!Poids * ( (A*EXP(-alpha*(BH$15-$H60))) + (B*EXP(-bêta*(BH$15-$H60))) + (_C*EXP(-gamma*(BH$15-$H60 ))) ) -> 0 | BI60: =$G60/[0]!Poids * ( (A*EXP(-alpha*(BI$15-$H60))) + (B*EXP(-bêta*(BI$15-$H60))) + (_C*EXP(-gamma*(BI$15-$H60 ))) ) -> 0 | BJ60: =$G60/[0]!Poids * ( (A*EXP(-alpha*(BJ$15-$H60))) + (B*EXP(-bêta*(BJ$15-$H60))) + (_C*EXP(-gamma*(BJ$15-$H60 ))) ) -> 0 | BK60: =$G60/[0]!Poids * ( (A*EXP(-alpha*(BK$15-$H60))) + (B*EXP(-bêta*(BK$15-$H60))) + (_C*EXP(-gamma*(BK$15-$H60 ))) ) -> 0 | BL60: =$G60/[0]!Poids * ( (A*EXP(-alpha*(BL$15-$H60))) + (B*EXP(-bêta*(BL$15-$H60))) + (_C*EXP(-gamma*(BL$15-$H60 ))) ) -> 0 | BM60: =$G60/[0]!Poids * ( (A*EXP(-alpha*(BM$15-$H60))) + (B*EXP(-bêta*(BM$15-$H60))) + (_C*EXP(-gamma*(BM$15-$H60 ))) ) -> 0 | BN60: =$G60/[0]!Poids * ( (A*EXP(-alpha*(BN$15-$H60))) + (B*EXP(-bêta*(BN$15-$H60))) + (_C*EXP(-gamma*(BN$15-$H60 ))) ) -> 0 | BO60: =$G60/[0]!Poids * ( (A*EXP(-alpha*(BO$15-$H60))) + (B*EXP(-bêta*(BO$15-$H60))) + (_C*EXP(-gamma*(BO$15-$H60 ))) ) -> 0 | BP60: =$G60/[0]!Poids * ( (A*EXP(-alpha*(BP$15-$H60))) + (B*EXP(-bêta*(BP$15-$H60))) + (_C*EXP(-gamma*(BP$15-$H60 ))) ) -> 0 | BQ60: =$G60/[0]!Poids * ( (A*EXP(-alpha*(BQ$15-$H60))) + (B*EXP(-bêta*(BQ$15-$H60))) + (_C*EXP(-gamma*(BQ$15-$H60 ))) ) -> 0 | BR60: =$G60/[0]!Poids * ( (A*EXP(-alpha*(BR$15-$H60))) + (B*EXP(-bêta*(BR$15-$H60))) + (_C*EXP(-gamma*(BR$15-$H60 ))) ) -> 0
G61: =BC$10 -> 0 | H61: 225 | BC61: =$G61/[0]!Poids * ( (A*EXP(-alpha*(BC$15-$H61))) + (B*EXP(-bêta*(BC$15-$H61))) + (_C*EXP(-gamma*(BC$15-$H61 ))) ) -> 0 | BD61: =$G61/[0]!Poids * ( (A*EXP(-alpha*(BD$15-$H61))) + (B*EXP(-bêta*(BD$15-$H61))) + (_C*EXP(-gamma*(BD$15-$H61 ))) ) -> 0 | BE61: =$G61/[0]!Poids * ( (A*EXP(-alpha*(BE$15-$H61))) + (B*EXP(-bêta*(BE$15-$H61))) + (_C*EXP(-gamma*(BE$15-$H61 ))) ) -> 0 | BF61: =$G61/[0]!Poids * ( (A*EXP(-alpha*(BF$15-$H61))) + (B*EXP(-bêta*(BF$15-$H61))) + (_C*EXP(-gamma*(BF$15-$H61 ))) ) -> 0 | BG61: =$G61/[0]!Poids * ( (A*EXP(-alpha*(BG$15-$H61))) + (B*EXP(-bêta*(BG$15-$H61))) + (_C*EXP(-gamma*(BG$15-$H61 ))) ) -> 0 | BH61: =$G61/[0]!Poids * ( (A*EXP(-alpha*(BH$15-$H61))) + (B*EXP(-bêta*(BH$15-$H61))) + (_C*EXP(-gamma*(BH$15-$H61 ))) ) -> 0 | BI61: =$G61/[0]!Poids * ( (A*EXP(-alpha*(BI$15-$H61))) + (B*EXP(-bêta*(BI$15-$H61))) + (_C*EXP(-gamma*(BI$15-$H61 ))) ) -> 0 | BJ61: =$G61/[0]!Poids * ( (A*EXP(-alpha*(BJ$15-$H61))) + (B*EXP(-bêta*(BJ$15-$H61))) + (_C*EXP(-gamma*(BJ$15-$H61 ))) ) -> 0 | BK61: =$G61/[0]!Poids * ( (A*EXP(-alpha*(BK$15-$H61))) + (B*EXP(-bêta*(BK$15-$H61))) + (_C*EXP(-gamma*(BK$15-$H61 ))) ) -> 0 | BL61: =$G61/[0]!Poids * ( (A*EXP(-alpha*(BL$15-$H61))) + (B*EXP(-bêta*(BL$15-$H61))) + (_C*EXP(-gamma*(BL$15-$H61 ))) ) -> 0 | BM61: =$G61/[0]!Poids * ( (A*EXP(-alpha*(BM$15-$H61))) + (B*EXP(-bêta*(BM$15-$H61))) + (_C*EXP(-gamma*(BM$15-$H61 ))) ) -> 0 | BN61: =$G61/[0]!Poids * ( (A*EXP(-alpha*(BN$15-$H61))) + (B*EXP(-bêta*(BN$15-$H61))) + (_C*EXP(-gamma*(BN$15-$H61 ))) ) -> 0 | BO61: =$G61/[0]!Poids * ( (A*EXP(-alpha*(BO$15-$H61))) + (B*EXP(-bêta*(BO$15-$H61))) + (_C*EXP(-gamma*(BO$15-$H61 ))) ) -> 0 | BP61: =$G61/[0]!Poids * ( (A*EXP(-alpha*(BP$15-$H61))) + (B*EXP(-bêta*(BP$15-$H61))) + (_C*EXP(-gamma*(BP$15-$H61 ))) ) -> 0 | BQ61: =$G61/[0]!Poids * ( (A*EXP(-alpha*(BQ$15-$H61))) + (B*EXP(-bêta*(BQ$15-$H61))) + (_C*EXP(-gamma*(BQ$15-$H61 ))) ) -> 0 | BR61: =$G61/[0]!Poids * ( (A*EXP(-alpha*(BR$15-$H61))) + (B*EXP(-bêta*(BR$15-$H61))) + (_C*EXP(-gamma*(BR$15-$H61 ))) ) -> 0
G62: =BD$10 -> 0 | H62: 230 | BD62: =$G62/[0]!Poids * ( (A*EXP(-alpha*(BD$15-$H62))) + (B*EXP(-bêta*(BD$15-$H62))) + (_C*EXP(-gamma*(BD$15-$H62 ))) ) -> 0 | BE62: =$G62/[0]!Poids * ( (A*EXP(-alpha*(BE$15-$H62))) + (B*EXP(-bêta*(BE$15-$H62))) + (_C*EXP(-gamma*(BE$15-$H62 ))) ) -> 0 | BF62: =$G62/[0]!Poids * ( (A*EXP(-alpha*(BF$15-$H62))) + (B*EXP(-bêta*(BF$15-$H62))) + (_C*EXP(-gamma*(BF$15-$H62 ))) ) -> 0 | BG62: =$G62/[0]!Poids * ( (A*EXP(-alpha*(BG$15-$H62))) + (B*EXP(-bêta*(BG$15-$H62))) + (_C*EXP(-gamma*(BG$15-$H62 ))) ) -> 0 | BH62: =$G62/[0]!Poids * ( (A*EXP(-alpha*(BH$15-$H62))) + (B*EXP(-bêta*(BH$15-$H62))) + (_C*EXP(-gamma*(BH$15-$H62 ))) ) -> 0 | BI62: =$G62/[0]!Poids * ( (A*EXP(-alpha*(BI$15-$H62))) + (B*EXP(-bêta*(BI$15-$H62))) + (_C*EXP(-gamma*(BI$15-$H62 ))) ) -> 0 | BJ62: =$G62/[0]!Poids * ( (A*EXP(-alpha*(BJ$15-$H62))) + (B*EXP(-bêta*(BJ$15-$H62))) + (_C*EXP(-gamma*(BJ$15-$H62 ))) ) -> 0 | BK62: =$G62/[0]!Poids * ( (A*EXP(-alpha*(BK$15-$H62))) + (B*EXP(-bêta*(BK$15-$H62))) + (_C*EXP(-gamma*(BK$15-$H62 ))) ) -> 0 | BL62: =$G62/[0]!Poids * ( (A*EXP(-alpha*(BL$15-$H62))) + (B*EXP(-bêta*(BL$15-$H62))) + (_C*EXP(-gamma*(BL$15-$H62 ))) ) -> 0 | BM62: =$G62/[0]!Poids * ( (A*EXP(-alpha*(BM$15-$H62))) + (B*EXP(-bêta*(BM$15-$H62))) + (_C*EXP(-gamma*(BM$15-$H62 ))) ) -> 0 | BN62: =$G62/[0]!Poids * ( (A*EXP(-alpha*(BN$15-$H62))) + (B*EXP(-bêta*(BN$15-$H62))) + (_C*EXP(-gamma*(BN$15-$H62 ))) ) -> 0 | BO62: =$G62/[0]!Poids * ( (A*EXP(-alpha*(BO$15-$H62))) + (B*EXP(-bêta*(BO$15-$H62))) + (_C*EXP(-gamma*(BO$15-$H62 ))) ) -> 0 | BP62: =$G62/[0]!Poids * ( (A*EXP(-alpha*(BP$15-$H62))) + (B*EXP(-bêta*(BP$15-$H62))) + (_C*EXP(-gamma*(BP$15-$H62 ))) ) -> 0 | BQ62: =$G62/[0]!Poids * ( (A*EXP(-alpha*(BQ$15-$H62))) + (B*EXP(-bêta*(BQ$15-$H62))) + (_C*EXP(-gamma*(BQ$15-$H62 ))) ) -> 0 | BR62: =$G62/[0]!Poids * ( (A*EXP(-alpha*(BR$15-$H62))) + (B*EXP(-bêta*(BR$15-$H62))) + (_C*EXP(-gamma*(BR$15-$H62 ))) ) -> 0
G63: =BE$10 -> 0 | H63: 235 | BE63: =$G63/[0]!Poids * ( (A*EXP(-alpha*(BE$15-$H63))) + (B*EXP(-bêta*(BE$15-$H63))) + (_C*EXP(-gamma*(BE$15-$H63 ))) ) -> 0 | BF63: =$G63/[0]!Poids * ( (A*EXP(-alpha*(BF$15-$H63))) + (B*EXP(-bêta*(BF$15-$H63))) + (_C*EXP(-gamma*(BF$15-$H63 ))) ) -> 0 | BG63: =$G63/[0]!Poids * ( (A*EXP(-alpha*(BG$15-$H63))) + (B*EXP(-bêta*(BG$15-$H63))) + (_C*EXP(-gamma*(BG$15-$H63 ))) ) -> 0 | BH63: =$G63/[0]!Poids * ( (A*EXP(-alpha*(BH$15-$H63))) + (B*EXP(-bêta*(BH$15-$H63))) + (_C*EXP(-gamma*(BH$15-$H63 ))) ) -> 0 | BI63: =$G63/[0]!Poids * ( (A*EXP(-alpha*(BI$15-$H63))) + (B*EXP(-bêta*(BI$15-$H63))) + (_C*EXP(-gamma*(BI$15-$H63 ))) ) -> 0 | BJ63: =$G63/[0]!Poids * ( (A*EXP(-alpha*(BJ$15-$H63))) + (B*EXP(-bêta*(BJ$15-$H63))) + (_C*EXP(-gamma*(BJ$15-$H63 ))) ) -> 0 | BK63: =$G63/[0]!Poids * ( (A*EXP(-alpha*(BK$15-$H63))) + (B*EXP(-bêta*(BK$15-$H63))) + (_C*EXP(-gamma*(BK$15-$H63 ))) ) -> 0 | BL63: =$G63/[0]!Poids * ( (A*EXP(-alpha*(BL$15-$H63))) + (B*EXP(-bêta*(BL$15-$H63))) + (_C*EXP(-gamma*(BL$15-$H63 ))) ) -> 0 | BM63: =$G63/[0]!Poids * ( (A*EXP(-alpha*(BM$15-$H63))) + (B*EXP(-bêta*(BM$15-$H63))) + (_C*EXP(-gamma*(BM$15-$H63 ))) ) -> 0 | BN63: =$G63/[0]!Poids * ( (A*EXP(-alpha*(BN$15-$H63))) + (B*EXP(-bêta*(BN$15-$H63))) + (_C*EXP(-gamma*(BN$15-$H63 ))) ) -> 0 | BO63: =$G63/[0]!Poids * ( (A*EXP(-alpha*(BO$15-$H63))) + (B*EXP(-bêta*(BO$15-$H63))) + (_C*EXP(-gamma*(BO$15-$H63 ))) ) -> 0 | BP63: =$G63/[0]!Poids * ( (A*EXP(-alpha*(BP$15-$H63))) + (B*EXP(-bêta*(BP$15-$H63))) + (_C*EXP(-gamma*(BP$15-$H63 ))) ) -> 0 | BQ63: =$G63/[0]!Poids * ( (A*EXP(-alpha*(BQ$15-$H63))) + (B*EXP(-bêta*(BQ$15-$H63))) + (_C*EXP(-gamma*(BQ$15-$H63 ))) ) -> 0 | BR63: =$G63/[0]!Poids * ( (A*EXP(-alpha*(BR$15-$H63))) + (B*EXP(-bêta*(BR$15-$H63))) + (_C*EXP(-gamma*(BR$15-$H63 ))) ) -> 0
G64: =BF$10 -> 0 | H64: 240 | BF64: =$G64/[0]!Poids * ( (A*EXP(-alpha*(BF$15-$H64))) + (B*EXP(-bêta*(BF$15-$H64))) + (_C*EXP(-gamma*(BF$15-$H64 ))) ) -> 0 | BG64: =$G64/[0]!Poids * ( (A*EXP(-alpha*(BG$15-$H64))) + (B*EXP(-bêta*(BG$15-$H64))) + (_C*EXP(-gamma*(BG$15-$H64 ))) ) -> 0 | BH64: =$G64/[0]!Poids * ( (A*EXP(-alpha*(BH$15-$H64))) + (B*EXP(-bêta*(BH$15-$H64))) + (_C*EXP(-gamma*(BH$15-$H64 ))) ) -> 0 | BI64: =$G64/[0]!Poids * ( (A*EXP(-alpha*(BI$15-$H64))) + (B*EXP(-bêta*(BI$15-$H64))) + (_C*EXP(-gamma*(BI$15-$H64 ))) ) -> 0 | BJ64: =$G64/[0]!Poids * ( (A*EXP(-alpha*(BJ$15-$H64))) + (B*EXP(-bêta*(BJ$15-$H64))) + (_C*EXP(-gamma*(BJ$15-$H64 ))) ) -> 0 | BK64: =$G64/[0]!Poids * ( (A*EXP(-alpha*(BK$15-$H64))) + (B*EXP(-bêta*(BK$15-$H64))) + (_C*EXP(-gamma*(BK$15-$H64 ))) ) -> 0 | BL64: =$G64/[0]!Poids * ( (A*EXP(-alpha*(BL$15-$H64))) + (B*EXP(-bêta*(BL$15-$H64))) + (_C*EXP(-gamma*(BL$15-$H64 ))) ) -> 0 | BM64: =$G64/[0]!Poids * ( (A*EXP(-alpha*(BM$15-$H64))) + (B*EXP(-bêta*(BM$15-$H64))) + (_C*EXP(-gamma*(BM$15-$H64 ))) ) -> 0 | BN64: =$G64/[0]!Poids * ( (A*EXP(-alpha*(BN$15-$H64))) + (B*EXP(-bêta*(BN$15-$H64))) + (_C*EXP(-gamma*(BN$15-$H64 ))) ) -> 0 | BO64: =$G64/[0]!Poids * ( (A*EXP(-alpha*(BO$15-$H64))) + (B*EXP(-bêta*(BO$15-$H64))) + (_C*EXP(-gamma*(BO$15-$H64 ))) ) -> 0 | BP64: =$G64/[0]!Poids * ( (A*EXP(-alpha*(BP$15-$H64))) + (B*EXP(-bêta*(BP$15-$H64))) + (_C*EXP(-gamma*(BP$15-$H64 ))) ) -> 0 | BQ64: =$G64/[0]!Poids * ( (A*EXP(-alpha*(BQ$15-$H64))) + (B*EXP(-bêta*(BQ$15-$H64))) + (_C*EXP(-gamma*(BQ$15-$H64 ))) ) -> 0 | BR64: =$G64/[0]!Poids * ( (A*EXP(-alpha*(BR$15-$H64))) + (B*EXP(-bêta*(BR$15-$H64))) + (_C*EXP(-gamma*(BR$15-$H64 ))) ) -> 0
G65: =BG$10 -> 0 | H65: 245 | BG65: =$G65/[0]!Poids * ( (A*EXP(-alpha*(BG$15-$H65))) + (B*EXP(-bêta*(BG$15-$H65))) + (_C*EXP(-gamma*(BG$15-$H65 ))) ) -> 0 | BH65: =$G65/[0]!Poids * ( (A*EXP(-alpha*(BH$15-$H65))) + (B*EXP(-bêta*(BH$15-$H65))) + (_C*EXP(-gamma*(BH$15-$H65 ))) ) -> 0 | BI65: =$G65/[0]!Poids * ( (A*EXP(-alpha*(BI$15-$H65))) + (B*EXP(-bêta*(BI$15-$H65))) + (_C*EXP(-gamma*(BI$15-$H65 ))) ) -> 0 | BJ65: =$G65/[0]!Poids * ( (A*EXP(-alpha*(BJ$15-$H65))) + (B*EXP(-bêta*(BJ$15-$H65))) + (_C*EXP(-gamma*(BJ$15-$H65 ))) ) -> 0 | BK65: =$G65/[0]!Poids * ( (A*EXP(-alpha*(BK$15-$H65))) + (B*EXP(-bêta*(BK$15-$H65))) + (_C*EXP(-gamma*(BK$15-$H65 ))) ) -> 0 | BL65: =$G65/[0]!Poids * ( (A*EXP(-alpha*(BL$15-$H65))) + (B*EXP(-bêta*(BL$15-$H65))) + (_C*EXP(-gamma*(BL$15-$H65 ))) ) -> 0 | BM65: =$G65/[0]!Poids * ( (A*EXP(-alpha*(BM$15-$H65))) + (B*EXP(-bêta*(BM$15-$H65))) + (_C*EXP(-gamma*(BM$15-$H65 ))) ) -> 0 | BN65: =$G65/[0]!Poids * ( (A*EXP(-alpha*(BN$15-$H65))) + (B*EXP(-bêta*(BN$15-$H65))) + (_C*EXP(-gamma*(BN$15-$H65 ))) ) -> 0 | BO65: =$G65/[0]!Poids * ( (A*EXP(-alpha*(BO$15-$H65))) + (B*EXP(-bêta*(BO$15-$H65))) + (_C*EXP(-gamma*(BO$15-$H65 ))) ) -> 0 | BP65: =$G65/[0]!Poids * ( (A*EXP(-alpha*(BP$15-$H65))) + (B*EXP(-bêta*(BP$15-$H65))) + (_C*EXP(-gamma*(BP$15-$H65 ))) ) -> 0 | BQ65: =$G65/[0]!Poids * ( (A*EXP(-alpha*(BQ$15-$H65))) + (B*EXP(-bêta*(BQ$15-$H65))) + (_C*EXP(-gamma*(BQ$15-$H65 ))) ) -> 0 | BR65: =$G65/[0]!Poids * ( (A*EXP(-alpha*(BR$15-$H65))) + (B*EXP(-bêta*(BR$15-$H65))) + (_C*EXP(-gamma*(BR$15-$H65 ))) ) -> 0
G66: =BH$10 -> 0 | H66: 250 | BH66: =$G66/[0]!Poids * ( (A*EXP(-alpha*(BH$15-$H66))) + (B*EXP(-bêta*(BH$15-$H66))) + (_C*EXP(-gamma*(BH$15-$H66 ))) ) -> 0 | BI66: =$G66/[0]!Poids * ( (A*EXP(-alpha*(BI$15-$H66))) + (B*EXP(-bêta*(BI$15-$H66))) + (_C*EXP(-gamma*(BI$15-$H66 ))) ) -> 0 | BJ66: =$G66/[0]!Poids * ( (A*EXP(-alpha*(BJ$15-$H66))) + (B*EXP(-bêta*(BJ$15-$H66))) + (_C*EXP(-gamma*(BJ$15-$H66 ))) ) -> 0 | BK66: =$G66/[0]!Poids * ( (A*EXP(-alpha*(BK$15-$H66))) + (B*EXP(-bêta*(BK$15-$H66))) + (_C*EXP(-gamma*(BK$15-$H66 ))) ) -> 0 | BL66: =$G66/[0]!Poids * ( (A*EXP(-alpha*(BL$15-$H66))) + (B*EXP(-bêta*(BL$15-$H66))) + (_C*EXP(-gamma*(BL$15-$H66 ))) ) -> 0 | BM66: =$G66/[0]!Poids * ( (A*EXP(-alpha*(BM$15-$H66))) + (B*EXP(-bêta*(BM$15-$H66))) + (_C*EXP(-gamma*(BM$15-$H66 ))) ) -> 0 | BN66: =$G66/[0]!Poids * ( (A*EXP(-alpha*(BN$15-$H66))) + (B*EXP(-bêta*(BN$15-$H66))) + (_C*EXP(-gamma*(BN$15-$H66 ))) ) -> 0 | BO66: =$G66/[0]!Poids * ( (A*EXP(-alpha*(BO$15-$H66))) + (B*EXP(-bêta*(BO$15-$H66))) + (_C*EXP(-gamma*(BO$15-$H66 ))) ) -> 0 | BP66: =$G66/[0]!Poids * ( (A*EXP(-alpha*(BP$15-$H66))) + (B*EXP(-bêta*(BP$15-$H66))) + (_C*EXP(-gamma*(BP$15-$H66 ))) ) -> 0 | BQ66: =$G66/[0]!Poids * ( (A*EXP(-alpha*(BQ$15-$H66))) + (B*EXP(-bêta*(BQ$15-$H66))) + (_C*EXP(-gamma*(BQ$15-$H66 ))) ) -> 0 | BR66: =$G66/[0]!Poids * ( (A*EXP(-alpha*(BR$15-$H66))) + (B*EXP(-bêta*(BR$15-$H66))) + (_C*EXP(-gamma*(BR$15-$H66 ))) ) -> 0
G67: =BI$10 -> 0 | H67: 255 | BI67: =$G67/[0]!Poids * ( (A*EXP(-alpha*(BI$15-$H67))) + (B*EXP(-bêta*(BI$15-$H67))) + (_C*EXP(-gamma*(BI$15-$H67 ))) ) -> 0 | BJ67: =$G67/[0]!Poids * ( (A*EXP(-alpha*(BJ$15-$H67))) + (B*EXP(-bêta*(BJ$15-$H67))) + (_C*EXP(-gamma*(BJ$15-$H67 ))) ) -> 0 | BK67: =$G67/[0]!Poids * ( (A*EXP(-alpha*(BK$15-$H67))) + (B*EXP(-bêta*(BK$15-$H67))) + (_C*EXP(-gamma*(BK$15-$H67 ))) ) -> 0 | BL67: =$G67/[0]!Poids * ( (A*EXP(-alpha*(BL$15-$H67))) + (B*EXP(-bêta*(BL$15-$H67))) + (_C*EXP(-gamma*(BL$15-$H67 ))) ) -> 0 | BM67: =$G67/[0]!Poids * ( (A*EXP(-alpha*(BM$15-$H67))) + (B*EXP(-bêta*(BM$15-$H67))) + (_C*EXP(-gamma*(BM$15-$H67 ))) ) -> 0 | BN67: =$G67/[0]!Poids * ( (A*EXP(-alpha*(BN$15-$H67))) + (B*EXP(-bêta*(BN$15-$H67))) + (_C*EXP(-gamma*(BN$15-$H67 ))) ) -> 0 | BO67: =$G67/[0]!Poids * ( (A*EXP(-alpha*(BO$15-$H67))) + (B*EXP(-bêta*(BO$15-$H67))) + (_C*EXP(-gamma*(BO$15-$H67 ))) ) -> 0 | BP67: =$G67/[0]!Poids * ( (A*EXP(-alpha*(BP$15-$H67))) + (B*EXP(-bêta*(BP$15-$H67))) + (_C*EXP(-gamma*(BP$15-$H67 ))) ) -> 0 | BQ67: =$G67/[0]!Poids * ( (A*EXP(-alpha*(BQ$15-$H67))) + (B*EXP(-bêta*(BQ$15-$H67))) + (_C*EXP(-gamma*(BQ$15-$H67 ))) ) -> 0 | BR67: =$G67/[0]!Poids * ( (A*EXP(-alpha*(BR$15-$H67))) + (B*EXP(-bêta*(BR$15-$H67))) + (_C*EXP(-gamma*(BR$15-$H67 ))) ) -> 0
G68: =BJ$10 -> 0 | H68: 260 | BJ68: =$G68/[0]!Poids * ( (A*EXP(-alpha*(BJ$15-$H68))) + (B*EXP(-bêta*(BJ$15-$H68))) + (_C*EXP(-gamma*(BJ$15-$H68 ))) ) -> 0 | BK68: =$G68/[0]!Poids * ( (A*EXP(-alpha*(BK$15-$H68))) + (B*EXP(-bêta*(BK$15-$H68))) + (_C*EXP(-gamma*(BK$15-$H68 ))) ) -> 0 | BL68: =$G68/[0]!Poids * ( (A*EXP(-alpha*(BL$15-$H68))) + (B*EXP(-bêta*(BL$15-$H68))) + (_C*EXP(-gamma*(BL$15-$H68 ))) ) -> 0 | BM68: =$G68/[0]!Poids * ( (A*EXP(-alpha*(BM$15-$H68))) + (B*EXP(-bêta*(BM$15-$H68))) + (_C*EXP(-gamma*(BM$15-$H68 ))) ) -> 0 | BN68: =$G68/[0]!Poids * ( (A*EXP(-alpha*(BN$15-$H68))) + (B*EXP(-bêta*(BN$15-$H68))) + (_C*EXP(-gamma*(BN$15-$H68 ))) ) -> 0 | BO68: =$G68/[0]!Poids * ( (A*EXP(-alpha*(BO$15-$H68))) + (B*EXP(-bêta*(BO$15-$H68))) + (_C*EXP(-gamma*(BO$15-$H68 ))) ) -> 0 | BP68: =$G68/[0]!Poids * ( (A*EXP(-alpha*(BP$15-$H68))) + (B*EXP(-bêta*(BP$15-$H68))) + (_C*EXP(-gamma*(BP$15-$H68 ))) ) -> 0 | BQ68: =$G68/[0]!Poids * ( (A*EXP(-alpha*(BQ$15-$H68))) + (B*EXP(-bêta*(BQ$15-$H68))) + (_C*EXP(-gamma*(BQ$15-$H68 ))) ) -> 0 | BR68: =$G68/[0]!Poids * ( (A*EXP(-alpha*(BR$15-$H68))) + (B*EXP(-bêta*(BR$15-$H68))) + (_C*EXP(-gamma*(BR$15-$H68 ))) ) -> 0
G69: =BK$10 -> 0 | H69: 265 | BK69: =$G69/[0]!Poids * ( (A*EXP(-alpha*(BK$15-$H69))) + (B*EXP(-bêta*(BK$15-$H69))) + (_C*EXP(-gamma*(BK$15-$H69 ))) ) -> 0 | BL69: =$G69/[0]!Poids * ( (A*EXP(-alpha*(BL$15-$H69))) + (B*EXP(-bêta*(BL$15-$H69))) + (_C*EXP(-gamma*(BL$15-$H69 ))) ) -> 0 | BM69: =$G69/[0]!Poids * ( (A*EXP(-alpha*(BM$15-$H69))) + (B*EXP(-bêta*(BM$15-$H69))) + (_C*EXP(-gamma*(BM$15-$H69 ))) ) -> 0 | BN69: =$G69/[0]!Poids * ( (A*EXP(-alpha*(BN$15-$H69))) + (B*EXP(-bêta*(BN$15-$H69))) + (_C*EXP(-gamma*(BN$15-$H69 ))) ) -> 0 | BO69: =$G69/[0]!Poids * ( (A*EXP(-alpha*(BO$15-$H69))) + (B*EXP(-bêta*(BO$15-$H69))) + (_C*EXP(-gamma*(BO$15-$H69 ))) ) -> 0 | BP69: =$G69/[0]!Poids * ( (A*EXP(-alpha*(BP$15-$H69))) + (B*EXP(-bêta*(BP$15-$H69))) + (_C*EXP(-gamma*(BP$15-$H69 ))) ) -> 0 | BQ69: =$G69/[0]!Poids * ( (A*EXP(-alpha*(BQ$15-$H69))) + (B*EXP(-bêta*(BQ$15-$H69))) + (_C*EXP(-gamma*(BQ$15-$H69 ))) ) -> 0 | BR69: =$G69/[0]!Poids * ( (A*EXP(-alpha*(BR$15-$H69))) + (B*EXP(-bêta*(BR$15-$H69))) + (_C*EXP(-gamma*(BR$15-$H69 ))) ) -> 0
G70: =BL$10 -> 0 | H70: 270 | BL70: =$G70/[0]!Poids * ( (A*EXP(-alpha*(BL$15-$H70))) + (B*EXP(-bêta*(BL$15-$H70))) + (_C*EXP(-gamma*(BL$15-$H70 ))) ) -> 0 | BM70: =$G70/[0]!Poids * ( (A*EXP(-alpha*(BM$15-$H70))) + (B*EXP(-bêta*(BM$15-$H70))) + (_C*EXP(-gamma*(BM$15-$H70 ))) ) -> 0 | BN70: =$G70/[0]!Poids * ( (A*EXP(-alpha*(BN$15-$H70))) + (B*EXP(-bêta*(BN$15-$H70))) + (_C*EXP(-gamma*(BN$15-$H70 ))) ) -> 0 | BO70: =$G70/[0]!Poids * ( (A*EXP(-alpha*(BO$15-$H70))) + (B*EXP(-bêta*(BO$15-$H70))) + (_C*EXP(-gamma*(BO$15-$H70 ))) ) -> 0 | BP70: =$G70/[0]!Poids * ( (A*EXP(-alpha*(BP$15-$H70))) + (B*EXP(-bêta*(BP$15-$H70))) + (_C*EXP(-gamma*(BP$15-$H70 ))) ) -> 0 | BQ70: =$G70/[0]!Poids * ( (A*EXP(-alpha*(BQ$15-$H70))) + (B*EXP(-bêta*(BQ$15-$H70))) + (_C*EXP(-gamma*(BQ$15-$H70 ))) ) -> 0 | BR70: =$G70/[0]!Poids * ( (A*EXP(-alpha*(BR$15-$H70))) + (B*EXP(-bêta*(BR$15-$H70))) + (_C*EXP(-gamma*(BR$15-$H70 ))) ) -> 0
G71: =BM$10 -> 0 | H71: 275 | BM71: =$G71/[0]!Poids * ( (A*EXP(-alpha*(BM$15-$H71))) + (B*EXP(-bêta*(BM$15-$H71))) + (_C*EXP(-gamma*(BM$15-$H71 ))) ) -> 0 | BN71: =$G71/[0]!Poids * ( (A*EXP(-alpha*(BN$15-$H71))) + (B*EXP(-bêta*(BN$15-$H71))) + (_C*EXP(-gamma*(BN$15-$H71 ))) ) -> 0 | BO71: =$G71/[0]!Poids * ( (A*EXP(-alpha*(BO$15-$H71))) + (B*EXP(-bêta*(BO$15-$H71))) + (_C*EXP(-gamma*(BO$15-$H71 ))) ) -> 0 | BP71: =$G71/[0]!Poids * ( (A*EXP(-alpha*(BP$15-$H71))) + (B*EXP(-bêta*(BP$15-$H71))) + (_C*EXP(-gamma*(BP$15-$H71 ))) ) -> 0 | BQ71: =$G71/[0]!Poids * ( (A*EXP(-alpha*(BQ$15-$H71))) + (B*EXP(-bêta*(BQ$15-$H71))) + (_C*EXP(-gamma*(BQ$15-$H71 ))) ) -> 0 | BR71: =$G71/[0]!Poids * ( (A*EXP(-alpha*(BR$15-$H71))) + (B*EXP(-bêta*(BR$15-$H71))) + (_C*EXP(-gamma*(BR$15-$H71 ))) ) -> 0
G72: =BN$10 -> 0 | H72: 280 | BN72: =$G72/[0]!Poids * ( (A*EXP(-alpha*(BN$15-$H72))) + (B*EXP(-bêta*(BN$15-$H72))) + (_C*EXP(-gamma*(BN$15-$H72 ))) ) -> 0 | BO72: =$G72/[0]!Poids * ( (A*EXP(-alpha*(BO$15-$H72))) + (B*EXP(-bêta*(BO$15-$H72))) + (_C*EXP(-gamma*(BO$15-$H72 ))) ) -> 0 | BP72: =$G72/[0]!Poids * ( (A*EXP(-alpha*(BP$15-$H72))) + (B*EXP(-bêta*(BP$15-$H72))) + (_C*EXP(-gamma*(BP$15-$H72 ))) ) -> 0 | BQ72: =$G72/[0]!Poids * ( (A*EXP(-alpha*(BQ$15-$H72))) + (B*EXP(-bêta*(BQ$15-$H72))) + (_C*EXP(-gamma*(BQ$15-$H72 ))) ) -> 0 | BR72: =$G72/[0]!Poids * ( (A*EXP(-alpha*(BR$15-$H72))) + (B*EXP(-bêta*(BR$15-$H72))) + (_C*EXP(-gamma*(BR$15-$H72 ))) ) -> 0
G73: =BO$10 -> 0 | H73: 285 | BO73: =$G73/[0]!Poids * ( (A*EXP(-alpha*(BO$15-$H73))) + (B*EXP(-bêta*(BO$15-$H73))) + (_C*EXP(-gamma*(BO$15-$H73 ))) ) -> 0 | BP73: =$G73/[0]!Poids * ( (A*EXP(-alpha*(BP$15-$H73))) + (B*EXP(-bêta*(BP$15-$H73))) + (_C*EXP(-gamma*(BP$15-$H73 ))) ) -> 0 | BQ73: =$G73/[0]!Poids * ( (A*EXP(-alpha*(BQ$15-$H73))) + (B*EXP(-bêta*(BQ$15-$H73))) + (_C*EXP(-gamma*(BQ$15-$H73 ))) ) -> 0 | BR73: =$G73/[0]!Poids * ( (A*EXP(-alpha*(BR$15-$H73))) + (B*EXP(-bêta*(BR$15-$H73))) + (_C*EXP(-gamma*(BR$15-$H73 ))) ) -> 0
G74: =BP$10 -> 0 | H74: 290 | BP74: =$G74/[0]!Poids * ( (A*EXP(-alpha*(BP$15-$H74))) + (B*EXP(-bêta*(BP$15-$H74))) + (_C*EXP(-gamma*(BP$15-$H74 ))) ) -> 0 | BQ74: =$G74/[0]!Poids * ( (A*EXP(-alpha*(BQ$15-$H74))) + (B*EXP(-bêta*(BQ$15-$H74))) + (_C*EXP(-gamma*(BQ$15-$H74 ))) ) -> 0 | BR74: =$G74/[0]!Poids * ( (A*EXP(-alpha*(BR$15-$H74))) + (B*EXP(-bêta*(BR$15-$H74))) + (_C*EXP(-gamma*(BR$15-$H74 ))) ) -> 0
G75: =BQ$10 -> 0 | H75: 295 | BQ75: =$G75/[0]!Poids * ( (A*EXP(-alpha*(BQ$15-$H75))) + (B*EXP(-bêta*(BQ$15-$H75))) + (_C*EXP(-gamma*(BQ$15-$H75 ))) ) -> 0 | BR75: =$G75/[0]!Poids * ( (A*EXP(-alpha*(BR$15-$H75))) + (B*EXP(-bêta*(BR$15-$H75))) + (_C*EXP(-gamma*(BR$15-$H75 ))) ) -> 0
G76: =BR$10 -> 0 | H76: 300 | BR76: =$G76/[0]!Poids * ( (A*EXP(-alpha*(BR$15-$H76))) + (B*EXP(-bêta*(BR$15-$H76))) + (_C*EXP(-gamma*(BR$15-$H76 ))) ) -> 0
H78: time | J78: =J15 -> 0 | K78: =K15 -> 5 | L78: 10 | M78: 15 | N78: 20 | O78: 25 | P78: 30 | Q78: 35 | R78: 40 | S78: 45 | T78: 50 | U78: 55 | V78: 60 | W78: 65 | X78: 70 | Y78: 75 | Z78: 80 | AA78: 85 | AB78: 90 | AC78: 95 | AD78: 100 | AE78: 105 | AF78: 110 | AG78: 115 | AH78: 120 | AI78: 125 | AJ78: 130 | AK78: 135 | AL78: 140 | AM78: 145 | AN78: 150 | AO78: 155 | AP78: 160 | AQ78: 165 | AR78: 170 | AS78: 175 | AT78: 180 | AU78: 185 | AV78: 190 | AW78: 195 | AX78: 200 | AY78: 205 | AZ78: 210 | BA78: 215 | BB78: 220 | BC78: 225 | BD78: 230 | BE78: 235 | BF78: 240 | BG78: 245 | BH78: 250 | BI78: 255 | BJ78: 260 | BK78: 265 | BL78: 270 | BM78: 275 | BN78: 280 | BO78: 285 | BP78: 290 | BQ78: 295 | BR78: 300
H79: C (t) | J79: =SUM(J16:J76) -> 0 | K79: =SUM(K16:K75) -> 0 | L79: 0 | M79: 0 | N79: 0 | O79: 0 | P79: 0 | Q79: 0 | R79: 0 | S79: 0 | T79: 0 | U79: 0 | V79: 0 | W79: 0 | X79: 0 | Y79: 0 | Z79: 0 | AA79: 0 | AB79: 0 | AC79: 0 | AD79: 0 | AE79: 0 | AF79: 0 | AG79: 0 | AH79: 0 | AI79: 0 | AJ79: 0 | AK79: 0 | AL79: 0 | AM79: 0 | AN79: =SUM(AN16:AN75) -> 0 | AO79: =SUM(AO16:AO75) -> 0 | AP79: 0 | AQ79: 0 | AR79: 0 | AS79: 0 | AT79: 0 | AU79: 0 | AV79: 0 | AW79: 0 | AX79: 0 | AY79: 0 | AZ79: 0 | BA79: 0 | BB79: 0 | BC79: 0 | BD79: 0 | BE79: 0 | BF79: 0 | BG79: 0 | BH79: 0 | BI79: 0 | BJ79: 0 | BK79: 0 | BL79: 0 | BM79: 0 | BN79: 0 | BO79: 0 | BP79: 0 | BQ79: =SUM(BQ16:BQ75) -> 0 | BR79: =SUM(BR16:BR77) -> 0

Sheet CLEMENTS (hidden)
B4: C(t) = q/OFA!Poids * [ (A*EXP(-alpha*(E$9-$F2)) + B*EXP(-bêta*(E$9-$F2)) + C*EXP(-gamma*(E$9-$F2 )) ]
G6: Bolus | J6: =KPTiva!I31 -> 0 | K6: =KPTiva!J31 -> 0 | L6: =KPTiva!K31 -> 0 | M6: =KPTiva!L31 -> 0 | N6: =KPTiva!M31 -> 0 | O6: =KPTiva!N31 -> 0 | P6: =KPTiva!O31 -> 0 | Q6: =KPTiva!P31 -> 0 | R6: =KPTiva!Q31 -> 0 | S6: =KPTiva!R31 -> 0 | T6: =KPTiva!S31 -> 0 | U6: =KPTiva!T31 -> 0 | V6: =KPTiva!U31 -> 0 | W6: =KPTiva!V31 -> 0 | X6: =KPTiva!W31 -> 0 | Y6: =KPTiva!X31 -> 0 | Z6: =KPTiva!Y31 -> 0 | AA6: =KPTiva!Z31 -> 0 | AB6: =KPTiva!AA31 -> 0 | AC6: =KPTiva!AB31 -> 0 | AD6: =KPTiva!AC31 -> 0 | AE6: =KPTiva!AD31 -> 0 | AF6: =KPTiva!AE31 -> 0 | AG6: =KPTiva!AF31 -> 0 | AH6: =KPTiva!AG31 -> 0 | AI6: =KPTiva!AH31 -> 0 | AJ6: =KPTiva!AI31 -> 0 | AK6: =KPTiva!AJ31 -> 0 | AL6: =KPTiva!AK31 -> 0 | AM6: =KPTiva!AL31 -> 0 | AN6: =KPTiva!AM31 -> 0 | AO6: =KPTiva!AN31 -> 0 | AP6: =KPTiva!AO31 -> 0 | AQ6: =KPTiva!AP31 -> 0 | AR6: =KPTiva!AQ31 -> 0 | AS6: =KPTiva!AR31 -> 0 | AT6: =KPTiva!AS31 -> 0 | AU6: =KPTiva!AT31 -> 0 | AV6: =KPTiva!AU31 -> 0 | AW6: =KPTiva!AV31 -> 0 | AX6: =KPTiva!AW31 -> 0 | AY6: =KPTiva!AX31 -> 0 | AZ6: =KPTiva!AY31 -> 0 | BA6: =KPTiva!AZ31 -> 0 | BB6: =KPTiva!BA31 -> 0 | BC6: =KPTiva!BB31 -> 0 | BD6: =KPTiva!BC31 -> 0 | BE6: =KPTiva!BD31 -> 0 | BF6: =KPTiva!BE31 -> 0 | BG6: =KPTiva!BF31 -> 0 | BH6: =KPTiva!BG31 -> 0 | BI6: =KPTiva!BH31 -> 0 | BJ6: =KPTiva!BI31 -> 0 | BK6: =KPTiva!BJ31 -> 0 | BL6: =KPTiva!BK31 -> 0 | BM6: =KPTiva!BL31 -> 0 | BN6: =KPTiva!BM31 -> 0 | BO6: =KPTiva!BN31 -> 0 | BP6: =KPTiva!BO31 -> 0 | BQ6: =KPTiva!BP31 -> 0 | BR6: =KPTiva!BQ31 -> 0
G7: mg/kg/h | J7: =KPTiva!I33*Poids/12 -> 0 | K7: =KPTiva!J33*Poids/12 -> 0 | L7: =KPTiva!K33*Poids/12 -> 0 | M7: =KPTiva!L33*Poids/12 -> 0 | N7: =KPTiva!M33*Poids/12 -> 0 | O7: =KPTiva!N33*Poids/12 -> 0 | P7: =KPTiva!O33*Poids/12 -> 0 | Q7: =KPTiva!P33*Poids/12 -> 0 | R7: =KPTiva!Q33*Poids/12 -> 0 | S7: =KPTiva!R33*Poids/12 -> 0 | T7: =KPTiva!S33*Poids/12 -> 0 | U7: =KPTiva!T33*Poids/12 -> 0 | V7: =KPTiva!U33*Poids/12 -> 0 | W7: =KPTiva!V33*Poids/12 -> 0 | X7: =KPTiva!W33*Poids/12 -> 0 | Y7: =KPTiva!X33*Poids/12 -> 0 | Z7: =KPTiva!Y33*Poids/12 -> 0 | AA7: =KPTiva!Z33*Poids/12 -> 0 | AB7: =KPTiva!AA33*Poids/12 -> 0 | AC7: =KPTiva!AB33*Poids/12 -> 0 | AD7: =KPTiva!AC33*Poids/12 -> 0 | AE7: =KPTiva!AD33*Poids/12 -> 0 | AF7: =KPTiva!AE33*Poids/12 -> 0 | AG7: =KPTiva!AF33*Poids/12 -> 0 | AH7: =KPTiva!AG33*Poids/12 -> 0 | AI7: =KPTiva!AH33*Poids/12 -> 0 | AJ7: =KPTiva!AI33*Poids/12 -> 0 | AK7: =KPTiva!AJ33*Poids/12 -> 0 | AL7: =KPTiva!AK33*Poids/12 -> 0 | AM7: =KPTiva!AL33*Poids/12 -> 0 | AN7: =KPTiva!AM33*Poids/12 -> 0 | AO7: =KPTiva!AN33*Poids/12 -> 0 | AP7: =KPTiva!AO33*Poids/12 -> 0 | AQ7: =KPTiva!AP33*Poids/12 -> 0 | AR7: =KPTiva!AQ33*Poids/12 -> 0 | AS7: =KPTiva!AR33*Poids/12 -> 0 | AT7: =KPTiva!AS33*Poids/12 -> 0 | AU7: =KPTiva!AT33*Poids/12 -> 0 | AV7: =KPTiva!AU33*Poids/12 -> 0 | AW7: =KPTiva!AV33*Poids/12 -> 0 | AX7: =KPTiva!AW33*Poids/12 -> 0 | AY7: =KPTiva!AX33*Poids/12 -> 0 | AZ7: =KPTiva!AY33*Poids/12 -> 0 | BA7: =KPTiva!AZ33*Poids/12 -> 0 | BB7: =KPTiva!BA33*Poids/12 -> 0 | BC7: =KPTiva!BB33*Poids/12 -> 0 | BD7: =KPTiva!BC33*Poids/12 -> 0 | BE7: =KPTiva!BD33*Poids/12 -> 0 | BF7: =KPTiva!BE33*Poids/12 -> 0 | BG7: =KPTiva!BF33*Poids/12 -> 0 | BH7: =KPTiva!BG33*Poids/12 -> 0 | BI7: =KPTiva!BH33*Poids/12 -> 0 | BJ7: =KPTiva!BI33*Poids/12 -> 0 | BK7: =KPTiva!BJ33*Poids/12 -> 0 | BL7: =KPTiva!BK33*Poids/12 -> 0 | BM7: =KPTiva!BL33*Poids/12 -> 0 | BN7: =KPTiva!BM33*Poids/12 -> 0 | BO7: =KPTiva!BN33*Poids/12 -> 0 | BP7: =KPTiva!BO33*Poids/12 -> 0 | BQ7: =KPTiva!BP33*Poids/12 -> 0 | BR7: =KPTiva!BQ33*Poids/12 -> 0
G8: µg/kg/min | J8: =(KPTiva!I34*Poids)/200 -> 0 | K8: =(KPTiva!J34*Poids)/200 -> 0 | L8: =(KPTiva!K34*Poids)/200 -> 0 | M8: =(KPTiva!L34*Poids)/200 -> 0 | N8: =(KPTiva!M34*Poids)/200 -> 0 | O8: =(KPTiva!N34*Poids)/200 -> 0 | P8: =(KPTiva!O34*Poids)/200 -> 0 | Q8: =(KPTiva!P34*Poids)/200 -> 0 | R8: =(KPTiva!Q34*Poids)/200 -> 0 | S8: =(KPTiva!R34*Poids)/200 -> 0 | T8: =(KPTiva!S34*Poids)/200 -> 0 | U8: =(KPTiva!T34*Poids)/200 -> 0 | V8: =(KPTiva!U34*Poids)/200 -> 0 | W8: =(KPTiva!V34*Poids)/200 -> 0 | X8: =(KPTiva!W34*Poids)/200 -> 0 | Y8: =(KPTiva!X34*Poids)/200 -> 0 | Z8: =(KPTiva!Y34*Poids)/200 -> 0 | AA8: =(KPTiva!Z34*Poids)/200 -> 0 | AB8: =(KPTiva!AA34*Poids)/200 -> 0 | AC8: =(KPTiva!AB34*Poids)/200 -> 0 | AD8: =(KPTiva!AC34*Poids)/200 -> 0 | AE8: =(KPTiva!AD34*Poids)/200 -> 0 | AF8: =(KPTiva!AE34*Poids)/200 -> 0 | AG8: =(KPTiva!AF34*Poids)/200 -> 0 | AH8: =(KPTiva!AG34*Poids)/200 -> 0 | AI8: =(KPTiva!AH34*Poids)/200 -> 0 | AJ8: =(KPTiva!AI34*Poids)/200 -> 0 | AK8: =(KPTiva!AJ34*Poids)/200 -> 0 | AL8: =(KPTiva!AK34*Poids)/200 -> 0 | AM8: =(KPTiva!AL34*Poids)/200 -> 0 | AN8: =(KPTiva!AM34*Poids)/200 -> 0 | AO8: =(KPTiva!AN34*Poids)/200 -> 0 | AP8: =(KPTiva!AO34*Poids)/200 -> 0 | AQ8: =(KPTiva!AP34*Poids)/200 -> 0 | AR8: =(KPTiva!AQ34*Poids)/200 -> 0 | AS8: =(KPTiva!AR34*Poids)/200 -> 0 | AT8: =(KPTiva!AS34*Poids)/200 -> 0 | AU8: =(KPTiva!AT34*Poids)/200 -> 0 | AV8: =(KPTiva!AU34*Poids)/200 -> 0 | AW8: =(KPTiva!AV34*Poids)/200 -> 0 | AX8: =(KPTiva!AW34*Poids)/200 -> 0 | AY8: =(KPTiva!AX34*Poids)/200 -> 0 | AZ8: =(KPTiva!AY34*Poids)/200 -> 0 | BA8: =(KPTiva!AZ34*Poids)/200 -> 0 | BB8: =(KPTiva!BA34*Poids)/200 -> 0 | BC8: =(KPTiva!BB34*Poids)/200 -> 0 | BD8: =(KPTiva!BC34*Poids)/200 -> 0 | BE8: =(KPTiva!BD34*Poids)/200 -> 0 | BF8: =(KPTiva!BE34*Poids)/200 -> 0 | BG8: =(KPTiva!BF34*Poids)/200 -> 0 | BH8: =(KPTiva!BG34*Poids)/200 -> 0 | BI8: =(KPTiva!BH34*Poids)/200 -> 0 | BJ8: =(KPTiva!BI34*Poids)/200 -> 0 | BK8: =(KPTiva!BJ34*Poids)/200 -> 0 | BL8: =(KPTiva!BK34*Poids)/200 -> 0 | BM8: =(KPTiva!BL34*Poids)/200 -> 0 | BN8: =(KPTiva!BM34*Poids)/200 -> 0 | BO8: =(KPTiva!BN34*Poids)/200 -> 0 | BP8: =(KPTiva!BO34*Poids)/200 -> 0 | BQ8: =(KPTiva!BP34*Poids)/200 -> 0 | BR8: =(KPTiva!BQ34*Poids)/200 -> 0
G10: total mg | I10: zéro | J10: =SUM(J6:J8) -> 0 | K10: =SUM(K6:K8) -> 0 | L10: 0 | M10: 0 | N10: 0 | O10: 0 | P10: 0 | Q10: 0 | R10: 0 | S10: 0 | T10: 0 | U10: 0 | V10: 0 | W10: 0 | X10: 0 | Y10: 0 | Z10: 0 | AA10: 0 | AB10: 0 | AC10: 0 | AD10: 0 | AE10: 0 | AF10: 0 | AG10: 0 | AH10: 0 | AI10: 0 | AJ10: 0 | AK10: 0 | AL10: 0 | AM10: 0 | AN10: 0 | AO10: 0 | AP10: 0 | AQ10: 0 | AR10: 0 | AS10: 0 | AT10: 0 | AU10: 0 | AV10: 0 | AW10: 0 | AX10: 0 | AY10: 0 | AZ10: 0 | BA10: 0 | BB10: 0 | BC10: 0 | BD10: 0 | BE10: 0 | BF10: 0 | BG10: 0 | BH10: 0 | BI10: 0 | BJ10: 0 | BK10: 0 | BL10: 0 | BM10: 0 | BN10: 0 | BO10: 0 | BP10: 0 | BQ10: 0 | BR10: 0
G14: q (t) | J14: =J$10 -> 0 | K14: 0 | L14: 0 | M14: 0 | N14: 0 | O14: 0 | P14: 0 | Q14: 0 | R14: 0 | S14: 0 | T14: 0 | U14: 0 | V14: 0 | W14: 0 | X14: 0 | Y14: 0 | Z14: 0 | AA14: 0 | AB14: 0 | AC14: 0 | AD14: 0 | AE14: 0 | AF14: 0 | AG14: 0 | AH14: 0 | AI14: 0 | AJ14: 0 | AK14: 0 | AL14: 0 | AM14: 0 | AN14: 0 | AO14: 0 | AP14: 0 | AQ14: 0 | AR14: 0 | AS14: 0 | AT14: 0 | AU14: 0 | AV14: 0 | AW14: 0 | AX14: 0 | AY14: 0 | AZ14: 0 | BA14: 0 | BB14: 0 | BC14: 0 | BD14: 0 | BE14: 0 | BF14: 0 | BG14: 0 | BH14: 0 | BI14: 0 | BJ14: 0 | BK14: 0 | BL14: 0 | BM14: 0 | BN14: 0 | BO14: 0 | BP14: 0 | BQ14: 0 | BR14: =BR$10 -> 0
J15: 0 | K15: 5 | L15: 10 | M15: 15 | N15: 20 | O15: 25 | P15: 30 | Q15: 35 | R15: 40 | S15: 45 | T15: 50 | U15: 55 | V15: 60 | W15: 65 | X15: 70 | Y15: 75 | Z15: 80 | AA15: 85 | AB15: 90 | AC15: 95 | AD15: 100 | AE15: 105 | AF15: 110 | AG15: 115 | AH15: 120 | AI15: 125 | AJ15: 130 | AK15: 135 | AL15: 140 | AM15: 145 | AN15: 150 | AO15: 155 | AP15: 160 | AQ15: 165 | AR15: 170 | AS15: 175 | AT15: 180 | AU15: 185 | AV15: 190 | AW15: 195 | AX15: 200 | AY15: 205 | AZ15: 210 | BA15: 215 | BB15: 220 | BC15: 225 | BD15: 230 | BE15: 235 | BF15: 240 | BG15: 245 | BH15: 250 | BI15: 255 | BJ15: 260 | BK15: 265 | BL15: 270 | BM15: 275 | BN15: 280 | BO15: 285 | BP15: 290 | BQ15: 295 | BR15: 300
G16: =J$10 -> 0 | H16: 0 | J16: =$G16/[0]!Poids * ( (A*EXP(-alpha*(J$15-$H16))) + (B*EXP(-bêta*(J$15-$H16))) + (_C*EXP(-gamma*(J$15-$H16 ))) ) -> 0 | K16: =$G16/[0]!Poids * ( (A*EXP(-alpha*(K$15-$H16))) + (B*EXP(-bêta*(K$15-$H16))) + (_C*EXP(-gamma*(K$15-$H16 ))) ) -> 0 | L16: =$G16/[0]!Poids * ( (A*EXP(-alpha*(L$15-$H16))) + (B*EXP(-bêta*(L$15-$H16))) + (_C*EXP(-gamma*(L$15-$H16 ))) ) -> 0 | M16: =$G16/[0]!Poids * ( (A*EXP(-alpha*(M$15-$H16))) + (B*EXP(-bêta*(M$15-$H16))) + (_C*EXP(-gamma*(M$15-$H16 ))) ) -> 0 | N16: =$G16/[0]!Poids * ( (A*EXP(-alpha*(N$15-$H16))) + (B*EXP(-bêta*(N$15-$H16))) + (_C*EXP(-gamma*(N$15-$H16 ))) ) -> 0 | O16: =$G16/[0]!Poids * ( (A*EXP(-alpha*(O$15-$H16))) + (B*EXP(-bêta*(O$15-$H16))) + (_C*EXP(-gamma*(O$15-$H16 ))) ) -> 0 | P16: =$G16/[0]!Poids * ( (A*EXP(-alpha*(P$15-$H16))) + (B*EXP(-bêta*(P$15-$H16))) + (_C*EXP(-gamma*(P$15-$H16 ))) ) -> 0 | Q16: =$G16/[0]!Poids * ( (A*EXP(-alpha*(Q$15-$H16))) + (B*EXP(-bêta*(Q$15-$H16))) + (_C*EXP(-gamma*(Q$15-$H16 ))) ) -> 0 | R16: =$G16/[0]!Poids * ( (A*EXP(-alpha*(R$15-$H16))) + (B*EXP(-bêta*(R$15-$H16))) + (_C*EXP(-gamma*(R$15-$H16 ))) ) -> 0 | S16: =$G16/[0]!Poids * ( (A*EXP(-alpha*(S$15-$H16))) + (B*EXP(-bêta*(S$15-$H16))) + (_C*EXP(-gamma*(S$15-$H16 ))) ) -> 0 | T16: =$G16/[0]!Poids * ( (A*EXP(-alpha*(T$15-$H16))) + (B*EXP(-bêta*(T$15-$H16))) + (_C*EXP(-gamma*(T$15-$H16 ))) ) -> 0 | U16: =$G16/[0]!Poids * ( (A*EXP(-alpha*(U$15-$H16))) + (B*EXP(-bêta*(U$15-$H16))) + (_C*EXP(-gamma*(U$15-$H16 ))) ) -> 0 | V16: =$G16/[0]!Poids * ( (A*EXP(-alpha*(V$15-$H16))) + (B*EXP(-bêta*(V$15-$H16))) + (_C*EXP(-gamma*(V$15-$H16 ))) ) -> 0 | W16: =$G16/[0]!Poids * ( (A*EXP(-alpha*(W$15-$H16))) + (B*EXP(-bêta*(W$15-$H16))) + (_C*EXP(-gamma*(W$15-$H16 ))) ) -> 0 | X16: =$G16/[0]!Poids * ( (A*EXP(-alpha*(X$15-$H16))) + (B*EXP(-bêta*(X$15-$H16))) + (_C*EXP(-gamma*(X$15-$H16 ))) ) -> 0 | Y16: =$G16/[0]!Poids * ( (A*EXP(-alpha*(Y$15-$H16))) + (B*EXP(-bêta*(Y$15-$H16))) + (_C*EXP(-gamma*(Y$15-$H16 ))) ) -> 0 | Z16: =$G16/[0]!Poids * ( (A*EXP(-alpha*(Z$15-$H16))) + (B*EXP(-bêta*(Z$15-$H16))) + (_C*EXP(-gamma*(Z$15-$H16 ))) ) -> 0 | AA16: =$G16/[0]!Poids * ( (A*EXP(-alpha*(AA$15-$H16))) + (B*EXP(-bêta*(AA$15-$H16))) + (_C*EXP(-gamma*(AA$15-$H16 ))) ) -> 0 | AB16: =$G16/[0]!Poids * ( (A*EXP(-alpha*(AB$15-$H16))) + (B*EXP(-bêta*(AB$15-$H16))) + (_C*EXP(-gamma*(AB$15-$H16 ))) ) -> 0 | AC16: =$G16/[0]!Poids * ( (A*EXP(-alpha*(AC$15-$H16))) + (B*EXP(-bêta*(AC$15-$H16))) + (_C*EXP(-gamma*(AC$15-$H16 ))) ) -> 0 | AD16: =$G16/[0]!Poids * ( (A*EXP(-alpha*(AD$15-$H16))) + (B*EXP(-bêta*(AD$15-$H16))) + (_C*EXP(-gamma*(AD$15-$H16 ))) ) -> 0 | AE16: =$G16/[0]!Poids * ( (A*EXP(-alpha*(AE$15-$H16))) + (B*EXP(-bêta*(AE$15-$H16))) + (_C*EXP(-gamma*(AE$15-$H16 ))) ) -> 0 | AF16: =$G16/[0]!Poids * ( (A*EXP(-alpha*(AF$15-$H16))) + (B*EXP(-bêta*(AF$15-$H16))) + (_C*EXP(-gamma*(AF$15-$H16 ))) ) -> 0 | AG16: =$G16/[0]!Poids * ( (A*EXP(-alpha*(AG$15-$H16))) + (B*EXP(-bêta*(AG$15-$H16))) + (_C*EXP(-gamma*(AG$15-$H16 ))) ) -> 0 | AH16: =$G16/[0]!Poids * ( (A*EXP(-alpha*(AH$15-$H16))) + (B*EXP(-bêta*(AH$15-$H16))) + (_C*EXP(-gamma*(AH$15-$H16 ))) ) -> 0 | AI16: =$G16/[0]!Poids * ( (A*EXP(-alpha*(AI$15-$H16))) + (B*EXP(-bêta*(AI$15-$H16))) + (_C*EXP(-gamma*(AI$15-$H16 ))) ) -> 0 | AJ16: =$G16/[0]!Poids * ( (A*EXP(-alpha*(AJ$15-$H16))) + (B*EXP(-bêta*(AJ$15-$H16))) + (_C*EXP(-gamma*(AJ$15-$H16 ))) ) -> 0 | AK16: =$G16/[0]!Poids * ( (A*EXP(-alpha*(AK$15-$H16))) + (B*EXP(-bêta*(AK$15-$H16))) + (_C*EXP(-gamma*(AK$15-$H16 ))) ) -> 0 | AL16: =$G16/[0]!Poids * ( (A*EXP(-alpha*(AL$15-$H16))) + (B*EXP(-bêta*(AL$15-$H16))) + (_C*EXP(-gamma*(AL$15-$H16 ))) ) -> 0 | AM16: =$G16/[0]!Poids * ( (A*EXP(-alpha*(AM$15-$H16))) + (B*EXP(-bêta*(AM$15-$H16))) + (_C*EXP(-gamma*(AM$15-$H16 ))) ) -> 0 | AN16: =$G16/[0]!Poids * ( (A*EXP(-alpha*(AN$15-$H16))) + (B*EXP(-bêta*(AN$15-$H16))) + (_C*EXP(-gamma*(AN$15-$H16 ))) ) -> 0 | AO16: =$G16/[0]!Poids * ( (A*EXP(-alpha*(AO$15-$H16))) + (B*EXP(-bêta*(AO$15-$H16))) + (_C*EXP(-gamma*(AO$15-$H16 ))) ) -> 0 | AP16: =$G16/[0]!Poids * ( (A*EXP(-alpha*(AP$15-$H16))) + (B*EXP(-bêta*(AP$15-$H16))) + (_C*EXP(-gamma*(AP$15-$H16 ))) ) -> 0 | AQ16: =$G16/[0]!Poids * ( (A*EXP(-alpha*(AQ$15-$H16))) + (B*EXP(-bêta*(AQ$15-$H16))) + (_C*EXP(-gamma*(AQ$15-$H16 ))) ) -> 0 | AR16: =$G16/[0]!Poids * ( (A*EXP(-alpha*(AR$15-$H16))) + (B*EXP(-bêta*(AR$15-$H16))) + (_C*EXP(-gamma*(AR$15-$H16 ))) ) -> 0 | AS16: =$G16/[0]!Poids * ( (A*EXP(-alpha*(AS$15-$H16))) + (B*EXP(-bêta*(AS$15-$H16))) + (_C*EXP(-gamma*(AS$15-$H16 ))) ) -> 0 | AT16: =$G16/[0]!Poids * ( (A*EXP(-alpha*(AT$15-$H16))) + (B*EXP(-bêta*(AT$15-$H16))) + (_C*EXP(-gamma*(AT$15-$H16 ))) ) -> 0 | AU16: =$G16/[0]!Poids * ( (A*EXP(-alpha*(AU$15-$H16))) + (B*EXP(-bêta*(AU$15-$H16))) + (_C*EXP(-gamma*(AU$15-$H16 ))) ) -> 0 | AV16: =$G16/[0]!Poids * ( (A*EXP(-alpha*(AV$15-$H16))) + (B*EXP(-bêta*(AV$15-$H16))) + (_C*EXP(-gamma*(AV$15-$H16 ))) ) -> 0 | AW16: =$G16/[0]!Poids * ( (A*EXP(-alpha*(AW$15-$H16))) + (B*EXP(-bêta*(AW$15-$H16))) + (_C*EXP(-gamma*(AW$15-$H16 ))) ) -> 0 | AX16: =$G16/[0]!Poids * ( (A*EXP(-alpha*(AX$15-$H16))) + (B*EXP(-bêta*(AX$15-$H16))) + (_C*EXP(-gamma*(AX$15-$H16 ))) ) -> 0 | AY16: =$G16/[0]!Poids * ( (A*EXP(-alpha*(AY$15-$H16))) + (B*EXP(-bêta*(AY$15-$H16))) + (_C*EXP(-gamma*(AY$15-$H16 ))) ) -> 0 | AZ16: =$G16/[0]!Poids * ( (A*EXP(-alpha*(AZ$15-$H16))) + (B*EXP(-bêta*(AZ$15-$H16))) + (_C*EXP(-gamma*(AZ$15-$H16 ))) ) -> 0 | BA16: =$G16/[0]!Poids * ( (A*EXP(-alpha*(BA$15-$H16))) + (B*EXP(-bêta*(BA$15-$H16))) + (_C*EXP(-gamma*(BA$15-$H16 ))) ) -> 0 | BB16: =$G16/[0]!Poids * ( (A*EXP(-alpha*(BB$15-$H16))) + (B*EXP(-bêta*(BB$15-$H16))) + (_C*EXP(-gamma*(BB$15-$H16 ))) ) -> 0 | BC16: =$G16/[0]!Poids * ( (A*EXP(-alpha*(BC$15-$H16))) + (B*EXP(-bêta*(BC$15-$H16))) + (_C*EXP(-gamma*(BC$15-$H16 ))) ) -> 0 | BD16: =$G16/[0]!Poids * ( (A*EXP(-alpha*(BD$15-$H16))) + (B*EXP(-bêta*(BD$15-$H16))) + (_C*EXP(-gamma*(BD$15-$H16 ))) ) -> 0 | BE16: =$G16/[0]!Poids * ( (A*EXP(-alpha*(BE$15-$H16))) + (B*EXP(-bêta*(BE$15-$H16))) + (_C*EXP(-gamma*(BE$15-$H16 ))) ) -> 0 | BF16: =$G16/[0]!Poids * ( (A*EXP(-alpha*(BF$15-$H16))) + (B*EXP(-bêta*(BF$15-$H16))) + (_C*EXP(-gamma*(BF$15-$H16 ))) ) -> 0 | BG16: =$G16/[0]!Poids * ( (A*EXP(-alpha*(BG$15-$H16))) + (B*EXP(-bêta*(BG$15-$H16))) + (_C*EXP(-gamma*(BG$15-$H16 ))) ) -> 0 | BH16: =$G16/[0]!Poids * ( (A*EXP(-alpha*(BH$15-$H16))) + (B*EXP(-bêta*(BH$15-$H16))) + (_C*EXP(-gamma*(BH$15-$H16 ))) ) -> 0 | BI16: =$G16/[0]!Poids * ( (A*EXP(-alpha*(BI$15-$H16))) + (B*EXP(-bêta*(BI$15-$H16))) + (_C*EXP(-gamma*(BI$15-$H16 ))) ) -> 0 | BJ16: =$G16/[0]!Poids * ( (A*EXP(-alpha*(BJ$15-$H16))) + (B*EXP(-bêta*(BJ$15-$H16))) + (_C*EXP(-gamma*(BJ$15-$H16 ))) ) -> 0 | BK16: =$G16/[0]!Poids * ( (A*EXP(-alpha*(BK$15-$H16))) + (B*EXP(-bêta*(BK$15-$H16))) + (_C*EXP(-gamma*(BK$15-$H16 ))) ) -> 0 | BL16: =$G16/[0]!Poids * ( (A*EXP(-alpha*(BL$15-$H16))) + (B*EXP(-bêta*(BL$15-$H16))) + (_C*EXP(-gamma*(BL$15-$H16 ))) ) -> 0 | BM16: =$G16/[0]!Poids * ( (A*EXP(-alpha*(BM$15-$H16))) + (B*EXP(-bêta*(BM$15-$H16))) + (_C*EXP(-gamma*(BM$15-$H16 ))) ) -> 0 | BN16: =$G16/[0]!Poids * ( (A*EXP(-alpha*(BN$15-$H16))) + (B*EXP(-bêta*(BN$15-$H16))) + (_C*EXP(-gamma*(BN$15-$H16 ))) ) -> 0 | BO16: =$G16/[0]!Poids * ( (A*EXP(-alpha*(BO$15-$H16))) + (B*EXP(-bêta*(BO$15-$H16))) + (_C*EXP(-gamma*(BO$15-$H16 ))) ) -> 0 | BP16: =$G16/[0]!Poids * ( (A*EXP(-alpha*(BP$15-$H16))) + (B*EXP(-bêta*(BP$15-$H16))) + (_C*EXP(-gamma*(BP$15-$H16 ))) ) -> 0 | BQ16: =$G16/[0]!Poids * ( (A*EXP(-alpha*(BQ$15-$H16))) + (B*EXP(-bêta*(BQ$15-$H16))) + (_C*EXP(-gamma*(BQ$15-$H16 ))) ) -> 0 | BR16: =$G16/[0]!Poids * ( (A*EXP(-alpha*(BR$15-$H16))) + (B*EXP(-bêta*(BR$15-$H16))) + (_C*EXP(-gamma*(BR$15-$H16 ))) ) -> 0
B17: A équation | C17: 108 | D17: A/dose | E17: =C17/D28 -> 432 | G17: =K$10 -> 0 | H17: 5 | K17: =$G17/[0]!Poids * ( (A*EXP(-alpha*(K$15-$H17))) + (B*EXP(-bêta*(K$15-$H17))) + (_C*EXP(-gamma*(K$15-$H17 ))) ) -> 0 | L17: =$G17/[0]!Poids * ( (A*EXP(-alpha*(L$15-$H17))) + (B*EXP(-bêta*(L$15-$H17))) + (_C*EXP(-gamma*(L$15-$H17 ))) ) -> 0 | M17: =$G17/[0]!Poids * ( (A*EXP(-alpha*(M$15-$H17))) + (B*EXP(-bêta*(M$15-$H17))) + (_C*EXP(-gamma*(M$15-$H17 ))) ) -> 0 | N17: =$G17/[0]!Poids * ( (A*EXP(-alpha*(N$15-$H17))) + (B*EXP(-bêta*(N$15-$H17))) + (_C*EXP(-gamma*(N$15-$H17 ))) ) -> 0 | O17: =$G17/[0]!Poids * ( (A*EXP(-alpha*(O$15-$H17))) + (B*EXP(-bêta*(O$15-$H17))) + (_C*EXP(-gamma*(O$15-$H17 ))) ) -> 0 | P17: =$G17/[0]!Poids * ( (A*EXP(-alpha*(P$15-$H17))) + (B*EXP(-bêta*(P$15-$H17))) + (_C*EXP(-gamma*(P$15-$H17 ))) ) -> 0 | Q17: =$G17/[0]!Poids * ( (A*EXP(-alpha*(Q$15-$H17))) + (B*EXP(-bêta*(Q$15-$H17))) + (_C*EXP(-gamma*(Q$15-$H17 ))) ) -> 0 | R17: =$G17/[0]!Poids * ( (A*EXP(-alpha*(R$15-$H17))) + (B*EXP(-bêta*(R$15-$H17))) + (_C*EXP(-gamma*(R$15-$H17 ))) ) -> 0 | S17: =$G17/[0]!Poids * ( (A*EXP(-alpha*(S$15-$H17))) + (B*EXP(-bêta*(S$15-$H17))) + (_C*EXP(-gamma*(S$15-$H17 ))) ) -> 0 | T17: =$G17/[0]!Poids * ( (A*EXP(-alpha*(T$15-$H17))) + (B*EXP(-bêta*(T$15-$H17))) + (_C*EXP(-gamma*(T$15-$H17 ))) ) -> 0 | U17: =$G17/[0]!Poids * ( (A*EXP(-alpha*(U$15-$H17))) + (B*EXP(-bêta*(U$15-$H17))) + (_C*EXP(-gamma*(U$15-$H17 ))) ) -> 0 | V17: =$G17/[0]!Poids * ( (A*EXP(-alpha*(V$15-$H17))) + (B*EXP(-bêta*(V$15-$H17))) + (_C*EXP(-gamma*(V$15-$H17 ))) ) -> 0 | W17: =$G17/[0]!Poids * ( (A*EXP(-alpha*(W$15-$H17))) + (B*EXP(-bêta*(W$15-$H17))) + (_C*EXP(-gamma*(W$15-$H17 ))) ) -> 0 | X17: =$G17/[0]!Poids * ( (A*EXP(-alpha*(X$15-$H17))) + (B*EXP(-bêta*(X$15-$H17))) + (_C*EXP(-gamma*(X$15-$H17 ))) ) -> 0 | Y17: =$G17/[0]!Poids * ( (A*EXP(-alpha*(Y$15-$H17))) + (B*EXP(-bêta*(Y$15-$H17))) + (_C*EXP(-gamma*(Y$15-$H17 ))) ) -> 0 | Z17: =$G17/[0]!Poids * ( (A*EXP(-alpha*(Z$15-$H17))) + (B*EXP(-bêta*(Z$15-$H17))) + (_C*EXP(-gamma*(Z$15-$H17 ))) ) -> 0 | AA17: =$G17/[0]!Poids * ( (A*EXP(-alpha*(AA$15-$H17))) + (B*EXP(-bêta*(AA$15-$H17))) + (_C*EXP(-gamma*(AA$15-$H17 ))) ) -> 0 | AB17: =$G17/[0]!Poids * ( (A*EXP(-alpha*(AB$15-$H17))) + (B*EXP(-bêta*(AB$15-$H17))) + (_C*EXP(-gamma*(AB$15-$H17 ))) ) -> 0 | AC17: =$G17/[0]!Poids * ( (A*EXP(-alpha*(AC$15-$H17))) + (B*EXP(-bêta*(AC$15-$H17))) + (_C*EXP(-gamma*(AC$15-$H17 ))) ) -> 0 | AD17: =$G17/[0]!Poids * ( (A*EXP(-alpha*(AD$15-$H17))) + (B*EXP(-bêta*(AD$15-$H17))) + (_C*EXP(-gamma*(AD$15-$H17 ))) ) -> 0 | AE17: =$G17/[0]!Poids * ( (A*EXP(-alpha*(AE$15-$H17))) + (B*EXP(-bêta*(AE$15-$H17))) + (_C*EXP(-gamma*(AE$15-$H17 ))) ) -> 0 | AF17: =$G17/[0]!Poids * ( (A*EXP(-alpha*(AF$15-$H17))) + (B*EXP(-bêta*(AF$15-$H17))) + (_C*EXP(-gamma*(AF$15-$H17 ))) ) -> 0 | AG17: =$G17/[0]!Poids * ( (A*EXP(-alpha*(AG$15-$H17))) + (B*EXP(-bêta*(AG$15-$H17))) + (_C*EXP(-gamma*(AG$15-$H17 ))) ) -> 0 | AH17: =$G17/[0]!Poids * ( (A*EXP(-alpha*(AH$15-$H17))) + (B*EXP(-bêta*(AH$15-$H17))) + (_C*EXP(-gamma*(AH$15-$H17 ))) ) -> 0 | AI17: =$G17/[0]!Poids * ( (A*EXP(-alpha*(AI$15-$H17))) + (B*EXP(-bêta*(AI$15-$H17))) + (_C*EXP(-gamma*(AI$15-$H17 ))) ) -> 0 | AJ17: =$G17/[0]!Poids * ( (A*EXP(-alpha*(AJ$15-$H17))) + (B*EXP(-bêta*(AJ$15-$H17))) + (_C*EXP(-gamma*(AJ$15-$H17 ))) ) -> 0 | AK17: =$G17/[0]!Poids * ( (A*EXP(-alpha*(AK$15-$H17))) + (B*EXP(-bêta*(AK$15-$H17))) + (_C*EXP(-gamma*(AK$15-$H17 ))) ) -> 0 | AL17: =$G17/[0]!Poids * ( (A*EXP(-alpha*(AL$15-$H17))) + (B*EXP(-bêta*(AL$15-$H17))) + (_C*EXP(-gamma*(AL$15-$H17 ))) ) -> 0 | AM17: =$G17/[0]!Poids * ( (A*EXP(-alpha*(AM$15-$H17))) + (B*EXP(-bêta*(AM$15-$H17))) + (_C*EXP(-gamma*(AM$15-$H17 ))) ) -> 0 | AN17: =$G17/[0]!Poids * ( (A*EXP(-alpha*(AN$15-$H17))) + (B*EXP(-bêta*(AN$15-$H17))) + (_C*EXP(-gamma*(AN$15-$H17 ))) ) -> 0 | AO17: =$G17/[0]!Poids * ( (A*EXP(-alpha*(AO$15-$H17))) + (B*EXP(-bêta*(AO$15-$H17))) + (_C*EXP(-gamma*(AO$15-$H17 ))) ) -> 0 | AP17: =$G17/[0]!Poids * ( (A*EXP(-alpha*(AP$15-$H17))) + (B*EXP(-bêta*(AP$15-$H17))) + (_C*EXP(-gamma*(AP$15-$H17 ))) ) -> 0 | AQ17: =$G17/[0]!Poids * ( (A*EXP(-alpha*(AQ$15-$H17))) + (B*EXP(-bêta*(AQ$15-$H17))) + (_C*EXP(-gamma*(AQ$15-$H17 ))) ) -> 0 | AR17: =$G17/[0]!Poids * ( (A*EXP(-alpha*(AR$15-$H17))) + (B*EXP(-bêta*(AR$15-$H17))) + (_C*EXP(-gamma*(AR$15-$H17 ))) ) -> 0 | AS17: =$G17/[0]!Poids * ( (A*EXP(-alpha*(AS$15-$H17))) + (B*EXP(-bêta*(AS$15-$H17))) + (_C*EXP(-gamma*(AS$15-$H17 ))) ) -> 0 | AT17: =$G17/[0]!Poids * ( (A*EXP(-alpha*(AT$15-$H17))) + (B*EXP(-bêta*(AT$15-$H17))) + (_C*EXP(-gamma*(AT$15-$H17 ))) ) -> 0 | AU17: =$G17/[0]!Poids * ( (A*EXP(-alpha*(AU$15-$H17))) + (B*EXP(-bêta*(AU$15-$H17))) + (_C*EXP(-gamma*(AU$15-$H17 ))) ) -> 0 | AV17: =$G17/[0]!Poids * ( (A*EXP(-alpha*(AV$15-$H17))) + (B*EXP(-bêta*(AV$15-$H17))) + (_C*EXP(-gamma*(AV$15-$H17 ))) ) -> 0 | AW17: =$G17/[0]!Poids * ( (A*EXP(-alpha*(AW$15-$H17))) + (B*EXP(-bêta*(AW$15-$H17))) + (_C*EXP(-gamma*(AW$15-$H17 ))) ) -> 0 | AX17: =$G17/[0]!Poids * ( (A*EXP(-alpha*(AX$15-$H17))) + (B*EXP(-bêta*(AX$15-$H17))) + (_C*EXP(-gamma*(AX$15-$H17 ))) ) -> 0 | AY17: =$G17/[0]!Poids * ( (A*EXP(-alpha*(AY$15-$H17))) + (B*EXP(-bêta*(AY$15-$H17))) + (_C*EXP(-gamma*(AY$15-$H17 ))) ) -> 0 | AZ17: =$G17/[0]!Poids * ( (A*EXP(-alpha*(AZ$15-$H17))) + (B*EXP(-bêta*(AZ$15-$H17))) + (_C*EXP(-gamma*(AZ$15-$H17 ))) ) -> 0 | BA17: =$G17/[0]!Poids * ( (A*EXP(-alpha*(BA$15-$H17))) + (B*EXP(-bêta*(BA$15-$H17))) + (_C*EXP(-gamma*(BA$15-$H17 ))) ) -> 0 | BB17: =$G17/[0]!Poids * ( (A*EXP(-alpha*(BB$15-$H17))) + (B*EXP(-bêta*(BB$15-$H17))) + (_C*EXP(-gamma*(BB$15-$H17 ))) ) -> 0 | BC17: =$G17/[0]!Poids * ( (A*EXP(-alpha*(BC$15-$H17))) + (B*EXP(-bêta*(BC$15-$H17))) + (_C*EXP(-gamma*(BC$15-$H17 ))) ) -> 0 | BD17: =$G17/[0]!Poids * ( (A*EXP(-alpha*(BD$15-$H17))) + (B*EXP(-bêta*(BD$15-$H17))) + (_C*EXP(-gamma*(BD$15-$H17 ))) ) -> 0 | BE17: =$G17/[0]!Poids * ( (A*EXP(-alpha*(BE$15-$H17))) + (B*EXP(-bêta*(BE$15-$H17))) + (_C*EXP(-gamma*(BE$15-$H17 ))) ) -> 0 | BF17: =$G17/[0]!Poids * ( (A*EXP(-alpha*(BF$15-$H17))) + (B*EXP(-bêta*(BF$15-$H17))) + (_C*EXP(-gamma*(BF$15-$H17 ))) ) -> 0 | BG17: =$G17/[0]!Poids * ( (A*EXP(-alpha*(BG$15-$H17))) + (B*EXP(-bêta*(BG$15-$H17))) + (_C*EXP(-gamma*(BG$15-$H17 ))) ) -> 0 | BH17: =$G17/[0]!Poids * ( (A*EXP(-alpha*(BH$15-$H17))) + (B*EXP(-bêta*(BH$15-$H17))) + (_C*EXP(-gamma*(BH$15-$H17 ))) ) -> 0 | BI17: =$G17/[0]!Poids * ( (A*EXP(-alpha*(BI$15-$H17))) + (B*EXP(-bêta*(BI$15-$H17))) + (_C*EXP(-gamma*(BI$15-$H17 ))) ) -> 0 | BJ17: =$G17/[0]!Poids * ( (A*EXP(-alpha*(BJ$15-$H17))) + (B*EXP(-bêta*(BJ$15-$H17))) + (_C*EXP(-gamma*(BJ$15-$H17 ))) ) -> 0 | BK17: =$G17/[0]!Poids * ( (A*EXP(-alpha*(BK$15-$H17))) + (B*EXP(-bêta*(BK$15-$H17))) + (_C*EXP(-gamma*(BK$15-$H17 ))) ) -> 0 | BL17: =$G17/[0]!Poids * ( (A*EXP(-alpha*(BL$15-$H17))) + (B*EXP(-bêta*(BL$15-$H17))) + (_C*EXP(-gamma*(BL$15-$H17 ))) ) -> 0 | BM17: =$G17/[0]!Poids * ( (A*EXP(-alpha*(BM$15-$H17))) + (B*EXP(-bêta*(BM$15-$H17))) + (_C*EXP(-gamma*(BM$15-$H17 ))) ) -> 0 | BN17: =$G17/[0]!Poids * ( (A*EXP(-alpha*(BN$15-$H17))) + (B*EXP(-bêta*(BN$15-$H17))) + (_C*EXP(-gamma*(BN$15-$H17 ))) ) -> 0 | BO17: =$G17/[0]!Poids * ( (A*EXP(-alpha*(BO$15-$H17))) + (B*EXP(-bêta*(BO$15-$H17))) + (_C*EXP(-gamma*(BO$15-$H17 ))) ) -> 0 | BP17: =$G17/[0]!Poids * ( (A*EXP(-alpha*(BP$15-$H17))) + (B*EXP(-bêta*(BP$15-$H17))) + (_C*EXP(-gamma*(BP$15-$H17 ))) ) -> 0 | BQ17: =$G17/[0]!Poids * ( (A*EXP(-alpha*(BQ$15-$H17))) + (B*EXP(-bêta*(BQ$15-$H17))) + (_C*EXP(-gamma*(BQ$15-$H17 ))) ) -> 0 | BR17: =$G17/[0]!Poids * ( (A*EXP(-alpha*(BR$15-$H17))) + (B*EXP(-bêta*(BR$15-$H17))) + (_C*EXP(-gamma*(BR$15-$H17 ))) ) -> 0
B18: B équation | C18: 39 | D18: B/dose | E18: =C18/D28 -> 156 | G18: =L$10 -> 0 | H18: 10 | L18: =$G18/[0]!Poids * ( (A*EXP(-alpha*(L$15-$H18))) + (B*EXP(-bêta*(L$15-$H18))) + (_C*EXP(-gamma*(L$15-$H18 ))) ) -> 0 | M18: =$G18/[0]!Poids * ( (A*EXP(-alpha*(M$15-$H18))) + (B*EXP(-bêta*(M$15-$H18))) + (_C*EXP(-gamma*(M$15-$H18 ))) ) -> 0 | N18: =$G18/[0]!Poids * ( (A*EXP(-alpha*(N$15-$H18))) + (B*EXP(-bêta*(N$15-$H18))) + (_C*EXP(-gamma*(N$15-$H18 ))) ) -> 0 | O18: =$G18/[0]!Poids * ( (A*EXP(-alpha*(O$15-$H18))) + (B*EXP(-bêta*(O$15-$H18))) + (_C*EXP(-gamma*(O$15-$H18 ))) ) -> 0 | P18: =$G18/[0]!Poids * ( (A*EXP(-alpha*(P$15-$H18))) + (B*EXP(-bêta*(P$15-$H18))) + (_C*EXP(-gamma*(P$15-$H18 ))) ) -> 0 | Q18: =$G18/[0]!Poids * ( (A*EXP(-alpha*(Q$15-$H18))) + (B*EXP(-bêta*(Q$15-$H18))) + (_C*EXP(-gamma*(Q$15-$H18 ))) ) -> 0 | R18: =$G18/[0]!Poids * ( (A*EXP(-alpha*(R$15-$H18))) + (B*EXP(-bêta*(R$15-$H18))) + (_C*EXP(-gamma*(R$15-$H18 ))) ) -> 0 | S18: =$G18/[0]!Poids * ( (A*EXP(-alpha*(S$15-$H18))) + (B*EXP(-bêta*(S$15-$H18))) + (_C*EXP(-gamma*(S$15-$H18 ))) ) -> 0 | T18: =$G18/[0]!Poids * ( (A*EXP(-alpha*(T$15-$H18))) + (B*EXP(-bêta*(T$15-$H18))) + (_C*EXP(-gamma*(T$15-$H18 ))) ) -> 0 | U18: =$G18/[0]!Poids * ( (A*EXP(-alpha*(U$15-$H18))) + (B*EXP(-bêta*(U$15-$H18))) + (_C*EXP(-gamma*(U$15-$H18 ))) ) -> 0 | V18: =$G18/[0]!Poids * ( (A*EXP(-alpha*(V$15-$H18))) + (B*EXP(-bêta*(V$15-$H18))) + (_C*EXP(-gamma*(V$15-$H18 ))) ) -> 0 | W18: =$G18/[0]!Poids * ( (A*EXP(-alpha*(W$15-$H18))) + (B*EXP(-bêta*(W$15-$H18))) + (_C*EXP(-gamma*(W$15-$H18 ))) ) -> 0 | X18: =$G18/[0]!Poids * ( (A*EXP(-alpha*(X$15-$H18))) + (B*EXP(-bêta*(X$15-$H18))) + (_C*EXP(-gamma*(X$15-$H18 ))) ) -> 0 | Y18: =$G18/[0]!Poids * ( (A*EXP(-alpha*(Y$15-$H18))) + (B*EXP(-bêta*(Y$15-$H18))) + (_C*EXP(-gamma*(Y$15-$H18 ))) ) -> 0 | Z18: =$G18/[0]!Poids * ( (A*EXP(-alpha*(Z$15-$H18))) + (B*EXP(-bêta*(Z$15-$H18))) + (_C*EXP(-gamma*(Z$15-$H18 ))) ) -> 0 | AA18: =$G18/[0]!Poids * ( (A*EXP(-alpha*(AA$15-$H18))) + (B*EXP(-bêta*(AA$15-$H18))) + (_C*EXP(-gamma*(AA$15-$H18 ))) ) -> 0 | AB18: =$G18/[0]!Poids * ( (A*EXP(-alpha*(AB$15-$H18))) + (B*EXP(-bêta*(AB$15-$H18))) + (_C*EXP(-gamma*(AB$15-$H18 ))) ) -> 0 | AC18: =$G18/[0]!Poids * ( (A*EXP(-alpha*(AC$15-$H18))) + (B*EXP(-bêta*(AC$15-$H18))) + (_C*EXP(-gamma*(AC$15-$H18 ))) ) -> 0 | AD18: =$G18/[0]!Poids * ( (A*EXP(-alpha*(AD$15-$H18))) + (B*EXP(-bêta*(AD$15-$H18))) + (_C*EXP(-gamma*(AD$15-$H18 ))) ) -> 0 | AE18: =$G18/[0]!Poids * ( (A*EXP(-alpha*(AE$15-$H18))) + (B*EXP(-bêta*(AE$15-$H18))) + (_C*EXP(-gamma*(AE$15-$H18 ))) ) -> 0 | AF18: =$G18/[0]!Poids * ( (A*EXP(-alpha*(AF$15-$H18))) + (B*EXP(-bêta*(AF$15-$H18))) + (_C*EXP(-gamma*(AF$15-$H18 ))) ) -> 0 | AG18: =$G18/[0]!Poids * ( (A*EXP(-alpha*(AG$15-$H18))) + (B*EXP(-bêta*(AG$15-$H18))) + (_C*EXP(-gamma*(AG$15-$H18 ))) ) -> 0 | AH18: =$G18/[0]!Poids * ( (A*EXP(-alpha*(AH$15-$H18))) + (B*EXP(-bêta*(AH$15-$H18))) + (_C*EXP(-gamma*(AH$15-$H18 ))) ) -> 0 | AI18: =$G18/[0]!Poids * ( (A*EXP(-alpha*(AI$15-$H18))) + (B*EXP(-bêta*(AI$15-$H18))) + (_C*EXP(-gamma*(AI$15-$H18 ))) ) -> 0 | AJ18: =$G18/[0]!Poids * ( (A*EXP(-alpha*(AJ$15-$H18))) + (B*EXP(-bêta*(AJ$15-$H18))) + (_C*EXP(-gamma*(AJ$15-$H18 ))) ) -> 0 | AK18: =$G18/[0]!Poids * ( (A*EXP(-alpha*(AK$15-$H18))) + (B*EXP(-bêta*(AK$15-$H18))) + (_C*EXP(-gamma*(AK$15-$H18 ))) ) -> 0 | AL18: =$G18/[0]!Poids * ( (A*EXP(-alpha*(AL$15-$H18))) + (B*EXP(-bêta*(AL$15-$H18))) + (_C*EXP(-gamma*(AL$15-$H18 ))) ) -> 0 | AM18: =$G18/[0]!Poids * ( (A*EXP(-alpha*(AM$15-$H18))) + (B*EXP(-bêta*(AM$15-$H18))) + (_C*EXP(-gamma*(AM$15-$H18 ))) ) -> 0 | AN18: =$G18/[0]!Poids * ( (A*EXP(-alpha*(AN$15-$H18))) + (B*EXP(-bêta*(AN$15-$H18))) + (_C*EXP(-gamma*(AN$15-$H18 ))) ) -> 0 | AO18: =$G18/[0]!Poids * ( (A*EXP(-alpha*(AO$15-$H18))) + (B*EXP(-bêta*(AO$15-$H18))) + (_C*EXP(-gamma*(AO$15-$H18 ))) ) -> 0 | AP18: =$G18/[0]!Poids * ( (A*EXP(-alpha*(AP$15-$H18))) + (B*EXP(-bêta*(AP$15-$H18))) + (_C*EXP(-gamma*(AP$15-$H18 ))) ) -> 0 | AQ18: =$G18/[0]!Poids * ( (A*EXP(-alpha*(AQ$15-$H18))) + (B*EXP(-bêta*(AQ$15-$H18))) + (_C*EXP(-gamma*(AQ$15-$H18 ))) ) -> 0 | AR18: =$G18/[0]!Poids * ( (A*EXP(-alpha*(AR$15-$H18))) + (B*EXP(-bêta*(AR$15-$H18))) + (_C*EXP(-gamma*(AR$15-$H18 ))) ) -> 0 | AS18: =$G18/[0]!Poids * ( (A*EXP(-alpha*(AS$15-$H18))) + (B*EXP(-bêta*(AS$15-$H18))) + (_C*EXP(-gamma*(AS$15-$H18 ))) ) -> 0 | AT18: =$G18/[0]!Poids * ( (A*EXP(-alpha*(AT$15-$H18))) + (B*EXP(-bêta*(AT$15-$H18))) + (_C*EXP(-gamma*(AT$15-$H18 ))) ) -> 0 | AU18: =$G18/[0]!Poids * ( (A*EXP(-alpha*(AU$15-$H18))) + (B*EXP(-bêta*(AU$15-$H18))) + (_C*EXP(-gamma*(AU$15-$H18 ))) ) -> 0 | AV18: =$G18/[0]!Poids * ( (A*EXP(-alpha*(AV$15-$H18))) + (B*EXP(-bêta*(AV$15-$H18))) + (_C*EXP(-gamma*(AV$15-$H18 ))) ) -> 0 | AW18: =$G18/[0]!Poids * ( (A*EXP(-alpha*(AW$15-$H18))) + (B*EXP(-bêta*(AW$15-$H18))) + (_C*EXP(-gamma*(AW$15-$H18 ))) ) -> 0 | AX18: =$G18/[0]!Poids * ( (A*EXP(-alpha*(AX$15-$H18))) + (B*EXP(-bêta*(AX$15-$H18))) + (_C*EXP(-gamma*(AX$15-$H18 ))) ) -> 0 | AY18: =$G18/[0]!Poids * ( (A*EXP(-alpha*(AY$15-$H18))) + (B*EXP(-bêta*(AY$15-$H18))) + (_C*EXP(-gamma*(AY$15-$H18 ))) ) -> 0 | AZ18: =$G18/[0]!Poids * ( (A*EXP(-alpha*(AZ$15-$H18))) + (B*EXP(-bêta*(AZ$15-$H18))) + (_C*EXP(-gamma*(AZ$15-$H18 ))) ) -> 0 | BA18: =$G18/[0]!Poids * ( (A*EXP(-alpha*(BA$15-$H18))) + (B*EXP(-bêta*(BA$15-$H18))) + (_C*EXP(-gamma*(BA$15-$H18 ))) ) -> 0 | BB18: =$G18/[0]!Poids * ( (A*EXP(-alpha*(BB$15-$H18))) + (B*EXP(-bêta*(BB$15-$H18))) + (_C*EXP(-gamma*(BB$15-$H18 ))) ) -> 0 | BC18: =$G18/[0]!Poids * ( (A*EXP(-alpha*(BC$15-$H18))) + (B*EXP(-bêta*(BC$15-$H18))) + (_C*EXP(-gamma*(BC$15-$H18 ))) ) -> 0 | BD18: =$G18/[0]!Poids * ( (A*EXP(-alpha*(BD$15-$H18))) + (B*EXP(-bêta*(BD$15-$H18))) + (_C*EXP(-gamma*(BD$15-$H18 ))) ) -> 0 | BE18: =$G18/[0]!Poids * ( (A*EXP(-alpha*(BE$15-$H18))) + (B*EXP(-bêta*(BE$15-$H18))) + (_C*EXP(-gamma*(BE$15-$H18 ))) ) -> 0 | BF18: =$G18/[0]!Poids * ( (A*EXP(-alpha*(BF$15-$H18))) + (B*EXP(-bêta*(BF$15-$H18))) + (_C*EXP(-gamma*(BF$15-$H18 ))) ) -> 0 | BG18: =$G18/[0]!Poids * ( (A*EXP(-alpha*(BG$15-$H18))) + (B*EXP(-bêta*(BG$15-$H18))) + (_C*EXP(-gamma*(BG$15-$H18 ))) ) -> 0 | BH18: =$G18/[0]!Poids * ( (A*EXP(-alpha*(BH$15-$H18))) + (B*EXP(-bêta*(BH$15-$H18))) + (_C*EXP(-gamma*(BH$15-$H18 ))) ) -> 0 | BI18: =$G18/[0]!Poids * ( (A*EXP(-alpha*(BI$15-$H18))) + (B*EXP(-bêta*(BI$15-$H18))) + (_C*EXP(-gamma*(BI$15-$H18 ))) ) -> 0 | BJ18: =$G18/[0]!Poids * ( (A*EXP(-alpha*(BJ$15-$H18))) + (B*EXP(-bêta*(BJ$15-$H18))) + (_C*EXP(-gamma*(BJ$15-$H18 ))) ) -> 0 | BK18: =$G18/[0]!Poids * ( (A*EXP(-alpha*(BK$15-$H18))) + (B*EXP(-bêta*(BK$15-$H18))) + (_C*EXP(-gamma*(BK$15-$H18 ))) ) -> 0 | BL18: =$G18/[0]!Poids * ( (A*EXP(-alpha*(BL$15-$H18))) + (B*EXP(-bêta*(BL$15-$H18))) + (_C*EXP(-gamma*(BL$15-$H18 ))) ) -> 0 | BM18: =$G18/[0]!Poids * ( (A*EXP(-alpha*(BM$15-$H18))) + (B*EXP(-bêta*(BM$15-$H18))) + (_C*EXP(-gamma*(BM$15-$H18 ))) ) -> 0 | BN18: =$G18/[0]!Poids * ( (A*EXP(-alpha*(BN$15-$H18))) + (B*EXP(-bêta*(BN$15-$H18))) + (_C*EXP(-gamma*(BN$15-$H18 ))) ) -> 0 | BO18: =$G18/[0]!Poids * ( (A*EXP(-alpha*(BO$15-$H18))) + (B*EXP(-bêta*(BO$15-$H18))) + (_C*EXP(-gamma*(BO$15-$H18 ))) ) -> 0 | BP18: =$G18/[0]!Poids * ( (A*EXP(-alpha*(BP$15-$H18))) + (B*EXP(-bêta*(BP$15-$H18))) + (_C*EXP(-gamma*(BP$15-$H18 ))) ) -> 0 | BQ18: =$G18/[0]!Poids * ( (A*EXP(-alpha*(BQ$15-$H18))) + (B*EXP(-bêta*(BQ$15-$H18))) + (_C*EXP(-gamma*(BQ$15-$H18 ))) ) -> 0 | BR18: =$G18/[0]!Poids * ( (A*EXP(-alpha*(BR$15-$H18))) + (B*EXP(-bêta*(BR$15-$H18))) + (_C*EXP(-gamma*(BR$15-$H18 ))) ) -> 0
